Workbook

Sheet Acido - Base forte
A1: FALSE | B1: Ka1 = | C1: 0.0075 | E1: [acido] = | F1: 0.1 | G1: M | J1: 1
A2: FALSE | B2: Ka2 = | C2: 6.2e-08 | E2: [base] = | F2: 0.1 | G2: M
A3: FALSE | B3: Ka3 = | E3: vol. acido = | F3: 25 | G3: mL
A4: FALSE | L4: 1) Blu Bromofenolo
A5: FALSE | M5: pKa=4.1 (3.0-4.6)
A6: FALSE | L6: 2) Metilarancio
A7: FALSE | M7: pKa=3.46 (3.1-4.4)
A8: FALSE | L8: 3) Verde Bromocresolo
A9: FALSE | M9: pKa=4.9 (3.8-4.6)
L10: 4) Rosso Metile
M11: pKa=5.0 (4.4-6.2)
L12: 5) Blu Bromotimolo
M13: pKa=7.30 (6.0-7.6)
L14: 6) Rosso Fenolo
M15: pKa=7.9 (6.5-8.2)
L16: 7) Blu Timolo
M17: pKa=9.2 (8.0-9.6)
L18: 8) Fenolftaleina
M19: pKa=9,5 (8,0-9,8)
L20: 9) Timolftaleina
M21: pKa=9,7 (9,3-10,5)

Sheet Calcoli
A8: Kw | B8: 1e-14
A9: K1 | B9: ='Acido - Base forte'!C1 -> 0.0075 | C9: =IF(B9>0,1,0) -> 1
A10: K2 | B10: =IF('Acido - Base forte'!$C2>0,IF('Acido - Base forte'!$C2<'Acido - Base forte'!$C1,'Acido - Base forte'!$C2,""), "") -> 6.2e-08 | C10: =IF(B10<> "",1,0) -> 1
A11: K3 | B11: =IF('Acido - Base forte'!$C3>0,IF('Acido - Base forte'!$C3<'Acido - Base forte'!$C2,'Acido - Base forte'!$C3,""), "") ->  | C11: =IF(B11<> "",1,0) -> 0
A13: n | B13: =SUM(C9:C11) -> 2
A20: Base Volume | B20: [H+] | C20: pH | D20: Denom. | E20: A1 | F20: A2 | G20: A3 | H20: A1+A2+A3 | I20: phi | J20: num | K20: denom
A21: =IF((I21*'Acido - Base forte'!$F$3*'Acido - Base forte'!$F$1)/'Acido - Base forte'!$F$2>0,IF((I21*'Acido - Base forte'!$F$3*'Acido - Base forte'!$F$1)/'Acido - Base forte'!$F$2<1.8*Calcoli!$B$13*('Acido - Base forte'!$F$1*'Acido - Base forte'!$F$3/'Acido - Base forte'!$F$2),I21*'Acido - Base forte'!$F$3*'Acido - Base forte'!$F$1/'Acido - Base forte'!$F$2,NA()),NA()) ->  | B21: =10^-C21 -> 1 | C21: 0 | D21: =IF(Calcoli!$B$13=3,B21^Calcoli!$B$13+Calcoli!$B$9*B21^2+Calcoli!$B$9*Calcoli!$B$10*B21+Calcoli!$B$9*Calcoli!$B$10*Calcoli!$B$11,IF(Calcoli!$B$13=2,B21^Calcoli!$B$13+Calcoli!$B$9*B21+Calcoli!$B$9*Calcoli!$B$10,B21^Calcoli!$B$13+Calcoli!$B$9)) -> 1.0075 | E21: =(Calcoli!$B$9*B21^(Calcoli!$B$13-1))/D21 -> 0.007444168731 | F21: =IF(Calcoli!$B$13>=2, (Calcoli!$B$9*Calcoli!$B$10*B21^(Calcoli!$B$13-2))/D21,NA()) -> 4.615384613e-10 | G21: =IF(Calcoli!$B$13>=3,(Calcoli!$B$9*Calcoli!$B$10*Calcoli!$B$11*B21^(Calcoli!$B$13-3))/D21,NA()) ->  | H21: =IF(Calcoli!$B$13=3,(E21+F21*2+G21*3),IF(Calcoli!$B$13=2,(E21+F21*2),E21)) -> 0.007444169654 | I21: =(H21-J21)/(1+K21) -> -0.9084141664 | J21: =(B21-(Calcoli!$B$8/B21))/'Acido - Base forte'!$F$1 -> 10 | K21: =(B21-(Calcoli!$B$8/B21))/'Acido - Base forte'!$F$2 -> 10
A22: =IF((I22*'Acido - Base forte'!$F$3*'Acido - Base forte'!$F$1)/'Acido - Base forte'!$F$2>0,IF((I22*'Acido - Base forte'!$F$3*'Acido - Base forte'!$F$1)/'Acido - Base forte'!$F$2<1.8*Calcoli!$B$13*('Acido - Base forte'!$F$1*'Acido - Base forte'!$F$3/'Acido - Base forte'!$F$2),I22*'Acido - Base forte'!$F$3*'Acido - Base forte'!$F$1/'Acido - Base forte'!$F$2,NA()),NA()) ->  | B22: 0.7943282347 | C22: =C21+0.1 -> 0.1 | D22: =IF(Calcoli!$B$13=3,B22^Calcoli!$B$13+Calcoli!$B$9*B22^2+Calcoli!$B$9*Calcoli!$B$10*B22+Calcoli!$B$9*Calcoli!$B$10*Calcoli!$B$11,IF(Calcoli!$B$13=2,B22^Calcoli!$B$13+Calcoli!$B$9*B22+Calcoli!$B$9*Calcoli!$B$10,B22^Calcoli!$B$13+Calcoli!$B$9)) -> 0.6369148067 | E22: =(Calcoli!$B$9*B22^(Calcoli!$B$13-1))/D22 -> 0.009353624217 | F22: =IF(Calcoli!$B$13>=2, (Calcoli!$B$9*Calcoli!$B$10*B22^(Calcoli!$B$13-2))/D22,NA()) -> 7.300819436e-10 | G22: =IF(Calcoli!$B$13>=3,(Calcoli!$B$9*Calcoli!$B$10*Calcoli!$B$11*B22^(Calcoli!$B$13-3))/D22,NA()) ->  | H22: =IF(Calcoli!$B$13=3,(E22+F22*2+G22*3),IF(Calcoli!$B$13=2,(E22+F22*2),E22)) -> 0.009353625678 | I22: -0.8871383474 | J22: =(B22-(Calcoli!$B$8/B22))/'Acido - Base forte'!$F$1 -> 7.943282347 | K22: =(B22-(Calcoli!$B$8/B22))/'Acido - Base forte'!$F$2 -> 7.943282347
A23: =IF((I23*'Acido - Base forte'!$F$3*'Acido - Base forte'!$F$1)/'Acido - Base forte'!$F$2>0,IF((I23*'Acido - Base forte'!$F$3*'Acido - Base forte'!$F$1)/'Acido - Base forte'!$F$2<1.8*Calcoli!$B$13*('Acido - Base forte'!$F$1*'Acido - Base forte'!$F$3/'Acido - Base forte'!$F$2),I23*'Acido - Base forte'!$F$3*'Acido - Base forte'!$F$1/'Acido - Base forte'!$F$2,NA()),NA()) ->  | B23: 0.6309573445 | C23: 0.2 | D23: =IF(Calcoli!$B$13=3,B23^Calcoli!$B$13+Calcoli!$B$9*B23^2+Calcoli!$B$9*Calcoli!$B$10*B23+Calcoli!$B$9*Calcoli!$B$10*Calcoli!$B$11,IF(Calcoli!$B$13=2,B23^Calcoli!$B$13+Calcoli!$B$9*B23+Calcoli!$B$9*Calcoli!$B$10,B23^Calcoli!$B$13+Calcoli!$B$9)) -> 0.4028393511 | E23: =(Calcoli!$B$9*B23^(Calcoli!$B$13-1))/D23 -> 0.0117470651 | F23: =IF(Calcoli!$B$13>=2, (Calcoli!$B$9*Calcoli!$B$10*B23^(Calcoli!$B$13-2))/D23,NA()) -> 1.154306298e-09 | G23: =IF(Calcoli!$B$13>=3,(Calcoli!$B$9*Calcoli!$B$10*Calcoli!$B$11*B23^(Calcoli!$B$13-3))/D23,NA()) ->  | H23: =IF(Calcoli!$B$13=3,(E23+F23*2+G23*3),IF(Calcoli!$B$13=2,(E23+F23*2),E23)) -> 0.01174706741 | I23: -0.8615860317 | J23: =(B23-(Calcoli!$B$8/B23))/'Acido - Base forte'!$F$1 -> 6.309573445 | K23: =(B23-(Calcoli!$B$8/B23))/'Acido - Base forte'!$F$2 -> 6.309573445
A24: =IF((I24*'Acido - Base forte'!$F$3*'Acido - Base forte'!$F$1)/'Acido - Base forte'!$F$2>0,IF((I24*'Acido - Base forte'!$F$3*'Acido - Base forte'!$F$1)/'Acido - Base forte'!$F$2<1.8*Calcoli!$B$13*('Acido - Base forte'!$F$1*'Acido - Base forte'!$F$3/'Acido - Base forte'!$F$2),I24*'Acido - Base forte'!$F$3*'Acido - Base forte'!$F$1/'Acido - Base forte'!$F$2,NA()),NA()) ->  | B24: 0.5011872336 | C24: 0.3 | D24: =IF(Calcoli!$B$13=3,B24^Calcoli!$B$13+Calcoli!$B$9*B24^2+Calcoli!$B$9*Calcoli!$B$10*B24+Calcoli!$B$9*Calcoli!$B$10*Calcoli!$B$11,IF(Calcoli!$B$13=2,B24^Calcoli!$B$13+Calcoli!$B$9*B24+Calcoli!$B$9*Calcoli!$B$10,B24^Calcoli!$B$13+Calcoli!$B$9)) -> 0.2549475479 | E24: =(Calcoli!$B$9*B24^(Calcoli!$B$13-1))/D24 -> 0.01474383372 | F24: =IF(Calcoli!$B$13>=2, (Calcoli!$B$9*Calcoli!$B$10*B24^(Calcoli!$B$13-2))/D24,NA()) -> 1.823904579e-09 | G24: =IF(Calcoli!$B$13>=3,(Calcoli!$B$9*Calcoli!$B$10*Calcoli!$B$11*B24^(Calcoli!$B$13-3))/D24,NA()) ->  | H24: =IF(Calcoli!$B$13=3,(E24+F24*2+G24*3),IF(Calcoli!$B$13=2,(E24+F24*2),E24)) -> 0.01474383736 | I24: -0.8312100157 | J24: =(B24-(Calcoli!$B$8/B24))/'Acido - Base forte'!$F$1 -> 5.011872336 | K24: =(B24-(Calcoli!$B$8/B24))/'Acido - Base forte'!$F$2 -> 5.011872336
A25: =IF((I25*'Acido - Base forte'!$F$3*'Acido - Base forte'!$F$1)/'Acido - Base forte'!$F$2>0,IF((I25*'Acido - Base forte'!$F$3*'Acido - Base forte'!$F$1)/'Acido - Base forte'!$F$2<1.8*Calcoli!$B$13*('Acido - Base forte'!$F$1*'Acido - Base forte'!$F$3/'Acido - Base forte'!$F$2),I25*'Acido - Base forte'!$F$3*'Acido - Base forte'!$F$1/'Acido - Base forte'!$F$2,NA()),NA()) ->  | B25: 0.3981071706 | C25: 0.4 | D25: =IF(Calcoli!$B$13=3,B25^Calcoli!$B$13+Calcoli!$B$9*B25^2+Calcoli!$B$9*Calcoli!$B$10*B25+Calcoli!$B$9*Calcoli!$B$10*Calcoli!$B$11,IF(Calcoli!$B$13=2,B25^Calcoli!$B$13+Calcoli!$B$9*B25+Calcoli!$B$9*Calcoli!$B$10,B25^Calcoli!$B$13+Calcoli!$B$9)) -> 0.1614751235 | E25: =(Calcoli!$B$9*B25^(Calcoli!$B$13-1))/D25 -> 0.01849079731 | F25: =IF(Calcoli!$B$13>=2, (Calcoli!$B$9*Calcoli!$B$10*B25^(Calcoli!$B$13-2))/D25,NA()) -> 2.879700538e-09 | G25: =IF(Calcoli!$B$13>=3,(Calcoli!$B$9*Calcoli!$B$10*Calcoli!$B$11*B25^(Calcoli!$B$13-3))/D25,NA()) ->  | H25: =IF(Calcoli!$B$13=3,(E25+F25*2+G25*3),IF(Calcoli!$B$13=2,(E25+F25*2),E25)) -> 0.01849080307 | I25: -0.7955277773 | J25: =(B25-(Calcoli!$B$8/B25))/'Acido - Base forte'!$F$1 -> 3.981071706 | K25: =(B25-(Calcoli!$B$8/B25))/'Acido - Base forte'!$F$2 -> 3.981071706
A26: =IF((I26*'Acido - Base forte'!$F$3*'Acido - Base forte'!$F$1)/'Acido - Base forte'!$F$2>0,IF((I26*'Acido - Base forte'!$F$3*'Acido - Base forte'!$F$1)/'Acido - Base forte'!$F$2<1.8*Calcoli!$B$13*('Acido - Base forte'!$F$1*'Acido - Base forte'!$F$3/'Acido - Base forte'!$F$2),I26*'Acido - Base forte'!$F$3*'Acido - Base forte'!$F$1/'Acido - Base forte'!$F$2,NA()),NA()) ->  | B26: 0.316227766 | C26: 0.5 | D26: =IF(Calcoli!$B$13=3,B26^Calcoli!$B$13+Calcoli!$B$9*B26^2+Calcoli!$B$9*Calcoli!$B$10*B26+Calcoli!$B$9*Calcoli!$B$10*Calcoli!$B$11,IF(Calcoli!$B$13=2,B26^Calcoli!$B$13+Calcoli!$B$9*B26+Calcoli!$B$9*Calcoli!$B$10,B26^Calcoli!$B$13+Calcoli!$B$9)) -> 0.1023717087 | E26: =(Calcoli!$B$9*B26^(Calcoli!$B$13-1))/D26 -> 0.02316761413 | F26: =IF(Calcoli!$B$13>=2, (Calcoli!$B$9*Calcoli!$B$10*B26^(Calcoli!$B$13-2))/D26,NA()) -> 4.542270573e-09 | G26: =IF(Calcoli!$B$13>=3,(Calcoli!$B$9*Calcoli!$B$10*Calcoli!$B$11*B26^(Calcoli!$B$13-3))/D26,NA()) ->  | H26: =IF(Calcoli!$B$13=3,(E26+F26*2+G26*3),IF(Calcoli!$B$13=2,(E26+F26*2),E26)) -> 0.02316762321 | I26: -0.754180834 | J26: =(B26-(Calcoli!$B$8/B26))/'Acido - Base forte'!$F$1 -> 3.16227766 | K26: =(B26-(Calcoli!$B$8/B26))/'Acido - Base forte'!$F$2 -> 3.16227766
A27: =IF((I27*'Acido - Base forte'!$F$3*'Acido - Base forte'!$F$1)/'Acido - Base forte'!$F$2>0,IF((I27*'Acido - Base forte'!$F$3*'Acido - Base forte'!$F$1)/'Acido - Base forte'!$F$2<1.8*Calcoli!$B$13*('Acido - Base forte'!$F$1*'Acido - Base forte'!$F$3/'Acido - Base forte'!$F$2),I27*'Acido - Base forte'!$F$3*'Acido - Base forte'!$F$1/'Acido - Base forte'!$F$2,NA()),NA()) ->  | B27: 0.2511886432 | C27: 0.6 | D27: =IF(Calcoli!$B$13=3,B27^Calcoli!$B$13+Calcoli!$B$9*B27^2+Calcoli!$B$9*Calcoli!$B$10*B27+Calcoli!$B$9*Calcoli!$B$10*Calcoli!$B$11,IF(Calcoli!$B$13=2,B27^Calcoli!$B$13+Calcoli!$B$9*B27+Calcoli!$B$9*Calcoli!$B$10,B27^Calcoli!$B$13+Calcoli!$B$9)) -> 0.06497964974 | E27: =(Calcoli!$B$9*B27^(Calcoli!$B$13-1))/D27 -> 0.02899238194 | F27: =IF(Calcoli!$B$13>=2, (Calcoli!$B$9*Calcoli!$B$10*B27^(Calcoli!$B$13-2))/D27,NA()) -> 7.156086588e-09 | G27: =IF(Calcoli!$B$13>=3,(Calcoli!$B$9*Calcoli!$B$10*Calcoli!$B$11*B27^(Calcoli!$B$13-3))/D27,NA()) ->  | H27: =IF(Calcoli!$B$13=3,(E27+F27*2+G27*3),IF(Calcoli!$B$13=2,(E27+F27*2),E27)) -> 0.02899239625 | I27: -0.706997246 | J27: =(B27-(Calcoli!$B$8/B27))/'Acido - Base forte'!$F$1 -> 2.511886432 | K27: =(B27-(Calcoli!$B$8/B27))/'Acido - Base forte'!$F$2 -> 2.511886432
A28: =IF((I28*'Acido - Base forte'!$F$3*'Acido - Base forte'!$F$1)/'Acido - Base forte'!$F$2>0,IF((I28*'Acido - Base forte'!$F$3*'Acido - Base forte'!$F$1)/'Acido - Base forte'!$F$2<1.8*Calcoli!$B$13*('Acido - Base forte'!$F$1*'Acido - Base forte'!$F$3/'Acido - Base forte'!$F$2),I28*'Acido - Base forte'!$F$3*'Acido - Base forte'!$F$1/'Acido - Base forte'!$F$2,NA()),NA()) ->  | B28: 0.1995262315 | C28: 0.7 | D28: =IF(Calcoli!$B$13=3,B28^Calcoli!$B$13+Calcoli!$B$9*B28^2+Calcoli!$B$9*Calcoli!$B$10*B28+Calcoli!$B$9*Calcoli!$B$10*Calcoli!$B$11,IF(Calcoli!$B$13=2,B28^Calcoli!$B$13+Calcoli!$B$9*B28+Calcoli!$B$9*Calcoli!$B$10,B28^Calcoli!$B$13+Calcoli!$B$9)) -> 0.04130716426 | E28: =(Calcoli!$B$9*B28^(Calcoli!$B$13-1))/D28 -> 0.03622729285 | F28: =IF(Calcoli!$B$13>=2, (Calcoli!$B$9*Calcoli!$B$10*B28^(Calcoli!$B$13-2))/D28,NA()) -> 1.125712714e-08 | G28: =IF(Calcoli!$B$13>=3,(Calcoli!$B$9*Calcoli!$B$10*Calcoli!$B$11*B28^(Calcoli!$B$13-3))/D28,NA()) ->  | H28: =IF(Calcoli!$B$13=3,(E28+F28*2+G28*3),IF(Calcoli!$B$13=2,(E28+F28*2),E28)) -> 0.03622731536 | I28: -0.6540445522 | J28: =(B28-(Calcoli!$B$8/B28))/'Acido - Base forte'!$F$1 -> 1.995262315 | K28: =(B28-(Calcoli!$B$8/B28))/'Acido - Base forte'!$F$2 -> 1.995262315
A29: =IF((I29*'Acido - Base forte'!$F$3*'Acido - Base forte'!$F$1)/'Acido - Base forte'!$F$2>0,IF((I29*'Acido - Base forte'!$F$3*'Acido - Base forte'!$F$1)/'Acido - Base forte'!$F$2<1.8*Calcoli!$B$13*('Acido - Base forte'!$F$1*'Acido - Base forte'!$F$3/'Acido - Base forte'!$F$2),I29*'Acido - Base forte'!$F$3*'Acido - Base forte'!$F$1/'Acido - Base forte'!$F$2,NA()),NA()) ->  | B29: 0.1584893192 | C29: 0.8 | D29: =IF(Calcoli!$B$13=3,B29^Calcoli!$B$13+Calcoli!$B$9*B29^2+Calcoli!$B$9*Calcoli!$B$10*B29+Calcoli!$B$9*Calcoli!$B$10*Calcoli!$B$11,IF(Calcoli!$B$13=2,B29^Calcoli!$B$13+Calcoli!$B$9*B29+Calcoli!$B$9*Calcoli!$B$10,B29^Calcoli!$B$13+Calcoli!$B$9)) -> 0.02630753467 | E29: =(Calcoli!$B$9*B29^(Calcoli!$B$13-1))/D29 -> 0.04518362929 | F29: =IF(Calcoli!$B$13>=2, (Calcoli!$B$9*Calcoli!$B$10*B29^(Calcoli!$B$13-2))/D29,NA()) -> 1.767554451e-08 | G29: =IF(Calcoli!$B$13>=3,(Calcoli!$B$9*Calcoli!$B$10*Calcoli!$B$11*B29^(Calcoli!$B$13-3))/D29,NA()) ->  | H29: =IF(Calcoli!$B$13=3,(E29+F29*2+G29*3),IF(Calcoli!$B$13=2,(E29+F29*2),E29)) -> 0.04518366464 | I29: -0.595656924 | J29: =(B29-(Calcoli!$B$8/B29))/'Acido - Base forte'!$F$1 -> 1.584893192 | K29: =(B29-(Calcoli!$B$8/B29))/'Acido - Base forte'!$F$2 -> 1.584893192
A30: =IF((I30*'Acido - Base forte'!$F$3*'Acido - Base forte'!$F$1)/'Acido - Base forte'!$F$2>0,IF((I30*'Acido - Base forte'!$F$3*'Acido - Base forte'!$F$1)/'Acido - Base forte'!$F$2<1.8*Calcoli!$B$13*('Acido - Base forte'!$F$1*'Acido - Base forte'!$F$3/'Acido - Base forte'!$F$2),I30*'Acido - Base forte'!$F$3*'Acido - Base forte'!$F$1/'Acido - Base forte'!$F$2,NA()),NA()) ->  | B30: 0.1258925412 | C30: 0.9 | D30: =IF(Calcoli!$B$13=3,B30^Calcoli!$B$13+Calcoli!$B$9*B30^2+Calcoli!$B$9*Calcoli!$B$10*B30+Calcoli!$B$9*Calcoli!$B$10*Calcoli!$B$11,IF(Calcoli!$B$13=2,B30^Calcoli!$B$13+Calcoli!$B$9*B30+Calcoli!$B$9*Calcoli!$B$10,B30^Calcoli!$B$13+Calcoli!$B$9)) -> 0.01679312645 | E30: =(Calcoli!$B$9*B30^(Calcoli!$B$13-1))/D30 -> 0.05622503122 | F30: =IF(Calcoli!$B$13>=2, (Calcoli!$B$9*Calcoli!$B$10*B30^(Calcoli!$B$13-2))/D30,NA()) -> 2.768990047e-08 | G30: =IF(Calcoli!$B$13>=3,(Calcoli!$B$9*Calcoli!$B$10*Calcoli!$B$11*B30^(Calcoli!$B$13-3))/D30,NA()) ->  | H30: =IF(Calcoli!$B$13=3,(E30+F30*2+G30*3),IF(Calcoli!$B$13=2,(E30+F30*2),E30)) -> 0.0562250866 | I30: -0.532421442 | J30: =(B30-(Calcoli!$B$8/B30))/'Acido - Base forte'!$F$1 -> 1.258925412 | K30: =(B30-(Calcoli!$B$8/B30))/'Acido - Base forte'!$F$2 -> 1.258925412
A31: =IF((I31*'Acido - Base forte'!$F$3*'Acido - Base forte'!$F$1)/'Acido - Base forte'!$F$2>0,IF((I31*'Acido - Base forte'!$F$3*'Acido - Base forte'!$F$1)/'Acido - Base forte'!$F$2<1.8*Calcoli!$B$13*('Acido - Base forte'!$F$1*'Acido - Base forte'!$F$3/'Acido - Base forte'!$F$2),I31*'Acido - Base forte'!$F$3*'Acido - Base forte'!$F$1/'Acido - Base forte'!$F$2,NA()),NA()) ->  | B31: 0.1 | C31: 1 | D31: =IF(Calcoli!$B$13=3,B31^Calcoli!$B$13+Calcoli!$B$9*B31^2+Calcoli!$B$9*Calcoli!$B$10*B31+Calcoli!$B$9*Calcoli!$B$10*Calcoli!$B$11,IF(Calcoli!$B$13=2,B31^Calcoli!$B$13+Calcoli!$B$9*B31+Calcoli!$B$9*Calcoli!$B$10,B31^Calcoli!$B$13+Calcoli!$B$9)) -> 0.01075000047 | E31: =(Calcoli!$B$9*B31^(Calcoli!$B$13-1))/D31 -> 0.06976743884 | F31: =IF(Calcoli!$B$13>=2, (Calcoli!$B$9*Calcoli!$B$10*B31^(Calcoli!$B$13-2))/D31,NA()) -> 4.325581208e-08 | G31: =IF(Calcoli!$B$13>=3,(Calcoli!$B$9*Calcoli!$B$10*Calcoli!$B$11*B31^(Calcoli!$B$13-3))/D31,NA()) ->  | H31: =IF(Calcoli!$B$13=3,(E31+F31*2+G31*3),IF(Calcoli!$B$13=2,(E31+F31*2),E31)) -> 0.06976752535 | I31: -0.4651162373 | J31: =(B31-(Calcoli!$B$8/B31))/'Acido - Base forte'!$F$1 -> 1 | K31: =(B31-(Calcoli!$B$8/B31))/'Acido - Base forte'!$F$2 -> 1
A32: =IF((I32*'Acido - Base forte'!$F$3*'Acido - Base forte'!$F$1)/'Acido - Base forte'!$F$2>0,IF((I32*'Acido - Base forte'!$F$3*'Acido - Base forte'!$F$1)/'Acido - Base forte'!$F$2<1.8*Calcoli!$B$13*('Acido - Base forte'!$F$1*'Acido - Base forte'!$F$3/'Acido - Base forte'!$F$2),I32*'Acido - Base forte'!$F$3*'Acido - Base forte'!$F$1/'Acido - Base forte'!$F$2,NA()),NA()) ->  | B32: 0.0954992586 | C32: =C31+0.02 -> 1.02 | D32: =IF(Calcoli!$B$13=3,B32^Calcoli!$B$13+Calcoli!$B$9*B32^2+Calcoli!$B$9*Calcoli!$B$10*B32+Calcoli!$B$9*Calcoli!$B$10*Calcoli!$B$11,IF(Calcoli!$B$13=2,B32^Calcoli!$B$13+Calcoli!$B$9*B32+Calcoli!$B$9*Calcoli!$B$10,B32^Calcoli!$B$13+Calcoli!$B$9)) -> 0.009836353298 | E32: =(Calcoli!$B$9*B32^(Calcoli!$B$13-1))/D32 -> 0.07281605467 | F32: =IF(Calcoli!$B$13>=2, (Calcoli!$B$9*Calcoli!$B$10*B32^(Calcoli!$B$13-2))/D32,NA()) -> 4.727361715e-08 | G32: =IF(Calcoli!$B$13>=3,(Calcoli!$B$9*Calcoli!$B$10*Calcoli!$B$11*B32^(Calcoli!$B$13-3))/D32,NA()) ->  | H32: =IF(Calcoli!$B$13=3,(E32+F32*2+G32*3),IF(Calcoli!$B$13=2,(E32+F32*2),E32)) -> 0.07281614922 | I32: -0.4512428554 | J32: =(B32-(Calcoli!$B$8/B32))/'Acido - Base forte'!$F$1 -> 0.954992586 | K32: =(B32-(Calcoli!$B$8/B32))/'Acido - Base forte'!$F$2 -> 0.954992586
A33: =IF((I33*'Acido - Base forte'!$F$3*'Acido - Base forte'!$F$1)/'Acido - Base forte'!$F$2>0,IF((I33*'Acido - Base forte'!$F$3*'Acido - Base forte'!$F$1)/'Acido - Base forte'!$F$2<1.8*Calcoli!$B$13*('Acido - Base forte'!$F$1*'Acido - Base forte'!$F$3/'Acido - Base forte'!$F$2),I33*'Acido - Base forte'!$F$3*'Acido - Base forte'!$F$1/'Acido - Base forte'!$F$2,NA()),NA()) ->  | B33: 0.09120108394 | C33: =C32+0.02 -> 1.04 | D33: =IF(Calcoli!$B$13=3,B33^Calcoli!$B$13+Calcoli!$B$9*B33^2+Calcoli!$B$9*Calcoli!$B$10*B33+Calcoli!$B$9*Calcoli!$B$10*Calcoli!$B$11,IF(Calcoli!$B$13=2,B33^Calcoli!$B$13+Calcoli!$B$9*B33+Calcoli!$B$9*Calcoli!$B$10,B33^Calcoli!$B$13+Calcoli!$B$9)) -> 0.009001646306 | E33: =(Calcoli!$B$9*B33^(Calcoli!$B$13-1))/D33 -> 0.07598700352 | F33: =IF(Calcoli!$B$13>=2, (Calcoli!$B$9*Calcoli!$B$10*B33^(Calcoli!$B$13-2))/D33,NA()) -> 5.165721738e-08 | G33: =IF(Calcoli!$B$13>=3,(Calcoli!$B$9*Calcoli!$B$10*Calcoli!$B$11*B33^(Calcoli!$B$13-3))/D33,NA()) ->  | H33: =IF(Calcoli!$B$13=3,(E33+F33*2+G33*3),IF(Calcoli!$B$13=2,(E33+F33*2),E33)) -> 0.07598710684 | I33: -0.4372484273 | J33: =(B33-(Calcoli!$B$8/B33))/'Acido - Base forte'!$F$1 -> 0.9120108394 | K33: =(B33-(Calcoli!$B$8/B33))/'Acido - Base forte'!$F$2 -> 0.9120108394
A34: =IF((I34*'Acido - Base forte'!$F$3*'Acido - Base forte'!$F$1)/'Acido - Base forte'!$F$2>0,IF((I34*'Acido - Base forte'!$F$3*'Acido - Base forte'!$F$1)/'Acido - Base forte'!$F$2<1.8*Calcoli!$B$13*('Acido - Base forte'!$F$1*'Acido - Base forte'!$F$3/'Acido - Base forte'!$F$2),I34*'Acido - Base forte'!$F$3*'Acido - Base forte'!$F$1/'Acido - Base forte'!$F$2,NA()),NA()) ->  | B34: 0.087096359 | C34: 1.06 | D34: =IF(Calcoli!$B$13=3,B34^Calcoli!$B$13+Calcoli!$B$9*B34^2+Calcoli!$B$9*Calcoli!$B$10*B34+Calcoli!$B$9*Calcoli!$B$10*Calcoli!$B$11,IF(Calcoli!$B$13=2,B34^Calcoli!$B$13+Calcoli!$B$9*B34+Calcoli!$B$9*Calcoli!$B$10,B34^Calcoli!$B$13+Calcoli!$B$9)) -> 0.008238998908 | E34: =(Calcoli!$B$9*B34^(Calcoli!$B$13-1))/D34 -> 0.07928423098 | F34: =IF(Calcoli!$B$13>=2, (Calcoli!$B$9*Calcoli!$B$10*B34^(Calcoli!$B$13-2))/D34,NA()) -> 5.64388957e-08 | G34: =IF(Calcoli!$B$13>=3,(Calcoli!$B$9*Calcoli!$B$10*Calcoli!$B$11*B34^(Calcoli!$B$13-3))/D34,NA()) ->  | H34: =IF(Calcoli!$B$13=3,(E34+F34*2+G34*3),IF(Calcoli!$B$13=2,(E34+F34*2),E34)) -> 0.07928434386 | I34: -0.4231398464 | J34: =(B34-(Calcoli!$B$8/B34))/'Acido - Base forte'!$F$1 -> 0.87096359 | K34: =(B34-(Calcoli!$B$8/B34))/'Acido - Base forte'!$F$2 -> 0.87096359
A35: =IF((I35*'Acido - Base forte'!$F$3*'Acido - Base forte'!$F$1)/'Acido - Base forte'!$F$2>0,IF((I35*'Acido - Base forte'!$F$3*'Acido - Base forte'!$F$1)/'Acido - Base forte'!$F$2<1.8*Calcoli!$B$13*('Acido - Base forte'!$F$1*'Acido - Base forte'!$F$3/'Acido - Base forte'!$F$2),I35*'Acido - Base forte'!$F$3*'Acido - Base forte'!$F$1/'Acido - Base forte'!$F$2,NA()),NA()) ->  | B35: 0.08317637711 | C35: 1.08 | D35: =IF(Calcoli!$B$13=3,B35^Calcoli!$B$13+Calcoli!$B$9*B35^2+Calcoli!$B$9*Calcoli!$B$10*B35+Calcoli!$B$9*Calcoli!$B$10*Calcoli!$B$11,IF(Calcoli!$B$13=2,B35^Calcoli!$B$13+Calcoli!$B$9*B35+Calcoli!$B$9*Calcoli!$B$10,B35^Calcoli!$B$13+Calcoli!$B$9)) -> 0.007542133003 | E35: =(Calcoli!$B$9*B35^(Calcoli!$B$13-1))/D35 -> 0.08271172467 | F35: =IF(Calcoli!$B$13>=2, (Calcoli!$B$9*Calcoli!$B$10*B35^(Calcoli!$B$13-2))/D35,NA()) -> 6.165364624e-08 | G35: =IF(Calcoli!$B$13>=3,(Calcoli!$B$9*Calcoli!$B$10*Calcoli!$B$11*B35^(Calcoli!$B$13-3))/D35,NA()) ->  | H35: =IF(Calcoli!$B$13=3,(E35+F35*2+G35*3),IF(Calcoli!$B$13=2,(E35+F35*2),E35)) -> 0.08271184798 | I35: -0.4089238661 | J35: =(B35-(Calcoli!$B$8/B35))/'Acido - Base forte'!$F$1 -> 0.8317637711 | K35: =(B35-(Calcoli!$B$8/B35))/'Acido - Base forte'!$F$2 -> 0.8317637711
A36: =IF((I36*'Acido - Base forte'!$F$3*'Acido - Base forte'!$F$1)/'Acido - Base forte'!$F$2>0,IF((I36*'Acido - Base forte'!$F$3*'Acido - Base forte'!$F$1)/'Acido - Base forte'!$F$2<1.8*Calcoli!$B$13*('Acido - Base forte'!$F$1*'Acido - Base forte'!$F$3/'Acido - Base forte'!$F$2),I36*'Acido - Base forte'!$F$3*'Acido - Base forte'!$F$1/'Acido - Base forte'!$F$2,NA()),NA()) ->  | B36: 0.07943282347 | C36: 1.1 | D36: =IF(Calcoli!$B$13=3,B36^Calcoli!$B$13+Calcoli!$B$9*B36^2+Calcoli!$B$9*Calcoli!$B$10*B36+Calcoli!$B$9*Calcoli!$B$10*Calcoli!$B$11,IF(Calcoli!$B$13=2,B36^Calcoli!$B$13+Calcoli!$B$9*B36+Calcoli!$B$9*Calcoli!$B$10,B36^Calcoli!$B$13+Calcoli!$B$9)) -> 0.006905320086 | E36: =(Calcoli!$B$9*B36^(Calcoli!$B$13-1))/D36 -> 0.08627350632 | F36: =IF(Calcoli!$B$13>=2, (Calcoli!$B$9*Calcoli!$B$10*B36^(Calcoli!$B$13-2))/D36,NA()) -> 6.733938387e-08 | G36: =IF(Calcoli!$B$13>=3,(Calcoli!$B$9*Calcoli!$B$10*Calcoli!$B$11*B36^(Calcoli!$B$13-3))/D36,NA()) ->  | H36: =IF(Calcoli!$B$13=3,(E36+F36*2+G36*3),IF(Calcoli!$B$13=2,(E36+F36*2),E36)) -> 0.086273641 | I36: -0.3946070624 | J36: =(B36-(Calcoli!$B$8/B36))/'Acido - Base forte'!$F$1 -> 0.7943282347 | K36: =(B36-(Calcoli!$B$8/B36))/'Acido - Base forte'!$F$2 -> 0.7943282347
A37: =IF((I37*'Acido - Base forte'!$F$3*'Acido - Base forte'!$F$1)/'Acido - Base forte'!$F$2>0,IF((I37*'Acido - Base forte'!$F$3*'Acido - Base forte'!$F$1)/'Acido - Base forte'!$F$2<1.8*Calcoli!$B$13*('Acido - Base forte'!$F$1*'Acido - Base forte'!$F$3/'Acido - Base forte'!$F$2),I37*'Acido - Base forte'!$F$3*'Acido - Base forte'!$F$1/'Acido - Base forte'!$F$2,NA()),NA()) ->  | B37: 0.0758577575 | C37: 1.12 | D37: =IF(Calcoli!$B$13=3,B37^Calcoli!$B$13+Calcoli!$B$9*B37^2+Calcoli!$B$9*Calcoli!$B$10*B37+Calcoli!$B$9*Calcoli!$B$10*Calcoli!$B$11,IF(Calcoli!$B$13=2,B37^Calcoli!$B$13+Calcoli!$B$9*B37+Calcoli!$B$9*Calcoli!$B$10,B37^Calcoli!$B$13+Calcoli!$B$9)) -> 0.00632333302 | E37: =(Calcoli!$B$9*B37^(Calcoli!$B$13-1))/D37 -> 0.08997362301 | F37: =IF(Calcoli!$B$13>=2, (Calcoli!$B$9*Calcoli!$B$10*B37^(Calcoli!$B$13-2))/D37,NA()) -> 7.353716759e-08 | G37: =IF(Calcoli!$B$13>=3,(Calcoli!$B$9*Calcoli!$B$10*Calcoli!$B$11*B37^(Calcoli!$B$13-3))/D37,NA()) ->  | H37: =IF(Calcoli!$B$13=3,(E37+F37*2+G37*3),IF(Calcoli!$B$13=2,(E37+F37*2),E37)) -> 0.08997377008 | I37: -0.3801957983 | J37: =(B37-(Calcoli!$B$8/B37))/'Acido - Base forte'!$F$1 -> 0.758577575 | K37: =(B37-(Calcoli!$B$8/B37))/'Acido - Base forte'!$F$2 -> 0.758577575
A38: =IF((I38*'Acido - Base forte'!$F$3*'Acido - Base forte'!$F$1)/'Acido - Base forte'!$F$2>0,IF((I38*'Acido - Base forte'!$F$3*'Acido - Base forte'!$F$1)/'Acido - Base forte'!$F$2<1.8*Calcoli!$B$13*('Acido - Base forte'!$F$1*'Acido - Base forte'!$F$3/'Acido - Base forte'!$F$2),I38*'Acido - Base forte'!$F$3*'Acido - Base forte'!$F$1/'Acido - Base forte'!$F$2,NA()),NA()) ->  | B38: 0.07244359601 | C38: 1.14 | D38: =IF(Calcoli!$B$13=3,B38^Calcoli!$B$13+Calcoli!$B$9*B38^2+Calcoli!$B$9*Calcoli!$B$10*B38+Calcoli!$B$9*Calcoli!$B$10*Calcoli!$B$11,IF(Calcoli!$B$13=2,B38^Calcoli!$B$13+Calcoli!$B$9*B38+Calcoli!$B$9*Calcoli!$B$10,B38^Calcoli!$B$13+Calcoli!$B$9)) -> 0.005791402038 | E38: =(Calcoli!$B$9*B38^(Calcoli!$B$13-1))/D38 -> 0.09381613753 | F38: =IF(Calcoli!$B$13>=2, (Calcoli!$B$9*Calcoli!$B$10*B38^(Calcoli!$B$13-2))/D38,NA()) -> 8.029143841e-08 | G38: =IF(Calcoli!$B$13>=3,(Calcoli!$B$9*Calcoli!$B$10*Calcoli!$B$11*B38^(Calcoli!$B$13-3))/D38,NA()) ->  | H38: =IF(Calcoli!$B$13=3,(E38+F38*2+G38*3),IF(Calcoli!$B$13=2,(E38+F38*2),E38)) -> 0.09381629811 | I38: -0.3656961908 | J38: =(B38-(Calcoli!$B$8/B38))/'Acido - Base forte'!$F$1 -> 0.7244359601 | K38: =(B38-(Calcoli!$B$8/B38))/'Acido - Base forte'!$F$2 -> 0.7244359601
A39: =IF((I39*'Acido - Base forte'!$F$3*'Acido - Base forte'!$F$1)/'Acido - Base forte'!$F$2>0,IF((I39*'Acido - Base forte'!$F$3*'Acido - Base forte'!$F$1)/'Acido - Base forte'!$F$2<1.8*Calcoli!$B$13*('Acido - Base forte'!$F$1*'Acido - Base forte'!$F$3/'Acido - Base forte'!$F$2),I39*'Acido - Base forte'!$F$3*'Acido - Base forte'!$F$1/'Acido - Base forte'!$F$2,NA()),NA()) ->  | B39: 0.06918309709 | C39: 1.16 | D39: =IF(Calcoli!$B$13=3,B39^Calcoli!$B$13+Calcoli!$B$9*B39^2+Calcoli!$B$9*Calcoli!$B$10*B39+Calcoli!$B$9*Calcoli!$B$10*Calcoli!$B$11,IF(Calcoli!$B$13=2,B39^Calcoli!$B$13+Calcoli!$B$9*B39+Calcoli!$B$9*Calcoli!$B$10,B39^Calcoli!$B$13+Calcoli!$B$9)) -> 0.005305174616 | E39: =(Calcoli!$B$9*B39^(Calcoli!$B$13-1))/D39 -> 0.09780511778 | F39: =IF(Calcoli!$B$13>=2, (Calcoli!$B$9*Calcoli!$B$10*B39^(Calcoli!$B$13-2))/D39,NA()) -> 8.765027235e-08 | G39: =IF(Calcoli!$B$13>=3,(Calcoli!$B$9*Calcoli!$B$10*Calcoli!$B$11*B39^(Calcoli!$B$13-3))/D39,NA()) ->  | H39: =IF(Calcoli!$B$13=3,(E39+F39*2+G39*3),IF(Calcoli!$B$13=2,(E39+F39*2),E39)) -> 0.09780529308 | I39: -0.3511140818 | J39: =(B39-(Calcoli!$B$8/B39))/'Acido - Base forte'!$F$1 -> 0.6918309709 | K39: =(B39-(Calcoli!$B$8/B39))/'Acido - Base forte'!$F$2 -> 0.6918309709
A40: =IF((I40*'Acido - Base forte'!$F$3*'Acido - Base forte'!$F$1)/'Acido - Base forte'!$F$2>0,IF((I40*'Acido - Base forte'!$F$3*'Acido - Base forte'!$F$1)/'Acido - Base forte'!$F$2<1.8*Calcoli!$B$13*('Acido - Base forte'!$F$1*'Acido - Base forte'!$F$3/'Acido - Base forte'!$F$2),I40*'Acido - Base forte'!$F$3*'Acido - Base forte'!$F$1/'Acido - Base forte'!$F$2,NA()),NA()) ->  | B40: 0.0660693448 | C40: 1.18 | D40: =IF(Calcoli!$B$13=3,B40^Calcoli!$B$13+Calcoli!$B$9*B40^2+Calcoli!$B$9*Calcoli!$B$10*B40+Calcoli!$B$9*Calcoli!$B$10*Calcoli!$B$11,IF(Calcoli!$B$13=2,B40^Calcoli!$B$13+Calcoli!$B$9*B40+Calcoli!$B$9*Calcoli!$B$10,B40^Calcoli!$B$13+Calcoli!$B$9)) -> 0.004860678873 | E40: =(Calcoli!$B$9*B40^(Calcoli!$B$13-1))/D40 -> 0.1019446252 | F40: =IF(Calcoli!$B$13>=2, (Calcoli!$B$9*Calcoli!$B$10*B40^(Calcoli!$B$13-2))/D40,NA()) -> 9.56656492e-08 | G40: =IF(Calcoli!$B$13>=3,(Calcoli!$B$9*Calcoli!$B$10*Calcoli!$B$11*B40^(Calcoli!$B$13-3))/D40,NA()) ->  | H40: =IF(Calcoli!$B$13=3,(E40+F40*2+G40*3),IF(Calcoli!$B$13=2,(E40+F40*2),E40)) -> 0.1019448165 | I40: -0.3364550105 | J40: =(B40-(Calcoli!$B$8/B40))/'Acido - Base forte'!$F$1 -> 0.660693448 | K40: =(B40-(Calcoli!$B$8/B40))/'Acido - Base forte'!$F$2 -> 0.660693448
A41: =IF((I41*'Acido - Base forte'!$F$3*'Acido - Base forte'!$F$1)/'Acido - Base forte'!$F$2>0,IF((I41*'Acido - Base forte'!$F$3*'Acido - Base forte'!$F$1)/'Acido - Base forte'!$F$2<1.8*Calcoli!$B$13*('Acido - Base forte'!$F$1*'Acido - Base forte'!$F$3/'Acido - Base forte'!$F$2),I41*'Acido - Base forte'!$F$3*'Acido - Base forte'!$F$1/'Acido - Base forte'!$F$2,NA()),NA()) ->  | B41: 0.06309573445 | C41: 1.2 | D41: =IF(Calcoli!$B$13=3,B41^Calcoli!$B$13+Calcoli!$B$9*B41^2+Calcoli!$B$9*Calcoli!$B$10*B41+Calcoli!$B$9*Calcoli!$B$10*Calcoli!$B$11,IF(Calcoli!$B$13=2,B41^Calcoli!$B$13+Calcoli!$B$9*B41+Calcoli!$B$9*Calcoli!$B$10,B41^Calcoli!$B$13+Calcoli!$B$9)) -> 0.004454290179 | E41: =(Calcoli!$B$9*B41^(Calcoli!$B$13-1))/D41 -> 0.1062387023 | F41: =IF(Calcoli!$B$13>=2, (Calcoli!$B$9*Calcoli!$B$10*B41^(Calcoli!$B$13-2))/D41,NA()) -> 1.043937376e-07 | G41: =IF(Calcoli!$B$13>=3,(Calcoli!$B$9*Calcoli!$B$10*Calcoli!$B$11*B41^(Calcoli!$B$13-3))/D41,NA()) ->  | H41: =IF(Calcoli!$B$13=3,(E41+F41*2+G41*3),IF(Calcoli!$B$13=2,(E41+F41*2),E41)) -> 0.1062389111 | I41: -0.3217241917 | J41: =(B41-(Calcoli!$B$8/B41))/'Acido - Base forte'!$F$1 -> 0.6309573445 | K41: =(B41-(Calcoli!$B$8/B41))/'Acido - Base forte'!$F$2 -> 0.6309573445
A42: =IF((I42*'Acido - Base forte'!$F$3*'Acido - Base forte'!$F$1)/'Acido - Base forte'!$F$2>0,IF((I42*'Acido - Base forte'!$F$3*'Acido - Base forte'!$F$1)/'Acido - Base forte'!$F$2<1.8*Calcoli!$B$13*('Acido - Base forte'!$F$1*'Acido - Base forte'!$F$3/'Acido - Base forte'!$F$2),I42*'Acido - Base forte'!$F$3*'Acido - Base forte'!$F$1/'Acido - Base forte'!$F$2,NA()),NA()) ->  | B42: 0.06025595861 | C42: 1.22 | D42: =IF(Calcoli!$B$13=3,B42^Calcoli!$B$13+Calcoli!$B$9*B42^2+Calcoli!$B$9*Calcoli!$B$10*B42+Calcoli!$B$9*Calcoli!$B$10*Calcoli!$B$11,IF(Calcoli!$B$13=2,B42^Calcoli!$B$13+Calcoli!$B$9*B42+Calcoli!$B$9*Calcoli!$B$10,B42^Calcoli!$B$13+Calcoli!$B$9)) -> 0.004082700702 | E42: =(Calcoli!$B$9*B42^(Calcoli!$B$13-1))/D42 -> 0.1106913591 | F42: =IF(Calcoli!$B$13>=2, (Calcoli!$B$9*Calcoli!$B$10*B42^(Calcoli!$B$13-2))/D42,NA()) -> 1.138951968e-07 | G42: =IF(Calcoli!$B$13>=3,(Calcoli!$B$9*Calcoli!$B$10*Calcoli!$B$11*B42^(Calcoli!$B$13-3))/D42,NA()) ->  | H42: =IF(Calcoli!$B$13=3,(E42+F42*2+G42*3),IF(Calcoli!$B$13=2,(E42+F42*2),E42)) -> 0.1106915869 | I42: -0.3069264965 | J42: =(B42-(Calcoli!$B$8/B42))/'Acido - Base forte'!$F$1 -> 0.6025595861 | K42: =(B42-(Calcoli!$B$8/B42))/'Acido - Base forte'!$F$2 -> 0.6025595861
A43: =IF((I43*'Acido - Base forte'!$F$3*'Acido - Base forte'!$F$1)/'Acido - Base forte'!$F$2>0,IF((I43*'Acido - Base forte'!$F$3*'Acido - Base forte'!$F$1)/'Acido - Base forte'!$F$2<1.8*Calcoli!$B$13*('Acido - Base forte'!$F$1*'Acido - Base forte'!$F$3/'Acido - Base forte'!$F$2),I43*'Acido - Base forte'!$F$3*'Acido - Base forte'!$F$1/'Acido - Base forte'!$F$2,NA()),NA()) ->  | B43: 0.05754399373 | C43: 1.24 | D43: =IF(Calcoli!$B$13=3,B43^Calcoli!$B$13+Calcoli!$B$9*B43^2+Calcoli!$B$9*Calcoli!$B$10*B43+Calcoli!$B$9*Calcoli!$B$10*Calcoli!$B$11,IF(Calcoli!$B$13=2,B43^Calcoli!$B$13+Calcoli!$B$9*B43+Calcoli!$B$9*Calcoli!$B$10,B43^Calcoli!$B$13+Calcoli!$B$9)) -> 0.003742891633 | E43: =(Calcoli!$B$9*B43^(Calcoli!$B$13-1))/D43 -> 0.1153065585 | F43: =IF(Calcoli!$B$13>=2, (Calcoli!$B$9*Calcoli!$B$10*B43^(Calcoli!$B$13-2))/D43,NA()) -> 1.242354964e-07 | G43: =IF(Calcoli!$B$13>=3,(Calcoli!$B$9*Calcoli!$B$10*Calcoli!$B$11*B43^(Calcoli!$B$13-3))/D43,NA()) ->  | H43: =IF(Calcoli!$B$13=3,(E43+F43*2+G43*3),IF(Calcoli!$B$13=2,(E43+F43*2),E43)) -> 0.115306807 | I43: -0.2920664377 | J43: =(B43-(Calcoli!$B$8/B43))/'Acido - Base forte'!$F$1 -> 0.5754399373 | K43: =(B43-(Calcoli!$B$8/B43))/'Acido - Base forte'!$F$2 -> 0.5754399373
A44: =IF((I44*'Acido - Base forte'!$F$3*'Acido - Base forte'!$F$1)/'Acido - Base forte'!$F$2>0,IF((I44*'Acido - Base forte'!$F$3*'Acido - Base forte'!$F$1)/'Acido - Base forte'!$F$2<1.8*Calcoli!$B$13*('Acido - Base forte'!$F$1*'Acido - Base forte'!$F$3/'Acido - Base forte'!$F$2),I44*'Acido - Base forte'!$F$3*'Acido - Base forte'!$F$1/'Acido - Base forte'!$F$2,NA()),NA()) ->  | B44: 0.05495408739 | C44: 1.26 | D44: =IF(Calcoli!$B$13=3,B44^Calcoli!$B$13+Calcoli!$B$9*B44^2+Calcoli!$B$9*Calcoli!$B$10*B44+Calcoli!$B$9*Calcoli!$B$10*Calcoli!$B$11,IF(Calcoli!$B$13=2,B44^Calcoli!$B$13+Calcoli!$B$9*B44+Calcoli!$B$9*Calcoli!$B$10,B44^Calcoli!$B$13+Calcoli!$B$9)) -> 0.003432107841 | E44: =(Calcoli!$B$9*B44^(Calcoli!$B$13-1))/D44 -> 0.1200882008 | F44: =IF(Calcoli!$B$13>=2, (Calcoli!$B$9*Calcoli!$B$10*B44^(Calcoli!$B$13-2))/D44,NA()) -> 1.354852533e-07 | G44: =IF(Calcoli!$B$13>=3,(Calcoli!$B$9*Calcoli!$B$10*Calcoli!$B$11*B44^(Calcoli!$B$13-3))/D44,NA()) ->  | H44: =IF(Calcoli!$B$13=3,(E44+F44*2+G44*3),IF(Calcoli!$B$13=2,(E44+F44*2),E44)) -> 0.1200884717 | I44: -0.2771481601 | J44: =(B44-(Calcoli!$B$8/B44))/'Acido - Base forte'!$F$1 -> 0.5495408739 | K44: =(B44-(Calcoli!$B$8/B44))/'Acido - Base forte'!$F$2 -> 0.5495408739
A45: =IF((I45*'Acido - Base forte'!$F$3*'Acido - Base forte'!$F$1)/'Acido - Base forte'!$F$2>0,IF((I45*'Acido - Base forte'!$F$3*'Acido - Base forte'!$F$1)/'Acido - Base forte'!$F$2<1.8*Calcoli!$B$13*('Acido - Base forte'!$F$1*'Acido - Base forte'!$F$3/'Acido - Base forte'!$F$2),I45*'Acido - Base forte'!$F$3*'Acido - Base forte'!$F$1/'Acido - Base forte'!$F$2,NA()),NA()) ->  | B45: 0.05248074602 | C45: 1.28 | D45: =IF(Calcoli!$B$13=3,B45^Calcoli!$B$13+Calcoli!$B$9*B45^2+Calcoli!$B$9*Calcoli!$B$10*B45+Calcoli!$B$9*Calcoli!$B$10*Calcoli!$B$11,IF(Calcoli!$B$13=2,B45^Calcoli!$B$13+Calcoli!$B$9*B45+Calcoli!$B$9*Calcoli!$B$10,B45^Calcoli!$B$13+Calcoli!$B$9)) -> 0.003147834764 | E45: =(Calcoli!$B$9*B45^(Calcoli!$B$13-1))/D45 -> 0.1250401069 | F45: =IF(Calcoli!$B$13>=2, (Calcoli!$B$9*Calcoli!$B$10*B45^(Calcoli!$B$13-2))/D45,NA()) -> 1.477205873e-07 | G45: =IF(Calcoli!$B$13>=3,(Calcoli!$B$9*Calcoli!$B$10*Calcoli!$B$11*B45^(Calcoli!$B$13-3))/D45,NA()) ->  | H45: =IF(Calcoli!$B$13=3,(E45+F45*2+G45*3),IF(Calcoli!$B$13=2,(E45+F45*2),E45)) -> 0.1250404023 | I45: -0.2621754342 | J45: =(B45-(Calcoli!$B$8/B45))/'Acido - Base forte'!$F$1 -> 0.5248074602 | K45: =(B45-(Calcoli!$B$8/B45))/'Acido - Base forte'!$F$2 -> 0.5248074602
A46: =IF((I46*'Acido - Base forte'!$F$3*'Acido - Base forte'!$F$1)/'Acido - Base forte'!$F$2>0,IF((I46*'Acido - Base forte'!$F$3*'Acido - Base forte'!$F$1)/'Acido - Base forte'!$F$2<1.8*Calcoli!$B$13*('Acido - Base forte'!$F$1*'Acido - Base forte'!$F$3/'Acido - Base forte'!$F$2),I46*'Acido - Base forte'!$F$3*'Acido - Base forte'!$F$1/'Acido - Base forte'!$F$2,NA()),NA()) ->  | B46: 0.05011872336 | C46: 1.3 | D46: =IF(Calcoli!$B$13=3,B46^Calcoli!$B$13+Calcoli!$B$9*B46^2+Calcoli!$B$9*Calcoli!$B$10*B46+Calcoli!$B$9*Calcoli!$B$10*Calcoli!$B$11,IF(Calcoli!$B$13=2,B46^Calcoli!$B$13+Calcoli!$B$9*B46+Calcoli!$B$9*Calcoli!$B$10,B46^Calcoli!$B$13+Calcoli!$B$9)) -> 0.002887777322 | E46: =(Calcoli!$B$9*B46^(Calcoli!$B$13-1))/D46 -> 0.1301660008 | F46: =IF(Calcoli!$B$13>=2, (Calcoli!$B$9*Calcoli!$B$10*B46^(Calcoli!$B$13-2))/D46,NA()) -> 1.61023496e-07 | G46: =IF(Calcoli!$B$13>=3,(Calcoli!$B$9*Calcoli!$B$10*Calcoli!$B$11*B46^(Calcoli!$B$13-3))/D46,NA()) ->  | H46: =IF(Calcoli!$B$13=3,(E46+F46*2+G46*3),IF(Calcoli!$B$13=2,(E46+F46*2),E46)) -> 0.1301663229 | I46: -0.247151656 | J46: =(B46-(Calcoli!$B$8/B46))/'Acido - Base forte'!$F$1 -> 0.5011872336 | K46: =(B46-(Calcoli!$B$8/B46))/'Acido - Base forte'!$F$2 -> 0.5011872336
A47: =IF((I47*'Acido - Base forte'!$F$3*'Acido - Base forte'!$F$1)/'Acido - Base forte'!$F$2>0,IF((I47*'Acido - Base forte'!$F$3*'Acido - Base forte'!$F$1)/'Acido - Base forte'!$F$2<1.8*Calcoli!$B$13*('Acido - Base forte'!$F$1*'Acido - Base forte'!$F$3/'Acido - Base forte'!$F$2),I47*'Acido - Base forte'!$F$3*'Acido - Base forte'!$F$1/'Acido - Base forte'!$F$2,NA()),NA()) ->  | B47: 0.04786300923 | C47: 1.32 | D47: =IF(Calcoli!$B$13=3,B47^Calcoli!$B$13+Calcoli!$B$9*B47^2+Calcoli!$B$9*Calcoli!$B$10*B47+Calcoli!$B$9*Calcoli!$B$10*Calcoli!$B$11,IF(Calcoli!$B$13=2,B47^Calcoli!$B$13+Calcoli!$B$9*B47+Calcoli!$B$9*Calcoli!$B$10,B47^Calcoli!$B$13+Calcoli!$B$9)) -> 0.002649840687 | E47: =(Calcoli!$B$9*B47^(Calcoli!$B$13-1))/D47 -> 0.1354694911 | F47: =IF(Calcoli!$B$13>=2, (Calcoli!$B$9*Calcoli!$B$10*B47^(Calcoli!$B$13-2))/D47,NA()) -> 1.754822478e-07 | G47: =IF(Calcoli!$B$13>=3,(Calcoli!$B$9*Calcoli!$B$10*Calcoli!$B$11*B47^(Calcoli!$B$13-3))/D47,NA()) ->  | H47: =IF(Calcoli!$B$13=3,(E47+F47*2+G47*3),IF(Calcoli!$B$13=2,(E47+F47*2),E47)) -> 0.135469842 | I47: -0.2320798502 | J47: =(B47-(Calcoli!$B$8/B47))/'Acido - Base forte'!$F$1 -> 0.4786300923 | K47: =(B47-(Calcoli!$B$8/B47))/'Acido - Base forte'!$F$2 -> 0.4786300923
A48: =IF((I48*'Acido - Base forte'!$F$3*'Acido - Base forte'!$F$1)/'Acido - Base forte'!$F$2>0,IF((I48*'Acido - Base forte'!$F$3*'Acido - Base forte'!$F$1)/'Acido - Base forte'!$F$2<1.8*Calcoli!$B$13*('Acido - Base forte'!$F$1*'Acido - Base forte'!$F$3/'Acido - Base forte'!$F$2),I48*'Acido - Base forte'!$F$3*'Acido - Base forte'!$F$1/'Acido - Base forte'!$F$2,NA()),NA()) ->  | B48: 0.04570881896 | C48: 1.34 | D48: =IF(Calcoli!$B$13=3,B48^Calcoli!$B$13+Calcoli!$B$9*B48^2+Calcoli!$B$9*Calcoli!$B$10*B48+Calcoli!$B$9*Calcoli!$B$10*Calcoli!$B$11,IF(Calcoli!$B$13=2,B48^Calcoli!$B$13+Calcoli!$B$9*B48+Calcoli!$B$9*Calcoli!$B$10,B48^Calcoli!$B$13+Calcoli!$B$9)) -> 0.002432112738 | E48: =(Calcoli!$B$9*B48^(Calcoli!$B$13-1))/D48 -> 0.1409540507 | F48: =IF(Calcoli!$B$13>=2, (Calcoli!$B$9*Calcoli!$B$10*B48^(Calcoli!$B$13-2))/D48,NA()) -> 1.91191795e-07 | G48: =IF(Calcoli!$B$13>=3,(Calcoli!$B$9*Calcoli!$B$10*Calcoli!$B$11*B48^(Calcoli!$B$13-3))/D48,NA()) ->  | H48: =IF(Calcoli!$B$13=3,(E48+F48*2+G48*3),IF(Calcoli!$B$13=2,(E48+F48*2),E48)) -> 0.1409544331 | I48: -0.2169626786 | J48: =(B48-(Calcoli!$B$8/B48))/'Acido - Base forte'!$F$1 -> 0.4570881896 | K48: =(B48-(Calcoli!$B$8/B48))/'Acido - Base forte'!$F$2 -> 0.4570881896
A49: =IF((I49*'Acido - Base forte'!$F$3*'Acido - Base forte'!$F$1)/'Acido - Base forte'!$F$2>0,IF((I49*'Acido - Base forte'!$F$3*'Acido - Base forte'!$F$1)/'Acido - Base forte'!$F$2<1.8*Calcoli!$B$13*('Acido - Base forte'!$F$1*'Acido - Base forte'!$F$3/'Acido - Base forte'!$F$2),I49*'Acido - Base forte'!$F$3*'Acido - Base forte'!$F$1/'Acido - Base forte'!$F$2,NA()),NA()) ->  | B49: 0.04365158322 | C49: 1.36 | D49: =IF(Calcoli!$B$13=3,B49^Calcoli!$B$13+Calcoli!$B$9*B49^2+Calcoli!$B$9*Calcoli!$B$10*B49+Calcoli!$B$9*Calcoli!$B$10*Calcoli!$B$11,IF(Calcoli!$B$13=2,B49^Calcoli!$B$13+Calcoli!$B$9*B49+Calcoli!$B$9*Calcoli!$B$10,B49^Calcoli!$B$13+Calcoli!$B$9)) -> 0.002232848057 | E49: =(Calcoli!$B$9*B49^(Calcoli!$B$13-1))/D49 -> 0.1466229971 | F49: =IF(Calcoli!$B$13>=2, (Calcoli!$B$9*Calcoli!$B$10*B49^(Calcoli!$B$13-2))/D49,NA()) -> 2.082542063e-07 | G49: =IF(Calcoli!$B$13>=3,(Calcoli!$B$9*Calcoli!$B$10*Calcoli!$B$11*B49^(Calcoli!$B$13-3))/D49,NA()) ->  | H49: =IF(Calcoli!$B$13=3,(E49+F49*2+G49*3),IF(Calcoli!$B$13=2,(E49+F49*2),E49)) -> 0.1466234136 | I49: -0.2018024529 | J49: =(B49-(Calcoli!$B$8/B49))/'Acido - Base forte'!$F$1 -> 0.4365158322 | K49: =(B49-(Calcoli!$B$8/B49))/'Acido - Base forte'!$F$2 -> 0.4365158322
A50: =IF((I50*'Acido - Base forte'!$F$3*'Acido - Base forte'!$F$1)/'Acido - Base forte'!$F$2>0,IF((I50*'Acido - Base forte'!$F$3*'Acido - Base forte'!$F$1)/'Acido - Base forte'!$F$2<1.8*Calcoli!$B$13*('Acido - Base forte'!$F$1*'Acido - Base forte'!$F$3/'Acido - Base forte'!$F$2),I50*'Acido - Base forte'!$F$3*'Acido - Base forte'!$F$1/'Acido - Base forte'!$F$2,NA()),NA()) ->  | B50: 0.04168693835 | C50: 1.38 | D50: =IF(Calcoli!$B$13=3,B50^Calcoli!$B$13+Calcoli!$B$9*B50^2+Calcoli!$B$9*Calcoli!$B$10*B50+Calcoli!$B$9*Calcoli!$B$10*Calcoli!$B$11,IF(Calcoli!$B$13=2,B50^Calcoli!$B$13+Calcoli!$B$9*B50+Calcoli!$B$9*Calcoli!$B$10,B50^Calcoli!$B$13+Calcoli!$B$9)) -> 0.002050453331 | E50: =(Calcoli!$B$9*B50^(Calcoli!$B$13-1))/D50 -> 0.1524794702 | F50: =IF(Calcoli!$B$13>=2, (Calcoli!$B$9*Calcoli!$B$10*B50^(Calcoli!$B$13-2))/D50,NA()) -> 2.26779119e-07 | G50: =IF(Calcoli!$B$13>=3,(Calcoli!$B$9*Calcoli!$B$10*Calcoli!$B$11*B50^(Calcoli!$B$13-3))/D50,NA()) ->  | H50: =IF(Calcoli!$B$13=3,(E50+F50*2+G50*3),IF(Calcoli!$B$13=2,(E50+F50*2),E50)) -> 0.1524799237 | I50: -0.1866011524 | J50: =(B50-(Calcoli!$B$8/B50))/'Acido - Base forte'!$F$1 -> 0.4168693835 | K50: =(B50-(Calcoli!$B$8/B50))/'Acido - Base forte'!$F$2 -> 0.4168693835
A51: =IF((I51*'Acido - Base forte'!$F$3*'Acido - Base forte'!$F$1)/'Acido - Base forte'!$F$2>0,IF((I51*'Acido - Base forte'!$F$3*'Acido - Base forte'!$F$1)/'Acido - Base forte'!$F$2<1.8*Calcoli!$B$13*('Acido - Base forte'!$F$1*'Acido - Base forte'!$F$3/'Acido - Base forte'!$F$2),I51*'Acido - Base forte'!$F$3*'Acido - Base forte'!$F$1/'Acido - Base forte'!$F$2,NA()),NA()) ->  | B51: 0.03981071706 | C51: 1.4 | D51: =IF(Calcoli!$B$13=3,B51^Calcoli!$B$13+Calcoli!$B$9*B51^2+Calcoli!$B$9*Calcoli!$B$10*B51+Calcoli!$B$9*Calcoli!$B$10*Calcoli!$B$11,IF(Calcoli!$B$13=2,B51^Calcoli!$B$13+Calcoli!$B$9*B51+Calcoli!$B$9*Calcoli!$B$10,B51^Calcoli!$B$13+Calcoli!$B$9)) -> 0.001883474035 | E51: =(Calcoli!$B$9*B51^(Calcoli!$B$13-1))/D51 -> 0.1585264104 | F51: =IF(Calcoli!$B$13>=2, (Calcoli!$B$9*Calcoli!$B$10*B51^(Calcoli!$B$13-2))/D51,NA()) -> 2.468842104e-07 | G51: =IF(Calcoli!$B$13>=3,(Calcoli!$B$9*Calcoli!$B$10*Calcoli!$B$11*B51^(Calcoli!$B$13-3))/D51,NA()) ->  | H51: =IF(Calcoli!$B$13=3,(E51+F51*2+G51*3),IF(Calcoli!$B$13=2,(E51+F51*2),E51)) -> 0.1585269042 | I51: -0.1713604446 | J51: =(B51-(Calcoli!$B$8/B51))/'Acido - Base forte'!$F$1 -> 0.3981071706 | K51: =(B51-(Calcoli!$B$8/B51))/'Acido - Base forte'!$F$2 -> 0.3981071706
A52: =IF((I52*'Acido - Base forte'!$F$3*'Acido - Base forte'!$F$1)/'Acido - Base forte'!$F$2>0,IF((I52*'Acido - Base forte'!$F$3*'Acido - Base forte'!$F$1)/'Acido - Base forte'!$F$2<1.8*Calcoli!$B$13*('Acido - Base forte'!$F$1*'Acido - Base forte'!$F$3/'Acido - Base forte'!$F$2),I52*'Acido - Base forte'!$F$3*'Acido - Base forte'!$F$1/'Acido - Base forte'!$F$2,NA()),NA()) ->  | B52: 0.03801893963 | C52: 1.42 | D52: =IF(Calcoli!$B$13=3,B52^Calcoli!$B$13+Calcoli!$B$9*B52^2+Calcoli!$B$9*Calcoli!$B$10*B52+Calcoli!$B$9*Calcoli!$B$10*Calcoli!$B$11,IF(Calcoli!$B$13=2,B52^Calcoli!$B$13+Calcoli!$B$9*B52+Calcoli!$B$9*Calcoli!$B$10,B52^Calcoli!$B$13+Calcoli!$B$9)) -> 0.001730582283 | E52: =(Calcoli!$B$9*B52^(Calcoli!$B$13-1))/D52 -> 0.1647665355 | F52: =IF(Calcoli!$B$13>=2, (Calcoli!$B$9*Calcoli!$B$10*B52^(Calcoli!$B$13-2))/D52,NA()) -> 2.686956896e-07 | G52: =IF(Calcoli!$B$13>=3,(Calcoli!$B$9*Calcoli!$B$10*Calcoli!$B$11*B52^(Calcoli!$B$13-3))/D52,NA()) ->  | H52: =IF(Calcoli!$B$13=3,(E52+F52*2+G52*3),IF(Calcoli!$B$13=2,(E52+F52*2),E52)) -> 0.1647670729 | I52: -0.1560817117 | J52: =(B52-(Calcoli!$B$8/B52))/'Acido - Base forte'!$F$1 -> 0.3801893963 | K52: =(B52-(Calcoli!$B$8/B52))/'Acido - Base forte'!$F$2 -> 0.3801893963
A53: =IF((I53*'Acido - Base forte'!$F$3*'Acido - Base forte'!$F$1)/'Acido - Base forte'!$F$2>0,IF((I53*'Acido - Base forte'!$F$3*'Acido - Base forte'!$F$1)/'Acido - Base forte'!$F$2<1.8*Calcoli!$B$13*('Acido - Base forte'!$F$1*'Acido - Base forte'!$F$3/'Acido - Base forte'!$F$2),I53*'Acido - Base forte'!$F$3*'Acido - Base forte'!$F$1/'Acido - Base forte'!$F$2,NA()),NA()) ->  | B53: =10^-C53 -> 0.03630780548 | C53: 1.44 | D53: =IF(Calcoli!$B$13=3,B53^Calcoli!$B$13+Calcoli!$B$9*B53^2+Calcoli!$B$9*Calcoli!$B$10*B53+Calcoli!$B$9*Calcoli!$B$10*Calcoli!$B$11,IF(Calcoli!$B$13=2,B53^Calcoli!$B$13+Calcoli!$B$9*B53+Calcoli!$B$9*Calcoli!$B$10,B53^Calcoli!$B$13+Calcoli!$B$9)) -> 0.001590565745 | E53: =(Calcoli!$B$9*B53^(Calcoli!$B$13-1))/D53 -> 0.1712023172 | F53: =IF(Calcoli!$B$13>=2, (Calcoli!$B$9*Calcoli!$B$10*B53^(Calcoli!$B$13-2))/D53,NA()) -> 2.923488083e-07 | G53: =IF(Calcoli!$B$13>=3,(Calcoli!$B$9*Calcoli!$B$10*Calcoli!$B$11*B53^(Calcoli!$B$13-3))/D53,NA()) ->  | H53: =IF(Calcoli!$B$13=3,(E53+F53*2+G53*3),IF(Calcoli!$B$13=2,(E53+F53*2),E53)) -> 0.1712029019 | I53: =(H53-J53)/(1+K53) -> -0.1407660788 | J53: =(B53-(Calcoli!$B$8/B53))/'Acido - Base forte'!$F$1 -> 0.3630780548 | K53: =(B53-(Calcoli!$B$8/B53))/'Acido - Base forte'!$F$2 -> 0.3630780548
A54: =IF((I54*'Acido - Base forte'!$F$3*'Acido - Base forte'!$F$1)/'Acido - Base forte'!$F$2>0,IF((I54*'Acido - Base forte'!$F$3*'Acido - Base forte'!$F$1)/'Acido - Base forte'!$F$2<1.8*Calcoli!$B$13*('Acido - Base forte'!$F$1*'Acido - Base forte'!$F$3/'Acido - Base forte'!$F$2),I54*'Acido - Base forte'!$F$3*'Acido - Base forte'!$F$1/'Acido - Base forte'!$F$2,NA()),NA()) ->  | B54: 0.03467368505 | C54: 1.46 | D54: =IF(Calcoli!$B$13=3,B54^Calcoli!$B$13+Calcoli!$B$9*B54^2+Calcoli!$B$9*Calcoli!$B$10*B54+Calcoli!$B$9*Calcoli!$B$10*Calcoli!$B$11,IF(Calcoli!$B$13=2,B54^Calcoli!$B$13+Calcoli!$B$9*B54+Calcoli!$B$9*Calcoli!$B$10,B54^Calcoli!$B$13+Calcoli!$B$9)) -> 0.001462317537 | E54: =(Calcoli!$B$9*B54^(Calcoli!$B$13-1))/D54 -> 0.1778359564 | F54: =IF(Calcoli!$B$13>=2, (Calcoli!$B$9*Calcoli!$B$10*B54^(Calcoli!$B$13-2))/D54,NA()) -> 3.179883904e-07 | G54: =IF(Calcoli!$B$13>=3,(Calcoli!$B$9*Calcoli!$B$10*Calcoli!$B$11*B54^(Calcoli!$B$13-3))/D54,NA()) ->  | H54: =IF(Calcoli!$B$13=3,(E54+F54*2+G54*3),IF(Calcoli!$B$13=2,(E54+F54*2),E54)) -> 0.1778365924 | I54: -0.1254144475 | J54: =(B54-(Calcoli!$B$8/B54))/'Acido - Base forte'!$F$1 -> 0.3467368504 | K54: =(B54-(Calcoli!$B$8/B54))/'Acido - Base forte'!$F$2 -> 0.3467368504
A55: =IF((I55*'Acido - Base forte'!$F$3*'Acido - Base forte'!$F$1)/'Acido - Base forte'!$F$2>0,IF((I55*'Acido - Base forte'!$F$3*'Acido - Base forte'!$F$1)/'Acido - Base forte'!$F$2<1.8*Calcoli!$B$13*('Acido - Base forte'!$F$1*'Acido - Base forte'!$F$3/'Acido - Base forte'!$F$2),I55*'Acido - Base forte'!$F$3*'Acido - Base forte'!$F$1/'Acido - Base forte'!$F$2,NA()),NA()) ->  | B55: 0.03311311215 | C55: 1.48 | D55: =IF(Calcoli!$B$13=3,B55^Calcoli!$B$13+Calcoli!$B$9*B55^2+Calcoli!$B$9*Calcoli!$B$10*B55+Calcoli!$B$9*Calcoli!$B$10*Calcoli!$B$11,IF(Calcoli!$B$13=2,B55^Calcoli!$B$13+Calcoli!$B$9*B55+Calcoli!$B$9*Calcoli!$B$10,B55^Calcoli!$B$13+Calcoli!$B$9)) -> 0.001344827002 | E55: =(Calcoli!$B$9*B55^(Calcoli!$B$13-1))/D55 -> 0.1846693595 | F55: =IF(Calcoli!$B$13>=2, (Calcoli!$B$9*Calcoli!$B$10*B55^(Calcoli!$B$13-2))/D55,NA()) -> 3.457693809e-07 | G55: =IF(Calcoli!$B$13>=3,(Calcoli!$B$9*Calcoli!$B$10*Calcoli!$B$11*B55^(Calcoli!$B$13-3))/D55,NA()) ->  | H55: =IF(Calcoli!$B$13=3,(E55+F55*2+G55*3),IF(Calcoli!$B$13=2,(E55+F55*2),E55)) -> 0.184670051 | I55: -0.1100275308 | J55: =(B55-(Calcoli!$B$8/B55))/'Acido - Base forte'!$F$1 -> 0.3311311215 | K55: =(B55-(Calcoli!$B$8/B55))/'Acido - Base forte'!$F$2 -> 0.3311311215
A56: =IF((I56*'Acido - Base forte'!$F$3*'Acido - Base forte'!$F$1)/'Acido - Base forte'!$F$2>0,IF((I56*'Acido - Base forte'!$F$3*'Acido - Base forte'!$F$1)/'Acido - Base forte'!$F$2<1.8*Calcoli!$B$13*('Acido - Base forte'!$F$1*'Acido - Base forte'!$F$3/'Acido - Base forte'!$F$2),I56*'Acido - Base forte'!$F$3*'Acido - Base forte'!$F$1/'Acido - Base forte'!$F$2,NA()),NA()) ->  | B56: 0.0316227766 | C56: 1.5 | D56: =IF(Calcoli!$B$13=3,B56^Calcoli!$B$13+Calcoli!$B$9*B56^2+Calcoli!$B$9*Calcoli!$B$10*B56+Calcoli!$B$9*Calcoli!$B$10*Calcoli!$B$11,IF(Calcoli!$B$13=2,B56^Calcoli!$B$13+Calcoli!$B$9*B56+Calcoli!$B$9*Calcoli!$B$10,B56^Calcoli!$B$13+Calcoli!$B$9)) -> 0.00123717129 | E56: =(Calcoli!$B$9*B56^(Calcoli!$B$13-1))/D56 -> 0.1917041129 | F56: =IF(Calcoli!$B$13>=2, (Calcoli!$B$9*Calcoli!$B$10*B56^(Calcoli!$B$13-2))/D56,NA()) -> 3.758574127e-07 | G56: =IF(Calcoli!$B$13>=3,(Calcoli!$B$9*Calcoli!$B$10*Calcoli!$B$11*B56^(Calcoli!$B$13-3))/D56,NA()) ->  | H56: =IF(Calcoli!$B$13=3,(E56+F56*2+G56*3),IF(Calcoli!$B$13=2,(E56+F56*2),E56)) -> 0.1917048646 | I56: -0.09460589167 | J56: =(B56-(Calcoli!$B$8/B56))/'Acido - Base forte'!$F$1 -> 0.316227766 | K56: =(B56-(Calcoli!$B$8/B56))/'Acido - Base forte'!$F$2 -> 0.316227766
A57: =IF((I57*'Acido - Base forte'!$F$3*'Acido - Base forte'!$F$1)/'Acido - Base forte'!$F$2>0,IF((I57*'Acido - Base forte'!$F$3*'Acido - Base forte'!$F$1)/'Acido - Base forte'!$F$2<1.8*Calcoli!$B$13*('Acido - Base forte'!$F$1*'Acido - Base forte'!$F$3/'Acido - Base forte'!$F$2),I57*'Acido - Base forte'!$F$3*'Acido - Base forte'!$F$1/'Acido - Base forte'!$F$2,NA()),NA()) ->  | B57: 0.0301995172 | C57: 1.52 | D57: =IF(Calcoli!$B$13=3,B57^Calcoli!$B$13+Calcoli!$B$9*B57^2+Calcoli!$B$9*Calcoli!$B$10*B57+Calcoli!$B$9*Calcoli!$B$10*Calcoli!$B$11,IF(Calcoli!$B$13=2,B57^Calcoli!$B$13+Calcoli!$B$9*B57+Calcoli!$B$9*Calcoli!$B$10,B57^Calcoli!$B$13+Calcoli!$B$9)) -> 0.001138507683 | E57: =(Calcoli!$B$9*B57^(Calcoli!$B$13-1))/D57 -> 0.1989414585 | F57: =IF(Calcoli!$B$13>=2, (Calcoli!$B$9*Calcoli!$B$10*B57^(Calcoli!$B$13-2))/D57,NA()) -> 4.084293912e-07 | G57: =IF(Calcoli!$B$13>=3,(Calcoli!$B$9*Calcoli!$B$10*Calcoli!$B$11*B57^(Calcoli!$B$13-3))/D57,NA()) ->  | H57: =IF(Calcoli!$B$13=3,(E57+F57*2+G57*3),IF(Calcoli!$B$13=2,(E57+F57*2),E57)) -> 0.1989422753 | I57: -0.07914998374 | J57: =(B57-(Calcoli!$B$8/B57))/'Acido - Base forte'!$F$1 -> 0.301995172 | K57: =(B57-(Calcoli!$B$8/B57))/'Acido - Base forte'!$F$2 -> 0.301995172
A58: =IF((I58*'Acido - Base forte'!$F$3*'Acido - Base forte'!$F$1)/'Acido - Base forte'!$F$2>0,IF((I58*'Acido - Base forte'!$F$3*'Acido - Base forte'!$F$1)/'Acido - Base forte'!$F$2<1.8*Calcoli!$B$13*('Acido - Base forte'!$F$1*'Acido - Base forte'!$F$3/'Acido - Base forte'!$F$2),I58*'Acido - Base forte'!$F$3*'Acido - Base forte'!$F$1/'Acido - Base forte'!$F$2,NA()),NA()) ->  | B58: 0.02884031503 | C58: 1.54 | D58: =IF(Calcoli!$B$13=3,B58^Calcoli!$B$13+Calcoli!$B$9*B58^2+Calcoli!$B$9*Calcoli!$B$10*B58+Calcoli!$B$9*Calcoli!$B$10*Calcoli!$B$11,IF(Calcoli!$B$13=2,B58^Calcoli!$B$13+Calcoli!$B$9*B58+Calcoli!$B$9*Calcoli!$B$10,B58^Calcoli!$B$13+Calcoli!$B$9)) -> 0.001048066599 | E58: =(Calcoli!$B$9*B58^(Calcoli!$B$13-1))/D58 -> 0.206382269 | F58: =IF(Calcoli!$B$13>=2, (Calcoli!$B$9*Calcoli!$B$10*B58^(Calcoli!$B$13-2))/D58,NA()) -> 4.436740952e-07 | G58: =IF(Calcoli!$B$13>=3,(Calcoli!$B$9*Calcoli!$B$10*Calcoli!$B$11*B58^(Calcoli!$B$13-3))/D58,NA()) ->  | H58: =IF(Calcoli!$B$13=3,(E58+F58*2+G58*3),IF(Calcoli!$B$13=2,(E58+F58*2),E58)) -> 0.2063831564 | I58: -0.06366019358 | J58: =(B58-(Calcoli!$B$8/B58))/'Acido - Base forte'!$F$1 -> 0.2884031503 | K58: =(B58-(Calcoli!$B$8/B58))/'Acido - Base forte'!$F$2 -> 0.2884031503
A59: =IF((I59*'Acido - Base forte'!$F$3*'Acido - Base forte'!$F$1)/'Acido - Base forte'!$F$2>0,IF((I59*'Acido - Base forte'!$F$3*'Acido - Base forte'!$F$1)/'Acido - Base forte'!$F$2<1.8*Calcoli!$B$13*('Acido - Base forte'!$F$1*'Acido - Base forte'!$F$3/'Acido - Base forte'!$F$2),I59*'Acido - Base forte'!$F$3*'Acido - Base forte'!$F$1/'Acido - Base forte'!$F$2,NA()),NA()) ->  | B59: 0.02754228703 | C59: 1.56 | D59: =IF(Calcoli!$B$13=3,B59^Calcoli!$B$13+Calcoli!$B$9*B59^2+Calcoli!$B$9*Calcoli!$B$10*B59+Calcoli!$B$9*Calcoli!$B$10*Calcoli!$B$11,IF(Calcoli!$B$13=2,B59^Calcoli!$B$13+Calcoli!$B$9*B59+Calcoli!$B$9*Calcoli!$B$10,B59^Calcoli!$B$13+Calcoli!$B$9)) -> 0.0009651451928 | E59: =(Calcoli!$B$9*B59^(Calcoli!$B$13-1))/D59 -> 0.2140270234 | F59: =IF(Calcoli!$B$13>=2, (Calcoli!$B$9*Calcoli!$B$10*B59^(Calcoli!$B$13-2))/D59,NA()) -> 4.81792795e-07 | G59: =IF(Calcoli!$B$13>=3,(Calcoli!$B$9*Calcoli!$B$10*Calcoli!$B$11*B59^(Calcoli!$B$13-3))/D59,NA()) ->  | H59: =IF(Calcoli!$B$13=3,(E59+F59*2+G59*3),IF(Calcoli!$B$13=2,(E59+F59*2),E59)) -> 0.214027987 | I59: -0.04813688447 | J59: =(B59-(Calcoli!$B$8/B59))/'Acido - Base forte'!$F$1 -> 0.2754228703 | K59: =(B59-(Calcoli!$B$8/B59))/'Acido - Base forte'!$F$2 -> 0.2754228703
A60: =IF((I60*'Acido - Base forte'!$F$3*'Acido - Base forte'!$F$1)/'Acido - Base forte'!$F$2>0,IF((I60*'Acido - Base forte'!$F$3*'Acido - Base forte'!$F$1)/'Acido - Base forte'!$F$2<1.8*Calcoli!$B$13*('Acido - Base forte'!$F$1*'Acido - Base forte'!$F$3/'Acido - Base forte'!$F$2),I60*'Acido - Base forte'!$F$3*'Acido - Base forte'!$F$1/'Acido - Base forte'!$F$2,NA()),NA()) ->  | B60: 0.02630267992 | C60: 1.58 | D60: =IF(Calcoli!$B$13=3,B60^Calcoli!$B$13+Calcoli!$B$9*B60^2+Calcoli!$B$9*Calcoli!$B$10*B60+Calcoli!$B$9*Calcoli!$B$10*Calcoli!$B$11,IF(Calcoli!$B$13=2,B60^Calcoli!$B$13+Calcoli!$B$9*B60+Calcoli!$B$9*Calcoli!$B$10,B60^Calcoli!$B$13+Calcoli!$B$9)) -> 0.0008891015353 | E60: =(Calcoli!$B$9*B60^(Calcoli!$B$13-1))/D60 -> 0.2218757831 | F60: =IF(Calcoli!$B$13>=2, (Calcoli!$B$9*Calcoli!$B$10*B60^(Calcoli!$B$13-2))/D60,NA()) -> 5.229998842e-07 | G60: =IF(Calcoli!$B$13>=3,(Calcoli!$B$9*Calcoli!$B$10*Calcoli!$B$11*B60^(Calcoli!$B$13-3))/D60,NA()) ->  | H60: =IF(Calcoli!$B$13=3,(E60+F60*2+G60*3),IF(Calcoli!$B$13=2,(E60+F60*2),E60)) -> 0.2218768291 | I60: -0.03258044099 | J60: =(B60-(Calcoli!$B$8/B60))/'Acido - Base forte'!$F$1 -> 0.2630267992 | K60: =(B60-(Calcoli!$B$8/B60))/'Acido - Base forte'!$F$2 -> 0.2630267992
A61: =IF((I61*'Acido - Base forte'!$F$3*'Acido - Base forte'!$F$1)/'Acido - Base forte'!$F$2>0,IF((I61*'Acido - Base forte'!$F$3*'Acido - Base forte'!$F$1)/'Acido - Base forte'!$F$2<1.8*Calcoli!$B$13*('Acido - Base forte'!$F$1*'Acido - Base forte'!$F$3/'Acido - Base forte'!$F$2),I61*'Acido - Base forte'!$F$3*'Acido - Base forte'!$F$1/'Acido - Base forte'!$F$2,NA()),NA()) ->  | B61: 0.02511886432 | C61: 1.6 | D61: =IF(Calcoli!$B$13=3,B61^Calcoli!$B$13+Calcoli!$B$9*B61^2+Calcoli!$B$9*Calcoli!$B$10*B61+Calcoli!$B$9*Calcoli!$B$10*Calcoli!$B$11,IF(Calcoli!$B$13=2,B61^Calcoli!$B$13+Calcoli!$B$9*B61+Calcoli!$B$9*Calcoli!$B$10,B61^Calcoli!$B$13+Calcoli!$B$9)) -> 0.0008193492918 | E61: =(Calcoli!$B$9*B61^(Calcoli!$B$13-1))/D61 -> 0.2299281689 | F61: =IF(Calcoli!$B$13>=2, (Calcoli!$B$9*Calcoli!$B$10*B61^(Calcoli!$B$13-2))/D61,NA()) -> 5.675235271e-07 | G61: =IF(Calcoli!$B$13>=3,(Calcoli!$B$9*Calcoli!$B$10*Calcoli!$B$11*B61^(Calcoli!$B$13-3))/D61,NA()) ->  | H61: =IF(Calcoli!$B$13=3,(E61+F61*2+G61*3),IF(Calcoli!$B$13=2,(E61+F61*2),E61)) -> 0.2299293039 | I61: -0.01699131407 | J61: =(B61-(Calcoli!$B$8/B61))/'Acido - Base forte'!$F$1 -> 0.2511886431 | K61: =(B61-(Calcoli!$B$8/B61))/'Acido - Base forte'!$F$2 -> 0.2511886431
A62: =IF((I62*'Acido - Base forte'!$F$3*'Acido - Base forte'!$F$1)/'Acido - Base forte'!$F$2>0,IF((I62*'Acido - Base forte'!$F$3*'Acido - Base forte'!$F$1)/'Acido - Base forte'!$F$2<1.8*Calcoli!$B$13*('Acido - Base forte'!$F$1*'Acido - Base forte'!$F$3/'Acido - Base forte'!$F$2),I62*'Acido - Base forte'!$F$3*'Acido - Base forte'!$F$1/'Acido - Base forte'!$F$2,NA()),NA()) ->  | B62: 0.02398832919 | C62: 1.62 | D62: =IF(Calcoli!$B$13=3,B62^Calcoli!$B$13+Calcoli!$B$9*B62^2+Calcoli!$B$9*Calcoli!$B$10*B62+Calcoli!$B$9*Calcoli!$B$10*Calcoli!$B$11,IF(Calcoli!$B$13=2,B62^Calcoli!$B$13+Calcoli!$B$9*B62+Calcoli!$B$9*Calcoli!$B$10,B62^Calcoli!$B$13+Calcoli!$B$9)) -> 0.0007553528713 | E62: =(Calcoli!$B$9*B62^(Calcoli!$B$13-1))/D62 -> 0.2381833389 | F62: =IF(Calcoli!$B$13>=2, (Calcoli!$B$9*Calcoli!$B$10*B62^(Calcoli!$B$13-2))/D62,NA()) -> 6.156063182e-07 | G62: =IF(Calcoli!$B$13>=3,(Calcoli!$B$9*Calcoli!$B$10*Calcoli!$B$11*B62^(Calcoli!$B$13-3))/D62,NA()) ->  | H62: =IF(Calcoli!$B$13=3,(E62+F62*2+G62*3),IF(Calcoli!$B$13=2,(E62+F62*2),E62)) -> 0.2381845701 | I62: -0.001370065872 | J62: =(B62-(Calcoli!$B$8/B62))/'Acido - Base forte'!$F$1 -> 0.2398832919 | K62: =(B62-(Calcoli!$B$8/B62))/'Acido - Base forte'!$F$2 -> 0.2398832919
A63: =IF((I63*'Acido - Base forte'!$F$3*'Acido - Base forte'!$F$1)/'Acido - Base forte'!$F$2>0,IF((I63*'Acido - Base forte'!$F$3*'Acido - Base forte'!$F$1)/'Acido - Base forte'!$F$2<1.8*Calcoli!$B$13*('Acido - Base forte'!$F$1*'Acido - Base forte'!$F$3/'Acido - Base forte'!$F$2),I63*'Acido - Base forte'!$F$3*'Acido - Base forte'!$F$1/'Acido - Base forte'!$F$2,NA()),NA()) -> 0.3570646483 | B63: 0.02290867653 | C63: 1.64 | D63: =IF(Calcoli!$B$13=3,B63^Calcoli!$B$13+Calcoli!$B$9*B63^2+Calcoli!$B$9*Calcoli!$B$10*B63+Calcoli!$B$9*Calcoli!$B$10*Calcoli!$B$11,IF(Calcoli!$B$13=2,B63^Calcoli!$B$13+Calcoli!$B$9*B63+Calcoli!$B$9*Calcoli!$B$10,B63^Calcoli!$B$13+Calcoli!$B$9)) -> 0.0006966229992 | E63: =(Calcoli!$B$9*B63^(Calcoli!$B$13-1))/D63 -> 0.2466399676 | F63: =IF(Calcoli!$B$13>=2, (Calcoli!$B$9*Calcoli!$B$10*B63^(Calcoli!$B$13-2))/D63,NA()) -> 6.675059545e-07 | G63: =IF(Calcoli!$B$13>=3,(Calcoli!$B$9*Calcoli!$B$10*Calcoli!$B$11*B63^(Calcoli!$B$13-3))/D63,NA()) ->  | H63: =IF(Calcoli!$B$13=3,(E63+F63*2+G63*3),IF(Calcoli!$B$13=2,(E63+F63*2),E63)) -> 0.2466413026 | I63: 0.01428258593 | J63: =(B63-(Calcoli!$B$8/B63))/'Acido - Base forte'!$F$1 -> 0.2290867653 | K63: =(B63-(Calcoli!$B$8/B63))/'Acido - Base forte'!$F$2 -> 0.2290867653
A64: =IF((I64*'Acido - Base forte'!$F$3*'Acido - Base forte'!$F$1)/'Acido - Base forte'!$F$2>0,IF((I64*'Acido - Base forte'!$F$3*'Acido - Base forte'!$F$1)/'Acido - Base forte'!$F$2<1.8*Calcoli!$B$13*('Acido - Base forte'!$F$1*'Acido - Base forte'!$F$3/'Acido - Base forte'!$F$2),I64*'Acido - Base forte'!$F$3*'Acido - Base forte'!$F$1/'Acido - Base forte'!$F$2,NA()),NA()) -> 0.7491431235 | B64: 0.02187761624 | C64: 1.66 | D64: =IF(Calcoli!$B$13=3,B64^Calcoli!$B$13+Calcoli!$B$9*B64^2+Calcoli!$B$9*Calcoli!$B$10*B64+Calcoli!$B$9*Calcoli!$B$10*Calcoli!$B$11,IF(Calcoli!$B$13=2,B64^Calcoli!$B$13+Calcoli!$B$9*B64+Calcoli!$B$9*Calcoli!$B$10,B64^Calcoli!$B$13+Calcoli!$B$9)) -> 0.0006427126791 | E64: =(Calcoli!$B$9*B64^(Calcoli!$B$13-1))/D64 -> 0.2552962266 | F64: =IF(Calcoli!$B$13>=2, (Calcoli!$B$9*Calcoli!$B$10*B64^(Calcoli!$B$13-2))/D64,NA()) -> 7.234959183e-07 | G64: =IF(Calcoli!$B$13>=3,(Calcoli!$B$9*Calcoli!$B$10*Calcoli!$B$11*B64^(Calcoli!$B$13-3))/D64,NA()) ->  | H64: =IF(Calcoli!$B$13=3,(E64+F64*2+G64*3),IF(Calcoli!$B$13=2,(E64+F64*2),E64)) -> 0.2552976736 | I64: 0.02996572494 | J64: =(B64-(Calcoli!$B$8/B64))/'Acido - Base forte'!$F$1 -> 0.2187761624 | K64: =(B64-(Calcoli!$B$8/B64))/'Acido - Base forte'!$F$2 -> 0.2187761624
A65: =IF((I65*'Acido - Base forte'!$F$3*'Acido - Base forte'!$F$1)/'Acido - Base forte'!$F$2>0,IF((I65*'Acido - Base forte'!$F$3*'Acido - Base forte'!$F$1)/'Acido - Base forte'!$F$2<1.8*Calcoli!$B$13*('Acido - Base forte'!$F$1*'Acido - Base forte'!$F$3/'Acido - Base forte'!$F$2),I65*'Acido - Base forte'!$F$3*'Acido - Base forte'!$F$1/'Acido - Base forte'!$F$2,NA()),NA()) -> 1.14195486 | B65: 0.02089296131 | C65: 1.68 | D65: =IF(Calcoli!$B$13=3,B65^Calcoli!$B$13+Calcoli!$B$9*B65^2+Calcoli!$B$9*Calcoli!$B$10*B65+Calcoli!$B$9*Calcoli!$B$10*Calcoli!$B$11,IF(Calcoli!$B$13=2,B65^Calcoli!$B$13+Calcoli!$B$9*B65+Calcoli!$B$9*Calcoli!$B$10,B65^Calcoli!$B$13+Calcoli!$B$9)) -> 0.0005932135071 | E65: =(Calcoli!$B$9*B65^(Calcoli!$B$13-1))/D65 -> 0.2641497672 | F65: =IF(Calcoli!$B$13>=2, (Calcoli!$B$9*Calcoli!$B$10*B65^(Calcoli!$B$13-2))/D65,NA()) -> 7.838661704e-07 | G65: =IF(Calcoli!$B$13>=3,(Calcoli!$B$9*Calcoli!$B$10*Calcoli!$B$11*B65^(Calcoli!$B$13-3))/D65,NA()) ->  | H65: =IF(Calcoli!$B$13=3,(E65+F65*2+G65*3),IF(Calcoli!$B$13=2,(E65+F65*2),E65)) -> 0.264151335 | I65: 0.04567819441 | J65: =(B65-(Calcoli!$B$8/B65))/'Acido - Base forte'!$F$1 -> 0.2089296131 | K65: =(B65-(Calcoli!$B$8/B65))/'Acido - Base forte'!$F$2 -> 0.2089296131
A66: =IF((I66*'Acido - Base forte'!$F$3*'Acido - Base forte'!$F$1)/'Acido - Base forte'!$F$2>0,IF((I66*'Acido - Base forte'!$F$3*'Acido - Base forte'!$F$1)/'Acido - Base forte'!$F$2<1.8*Calcoli!$B$13*('Acido - Base forte'!$F$1*'Acido - Base forte'!$F$3/'Acido - Base forte'!$F$2),I66*'Acido - Base forte'!$F$3*'Acido - Base forte'!$F$1/'Acido - Base forte'!$F$2,NA()),NA()) -> 1.535463943 | B66: 0.01995262315 | C66: 1.7 | D66: =IF(Calcoli!$B$13=3,B66^Calcoli!$B$13+Calcoli!$B$9*B66^2+Calcoli!$B$9*Calcoli!$B$10*B66+Calcoli!$B$9*Calcoli!$B$10*Calcoli!$B$11,IF(Calcoli!$B$13=2,B66^Calcoli!$B$13+Calcoli!$B$9*B66+Calcoli!$B$9*Calcoli!$B$10,B66^Calcoli!$B$13+Calcoli!$B$9)) -> 0.0005477523092 | E66: =(Calcoli!$B$9*B66^(Calcoli!$B$13-1))/D66 -> 0.2731977047 | F66: =IF(Calcoli!$B$13>=2, (Calcoli!$B$9*Calcoli!$B$10*B66^(Calcoli!$B$13-2))/D66,NA()) -> 8.489238515e-07 | G66: =IF(Calcoli!$B$13>=3,(Calcoli!$B$9*Calcoli!$B$10*Calcoli!$B$11*B66^(Calcoli!$B$13-3))/D66,NA()) ->  | H66: =IF(Calcoli!$B$13=3,(E66+F66*2+G66*3),IF(Calcoli!$B$13=2,(E66+F66*2),E66)) -> 0.2731994026 | I66: 0.06141855771 | J66: =(B66-(Calcoli!$B$8/B66))/'Acido - Base forte'!$F$1 -> 0.1995262315 | K66: =(B66-(Calcoli!$B$8/B66))/'Acido - Base forte'!$F$2 -> 0.1995262315
A67: =IF((I67*'Acido - Base forte'!$F$3*'Acido - Base forte'!$F$1)/'Acido - Base forte'!$F$2>0,IF((I67*'Acido - Base forte'!$F$3*'Acido - Base forte'!$F$1)/'Acido - Base forte'!$F$2<1.8*Calcoli!$B$13*('Acido - Base forte'!$F$1*'Acido - Base forte'!$F$3/'Acido - Base forte'!$F$2),I67*'Acido - Base forte'!$F$3*'Acido - Base forte'!$F$1/'Acido - Base forte'!$F$2,NA()),NA()) -> 1.929626532 | B67: 0.01905460718 | C67: 1.72 | D67: =IF(Calcoli!$B$13=3,B67^Calcoli!$B$13+Calcoli!$B$9*B67^2+Calcoli!$B$9*Calcoli!$B$10*B67+Calcoli!$B$9*Calcoli!$B$10*Calcoli!$B$11,IF(Calcoli!$B$13=2,B67^Calcoli!$B$13+Calcoli!$B$9*B67+Calcoli!$B$9*Calcoli!$B$10,B67^Calcoli!$B$13+Calcoli!$B$9)) -> 0.0005059880736 | E67: =(Calcoli!$B$9*B67^(Calcoli!$B$13-1))/D67 -> 0.2824366053 | F67: =IF(Calcoli!$B$13>=2, (Calcoli!$B$9*Calcoli!$B$10*B67^(Calcoli!$B$13-2))/D67,NA()) -> 9.189939926e-07 | G67: =IF(Calcoli!$B$13>=3,(Calcoli!$B$9*Calcoli!$B$10*Calcoli!$B$11*B67^(Calcoli!$B$13-3))/D67,NA()) ->  | H67: =IF(Calcoli!$B$13=3,(E67+F67*2+G67*3),IF(Calcoli!$B$13=2,(E67+F67*2),E67)) -> 0.2824384433 | I67: 0.07718506129 | J67: =(B67-(Calcoli!$B$8/B67))/'Acido - Base forte'!$F$1 -> 0.1905460718 | K67: =(B67-(Calcoli!$B$8/B67))/'Acido - Base forte'!$F$2 -> 0.1905460718
A68: =IF((I68*'Acido - Base forte'!$F$3*'Acido - Base forte'!$F$1)/'Acido - Base forte'!$F$2>0,IF((I68*'Acido - Base forte'!$F$3*'Acido - Base forte'!$F$1)/'Acido - Base forte'!$F$2<1.8*Calcoli!$B$13*('Acido - Base forte'!$F$1*'Acido - Base forte'!$F$3/'Acido - Base forte'!$F$2),I68*'Acido - Base forte'!$F$3*'Acido - Base forte'!$F$1/'Acido - Base forte'!$F$2,NA()),NA()) -> 2.324390015 | B68: 0.01819700859 | C68: 1.74 | D68: =IF(Calcoli!$B$13=3,B68^Calcoli!$B$13+Calcoli!$B$9*B68^2+Calcoli!$B$9*Calcoli!$B$10*B68+Calcoli!$B$9*Calcoli!$B$10*Calcoli!$B$11,IF(Calcoli!$B$13=2,B68^Calcoli!$B$13+Calcoli!$B$9*B68+Calcoli!$B$9*Calcoli!$B$10,B68^Calcoli!$B$13+Calcoli!$B$9)) -> 0.0004676091509 | E68: =(Calcoli!$B$9*B68^(Calcoli!$B$13-1))/D68 -> 0.2918624756 | F68: =IF(Calcoli!$B$13>=2, (Calcoli!$B$9*Calcoli!$B$10*B68^(Calcoli!$B$13-2))/D68,NA()) -> 9.944202314e-07 | G68: =IF(Calcoli!$B$13>=3,(Calcoli!$B$9*Calcoli!$B$10*Calcoli!$B$11*B68^(Calcoli!$B$13-3))/D68,NA()) ->  | H68: =IF(Calcoli!$B$13=3,(E68+F68*2+G68*3),IF(Calcoli!$B$13=2,(E68+F68*2),E68)) -> 0.2918644645 | I68: 0.09297560058 | J68: =(B68-(Calcoli!$B$8/B68))/'Acido - Base forte'!$F$1 -> 0.1819700859 | K68: =(B68-(Calcoli!$B$8/B68))/'Acido - Base forte'!$F$2 -> 0.1819700859
A69: =IF((I69*'Acido - Base forte'!$F$3*'Acido - Base forte'!$F$1)/'Acido - Base forte'!$F$2>0,IF((I69*'Acido - Base forte'!$F$3*'Acido - Base forte'!$F$1)/'Acido - Base forte'!$F$2<1.8*Calcoli!$B$13*('Acido - Base forte'!$F$1*'Acido - Base forte'!$F$3/'Acido - Base forte'!$F$2),I69*'Acido - Base forte'!$F$3*'Acido - Base forte'!$F$1/'Acido - Base forte'!$F$2,NA()),NA()) -> 2.719692232 | B69: 0.01737800829 | C69: 1.76 | D69: =IF(Calcoli!$B$13=3,B69^Calcoli!$B$13+Calcoli!$B$9*B69^2+Calcoli!$B$9*Calcoli!$B$10*B69+Calcoli!$B$9*Calcoli!$B$10*Calcoli!$B$11,IF(Calcoli!$B$13=2,B69^Calcoli!$B$13+Calcoli!$B$9*B69+Calcoli!$B$9*Calcoli!$B$10,B69^Calcoli!$B$13+Calcoli!$B$9)) -> 0.0004323306992 | E69: =(Calcoli!$B$9*B69^(Calcoli!$B$13-1))/D69 -> 0.3014707547 | F69: =IF(Calcoli!$B$13>=2, (Calcoli!$B$9*Calcoli!$B$10*B69^(Calcoli!$B$13-2))/D69,NA()) -> 1.075565536e-06 | G69: =IF(Calcoli!$B$13>=3,(Calcoli!$B$9*Calcoli!$B$10*Calcoli!$B$11*B69^(Calcoli!$B$13-3))/D69,NA()) ->  | H69: =IF(Calcoli!$B$13=3,(E69+F69*2+G69*3),IF(Calcoli!$B$13=2,(E69+F69*2),E69)) -> 0.3014729058 | I69: 0.1087876893 | J69: =(B69-(Calcoli!$B$8/B69))/'Acido - Base forte'!$F$1 -> 0.1737800829 | K69: =(B69-(Calcoli!$B$8/B69))/'Acido - Base forte'!$F$2 -> 0.1737800829
A70: =IF((I70*'Acido - Base forte'!$F$3*'Acido - Base forte'!$F$1)/'Acido - Base forte'!$F$2>0,IF((I70*'Acido - Base forte'!$F$3*'Acido - Base forte'!$F$1)/'Acido - Base forte'!$F$2<1.8*Calcoli!$B$13*('Acido - Base forte'!$F$1*'Acido - Base forte'!$F$3/'Acido - Base forte'!$F$2),I70*'Acido - Base forte'!$F$3*'Acido - Base forte'!$F$1/'Acido - Base forte'!$F$2,NA()),NA()) -> 3.115460809 | B70: 0.01659586907 | C70: 1.78 | D70: =IF(Calcoli!$B$13=3,B70^Calcoli!$B$13+Calcoli!$B$9*B70^2+Calcoli!$B$9*Calcoli!$B$10*B70+Calcoli!$B$9*Calcoli!$B$10*Calcoli!$B$11,IF(Calcoli!$B$13=2,B70^Calcoli!$B$13+Calcoli!$B$9*B70+Calcoli!$B$9*Calcoli!$B$10,B70^Calcoli!$B$13+Calcoli!$B$9)) -> 0.0003998923534 | E70: =(Calcoli!$B$9*B70^(Calcoli!$B$13-1))/D70 -> 0.3112563094 | F70: =IF(Calcoli!$B$13>=2, (Calcoli!$B$9*Calcoli!$B$10*B70^(Calcoli!$B$13-2))/D70,NA()) -> 1.162812932e-06 | G70: =IF(Calcoli!$B$13>=3,(Calcoli!$B$9*Calcoli!$B$10*Calcoli!$B$11*B70^(Calcoli!$B$13-3))/D70,NA()) ->  | H70: =IF(Calcoli!$B$13=3,(E70+F70*2+G70*3),IF(Calcoli!$B$13=2,(E70+F70*2),E70)) -> 0.311258635 | I70: 0.1246184324 | J70: =(B70-(Calcoli!$B$8/B70))/'Acido - Base forte'!$F$1 -> 0.1659586907 | K70: =(B70-(Calcoli!$B$8/B70))/'Acido - Base forte'!$F$2 -> 0.1659586907
A71: =IF((I71*'Acido - Base forte'!$F$3*'Acido - Base forte'!$F$1)/'Acido - Base forte'!$F$2>0,IF((I71*'Acido - Base forte'!$F$3*'Acido - Base forte'!$F$1)/'Acido - Base forte'!$F$2<1.8*Calcoli!$B$13*('Acido - Base forte'!$F$1*'Acido - Base forte'!$F$3/'Acido - Base forte'!$F$2),I71*'Acido - Base forte'!$F$3*'Acido - Base forte'!$F$1/'Acido - Base forte'!$F$2,NA()),NA()) -> 3.51161258 | B71: 0.01584893192 | C71: 1.8 | D71: =IF(Calcoli!$B$13=3,B71^Calcoli!$B$13+Calcoli!$B$9*B71^2+Calcoli!$B$9*Calcoli!$B$10*B71+Calcoli!$B$9*Calcoli!$B$10*Calcoli!$B$11,IF(Calcoli!$B$13=2,B71^Calcoli!$B$13+Calcoli!$B$9*B71+Calcoli!$B$9*Calcoli!$B$10,B71^Calcoli!$B$13+Calcoli!$B$9)) -> 0.0003700560976 | E71: =(Calcoli!$B$9*B71^(Calcoli!$B$13-1))/D71 -> 0.3212134328 | F71: =IF(Calcoli!$B$13>=2, (Calcoli!$B$9*Calcoli!$B$10*B71^(Calcoli!$B$13-2))/D71,NA()) -> 1.256566242e-06 | G71: =IF(Calcoli!$B$13>=3,(Calcoli!$B$9*Calcoli!$B$10*Calcoli!$B$11*B71^(Calcoli!$B$13-3))/D71,NA()) ->  | H71: =IF(Calcoli!$B$13=3,(E71+F71*2+G71*3),IF(Calcoli!$B$13=2,(E71+F71*2),E71)) -> 0.3212159459 | I71: 0.1404645032 | J71: =(B71-(Calcoli!$B$8/B71))/'Acido - Base forte'!$F$1 -> 0.1584893192 | K71: =(B71-(Calcoli!$B$8/B71))/'Acido - Base forte'!$F$2 -> 0.1584893192
A72: =IF((I72*'Acido - Base forte'!$F$3*'Acido - Base forte'!$F$1)/'Acido - Base forte'!$F$2>0,IF((I72*'Acido - Base forte'!$F$3*'Acido - Base forte'!$F$1)/'Acido - Base forte'!$F$2<1.8*Calcoli!$B$13*('Acido - Base forte'!$F$1*'Acido - Base forte'!$F$3/'Acido - Base forte'!$F$2),I72*'Acido - Base forte'!$F$3*'Acido - Base forte'!$F$1/'Acido - Base forte'!$F$2,NA()),NA()) -> 3.908053124 | B72: 0.01513561248 | C72: 1.82 | D72: =IF(Calcoli!$B$13=3,B72^Calcoli!$B$13+Calcoli!$B$9*B72^2+Calcoli!$B$9*Calcoli!$B$10*B72+Calcoli!$B$9*Calcoli!$B$10*Calcoli!$B$11,IF(Calcoli!$B$13=2,B72^Calcoli!$B$13+Calcoli!$B$9*B72+Calcoli!$B$9*Calcoli!$B$10,B72^Calcoli!$B$13+Calcoli!$B$9)) -> 0.0003426043239 | E72: =(Calcoli!$B$9*B72^(Calcoli!$B$13-1))/D72 -> 0.3313358464 | F72: =IF(Calcoli!$B$13>=2, (Calcoli!$B$9*Calcoli!$B$10*B72^(Calcoli!$B$13-2))/D72,NA()) -> 1.357250821e-06 | G72: =IF(Calcoli!$B$13>=3,(Calcoli!$B$9*Calcoli!$B$10*Calcoli!$B$11*B72^(Calcoli!$B$13-3))/D72,NA()) ->  | H72: =IF(Calcoli!$B$13=3,(E72+F72*2+G72*3),IF(Calcoli!$B$13=2,(E72+F72*2),E72)) -> 0.3313385609 | I72: 0.156322125 | J72: =(B72-(Calcoli!$B$8/B72))/'Acido - Base forte'!$F$1 -> 0.1513561248 | K72: =(B72-(Calcoli!$B$8/B72))/'Acido - Base forte'!$F$2 -> 0.1513561248
A73: =IF((I73*'Acido - Base forte'!$F$3*'Acido - Base forte'!$F$1)/'Acido - Base forte'!$F$2>0,IF((I73*'Acido - Base forte'!$F$3*'Acido - Base forte'!$F$1)/'Acido - Base forte'!$F$2<1.8*Calcoli!$B$13*('Acido - Base forte'!$F$1*'Acido - Base forte'!$F$3/'Acido - Base forte'!$F$2),I73*'Acido - Base forte'!$F$3*'Acido - Base forte'!$F$1/'Acido - Base forte'!$F$2,NA()),NA()) -> 4.30467642 | B73: 0.01445439771 | C73: 1.84 | D73: =IF(Calcoli!$B$13=3,B73^Calcoli!$B$13+Calcoli!$B$9*B73^2+Calcoli!$B$9*Calcoli!$B$10*B73+Calcoli!$B$9*Calcoli!$B$10*Calcoli!$B$11,IF(Calcoli!$B$13=2,B73^Calcoli!$B$13+Calcoli!$B$9*B73+Calcoli!$B$9*Calcoli!$B$10,B73^Calcoli!$B$13+Calcoli!$B$9)) -> 0.0003173380609 | E73: =(Calcoli!$B$9*B73^(Calcoli!$B$13-1))/D73 -> 0.3416167052 | F73: =IF(Calcoli!$B$13>=2, (Calcoli!$B$9*Calcoli!$B$10*B73^(Calcoli!$B$13-2))/D73,NA()) -> 1.465314305e-06 | G73: =IF(Calcoli!$B$13>=3,(Calcoli!$B$9*Calcoli!$B$10*Calcoli!$B$11*B73^(Calcoli!$B$13-3))/D73,NA()) ->  | H73: =IF(Calcoli!$B$13=3,(E73+F73*2+G73*3),IF(Calcoli!$B$13=2,(E73+F73*2),E73)) -> 0.3416196359 | I73: 0.1721870568 | J73: =(B73-(Calcoli!$B$8/B73))/'Acido - Base forte'!$F$1 -> 0.1445439771 | K73: =(B73-(Calcoli!$B$8/B73))/'Acido - Base forte'!$F$2 -> 0.1445439771
A74: =IF((I74*'Acido - Base forte'!$F$3*'Acido - Base forte'!$F$1)/'Acido - Base forte'!$F$2>0,IF((I74*'Acido - Base forte'!$F$3*'Acido - Base forte'!$F$1)/'Acido - Base forte'!$F$2<1.8*Calcoli!$B$13*('Acido - Base forte'!$F$1*'Acido - Base forte'!$F$3/'Acido - Base forte'!$F$2),I74*'Acido - Base forte'!$F$3*'Acido - Base forte'!$F$1/'Acido - Base forte'!$F$2,NA()),NA()) -> 4.701364617 | B74: 0.01380384265 | C74: 1.86 | D74: =IF(Calcoli!$B$13=3,B74^Calcoli!$B$13+Calcoli!$B$9*B74^2+Calcoli!$B$9*Calcoli!$B$10*B74+Calcoli!$B$9*Calcoli!$B$10*Calcoli!$B$11,IF(Calcoli!$B$13=2,B74^Calcoli!$B$13+Calcoli!$B$9*B74+Calcoli!$B$9*Calcoli!$B$10,B74^Calcoli!$B$13+Calcoli!$B$9)) -> 0.0002940753566 | E74: =(Calcoli!$B$9*B74^(Calcoli!$B$13-1))/D74 -> 0.3520486076 | F74: =IF(Calcoli!$B$13>=2, (Calcoli!$B$9*Calcoli!$B$10*B74^(Calcoli!$B$13-2))/D74,NA()) -> 1.581227361e-06 | G74: =IF(Calcoli!$B$13>=3,(Calcoli!$B$9*Calcoli!$B$10*Calcoli!$B$11*B74^(Calcoli!$B$13-3))/D74,NA()) ->  | H74: =IF(Calcoli!$B$13=3,(E74+F74*2+G74*3),IF(Calcoli!$B$13=2,(E74+F74*2),E74)) -> 0.3520517701 | I74: 0.1880545847 | J74: =(B74-(Calcoli!$B$8/B74))/'Acido - Base forte'!$F$1 -> 0.1380384265 | K74: =(B74-(Calcoli!$B$8/B74))/'Acido - Base forte'!$F$2 -> 0.1380384265
A75: =IF((I75*'Acido - Base forte'!$F$3*'Acido - Base forte'!$F$1)/'Acido - Base forte'!$F$2>0,IF((I75*'Acido - Base forte'!$F$3*'Acido - Base forte'!$F$1)/'Acido - Base forte'!$F$2<1.8*Calcoli!$B$13*('Acido - Base forte'!$F$1*'Acido - Base forte'!$F$3/'Acido - Base forte'!$F$2),I75*'Acido - Base forte'!$F$3*'Acido - Base forte'!$F$1/'Acido - Base forte'!$F$2,NA()),NA()) -> 5.097987934 | B75: 0.01318256739 | C75: 1.88 | D75: =IF(Calcoli!$B$13=3,B75^Calcoli!$B$13+Calcoli!$B$9*B75^2+Calcoli!$B$9*Calcoli!$B$10*B75+Calcoli!$B$9*Calcoli!$B$10*Calcoli!$B$11,IF(Calcoli!$B$13=2,B75^Calcoli!$B$13+Calcoli!$B$9*B75+Calcoli!$B$9*Calcoli!$B$10,B75^Calcoli!$B$13+Calcoli!$B$9)) -> 0.0002726498033 | E75: =(Calcoli!$B$9*B75^(Calcoli!$B$13-1))/D75 -> 0.362623608 | F75: =IF(Calcoli!$B$13>=2, (Calcoli!$B$9*Calcoli!$B$10*B75^(Calcoli!$B$13-2))/D75,NA()) -> 1.705484451e-06 | G75: =IF(Calcoli!$B$13>=3,(Calcoli!$B$9*Calcoli!$B$10*Calcoli!$B$11*B75^(Calcoli!$B$13-3))/D75,NA()) ->  | H75: =IF(Calcoli!$B$13=3,(E75+F75*2+G75*3),IF(Calcoli!$B$13=2,(E75+F75*2),E75)) -> 0.362627019 | I75: 0.2039195174 | J75: =(B75-(Calcoli!$B$8/B75))/'Acido - Base forte'!$F$1 -> 0.1318256738 | K75: =(B75-(Calcoli!$B$8/B75))/'Acido - Base forte'!$F$2 -> 0.1318256738
A76: =IF((I76*'Acido - Base forte'!$F$3*'Acido - Base forte'!$F$1)/'Acido - Base forte'!$F$2>0,IF((I76*'Acido - Base forte'!$F$3*'Acido - Base forte'!$F$1)/'Acido - Base forte'!$F$2<1.8*Calcoli!$B$13*('Acido - Base forte'!$F$1*'Acido - Base forte'!$F$3/'Acido - Base forte'!$F$2),I76*'Acido - Base forte'!$F$3*'Acido - Base forte'!$F$1/'Acido - Base forte'!$F$2,NA()),NA()) -> 5.494404685 | B76: 0.01258925412 | C76: 1.9 | D76: =IF(Calcoli!$B$13=3,B76^Calcoli!$B$13+Calcoli!$B$9*B76^2+Calcoli!$B$9*Calcoli!$B$10*B76+Calcoli!$B$9*Calcoli!$B$10*Calcoli!$B$11,IF(Calcoli!$B$13=2,B76^Calcoli!$B$13+Calcoli!$B$9*B76+Calcoli!$B$9*Calcoli!$B$10,B76^Calcoli!$B$13+Calcoli!$B$9)) -> 0.0002529091901 | E76: =(Calcoli!$B$9*B76^(Calcoli!$B$13-1))/D76 -> 0.3733332341 | F76: =IF(Calcoli!$B$13>=2, (Calcoli!$B$9*Calcoli!$B$10*B76^(Calcoli!$B$13-2))/D76,NA()) -> 1.838604599e-06 | G76: =IF(Calcoli!$B$13>=3,(Calcoli!$B$9*Calcoli!$B$10*Calcoli!$B$11*B76^(Calcoli!$B$13-3))/D76,NA()) ->  | H76: =IF(Calcoli!$B$13=3,(E76+F76*2+G76*3),IF(Calcoli!$B$13=2,(E76+F76*2),E76)) -> 0.3733369113 | I76: 0.2197761874 | J76: =(B76-(Calcoli!$B$8/B76))/'Acido - Base forte'!$F$1 -> 0.1258925412 | K76: =(B76-(Calcoli!$B$8/B76))/'Acido - Base forte'!$F$2 -> 0.1258925412
A77: =IF((I77*'Acido - Base forte'!$F$3*'Acido - Base forte'!$F$1)/'Acido - Base forte'!$F$2>0,IF((I77*'Acido - Base forte'!$F$3*'Acido - Base forte'!$F$1)/'Acido - Base forte'!$F$2<1.8*Calcoli!$B$13*('Acido - Base forte'!$F$1*'Acido - Base forte'!$F$3/'Acido - Base forte'!$F$2),I77*'Acido - Base forte'!$F$3*'Acido - Base forte'!$F$1/'Acido - Base forte'!$F$2,NA()),NA()) -> 5.89046143 | B77: 0.01202264435 | C77: 1.92 | D77: =IF(Calcoli!$B$13=3,B77^Calcoli!$B$13+Calcoli!$B$9*B77^2+Calcoli!$B$9*Calcoli!$B$10*B77+Calcoli!$B$9*Calcoli!$B$10*Calcoli!$B$11,IF(Calcoli!$B$13=2,B77^Calcoli!$B$13+Calcoli!$B$9*B77+Calcoli!$B$9*Calcoli!$B$10,B77^Calcoli!$B$13+Calcoli!$B$9)) -> 0.0002347142747 | E77: =(Calcoli!$B$9*B77^(Calcoli!$B$13-1))/D77 -> 0.3841685075 | F77: =IF(Calcoli!$B$13>=2, (Calcoli!$B$9*Calcoli!$B$10*B77^(Calcoli!$B$13-2))/D77,NA()) -> 1.981132169e-06 | G77: =IF(Calcoli!$B$13>=3,(Calcoli!$B$9*Calcoli!$B$10*Calcoli!$B$11*B77^(Calcoli!$B$13-3))/D77,NA()) ->  | H77: =IF(Calcoli!$B$13=3,(E77+F77*2+G77*3),IF(Calcoli!$B$13=2,(E77+F77*2),E77)) -> 0.3841724698 | I77: 0.2356184572 | J77: =(B77-(Calcoli!$B$8/B77))/'Acido - Base forte'!$F$1 -> 0.1202264435 | K77: =(B77-(Calcoli!$B$8/B77))/'Acido - Base forte'!$F$2 -> 0.1202264435
A78: =IF((I78*'Acido - Base forte'!$F$3*'Acido - Base forte'!$F$1)/'Acido - Base forte'!$F$2>0,IF((I78*'Acido - Base forte'!$F$3*'Acido - Base forte'!$F$1)/'Acido - Base forte'!$F$2<1.8*Calcoli!$B$13*('Acido - Base forte'!$F$1*'Acido - Base forte'!$F$3/'Acido - Base forte'!$F$2),I78*'Acido - Base forte'!$F$3*'Acido - Base forte'!$F$1/'Acido - Base forte'!$F$2,NA()),NA()) -> 6.285993257 | B78: 0.01148153621 | C78: 1.94 | D78: =IF(Calcoli!$B$13=3,B78^Calcoli!$B$13+Calcoli!$B$9*B78^2+Calcoli!$B$9*Calcoli!$B$10*B78+Calcoli!$B$9*Calcoli!$B$10*Calcoli!$B$11,IF(Calcoli!$B$13=2,B78^Calcoli!$B$13+Calcoli!$B$9*B78+Calcoli!$B$9*Calcoli!$B$10,B78^Calcoli!$B$13+Calcoli!$B$9)) -> 0.0002179376605 | E78: =(Calcoli!$B$9*B78^(Calcoli!$B$13-1))/D78 -> 0.3951199688 | F78: =IF(Calcoli!$B$13>=2, (Calcoli!$B$9*Calcoli!$B$10*B78^(Calcoli!$B$13-2))/D78,NA()) -> 2.13363766e-06 | G78: =IF(Calcoli!$B$13>=3,(Calcoli!$B$9*Calcoli!$B$10*Calcoli!$B$11*B78^(Calcoli!$B$13-3))/D78,NA()) ->  | H78: =IF(Calcoli!$B$13=3,(E78+F78*2+G78*3),IF(Calcoli!$B$13=2,(E78+F78*2),E78)) -> 0.3951242361 | I78: 0.2514397303 | J78: =(B78-(Calcoli!$B$8/B78))/'Acido - Base forte'!$F$1 -> 0.1148153621 | K78: =(B78-(Calcoli!$B$8/B78))/'Acido - Base forte'!$F$2 -> 0.1148153621
A79: =IF((I79*'Acido - Base forte'!$F$3*'Acido - Base forte'!$F$1)/'Acido - Base forte'!$F$2>0,IF((I79*'Acido - Base forte'!$F$3*'Acido - Base forte'!$F$1)/'Acido - Base forte'!$F$2<1.8*Calcoli!$B$13*('Acido - Base forte'!$F$1*'Acido - Base forte'!$F$3/'Acido - Base forte'!$F$2),I79*'Acido - Base forte'!$F$3*'Acido - Base forte'!$F$1/'Acido - Base forte'!$F$2,NA()),NA()) -> 6.680824185 | B79: 0.01096478196 | C79: 1.96 | D79: =IF(Calcoli!$B$13=3,B79^Calcoli!$B$13+Calcoli!$B$9*B79^2+Calcoli!$B$9*Calcoli!$B$10*B79+Calcoli!$B$9*Calcoli!$B$10*Calcoli!$B$11,IF(Calcoli!$B$13=2,B79^Calcoli!$B$13+Calcoli!$B$9*B79+Calcoli!$B$9*Calcoli!$B$10,B79^Calcoli!$B$13+Calcoli!$B$9)) -> 0.0002024627732 | E79: =(Calcoli!$B$9*B79^(Calcoli!$B$13-1))/D79 -> 0.4061777058 | F79: =IF(Calcoli!$B$13>=2, (Calcoli!$B$9*Calcoli!$B$10*B79^(Calcoli!$B$13-2))/D79,NA()) -> 2.296718516e-06 | G79: =IF(Calcoli!$B$13>=3,(Calcoli!$B$9*Calcoli!$B$10*Calcoli!$B$11*B79^(Calcoli!$B$13-3))/D79,NA()) ->  | H79: =IF(Calcoli!$B$13=3,(E79+F79*2+G79*3),IF(Calcoli!$B$13=2,(E79+F79*2),E79)) -> 0.4061822992 | I79: 0.2672329674 | J79: =(B79-(Calcoli!$B$8/B79))/'Acido - Base forte'!$F$1 -> 0.1096478196 | K79: =(B79-(Calcoli!$B$8/B79))/'Acido - Base forte'!$F$2 -> 0.1096478196
A80: =IF((I80*'Acido - Base forte'!$F$3*'Acido - Base forte'!$F$1)/'Acido - Base forte'!$F$2>0,IF((I80*'Acido - Base forte'!$F$3*'Acido - Base forte'!$F$1)/'Acido - Base forte'!$F$2<1.8*Calcoli!$B$13*('Acido - Base forte'!$F$1*'Acido - Base forte'!$F$3/'Acido - Base forte'!$F$2),I80*'Acido - Base forte'!$F$3*'Acido - Base forte'!$F$1/'Acido - Base forte'!$F$2,NA()),NA()) -> 7.074767694 | B80: 0.01047128548 | C80: 1.98 | D80: =IF(Calcoli!$B$13=3,B80^Calcoli!$B$13+Calcoli!$B$9*B80^2+Calcoli!$B$9*Calcoli!$B$10*B80+Calcoli!$B$9*Calcoli!$B$10*Calcoli!$B$11,IF(Calcoli!$B$13=2,B80^Calcoli!$B$13+Calcoli!$B$9*B80+Calcoli!$B$9*Calcoli!$B$10,B80^Calcoli!$B$13+Calcoli!$B$9)) -> 0.0001881829257 | E80: =(Calcoli!$B$9*B80^(Calcoli!$B$13-1))/D80 -> 0.4173313854 | F80: =IF(Calcoli!$B$13>=2, (Calcoli!$B$9*Calcoli!$B$10*B80^(Calcoli!$B$13-2))/D80,NA()) -> 2.47099995e-06 | G80: =IF(Calcoli!$B$13>=3,(Calcoli!$B$9*Calcoli!$B$10*Calcoli!$B$11*B80^(Calcoli!$B$13-3))/D80,NA()) ->  | H80: =IF(Calcoli!$B$13=3,(E80+F80*2+G80*3),IF(Calcoli!$B$13=2,(E80+F80*2),E80)) -> 0.4173363274 | I80: 0.2829907077 | J80: =(B80-(Calcoli!$B$8/B80))/'Acido - Base forte'!$F$1 -> 0.1047128548 | K80: =(B80-(Calcoli!$B$8/B80))/'Acido - Base forte'!$F$2 -> 0.1047128548
A81: =IF((I81*'Acido - Base forte'!$F$3*'Acido - Base forte'!$F$1)/'Acido - Base forte'!$F$2>0,IF((I81*'Acido - Base forte'!$F$3*'Acido - Base forte'!$F$1)/'Acido - Base forte'!$F$2<1.8*Calcoli!$B$13*('Acido - Base forte'!$F$1*'Acido - Base forte'!$F$3/'Acido - Base forte'!$F$2),I81*'Acido - Base forte'!$F$3*'Acido - Base forte'!$F$1/'Acido - Base forte'!$F$2,NA()),NA()) -> 7.467627366 | B81: 0.01 | C81: 2 | D81: =IF(Calcoli!$B$13=3,B81^Calcoli!$B$13+Calcoli!$B$9*B81^2+Calcoli!$B$9*Calcoli!$B$10*B81+Calcoli!$B$9*Calcoli!$B$10*Calcoli!$B$11,IF(Calcoli!$B$13=2,B81^Calcoli!$B$13+Calcoli!$B$9*B81+Calcoli!$B$9*Calcoli!$B$10,B81^Calcoli!$B$13+Calcoli!$B$9)) -> 0.000175000465 | E81: =(Calcoli!$B$9*B81^(Calcoli!$B$13-1))/D81 -> 0.4285702898 | F81: =IF(Calcoli!$B$13>=2, (Calcoli!$B$9*Calcoli!$B$10*B81^(Calcoli!$B$13-2))/D81,NA()) -> 2.657135797e-06 | G81: =IF(Calcoli!$B$13>=3,(Calcoli!$B$9*Calcoli!$B$10*Calcoli!$B$11*B81^(Calcoli!$B$13-3))/D81,NA()) ->  | H81: =IF(Calcoli!$B$13=3,(E81+F81*2+G81*3),IF(Calcoli!$B$13=2,(E81+F81*2),E81)) -> 0.4285756041 | I81: 0.2987050946 | J81: =(B81-(Calcoli!$B$8/B81))/'Acido - Base forte'!$F$1 -> 0.09999999999 | K81: =(B81-(Calcoli!$B$8/B81))/'Acido - Base forte'!$F$2 -> 0.09999999999
A82: =IF((I82*'Acido - Base forte'!$F$3*'Acido - Base forte'!$F$1)/'Acido - Base forte'!$F$2>0,IF((I82*'Acido - Base forte'!$F$3*'Acido - Base forte'!$F$1)/'Acido - Base forte'!$F$2<1.8*Calcoli!$B$13*('Acido - Base forte'!$F$1*'Acido - Base forte'!$F$3/'Acido - Base forte'!$F$2),I82*'Acido - Base forte'!$F$3*'Acido - Base forte'!$F$1/'Acido - Base forte'!$F$2,NA()),NA()) -> 7.85919764 | B82: 0.00954992586 | C82: 2.02 | D82: =IF(Calcoli!$B$13=3,B82^Calcoli!$B$13+Calcoli!$B$9*B82^2+Calcoli!$B$9*Calcoli!$B$10*B82+Calcoli!$B$9*Calcoli!$B$10*Calcoli!$B$11,IF(Calcoli!$B$13=2,B82^Calcoli!$B$13+Calcoli!$B$9*B82+Calcoli!$B$9*Calcoli!$B$10,B82^Calcoli!$B$13+Calcoli!$B$9)) -> 0.0001628259929 | E82: =(Calcoli!$B$9*B82^(Calcoli!$B$13-1))/D82 -> 0.4398833545 | F82: =IF(Calcoli!$B$13>=2, (Calcoli!$B$9*Calcoli!$B$10*B82^(Calcoli!$B$13-2))/D82,NA()) -> 2.855809394e-06 | G82: =IF(Calcoli!$B$13>=3,(Calcoli!$B$9*Calcoli!$B$10*Calcoli!$B$11*B82^(Calcoli!$B$13-3))/D82,NA()) ->  | H82: =IF(Calcoli!$B$13=3,(E82+F82*2+G82*3),IF(Calcoli!$B$13=2,(E82+F82*2),E82)) -> 0.4398890661 | I82: 0.3143679056 | J82: =(B82-(Calcoli!$B$8/B82))/'Acido - Base forte'!$F$1 -> 0.09549925859 | K82: =(B82-(Calcoli!$B$8/B82))/'Acido - Base forte'!$F$2 -> 0.09549925859
A83: =IF((I83*'Acido - Base forte'!$F$3*'Acido - Base forte'!$F$1)/'Acido - Base forte'!$F$2>0,IF((I83*'Acido - Base forte'!$F$3*'Acido - Base forte'!$F$1)/'Acido - Base forte'!$F$2<1.8*Calcoli!$B$13*('Acido - Base forte'!$F$1*'Acido - Base forte'!$F$3/'Acido - Base forte'!$F$2),I83*'Acido - Base forte'!$F$3*'Acido - Base forte'!$F$1/'Acido - Base forte'!$F$2,NA()),NA()) -> 8.249264671 | B83: 0.009120108394 | C83: 2.04 | D83: =IF(Calcoli!$B$13=3,B83^Calcoli!$B$13+Calcoli!$B$9*B83^2+Calcoli!$B$9*Calcoli!$B$10*B83+Calcoli!$B$9*Calcoli!$B$10*Calcoli!$B$11,IF(Calcoli!$B$13=2,B83^Calcoli!$B$13+Calcoli!$B$9*B83+Calcoli!$B$9*Calcoli!$B$10,B83^Calcoli!$B$13+Calcoli!$B$9)) -> 0.0001515776551 | E83: =(Calcoli!$B$9*B83^(Calcoli!$B$13-1))/D83 -> 0.4512592105 | F83: =IF(Calcoli!$B$13>=2, (Calcoli!$B$9*Calcoli!$B$10*B83^(Calcoli!$B$13-2))/D83,NA()) -> 3.067734488e-06 | G83: =IF(Calcoli!$B$13>=3,(Calcoli!$B$9*Calcoli!$B$10*Calcoli!$B$11*B83^(Calcoli!$B$13-3))/D83,NA()) ->  | H83: =IF(Calcoli!$B$13=3,(E83+F83*2+G83*3),IF(Calcoli!$B$13=2,(E83+F83*2),E83)) -> 0.451265346 | I83: 0.3299705869 | J83: =(B83-(Calcoli!$B$8/B83))/'Acido - Base forte'!$F$1 -> 0.09120108392 | K83: =(B83-(Calcoli!$B$8/B83))/'Acido - Base forte'!$F$2 -> 0.09120108392
A84: =IF((I84*'Acido - Base forte'!$F$3*'Acido - Base forte'!$F$1)/'Acido - Base forte'!$F$2>0,IF((I84*'Acido - Base forte'!$F$3*'Acido - Base forte'!$F$1)/'Acido - Base forte'!$F$2<1.8*Calcoli!$B$13*('Acido - Base forte'!$F$1*'Acido - Base forte'!$F$3/'Acido - Base forte'!$F$2),I84*'Acido - Base forte'!$F$3*'Acido - Base forte'!$F$1/'Acido - Base forte'!$F$2,NA()),NA()) -> 8.637607274 | B84: 0.0087096359 | C84: 2.06 | D84: =IF(Calcoli!$B$13=3,B84^Calcoli!$B$13+Calcoli!$B$9*B84^2+Calcoli!$B$9*Calcoli!$B$10*B84+Calcoli!$B$9*Calcoli!$B$10*Calcoli!$B$11,IF(Calcoli!$B$13=2,B84^Calcoli!$B$13+Calcoli!$B$9*B84+Calcoli!$B$9*Calcoli!$B$10,B84^Calcoli!$B$13+Calcoli!$B$9)) -> 0.0001411804917 | E84: =(Calcoli!$B$9*B84^(Calcoli!$B$13-1))/D84 -> 0.4626862284 | F84: =IF(Calcoli!$B$13>=2, (Calcoli!$B$9*Calcoli!$B$10*B84^(Calcoli!$B$13-2))/D84,NA()) -> 3.293656186e-06 | G84: =IF(Calcoli!$B$13>=3,(Calcoli!$B$9*Calcoli!$B$10*Calcoli!$B$11*B84^(Calcoli!$B$13-3))/D84,NA()) ->  | H84: =IF(Calcoli!$B$13=3,(E84+F84*2+G84*3),IF(Calcoli!$B$13=2,(E84+F84*2),E84)) -> 0.4626928157 | I84: 0.3455042909 | J84: =(B84-(Calcoli!$B$8/B84))/'Acido - Base forte'!$F$1 -> 0.08709635898 | K84: =(B84-(Calcoli!$B$8/B84))/'Acido - Base forte'!$F$2 -> 0.08709635898
A85: =IF((I85*'Acido - Base forte'!$F$3*'Acido - Base forte'!$F$1)/'Acido - Base forte'!$F$2>0,IF((I85*'Acido - Base forte'!$F$3*'Acido - Base forte'!$F$1)/'Acido - Base forte'!$F$2<1.8*Calcoli!$B$13*('Acido - Base forte'!$F$1*'Acido - Base forte'!$F$3/'Acido - Base forte'!$F$2),I85*'Acido - Base forte'!$F$3*'Acido - Base forte'!$F$1/'Acido - Base forte'!$F$2,NA()),NA()) -> 9.023997957 | B85: =10^-C85 -> 0.008317637711 | C85: 2.08 | D85: =IF(Calcoli!$B$13=3,B85^Calcoli!$B$13+Calcoli!$B$9*B85^2+Calcoli!$B$9*Calcoli!$B$10*B85+Calcoli!$B$9*Calcoli!$B$10*Calcoli!$B$11,IF(Calcoli!$B$13=2,B85^Calcoli!$B$13+Calcoli!$B$9*B85+Calcoli!$B$9*Calcoli!$B$10,B85^Calcoli!$B$13+Calcoli!$B$9)) -> 0.0001315658449 | E85: =(Calcoli!$B$9*B85^(Calcoli!$B$13-1))/D85 -> 0.474152565 | F85: =IF(Calcoli!$B$13>=2, (Calcoli!$B$9*Calcoli!$B$10*B85^(Calcoli!$B$13-2))/D85,NA()) -> 3.534351946e-06 | G85: =IF(Calcoli!$B$13>=3,(Calcoli!$B$9*Calcoli!$B$10*Calcoli!$B$11*B85^(Calcoli!$B$13-3))/D85,NA()) ->  | H85: =IF(Calcoli!$B$13=3,(E85+F85*2+G85*3),IF(Calcoli!$B$13=2,(E85+F85*2),E85)) -> 0.4741596337 | I85: =(H85-J85)/(1+K85) -> 0.3609599183 | J85: =(B85-(Calcoli!$B$8/B85))/'Acido - Base forte'!$F$1 -> 0.0831763771 | K85: =(B85-(Calcoli!$B$8/B85))/'Acido - Base forte'!$F$2 -> 0.0831763771
A86: =IF((I86*'Acido - Base forte'!$F$3*'Acido - Base forte'!$F$1)/'Acido - Base forte'!$F$2>0,IF((I86*'Acido - Base forte'!$F$3*'Acido - Base forte'!$F$1)/'Acido - Base forte'!$F$2<1.8*Calcoli!$B$13*('Acido - Base forte'!$F$1*'Acido - Base forte'!$F$3/'Acido - Base forte'!$F$2),I86*'Acido - Base forte'!$F$3*'Acido - Base forte'!$F$1/'Acido - Base forte'!$F$2,NA()),NA()) -> 9.408204031 | B86: 0.007943282347 | C86: 2.1 | D86: =IF(Calcoli!$B$13=3,B86^Calcoli!$B$13+Calcoli!$B$9*B86^2+Calcoli!$B$9*Calcoli!$B$10*B86+Calcoli!$B$9*Calcoli!$B$10*Calcoli!$B$11,IF(Calcoli!$B$13=2,B86^Calcoli!$B$13+Calcoli!$B$9*B86+Calcoli!$B$9*Calcoli!$B$10,B86^Calcoli!$B$13+Calcoli!$B$9)) -> 0.0001226708171 | E86: =(Calcoli!$B$9*B86^(Calcoli!$B$13-1))/D86 -> 0.4856462118 | F86: =IF(Calcoli!$B$13>=2, (Calcoli!$B$9*Calcoli!$B$10*B86^(Calcoli!$B$13-2))/D86,NA()) -> 3.790632615e-06 | G86: =IF(Calcoli!$B$13>=3,(Calcoli!$B$9*Calcoli!$B$10*Calcoli!$B$11*B86^(Calcoli!$B$13-3))/D86,NA()) ->  | H86: =IF(Calcoli!$B$13=3,(E86+F86*2+G86*3),IF(Calcoli!$B$13=2,(E86+F86*2),E86)) -> 0.4856537931 | I86: 0.3763281612 | J86: =(B86-(Calcoli!$B$8/B86))/'Acido - Base forte'!$F$1 -> 0.07943282346 | K86: =(B86-(Calcoli!$B$8/B86))/'Acido - Base forte'!$F$2 -> 0.07943282346
A87: =IF((I87*'Acido - Base forte'!$F$3*'Acido - Base forte'!$F$1)/'Acido - Base forte'!$F$2>0,IF((I87*'Acido - Base forte'!$F$3*'Acido - Base forte'!$F$1)/'Acido - Base forte'!$F$2<1.8*Calcoli!$B$13*('Acido - Base forte'!$F$1*'Acido - Base forte'!$F$3/'Acido - Base forte'!$F$2),I87*'Acido - Base forte'!$F$3*'Acido - Base forte'!$F$1/'Acido - Base forte'!$F$2,NA()),NA()) -> 9.789988766 | B87: 0.00758577575 | C87: 2.12 | D87: =IF(Calcoli!$B$13=3,B87^Calcoli!$B$13+Calcoli!$B$9*B87^2+Calcoli!$B$9*Calcoli!$B$10*B87+Calcoli!$B$9*Calcoli!$B$10*Calcoli!$B$11,IF(Calcoli!$B$13=2,B87^Calcoli!$B$13+Calcoli!$B$9*B87+Calcoli!$B$9*Calcoli!$B$10,B87^Calcoli!$B$13+Calcoli!$B$9)) -> 0.0001144377769 | E87: =(Calcoli!$B$9*B87^(Calcoli!$B$13-1))/D87 -> 0.4971550452 | F87: =IF(Calcoli!$B$13>=2, (Calcoli!$B$9*Calcoli!$B$10*B87^(Calcoli!$B$13-2))/D87,NA()) -> 4.063343528e-06 | G87: =IF(Calcoli!$B$13>=3,(Calcoli!$B$9*Calcoli!$B$10*Calcoli!$B$11*B87^(Calcoli!$B$13-3))/D87,NA()) ->  | H87: =IF(Calcoli!$B$13=3,(E87+F87*2+G87*3),IF(Calcoli!$B$13=2,(E87+F87*2),E87)) -> 0.4971631719 | I87: 0.3915995506 | J87: =(B87-(Calcoli!$B$8/B87))/'Acido - Base forte'!$F$1 -> 0.07585775749 | K87: =(B87-(Calcoli!$B$8/B87))/'Acido - Base forte'!$F$2 -> 0.07585775749
A88: =IF((I88*'Acido - Base forte'!$F$3*'Acido - Base forte'!$F$1)/'Acido - Base forte'!$F$2>0,IF((I88*'Acido - Base forte'!$F$3*'Acido - Base forte'!$F$1)/'Acido - Base forte'!$F$2<1.8*Calcoli!$B$13*('Acido - Base forte'!$F$1*'Acido - Base forte'!$F$3/'Acido - Base forte'!$F$2),I88*'Acido - Base forte'!$F$3*'Acido - Base forte'!$F$1/'Acido - Base forte'!$F$2,NA()),NA()) -> 10.16911261 | B88: 0.007244359601 | C88: 2.14 | D88: =IF(Calcoli!$B$13=3,B88^Calcoli!$B$13+Calcoli!$B$9*B88^2+Calcoli!$B$9*Calcoli!$B$10*B88+Calcoli!$B$9*Calcoli!$B$10*Calcoli!$B$11,IF(Calcoli!$B$13=2,B88^Calcoli!$B$13+Calcoli!$B$9*B88+Calcoli!$B$9*Calcoli!$B$10,B88^Calcoli!$B$13+Calcoli!$B$9)) -> 0.000106813908 | E88: =(Calcoli!$B$9*B88^(Calcoli!$B$13-1))/D88 -> 0.5086668769 | F88: =IF(Calcoli!$B$13>=2, (Calcoli!$B$9*Calcoli!$B$10*B88^(Calcoli!$B$13-2))/D88,NA()) -> 4.353365667e-06 | G88: =IF(Calcoli!$B$13>=3,(Calcoli!$B$9*Calcoli!$B$10*Calcoli!$B$11*B88^(Calcoli!$B$13-3))/D88,NA()) ->  | H88: =IF(Calcoli!$B$13=3,(E88+F88*2+G88*3),IF(Calcoli!$B$13=2,(E88+F88*2),E88)) -> 0.5086755836 | I88: 0.4067645042 | J88: =(B88-(Calcoli!$B$8/B88))/'Acido - Base forte'!$F$1 -> 0.07244359599 | K88: =(B88-(Calcoli!$B$8/B88))/'Acido - Base forte'!$F$2 -> 0.07244359599
A89: =IF((I89*'Acido - Base forte'!$F$3*'Acido - Base forte'!$F$1)/'Acido - Base forte'!$F$2>0,IF((I89*'Acido - Base forte'!$F$3*'Acido - Base forte'!$F$1)/'Acido - Base forte'!$F$2<1.8*Calcoli!$B$13*('Acido - Base forte'!$F$1*'Acido - Base forte'!$F$3/'Acido - Base forte'!$F$2),I89*'Acido - Base forte'!$F$3*'Acido - Base forte'!$F$1/'Acido - Base forte'!$F$2,NA()),NA()) -> 10.54533441 | B89: 0.006918309709 | C89: 2.16 | D89: =IF(Calcoli!$B$13=3,B89^Calcoli!$B$13+Calcoli!$B$9*B89^2+Calcoli!$B$9*Calcoli!$B$10*B89+Calcoli!$B$9*Calcoli!$B$10*Calcoli!$B$11,IF(Calcoli!$B$13=2,B89^Calcoli!$B$13+Calcoli!$B$9*B89+Calcoli!$B$9*Calcoli!$B$10,B89^Calcoli!$B$13+Calcoli!$B$9)) -> 9.975079705e-05 | E89: =(Calcoli!$B$9*B89^(Calcoli!$B$13-1))/D89 -> 0.5201695059 | F89: =IF(Calcoli!$B$13>=2, (Calcoli!$B$9*Calcoli!$B$10*B89^(Calcoli!$B$13-2))/D89,NA()) -> 4.661616887e-06 | G89: =IF(Calcoli!$B$13>=3,(Calcoli!$B$9*Calcoli!$B$10*Calcoli!$B$11*B89^(Calcoli!$B$13-3))/D89,NA()) ->  | H89: =IF(Calcoli!$B$13=3,(E89+F89*2+G89*3),IF(Calcoli!$B$13=2,(E89+F89*2),E89)) -> 0.5201788292 | I89: 0.4218133763 | J89: =(B89-(Calcoli!$B$8/B89))/'Acido - Base forte'!$F$1 -> 0.06918309708 | K89: =(B89-(Calcoli!$B$8/B89))/'Acido - Base forte'!$F$2 -> 0.06918309708
A90: =IF((I90*'Acido - Base forte'!$F$3*'Acido - Base forte'!$F$1)/'Acido - Base forte'!$F$2>0,IF((I90*'Acido - Base forte'!$F$3*'Acido - Base forte'!$F$1)/'Acido - Base forte'!$F$2<1.8*Calcoli!$B$13*('Acido - Base forte'!$F$1*'Acido - Base forte'!$F$3/'Acido - Base forte'!$F$2),I90*'Acido - Base forte'!$F$3*'Acido - Base forte'!$F$1/'Acido - Base forte'!$F$2,NA()),NA()) -> 10.91841271 | B90: 0.00660693448 | C90: 2.18 | D90: =IF(Calcoli!$B$13=3,B90^Calcoli!$B$13+Calcoli!$B$9*B90^2+Calcoli!$B$9*Calcoli!$B$10*B90+Calcoli!$B$9*Calcoli!$B$10*Calcoli!$B$11,IF(Calcoli!$B$13=2,B90^Calcoli!$B$13+Calcoli!$B$9*B90+Calcoli!$B$9*Calcoli!$B$10,B90^Calcoli!$B$13+Calcoli!$B$9)) -> 9.320405682e-05 | E90: =(Calcoli!$B$9*B90^(Calcoli!$B$13-1))/D90 -> 0.5316507702 | F90: =IF(Calcoli!$B$13>=2, (Calcoli!$B$9*Calcoli!$B$10*B90^(Calcoli!$B$13-2))/D90,NA()) -> 4.989053222e-06 | G90: =IF(Calcoli!$B$13>=3,(Calcoli!$B$9*Calcoli!$B$10*Calcoli!$B$11*B90^(Calcoli!$B$13-3))/D90,NA()) ->  | H90: =IF(Calcoli!$B$13=3,(E90+F90*2+G90*3),IF(Calcoli!$B$13=2,(E90+F90*2),E90)) -> 0.5316607483 | I90: 0.4367365086 | J90: =(B90-(Calcoli!$B$8/B90))/'Acido - Base forte'!$F$1 -> 0.06606934479 | K90: =(B90-(Calcoli!$B$8/B90))/'Acido - Base forte'!$F$2 -> 0.06606934479
A91: =IF((I91*'Acido - Base forte'!$F$3*'Acido - Base forte'!$F$1)/'Acido - Base forte'!$F$2>0,IF((I91*'Acido - Base forte'!$F$3*'Acido - Base forte'!$F$1)/'Acido - Base forte'!$F$2<1.8*Calcoli!$B$13*('Acido - Base forte'!$F$1*'Acido - Base forte'!$F$3/'Acido - Base forte'!$F$2),I91*'Acido - Base forte'!$F$3*'Acido - Base forte'!$F$1/'Acido - Base forte'!$F$2,NA()),NA()) -> 11.28810702 | B91: 0.006309573445 | C91: 2.2 | D91: =IF(Calcoli!$B$13=3,B91^Calcoli!$B$13+Calcoli!$B$9*B91^2+Calcoli!$B$9*Calcoli!$B$10*B91+Calcoli!$B$9*Calcoli!$B$10*Calcoli!$B$11,IF(Calcoli!$B$13=2,B91^Calcoli!$B$13+Calcoli!$B$9*B91+Calcoli!$B$9*Calcoli!$B$10,B91^Calcoli!$B$13+Calcoli!$B$9)) -> 8.713298289e-05 | E91: =(Calcoli!$B$9*B91^(Calcoli!$B$13-1))/D91 -> 0.5430985979 | F91: =IF(Calcoli!$B$13>=2, (Calcoli!$B$9*Calcoli!$B$10*B91^(Calcoli!$B$13-2))/D91,NA()) -> 5.336670278e-06 | G91: =IF(Calcoli!$B$13>=3,(Calcoli!$B$9*Calcoli!$B$10*Calcoli!$B$11*B91^(Calcoli!$B$13-3))/D91,NA()) ->  | H91: =IF(Calcoli!$B$13=3,(E91+F91*2+G91*3),IF(Calcoli!$B$13=2,(E91+F91*2),E91)) -> 0.5431092712 | I91: 0.4515242807 | J91: =(B91-(Calcoli!$B$8/B91))/'Acido - Base forte'!$F$1 -> 0.06309573443 | K91: =(B91-(Calcoli!$B$8/B91))/'Acido - Base forte'!$F$2 -> 0.06309573443
A92: =IF((I92*'Acido - Base forte'!$F$3*'Acido - Base forte'!$F$1)/'Acido - Base forte'!$F$2>0,IF((I92*'Acido - Base forte'!$F$3*'Acido - Base forte'!$F$1)/'Acido - Base forte'!$F$2<1.8*Calcoli!$B$13*('Acido - Base forte'!$F$1*'Acido - Base forte'!$F$3/'Acido - Base forte'!$F$2),I92*'Acido - Base forte'!$F$3*'Acido - Base forte'!$F$1/'Acido - Base forte'!$F$2,NA()),NA()) -> 11.65417902 | B92: 0.006025595861 | C92: 2.22 | D92: =IF(Calcoli!$B$13=3,B92^Calcoli!$B$13+Calcoli!$B$9*B92^2+Calcoli!$B$9*Calcoli!$B$10*B92+Calcoli!$B$9*Calcoli!$B$10*Calcoli!$B$11,IF(Calcoli!$B$13=2,B92^Calcoli!$B$13+Calcoli!$B$9*B92+Calcoli!$B$9*Calcoli!$B$10,B92^Calcoli!$B$13+Calcoli!$B$9)) -> 8.150023943e-05 | E92: =(Calcoli!$B$9*B92^(Calcoli!$B$13-1))/D92 -> 0.5545010575 | F92: =IF(Calcoli!$B$13>=2, (Calcoli!$B$9*Calcoli!$B$10*B92^(Calcoli!$B$13-2))/D92,NA()) -> 5.705504711e-06 | G92: =IF(Calcoli!$B$13>=3,(Calcoli!$B$9*Calcoli!$B$10*Calcoli!$B$11*B92^(Calcoli!$B$13-3))/D92,NA()) ->  | H92: =IF(Calcoli!$B$13=3,(E92+F92*2+G92*3),IF(Calcoli!$B$13=2,(E92+F92*2),E92)) -> 0.5545124686 | I92: 0.4661671608 | J92: =(B92-(Calcoli!$B$8/B92))/'Acido - Base forte'!$F$1 -> 0.06025595859 | K92: =(B92-(Calcoli!$B$8/B92))/'Acido - Base forte'!$F$2 -> 0.06025595859
A93: =IF((I93*'Acido - Base forte'!$F$3*'Acido - Base forte'!$F$1)/'Acido - Base forte'!$F$2>0,IF((I93*'Acido - Base forte'!$F$3*'Acido - Base forte'!$F$1)/'Acido - Base forte'!$F$2<1.8*Calcoli!$B$13*('Acido - Base forte'!$F$1*'Acido - Base forte'!$F$3/'Acido - Base forte'!$F$2),I93*'Acido - Base forte'!$F$3*'Acido - Base forte'!$F$1/'Acido - Base forte'!$F$2,NA()),NA()) -> 12.01639389 | B93: 0.005754399373 | C93: 2.24 | D93: =IF(Calcoli!$B$13=3,B93^Calcoli!$B$13+Calcoli!$B$9*B93^2+Calcoli!$B$9*Calcoli!$B$10*B93+Calcoli!$B$9*Calcoli!$B$10*Calcoli!$B$11,IF(Calcoli!$B$13=2,B93^Calcoli!$B$13+Calcoli!$B$9*B93+Calcoli!$B$9*Calcoli!$B$10,B93^Calcoli!$B$13+Calcoli!$B$9)) -> 7.627157245e-05 | E93: =(Calcoli!$B$9*B93^(Calcoli!$B$13-1))/D93 -> 0.565846408 | F93: =IF(Calcoli!$B$13>=2, (Calcoli!$B$9*Calcoli!$B$10*B93^(Calcoli!$B$13-2))/D93,NA()) -> 6.096635812e-06 | G93: =IF(Calcoli!$B$13>=3,(Calcoli!$B$9*Calcoli!$B$10*Calcoli!$B$11*B93^(Calcoli!$B$13-3))/D93,NA()) ->  | H93: =IF(Calcoli!$B$13=3,(E93+F93*2+G93*3),IF(Calcoli!$B$13=2,(E93+F93*2),E93)) -> 0.5658586012 | I93: 0.4806557557 | J93: =(B93-(Calcoli!$B$8/B93))/'Acido - Base forte'!$F$1 -> 0.05754399372 | K93: =(B93-(Calcoli!$B$8/B93))/'Acido - Base forte'!$F$2 -> 0.05754399372
A94: =IF((I94*'Acido - Base forte'!$F$3*'Acido - Base forte'!$F$1)/'Acido - Base forte'!$F$2>0,IF((I94*'Acido - Base forte'!$F$3*'Acido - Base forte'!$F$1)/'Acido - Base forte'!$F$2<1.8*Calcoli!$B$13*('Acido - Base forte'!$F$1*'Acido - Base forte'!$F$3/'Acido - Base forte'!$F$2),I94*'Acido - Base forte'!$F$3*'Acido - Base forte'!$F$1/'Acido - Base forte'!$F$2,NA()),NA()) -> 12.37452147 | B94: 0.005495408739 | C94: 2.26 | D94: =IF(Calcoli!$B$13=3,B94^Calcoli!$B$13+Calcoli!$B$9*B94^2+Calcoli!$B$9*Calcoli!$B$10*B94+Calcoli!$B$9*Calcoli!$B$10*Calcoli!$B$11,IF(Calcoli!$B$13=2,B94^Calcoli!$B$13+Calcoli!$B$9*B94+Calcoli!$B$9*Calcoli!$B$10,B94^Calcoli!$B$13+Calcoli!$B$9)) -> 7.141554774e-05 | E94: =(Calcoli!$B$9*B94^(Calcoli!$B$13-1))/D94 -> 0.5771231453 | F94: =IF(Calcoli!$B$13>=2, (Calcoli!$B$9*Calcoli!$B$10*B94^(Calcoli!$B$13-2))/D94,NA()) -> 6.511187195e-06 | G94: =IF(Calcoli!$B$13>=3,(Calcoli!$B$9*Calcoli!$B$10*Calcoli!$B$11*B94^(Calcoli!$B$13-3))/D94,NA()) ->  | H94: =IF(Calcoli!$B$13=3,(E94+F94*2+G94*3),IF(Calcoli!$B$13=2,(E94+F94*2),E94)) -> 0.5771361677 | I94: 0.494980859 | J94: =(B94-(Calcoli!$B$8/B94))/'Acido - Base forte'!$F$1 -> 0.05495408737 | K94: =(B94-(Calcoli!$B$8/B94))/'Acido - Base forte'!$F$2 -> 0.05495408737
A95: =IF((I95*'Acido - Base forte'!$F$3*'Acido - Base forte'!$F$1)/'Acido - Base forte'!$F$2>0,IF((I95*'Acido - Base forte'!$F$3*'Acido - Base forte'!$F$1)/'Acido - Base forte'!$F$2<1.8*Calcoli!$B$13*('Acido - Base forte'!$F$1*'Acido - Base forte'!$F$3/'Acido - Base forte'!$F$2),I95*'Acido - Base forte'!$F$3*'Acido - Base forte'!$F$1/'Acido - Base forte'!$F$2,NA()),NA()) -> 12.72833744 | B95: 0.005248074602 | C95: 2.28 | D95: =IF(Calcoli!$B$13=3,B95^Calcoli!$B$13+Calcoli!$B$9*B95^2+Calcoli!$B$9*Calcoli!$B$10*B95+Calcoli!$B$9*Calcoli!$B$10*Calcoli!$B$11,IF(Calcoli!$B$13=2,B95^Calcoli!$B$13+Calcoli!$B$9*B95+Calcoli!$B$9*Calcoli!$B$10,B95^Calcoli!$B$13+Calcoli!$B$9)) -> 6.690331155e-05 | E95: =(Calcoli!$B$9*B95^(Calcoli!$B$13-1))/D95 -> 0.5883200488 | F95: =IF(Calcoli!$B$13>=2, (Calcoli!$B$9*Calcoli!$B$10*B95^(Calcoli!$B$13-2))/D95,NA()) -> 6.950328604e-06 | G95: =IF(Calcoli!$B$13>=3,(Calcoli!$B$9*Calcoli!$B$10*Calcoli!$B$11*B95^(Calcoli!$B$13-3))/D95,NA()) ->  | H95: =IF(Calcoli!$B$13=3,(E95+F95*2+G95*3),IF(Calcoli!$B$13=2,(E95+F95*2),E95)) -> 0.5883339495 | I95: 0.5091334977 | J95: =(B95-(Calcoli!$B$8/B95))/'Acido - Base forte'!$F$1 -> 0.05248074601 | K95: =(B95-(Calcoli!$B$8/B95))/'Acido - Base forte'!$F$2 -> 0.05248074601
A96: =IF((I96*'Acido - Base forte'!$F$3*'Acido - Base forte'!$F$1)/'Acido - Base forte'!$F$2>0,IF((I96*'Acido - Base forte'!$F$3*'Acido - Base forte'!$F$1)/'Acido - Base forte'!$F$2<1.8*Calcoli!$B$13*('Acido - Base forte'!$F$1*'Acido - Base forte'!$F$3/'Acido - Base forte'!$F$2),I96*'Acido - Base forte'!$F$3*'Acido - Base forte'!$F$1/'Acido - Base forte'!$F$2,NA()),NA()) -> 13.07762443 | B96: 0.005011872336 | C96: 2.3 | D96: =IF(Calcoli!$B$13=3,B96^Calcoli!$B$13+Calcoli!$B$9*B96^2+Calcoli!$B$9*Calcoli!$B$10*B96+Calcoli!$B$9*Calcoli!$B$10*Calcoli!$B$11,IF(Calcoli!$B$13=2,B96^Calcoli!$B$13+Calcoli!$B$9*B96+Calcoli!$B$9*Calcoli!$B$10,B96^Calcoli!$B$13+Calcoli!$B$9)) -> 6.270837184e-05 | E96: =(Calcoli!$B$9*B96^(Calcoli!$B$13-1))/D96 -> 0.5994262237 | F96: =IF(Calcoli!$B$13>=2, (Calcoli!$B$9*Calcoli!$B$10*B96^(Calcoli!$B$13-2))/D96,NA()) -> 7.415277839e-06 | G96: =IF(Calcoli!$B$13>=3,(Calcoli!$B$9*Calcoli!$B$10*Calcoli!$B$11*B96^(Calcoli!$B$13-3))/D96,NA()) ->  | H96: =IF(Calcoli!$B$13=3,(E96+F96*2+G96*3),IF(Calcoli!$B$13=2,(E96+F96*2),E96)) -> 0.5994410542 | I96: 0.5231049772 | J96: =(B96-(Calcoli!$B$8/B96))/'Acido - Base forte'!$F$1 -> 0.05011872334 | K96: =(B96-(Calcoli!$B$8/B96))/'Acido - Base forte'!$F$2 -> 0.05011872334
A97: =IF((I97*'Acido - Base forte'!$F$3*'Acido - Base forte'!$F$1)/'Acido - Base forte'!$F$2>0,IF((I97*'Acido - Base forte'!$F$3*'Acido - Base forte'!$F$1)/'Acido - Base forte'!$F$2<1.8*Calcoli!$B$13*('Acido - Base forte'!$F$1*'Acido - Base forte'!$F$3/'Acido - Base forte'!$F$2),I97*'Acido - Base forte'!$F$3*'Acido - Base forte'!$F$1/'Acido - Base forte'!$F$2,NA()),NA()) -> 13.42217307 | B97: 0.004786300923 | C97: =C96+0.02 -> 2.32 | D97: =IF(Calcoli!$B$13=3,B97^Calcoli!$B$13+Calcoli!$B$9*B97^2+Calcoli!$B$9*Calcoli!$B$10*B97+Calcoli!$B$9*Calcoli!$B$10*Calcoli!$B$11,IF(Calcoli!$B$13=2,B97^Calcoli!$B$13+Calcoli!$B$9*B97+Calcoli!$B$9*Calcoli!$B$10,B97^Calcoli!$B$13+Calcoli!$B$9)) -> 5.880639845e-05 | E97: =(Calcoli!$B$9*B97^(Calcoli!$B$13-1))/D97 -> 0.6104311413 | F97: =IF(Calcoli!$B$13>=2, (Calcoli!$B$9*Calcoli!$B$10*B97^(Calcoli!$B$13-2))/D97,NA()) -> 7.907302815e-06 | G97: =IF(Calcoli!$B$13>=3,(Calcoli!$B$9*Calcoli!$B$10*Calcoli!$B$11*B97^(Calcoli!$B$13-3))/D97,NA()) ->  | H97: =IF(Calcoli!$B$13=3,(E97+F97*2+G97*3),IF(Calcoli!$B$13=2,(E97+F97*2),E97)) -> 0.6104469559 | I97: 0.536886923 | J97: =(B97-(Calcoli!$B$8/B97))/'Acido - Base forte'!$F$1 -> 0.04786300921 | K97: =(B97-(Calcoli!$B$8/B97))/'Acido - Base forte'!$F$2 -> 0.04786300921
A98: =IF((I98*'Acido - Base forte'!$F$3*'Acido - Base forte'!$F$1)/'Acido - Base forte'!$F$2>0,IF((I98*'Acido - Base forte'!$F$3*'Acido - Base forte'!$F$1)/'Acido - Base forte'!$F$2<1.8*Calcoli!$B$13*('Acido - Base forte'!$F$1*'Acido - Base forte'!$F$3/'Acido - Base forte'!$F$2),I98*'Acido - Base forte'!$F$3*'Acido - Base forte'!$F$1/'Acido - Base forte'!$F$2,NA()),NA()) -> 13.76178298 | B98: 0.004570881896 | C98: 2.34 | D98: =IF(Calcoli!$B$13=3,B98^Calcoli!$B$13+Calcoli!$B$9*B98^2+Calcoli!$B$9*Calcoli!$B$10*B98+Calcoli!$B$9*Calcoli!$B$10*Calcoli!$B$11,IF(Calcoli!$B$13=2,B98^Calcoli!$B$13+Calcoli!$B$9*B98+Calcoli!$B$9*Calcoli!$B$10,B98^Calcoli!$B$13+Calcoli!$B$9)) -> 5.517504053e-05 | E98: =(Calcoli!$B$9*B98^(Calcoli!$B$13-1))/D98 -> 0.6213246767 | F98: =IF(Calcoli!$B$13>=2, (Calcoli!$B$9*Calcoli!$B$10*B98^(Calcoli!$B$13-2))/D98,NA()) -> 8.427723759e-06 | G98: =IF(Calcoli!$B$13>=3,(Calcoli!$B$9*Calcoli!$B$10*Calcoli!$B$11*B98^(Calcoli!$B$13-3))/D98,NA()) ->  | H98: =IF(Calcoli!$B$13=3,(E98+F98*2+G98*3),IF(Calcoli!$B$13=2,(E98+F98*2),E98)) -> 0.6213415322 | I98: 0.5504713194 | J98: =(B98-(Calcoli!$B$8/B98))/'Acido - Base forte'!$F$1 -> 0.04570881894 | K98: =(B98-(Calcoli!$B$8/B98))/'Acido - Base forte'!$F$2 -> 0.04570881894
A99: =IF((I99*'Acido - Base forte'!$F$3*'Acido - Base forte'!$F$1)/'Acido - Base forte'!$F$2>0,IF((I99*'Acido - Base forte'!$F$3*'Acido - Base forte'!$F$1)/'Acido - Base forte'!$F$2<1.8*Calcoli!$B$13*('Acido - Base forte'!$F$1*'Acido - Base forte'!$F$3/'Acido - Base forte'!$F$2),I99*'Acido - Base forte'!$F$3*'Acido - Base forte'!$F$1/'Acido - Base forte'!$F$2,NA()),NA()) -> 14.09626364 | B99: 0.004365158322 | C99: 2.36 | D99: =IF(Calcoli!$B$13=3,B99^Calcoli!$B$13+Calcoli!$B$9*B99^2+Calcoli!$B$9*Calcoli!$B$10*B99+Calcoli!$B$9*Calcoli!$B$10*Calcoli!$B$11,IF(Calcoli!$B$13=2,B99^Calcoli!$B$13+Calcoli!$B$9*B99+Calcoli!$B$9*Calcoli!$B$10,B99^Calcoli!$B$13+Calcoli!$B$9)) -> 5.17937596e-05 | E99: =(Calcoli!$B$9*B99^(Calcoli!$B$13-1))/D99 -> 0.6320971421 | F99: =IF(Calcoli!$B$13>=2, (Calcoli!$B$9*Calcoli!$B$10*B99^(Calcoli!$B$13-2))/D99,NA()) -> 8.977915556e-06 | G99: =IF(Calcoli!$B$13>=3,(Calcoli!$B$9*Calcoli!$B$10*Calcoli!$B$11*B99^(Calcoli!$B$13-3))/D99,NA()) ->  | H99: =IF(Calcoli!$B$13=3,(E99+F99*2+G99*3),IF(Calcoli!$B$13=2,(E99+F99*2),E99)) -> 0.6321150979 | I99: 0.5638505457 | J99: =(B99-(Calcoli!$B$8/B99))/'Acido - Base forte'!$F$1 -> 0.0436515832 | K99: =(B99-(Calcoli!$B$8/B99))/'Acido - Base forte'!$F$2 -> 0.0436515832
A100: =IF((I100*'Acido - Base forte'!$F$3*'Acido - Base forte'!$F$1)/'Acido - Base forte'!$F$2>0,IF((I100*'Acido - Base forte'!$F$3*'Acido - Base forte'!$F$1)/'Acido - Base forte'!$F$2<1.8*Calcoli!$B$13*('Acido - Base forte'!$F$1*'Acido - Base forte'!$F$3/'Acido - Base forte'!$F$2),I100*'Acido - Base forte'!$F$3*'Acido - Base forte'!$F$1/'Acido - Base forte'!$F$2,NA()),NA()) -> 14.4254352 | B100: 0.004168693835 | C100: 2.38 | D100: =IF(Calcoli!$B$13=3,B100^Calcoli!$B$13+Calcoli!$B$9*B100^2+Calcoli!$B$9*Calcoli!$B$10*B100+Calcoli!$B$9*Calcoli!$B$10*Calcoli!$B$11,IF(Calcoli!$B$13=2,B100^Calcoli!$B$13+Calcoli!$B$9*B100+Calcoli!$B$9*Calcoli!$B$10,B100^Calcoli!$B$13+Calcoli!$B$9)) -> 4.864367705e-05 | E100: =(Calcoli!$B$9*B100^(Calcoli!$B$13-1))/D100 -> 0.642739317 | F100: =IF(Calcoli!$B$13>=2, (Calcoli!$B$9*Calcoli!$B$10*B100^(Calcoli!$B$13-2))/D100,NA()) -> 9.559310238e-06 | G100: =IF(Calcoli!$B$13>=3,(Calcoli!$B$9*Calcoli!$B$10*Calcoli!$B$11*B100^(Calcoli!$B$13-3))/D100,NA()) ->  | H100: =IF(Calcoli!$B$13=3,(E100+F100*2+G100*3),IF(Calcoli!$B$13=2,(E100+F100*2),E100)) -> 0.6427584356 | I100: 0.5770174082 | J100: =(B100-(Calcoli!$B$8/B100))/'Acido - Base forte'!$F$1 -> 0.04168693832 | K100: =(B100-(Calcoli!$B$8/B100))/'Acido - Base forte'!$F$2 -> 0.04168693832
A101: =IF((I101*'Acido - Base forte'!$F$3*'Acido - Base forte'!$F$1)/'Acido - Base forte'!$F$2>0,IF((I101*'Acido - Base forte'!$F$3*'Acido - Base forte'!$F$1)/'Acido - Base forte'!$F$2<1.8*Calcoli!$B$13*('Acido - Base forte'!$F$1*'Acido - Base forte'!$F$3/'Acido - Base forte'!$F$2),I101*'Acido - Base forte'!$F$3*'Acido - Base forte'!$F$1/'Acido - Base forte'!$F$2,NA()),NA()) -> 14.74912922 | B101: 0.003981071706 | C101: 2.4 | D101: =IF(Calcoli!$B$13=3,B101^Calcoli!$B$13+Calcoli!$B$9*B101^2+Calcoli!$B$9*Calcoli!$B$10*B101+Calcoli!$B$9*Calcoli!$B$10*Calcoli!$B$11,IF(Calcoli!$B$13=2,B101^Calcoli!$B$13+Calcoli!$B$9*B101+Calcoli!$B$9*Calcoli!$B$10,B101^Calcoli!$B$13+Calcoli!$B$9)) -> 4.570743472e-05 | E101: =(Calcoli!$B$9*B101^(Calcoli!$B$13-1))/D101 -> 0.6532424753 | F101: =IF(Calcoli!$B$13>=2, (Calcoli!$B$9*Calcoli!$B$10*B101^(Calcoli!$B$13-2))/D101,NA()) -> 1.017339964e-05 | G101: =IF(Calcoli!$B$13>=3,(Calcoli!$B$9*Calcoli!$B$10*Calcoli!$B$11*B101^(Calcoli!$B$13-3))/D101,NA()) ->  | H101: =IF(Calcoli!$B$13=3,(E101+F101*2+G101*3),IF(Calcoli!$B$13=2,(E101+F101*2),E101)) -> 0.6532628221 | I101: 0.5899651686 | J101: =(B101-(Calcoli!$B$8/B101))/'Acido - Base forte'!$F$1 -> 0.03981071703 | K101: =(B101-(Calcoli!$B$8/B101))/'Acido - Base forte'!$F$2 -> 0.03981071703
A102: =IF((I102*'Acido - Base forte'!$F$3*'Acido - Base forte'!$F$1)/'Acido - Base forte'!$F$2>0,IF((I102*'Acido - Base forte'!$F$3*'Acido - Base forte'!$F$1)/'Acido - Base forte'!$F$2<1.8*Calcoli!$B$13*('Acido - Base forte'!$F$1*'Acido - Base forte'!$F$3/'Acido - Base forte'!$F$2),I102*'Acido - Base forte'!$F$3*'Acido - Base forte'!$F$1/'Acido - Base forte'!$F$2,NA()),NA()) -> 15.06718923 | B102: 0.003801893963 | C102: 2.42 | D102: =IF(Calcoli!$B$13=3,B102^Calcoli!$B$13+Calcoli!$B$9*B102^2+Calcoli!$B$9*Calcoli!$B$10*B102+Calcoli!$B$9*Calcoli!$B$10*Calcoli!$B$11,IF(Calcoli!$B$13=2,B102^Calcoli!$B$13+Calcoli!$B$9*B102+Calcoli!$B$9*Calcoli!$B$10,B102^Calcoli!$B$13+Calcoli!$B$9)) -> 4.296906743e-05 | E102: =(Calcoli!$B$9*B102^(Calcoli!$B$13-1))/D102 -> 0.6635984076 | F102: =IF(Calcoli!$B$13>=2, (Calcoli!$B$9*Calcoli!$B$10*B102^(Calcoli!$B$13-2))/D102,NA()) -> 1.082173824e-05 | G102: =IF(Calcoli!$B$13>=3,(Calcoli!$B$9*Calcoli!$B$10*Calcoli!$B$11*B102^(Calcoli!$B$13-3))/D102,NA()) ->  | H102: =IF(Calcoli!$B$13=3,(E102+F102*2+G102*3),IF(Calcoli!$B$13=2,(E102+F102*2),E102)) -> 0.6636200511 | I102: 0.6026875692 | J102: =(B102-(Calcoli!$B$8/B102))/'Acido - Base forte'!$F$1 -> 0.03801893961 | K102: =(B102-(Calcoli!$B$8/B102))/'Acido - Base forte'!$F$2 -> 0.03801893961
A103: =IF((I103*'Acido - Base forte'!$F$3*'Acido - Base forte'!$F$1)/'Acido - Base forte'!$F$2>0,IF((I103*'Acido - Base forte'!$F$3*'Acido - Base forte'!$F$1)/'Acido - Base forte'!$F$2<1.8*Calcoli!$B$13*('Acido - Base forte'!$F$1*'Acido - Base forte'!$F$3/'Acido - Base forte'!$F$2),I103*'Acido - Base forte'!$F$3*'Acido - Base forte'!$F$1/'Acido - Base forte'!$F$2,NA()),NA()) -> 15.37947132 | B103: 0.003630780548 | C103: 2.44 | D103: =IF(Calcoli!$B$13=3,B103^Calcoli!$B$13+Calcoli!$B$9*B103^2+Calcoli!$B$9*Calcoli!$B$10*B103+Calcoli!$B$9*Calcoli!$B$10*Calcoli!$B$11,IF(Calcoli!$B$13=2,B103^Calcoli!$B$13+Calcoli!$B$9*B103+Calcoli!$B$9*Calcoli!$B$10,B103^Calcoli!$B$13+Calcoli!$B$9)) -> 4.041388649e-05 | E103: =(Calcoli!$B$9*B103^(Calcoli!$B$13-1))/D103 -> 0.6737994405 | F103: =IF(Calcoli!$B$13>=2, (Calcoli!$B$9*Calcoli!$B$10*B103^(Calcoli!$B$13-2))/D103,NA()) -> 1.150594611e-05 | G103: =IF(Calcoli!$B$13>=3,(Calcoli!$B$9*Calcoli!$B$10*Calcoli!$B$11*B103^(Calcoli!$B$13-3))/D103,NA()) ->  | H103: =IF(Calcoli!$B$13=3,(E103+F103*2+G103*3),IF(Calcoli!$B$13=2,(E103+F103*2),E103)) -> 0.6738224524 | I103: 0.6151788528 | J103: =(B103-(Calcoli!$B$8/B103))/'Acido - Base forte'!$F$1 -> 0.03630780545 | K103: =(B103-(Calcoli!$B$8/B103))/'Acido - Base forte'!$F$2 -> 0.03630780545
A104: =IF((I104*'Acido - Base forte'!$F$3*'Acido - Base forte'!$F$1)/'Acido - Base forte'!$F$2>0,IF((I104*'Acido - Base forte'!$F$3*'Acido - Base forte'!$F$1)/'Acido - Base forte'!$F$2<1.8*Calcoli!$B$13*('Acido - Base forte'!$F$1*'Acido - Base forte'!$F$3/'Acido - Base forte'!$F$2),I104*'Acido - Base forte'!$F$3*'Acido - Base forte'!$F$1/'Acido - Base forte'!$F$2,NA()),NA()) -> 15.68584451 | B104: 0.003467368505 | C104: 2.46 | D104: =IF(Calcoli!$B$13=3,B104^Calcoli!$B$13+Calcoli!$B$9*B104^2+Calcoli!$B$9*Calcoli!$B$10*B104+Calcoli!$B$9*Calcoli!$B$10*Calcoli!$B$11,IF(Calcoli!$B$13=2,B104^Calcoli!$B$13+Calcoli!$B$9*B104+Calcoli!$B$9*Calcoli!$B$10,B104^Calcoli!$B$13+Calcoli!$B$9)) -> 3.802837313e-05 | E104: =(Calcoli!$B$9*B104^(Calcoli!$B$13-1))/D104 -> 0.6838384512 | F104: =IF(Calcoli!$B$13>=2, (Calcoli!$B$9*Calcoli!$B$10*B104^(Calcoli!$B$13-2))/D104,NA()) -> 1.222771215e-05 | G104: =IF(Calcoli!$B$13>=3,(Calcoli!$B$9*Calcoli!$B$10*Calcoli!$B$11*B104^(Calcoli!$B$13-3))/D104,NA()) ->  | H104: =IF(Calcoli!$B$13=3,(E104+F104*2+G104*3),IF(Calcoli!$B$13=2,(E104+F104*2),E104)) -> 0.6838629067 | I104: 0.6274337804 | J104: =(B104-(Calcoli!$B$8/B104))/'Acido - Base forte'!$F$1 -> 0.03467368502 | K104: =(B104-(Calcoli!$B$8/B104))/'Acido - Base forte'!$F$2 -> 0.03467368502
A105: =IF((I105*'Acido - Base forte'!$F$3*'Acido - Base forte'!$F$1)/'Acido - Base forte'!$F$2>0,IF((I105*'Acido - Base forte'!$F$3*'Acido - Base forte'!$F$1)/'Acido - Base forte'!$F$2<1.8*Calcoli!$B$13*('Acido - Base forte'!$F$1*'Acido - Base forte'!$F$3/'Acido - Base forte'!$F$2),I105*'Acido - Base forte'!$F$3*'Acido - Base forte'!$F$1/'Acido - Base forte'!$F$2,NA()),NA()) -> 15.98619108 | B105: 0.003311311215 | C105: 2.48 | D105: =IF(Calcoli!$B$13=3,B105^Calcoli!$B$13+Calcoli!$B$9*B105^2+Calcoli!$B$9*Calcoli!$B$10*B105+Calcoli!$B$9*Calcoli!$B$10*Calcoli!$B$11,IF(Calcoli!$B$13=2,B105^Calcoli!$B$13+Calcoli!$B$9*B105+Calcoli!$B$9*Calcoli!$B$10,B105^Calcoli!$B$13+Calcoli!$B$9)) -> 3.580008107e-05 | E105: =(Calcoli!$B$9*B105^(Calcoli!$B$13-1))/D105 -> 0.6937088791 | F105: =IF(Calcoli!$B$13>=2, (Calcoli!$B$9*Calcoli!$B$10*B105^(Calcoli!$B$13-2))/D105,NA()) -> 1.29887974e-05 | G105: =IF(Calcoli!$B$13>=3,(Calcoli!$B$9*Calcoli!$B$10*Calcoli!$B$11*B105^(Calcoli!$B$13-3))/D105,NA()) ->  | H105: =IF(Calcoli!$B$13=3,(E105+F105*2+G105*3),IF(Calcoli!$B$13=2,(E105+F105*2),E105)) -> 0.6937348567 | I105: 0.639447643 | J105: =(B105-(Calcoli!$B$8/B105))/'Acido - Base forte'!$F$1 -> 0.03311311212 | K105: =(B105-(Calcoli!$B$8/B105))/'Acido - Base forte'!$F$2 -> 0.03311311212
A106: =IF((I106*'Acido - Base forte'!$F$3*'Acido - Base forte'!$F$1)/'Acido - Base forte'!$F$2>0,IF((I106*'Acido - Base forte'!$F$3*'Acido - Base forte'!$F$1)/'Acido - Base forte'!$F$2<1.8*Calcoli!$B$13*('Acido - Base forte'!$F$1*'Acido - Base forte'!$F$3/'Acido - Base forte'!$F$2),I106*'Acido - Base forte'!$F$3*'Acido - Base forte'!$F$1/'Acido - Base forte'!$F$2,NA()),NA()) -> 16.28040679 | B106: 0.00316227766 | C106: 2.5 | D106: =IF(Calcoli!$B$13=3,B106^Calcoli!$B$13+Calcoli!$B$9*B106^2+Calcoli!$B$9*Calcoli!$B$10*B106+Calcoli!$B$9*Calcoli!$B$10*Calcoli!$B$11,IF(Calcoli!$B$13=2,B106^Calcoli!$B$13+Calcoli!$B$9*B106+Calcoli!$B$9*Calcoli!$B$10,B106^Calcoli!$B$13+Calcoli!$B$9)) -> 3.371754745e-05 | E106: =(Calcoli!$B$9*B106^(Calcoli!$B$13-1))/D106 -> 0.7034047327 | F106: =IF(Calcoli!$B$13>=2, (Calcoli!$B$9*Calcoli!$B$10*B106^(Calcoli!$B$13-2))/D106,NA()) -> 1.379103865e-05 | G106: =IF(Calcoli!$B$13>=3,(Calcoli!$B$9*Calcoli!$B$10*Calcoli!$B$11*B106^(Calcoli!$B$13-3))/D106,NA()) ->  | H106: =IF(Calcoli!$B$13=3,(E106+F106*2+G106*3),IF(Calcoli!$B$13=2,(E106+F106*2),E106)) -> 0.7034323147 | I106: 0.6512162715 | J106: =(B106-(Calcoli!$B$8/B106))/'Acido - Base forte'!$F$1 -> 0.03162277657 | K106: =(B106-(Calcoli!$B$8/B106))/'Acido - Base forte'!$F$2 -> 0.03162277657
A107: =IF((I107*'Acido - Base forte'!$F$3*'Acido - Base forte'!$F$1)/'Acido - Base forte'!$F$2>0,IF((I107*'Acido - Base forte'!$F$3*'Acido - Base forte'!$F$1)/'Acido - Base forte'!$F$2<1.8*Calcoli!$B$13*('Acido - Base forte'!$F$1*'Acido - Base forte'!$F$3/'Acido - Base forte'!$F$2),I107*'Acido - Base forte'!$F$3*'Acido - Base forte'!$F$1/'Acido - Base forte'!$F$2,NA()),NA()) -> 16.56840102 | B107: 0.00301995172 | C107: 2.52 | D107: =IF(Calcoli!$B$13=3,B107^Calcoli!$B$13+Calcoli!$B$9*B107^2+Calcoli!$B$9*Calcoli!$B$10*B107+Calcoli!$B$9*Calcoli!$B$10*Calcoli!$B$11,IF(Calcoli!$B$13=2,B107^Calcoli!$B$13+Calcoli!$B$9*B107+Calcoli!$B$9*Calcoli!$B$10,B107^Calcoli!$B$13+Calcoli!$B$9)) -> 3.17702113e-05 | E107: =(Calcoli!$B$9*B107^(Calcoli!$B$13-1))/D107 -> 0.7129205938 | F107: =IF(Calcoli!$B$13>=2, (Calcoli!$B$9*Calcoli!$B$10*B107^(Calcoli!$B$13-2))/D107,NA()) -> 1.463635214e-05 | G107: =IF(Calcoli!$B$13>=3,(Calcoli!$B$9*Calcoli!$B$10*Calcoli!$B$11*B107^(Calcoli!$B$13-3))/D107,NA()) ->  | H107: =IF(Calcoli!$B$13=3,(E107+F107*2+G107*3),IF(Calcoli!$B$13=2,(E107+F107*2),E107)) -> 0.7129498665 | I107: 0.6627360409 | J107: =(B107-(Calcoli!$B$8/B107))/'Acido - Base forte'!$F$1 -> 0.03019951717 | K107: =(B107-(Calcoli!$B$8/B107))/'Acido - Base forte'!$F$2 -> 0.03019951717
A108: =IF((I108*'Acido - Base forte'!$F$3*'Acido - Base forte'!$F$1)/'Acido - Base forte'!$F$2>0,IF((I108*'Acido - Base forte'!$F$3*'Acido - Base forte'!$F$1)/'Acido - Base forte'!$F$2<1.8*Calcoli!$B$13*('Acido - Base forte'!$F$1*'Acido - Base forte'!$F$3/'Acido - Base forte'!$F$2),I108*'Acido - Base forte'!$F$3*'Acido - Base forte'!$F$1/'Acido - Base forte'!$F$2,NA()),NA()) -> 16.8500968 | B108: 0.002884031503 | C108: 2.54 | D108: =IF(Calcoli!$B$13=3,B108^Calcoli!$B$13+Calcoli!$B$9*B108^2+Calcoli!$B$9*Calcoli!$B$10*B108+Calcoli!$B$9*Calcoli!$B$10*Calcoli!$B$11,IF(Calcoli!$B$13=2,B108^Calcoli!$B$13+Calcoli!$B$9*B108+Calcoli!$B$9*Calcoli!$B$10,B108^Calcoli!$B$13+Calcoli!$B$9)) -> 2.994833898e-05 | E108: =(Calcoli!$B$9*B108^(Calcoli!$B$13-1))/D108 -> 0.7222516175 | F108: =IF(Calcoli!$B$13>=2, (Calcoli!$B$9*Calcoli!$B$10*B108^(Calcoli!$B$13-2))/D108,NA()) -> 1.552673757e-05 | G108: =IF(Calcoli!$B$13>=3,(Calcoli!$B$9*Calcoli!$B$10*Calcoli!$B$11*B108^(Calcoli!$B$13-3))/D108,NA()) ->  | H108: =IF(Calcoli!$B$13=3,(E108+F108*2+G108*3),IF(Calcoli!$B$13=2,(E108+F108*2),E108)) -> 0.722282671 | I108: 0.674003872 | J108: =(B108-(Calcoli!$B$8/B108))/'Acido - Base forte'!$F$1 -> 0.028840315 | K108: =(B108-(Calcoli!$B$8/B108))/'Acido - Base forte'!$F$2 -> 0.028840315
A109: =IF((I109*'Acido - Base forte'!$F$3*'Acido - Base forte'!$F$1)/'Acido - Base forte'!$F$2>0,IF((I109*'Acido - Base forte'!$F$3*'Acido - Base forte'!$F$1)/'Acido - Base forte'!$F$2<1.8*Calcoli!$B$13*('Acido - Base forte'!$F$1*'Acido - Base forte'!$F$3/'Acido - Base forte'!$F$2),I109*'Acido - Base forte'!$F$3*'Acido - Base forte'!$F$1/'Acido - Base forte'!$F$2,NA()),NA()) -> 17.12543073 | B109: 0.002754228703 | C109: 2.56 | D109: =IF(Calcoli!$B$13=3,B109^Calcoli!$B$13+Calcoli!$B$9*B109^2+Calcoli!$B$9*Calcoli!$B$10*B109+Calcoli!$B$9*Calcoli!$B$10*Calcoli!$B$11,IF(Calcoli!$B$13=2,B109^Calcoli!$B$13+Calcoli!$B$9*B109+Calcoli!$B$9*Calcoli!$B$10,B109^Calcoli!$B$13+Calcoli!$B$9)) -> 2.824295603e-05 | E109: =(Calcoli!$B$9*B109^(Calcoli!$B$13-1))/D109 -> 0.7313935289 | F109: =IF(Calcoli!$B$13>=2, (Calcoli!$B$9*Calcoli!$B$10*B109^(Calcoli!$B$13-2))/D109,NA()) -> 1.646428227e-05 | G109: =IF(Calcoli!$B$13>=3,(Calcoli!$B$9*Calcoli!$B$10*Calcoli!$B$11*B109^(Calcoli!$B$13-3))/D109,NA()) ->  | H109: =IF(Calcoli!$B$13=3,(E109+F109*2+G109*3),IF(Calcoli!$B$13=2,(E109+F109*2),E109)) -> 0.7314264575 | I109: 0.6850172294 | J109: =(B109-(Calcoli!$B$8/B109))/'Acido - Base forte'!$F$1 -> 0.027542287 | K109: =(B109-(Calcoli!$B$8/B109))/'Acido - Base forte'!$F$2 -> 0.027542287
A110: =IF((I110*'Acido - Base forte'!$F$3*'Acido - Base forte'!$F$1)/'Acido - Base forte'!$F$2>0,IF((I110*'Acido - Base forte'!$F$3*'Acido - Base forte'!$F$1)/'Acido - Base forte'!$F$2<1.8*Calcoli!$B$13*('Acido - Base forte'!$F$1*'Acido - Base forte'!$F$3/'Acido - Base forte'!$F$2),I110*'Acido - Base forte'!$F$3*'Acido - Base forte'!$F$1/'Acido - Base forte'!$F$2,NA()),NA()) -> 17.39435289 | B110: 0.002630267992 | C110: 2.58 | D110: =IF(Calcoli!$B$13=3,B110^Calcoli!$B$13+Calcoli!$B$9*B110^2+Calcoli!$B$9*Calcoli!$B$10*B110+Calcoli!$B$9*Calcoli!$B$10*Calcoli!$B$11,IF(Calcoli!$B$13=2,B110^Calcoli!$B$13+Calcoli!$B$9*B110+Calcoli!$B$9*Calcoli!$B$10,B110^Calcoli!$B$13+Calcoli!$B$9)) -> 2.664578465e-05 | E110: =(Calcoli!$B$9*B110^(Calcoli!$B$13-1))/D110 -> 0.740342617 | F110: =IF(Calcoli!$B$13>=2, (Calcoli!$B$9*Calcoli!$B$10*B110^(Calcoli!$B$13-2))/D110,NA()) -> 1.745116558e-05 | G110: =IF(Calcoli!$B$13>=3,(Calcoli!$B$9*Calcoli!$B$10*Calcoli!$B$11*B110^(Calcoli!$B$13-3))/D110,NA()) ->  | H110: =IF(Calcoli!$B$13=3,(E110+F110*2+G110*3),IF(Calcoli!$B$13=2,(E110+F110*2),E110)) -> 0.7403775194 | I110: 0.6957741156 | J110: =(B110-(Calcoli!$B$8/B110))/'Acido - Base forte'!$F$1 -> 0.02630267988 | K110: =(B110-(Calcoli!$B$8/B110))/'Acido - Base forte'!$F$2 -> 0.02630267988
A111: =IF((I111*'Acido - Base forte'!$F$3*'Acido - Base forte'!$F$1)/'Acido - Base forte'!$F$2>0,IF((I111*'Acido - Base forte'!$F$3*'Acido - Base forte'!$F$1)/'Acido - Base forte'!$F$2<1.8*Calcoli!$B$13*('Acido - Base forte'!$F$1*'Acido - Base forte'!$F$3/'Acido - Base forte'!$F$2),I111*'Acido - Base forte'!$F$3*'Acido - Base forte'!$F$1/'Acido - Base forte'!$F$2,NA()),NA()) -> 17.65682658 | B111: 0.002511886432 | C111: 2.6 | D111: =IF(Calcoli!$B$13=3,B111^Calcoli!$B$13+Calcoli!$B$9*B111^2+Calcoli!$B$9*Calcoli!$B$10*B111+Calcoli!$B$9*Calcoli!$B$10*Calcoli!$B$11,IF(Calcoli!$B$13=2,B111^Calcoli!$B$13+Calcoli!$B$9*B111+Calcoli!$B$9*Calcoli!$B$10,B111^Calcoli!$B$13+Calcoli!$B$9)) -> 2.514918668e-05 | E111: =(Calcoli!$B$9*B111^(Calcoli!$B$13-1))/D111 -> 0.7490957252 | F111: =IF(Calcoli!$B$13>=2, (Calcoli!$B$9*Calcoli!$B$10*B111^(Calcoli!$B$13-2))/D111,NA()) -> 1.848966354e-05 | G111: =IF(Calcoli!$B$13>=3,(Calcoli!$B$9*Calcoli!$B$10*Calcoli!$B$11*B111^(Calcoli!$B$13-3))/D111,NA()) ->  | H111: =IF(Calcoli!$B$13=3,(E111+F111*2+G111*3),IF(Calcoli!$B$13=2,(E111+F111*2),E111)) -> 0.7491327046 | I111: 0.7062730631 | J111: =(B111-(Calcoli!$B$8/B111))/'Acido - Base forte'!$F$1 -> 0.02511886428 | K111: =(B111-(Calcoli!$B$8/B111))/'Acido - Base forte'!$F$2 -> 0.02511886428
A112: =IF((I112*'Acido - Base forte'!$F$3*'Acido - Base forte'!$F$1)/'Acido - Base forte'!$F$2>0,IF((I112*'Acido - Base forte'!$F$3*'Acido - Base forte'!$F$1)/'Acido - Base forte'!$F$2<1.8*Calcoli!$B$13*('Acido - Base forte'!$F$1*'Acido - Base forte'!$F$3/'Acido - Base forte'!$F$2),I112*'Acido - Base forte'!$F$3*'Acido - Base forte'!$F$1/'Acido - Base forte'!$F$2,NA()),NA()) -> 17.91282806 | B112: 0.002398832919 | C112: 2.62 | D112: =IF(Calcoli!$B$13=3,B112^Calcoli!$B$13+Calcoli!$B$9*B112^2+Calcoli!$B$9*Calcoli!$B$10*B112+Calcoli!$B$9*Calcoli!$B$10*Calcoli!$B$11,IF(Calcoli!$B$13=2,B112^Calcoli!$B$13+Calcoli!$B$9*B112+Calcoli!$B$9*Calcoli!$B$10,B112^Calcoli!$B$13+Calcoli!$B$9)) -> 2.374611127e-05 | E112: =(Calcoli!$B$9*B112^(Calcoli!$B$13-1))/D112 -> 0.7576502397 | F112: =IF(Calcoli!$B$13>=2, (Calcoli!$B$9*Calcoli!$B$10*B112^(Calcoli!$B$13-2))/D112,NA()) -> 1.958215368e-05 | G112: =IF(Calcoli!$B$13>=3,(Calcoli!$B$9*Calcoli!$B$10*Calcoli!$B$11*B112^(Calcoli!$B$13-3))/D112,NA()) ->  | H112: =IF(Calcoli!$B$13=3,(E112+F112*2+G112*3),IF(Calcoli!$B$13=2,(E112+F112*2),E112)) -> 0.757689404 | I112: 0.7165131222 | J112: =(B112-(Calcoli!$B$8/B112))/'Acido - Base forte'!$F$1 -> 0.02398832915 | K112: =(B112-(Calcoli!$B$8/B112))/'Acido - Base forte'!$F$2 -> 0.02398832915
A113: =IF((I113*'Acido - Base forte'!$F$3*'Acido - Base forte'!$F$1)/'Acido - Base forte'!$F$2>0,IF((I113*'Acido - Base forte'!$F$3*'Acido - Base forte'!$F$1)/'Acido - Base forte'!$F$2<1.8*Calcoli!$B$13*('Acido - Base forte'!$F$1*'Acido - Base forte'!$F$3/'Acido - Base forte'!$F$2),I113*'Acido - Base forte'!$F$3*'Acido - Base forte'!$F$1/'Acido - Base forte'!$F$2,NA()),NA()) -> 18.1623462 | B113: 0.002290867653 | C113: 2.64 | D113: =IF(Calcoli!$B$13=3,B113^Calcoli!$B$13+Calcoli!$B$9*B113^2+Calcoli!$B$9*Calcoli!$B$10*B113+Calcoli!$B$9*Calcoli!$B$10*Calcoli!$B$11,IF(Calcoli!$B$13=2,B113^Calcoli!$B$13+Calcoli!$B$9*B113+Calcoli!$B$9*Calcoli!$B$10,B113^Calcoli!$B$13+Calcoli!$B$9)) -> 2.2430047e-05 | E113: =(Calcoli!$B$9*B113^(Calcoli!$B$13-1))/D113 -> 0.7660040747 | F113: =IF(Calcoli!$B$13>=2, (Calcoli!$B$9*Calcoli!$B$10*B113^(Calcoli!$B$13-2))/D113,NA()) -> 2.073112018e-05 | G113: =IF(Calcoli!$B$13>=3,(Calcoli!$B$9*Calcoli!$B$10*Calcoli!$B$11*B113^(Calcoli!$B$13-3))/D113,NA()) ->  | H113: =IF(Calcoli!$B$13=3,(E113+F113*2+G113*3),IF(Calcoli!$B$13=2,(E113+F113*2),E113)) -> 0.7660455369 | I113: 0.7264938479 | J113: =(B113-(Calcoli!$B$8/B113))/'Acido - Base forte'!$F$1 -> 0.02290867648 | K113: =(B113-(Calcoli!$B$8/B113))/'Acido - Base forte'!$F$2 -> 0.02290867648
A114: =IF((I114*'Acido - Base forte'!$F$3*'Acido - Base forte'!$F$1)/'Acido - Base forte'!$F$2>0,IF((I114*'Acido - Base forte'!$F$3*'Acido - Base forte'!$F$1)/'Acido - Base forte'!$F$2<1.8*Calcoli!$B$13*('Acido - Base forte'!$F$1*'Acido - Base forte'!$F$3/'Acido - Base forte'!$F$2),I114*'Acido - Base forte'!$F$3*'Acido - Base forte'!$F$1/'Acido - Base forte'!$F$2,NA()),NA()) -> 18.40538207 | B114: 0.002187761624 | C114: 2.66 | D114: =IF(Calcoli!$B$13=3,B114^Calcoli!$B$13+Calcoli!$B$9*B114^2+Calcoli!$B$9*Calcoli!$B$10*B114+Calcoli!$B$9*Calcoli!$B$10*Calcoli!$B$11,IF(Calcoli!$B$13=2,B114^Calcoli!$B$13+Calcoli!$B$9*B114+Calcoli!$B$9*Calcoli!$B$10,B114^Calcoli!$B$13+Calcoli!$B$9)) -> 2.11949781e-05 | E114: =(Calcoli!$B$9*B114^(Calcoli!$B$13-1))/D114 -> 0.7741556561 | F114: =IF(Calcoli!$B$13>=2, (Calcoli!$B$9*Calcoli!$B$10*B114^(Calcoli!$B$13-2))/D114,NA()) -> 2.193915925e-05 | G114: =IF(Calcoli!$B$13>=3,(Calcoli!$B$9*Calcoli!$B$10*Calcoli!$B$11*B114^(Calcoli!$B$13-3))/D114,NA()) ->  | H114: =IF(Calcoli!$B$13=3,(E114+F114*2+G114*3),IF(Calcoli!$B$13=2,(E114+F114*2),E114)) -> 0.7741995344 | I114: 0.7362152828 | J114: =(B114-(Calcoli!$B$8/B114))/'Acido - Base forte'!$F$1 -> 0.02187761619 | K114: =(B114-(Calcoli!$B$8/B114))/'Acido - Base forte'!$F$2 -> 0.02187761619
A115: =IF((I115*'Acido - Base forte'!$F$3*'Acido - Base forte'!$F$1)/'Acido - Base forte'!$F$2>0,IF((I115*'Acido - Base forte'!$F$3*'Acido - Base forte'!$F$1)/'Acido - Base forte'!$F$2<1.8*Calcoli!$B$13*('Acido - Base forte'!$F$1*'Acido - Base forte'!$F$3/'Acido - Base forte'!$F$2),I115*'Acido - Base forte'!$F$3*'Acido - Base forte'!$F$1/'Acido - Base forte'!$F$2,NA()),NA()) -> 18.64194849 | B115: 0.002089296131 | C115: 2.68 | D115: =IF(Calcoli!$B$13=3,B115^Calcoli!$B$13+Calcoli!$B$9*B115^2+Calcoli!$B$9*Calcoli!$B$10*B115+Calcoli!$B$9*Calcoli!$B$10*Calcoli!$B$11,IF(Calcoli!$B$13=2,B115^Calcoli!$B$13+Calcoli!$B$9*B115+Calcoli!$B$9*Calcoli!$B$10,B115^Calcoli!$B$13+Calcoli!$B$9)) -> 2.00353443e-05 | E115: =(Calcoli!$B$9*B115^(Calcoli!$B$13-1))/D115 -> 0.7821039032 | F115: =IF(Calcoli!$B$13>=2, (Calcoli!$B$9*Calcoli!$B$10*B115^(Calcoli!$B$13-2))/D115,NA()) -> 2.320898473e-05 | G115: =IF(Calcoli!$B$13>=3,(Calcoli!$B$9*Calcoli!$B$10*Calcoli!$B$11*B115^(Calcoli!$B$13-3))/D115,NA()) ->  | H115: =IF(Calcoli!$B$13=3,(E115+F115*2+G115*3),IF(Calcoli!$B$13=2,(E115+F115*2),E115)) -> 0.7821503211 | I115: 0.7456779396 | J115: =(B115-(Calcoli!$B$8/B115))/'Acido - Base forte'!$F$1 -> 0.02089296126 | K115: =(B115-(Calcoli!$B$8/B115))/'Acido - Base forte'!$F$2 -> 0.02089296126
A116: =IF((I116*'Acido - Base forte'!$F$3*'Acido - Base forte'!$F$1)/'Acido - Base forte'!$F$2>0,IF((I116*'Acido - Base forte'!$F$3*'Acido - Base forte'!$F$1)/'Acido - Base forte'!$F$2<1.8*Calcoli!$B$13*('Acido - Base forte'!$F$1*'Acido - Base forte'!$F$3/'Acido - Base forte'!$F$2),I116*'Acido - Base forte'!$F$3*'Acido - Base forte'!$F$1/'Acido - Base forte'!$F$2,NA()),NA()) -> 18.8720695 | B116: 0.001995262315 | C116: 2.7 | D116: =IF(Calcoli!$B$13=3,B116^Calcoli!$B$13+Calcoli!$B$9*B116^2+Calcoli!$B$9*Calcoli!$B$10*B116+Calcoli!$B$9*Calcoli!$B$10*Calcoli!$B$11,IF(Calcoli!$B$13=2,B116^Calcoli!$B$13+Calcoli!$B$9*B116+Calcoli!$B$9*Calcoli!$B$10,B116^Calcoli!$B$13+Calcoli!$B$9)) -> 1.894600407e-05 | E116: =(Calcoli!$B$9*B116^(Calcoli!$B$13-1))/D116 -> 0.789848208 | F116: =IF(Calcoli!$B$13>=2, (Calcoli!$B$9*Calcoli!$B$10*B116^(Calcoli!$B$13-2))/D116,NA()) -> 2.454343398e-05 | G116: =IF(Calcoli!$B$13>=3,(Calcoli!$B$9*Calcoli!$B$10*Calcoli!$B$11*B116^(Calcoli!$B$13-3))/D116,NA()) ->  | H116: =IF(Calcoli!$B$13=3,(E116+F116*2+G116*3),IF(Calcoli!$B$13=2,(E116+F116*2),E116)) -> 0.7898972949 | I116: 0.7548827802 | J116: =(B116-(Calcoli!$B$8/B116))/'Acido - Base forte'!$F$1 -> 0.0199526231 | K116: =(B116-(Calcoli!$B$8/B116))/'Acido - Base forte'!$F$2 -> 0.0199526231
A117: =IF((I117*'Acido - Base forte'!$F$3*'Acido - Base forte'!$F$1)/'Acido - Base forte'!$F$2>0,IF((I117*'Acido - Base forte'!$F$3*'Acido - Base forte'!$F$1)/'Acido - Base forte'!$F$2<1.8*Calcoli!$B$13*('Acido - Base forte'!$F$1*'Acido - Base forte'!$F$3/'Acido - Base forte'!$F$2),I117*'Acido - Base forte'!$F$3*'Acido - Base forte'!$F$1/'Acido - Base forte'!$F$2,NA()),NA()) -> 19.09577987 | B117: =10^-C117 -> 0.001905460718 | C117: 2.72 | D117: =IF(Calcoli!$B$13=3,B117^Calcoli!$B$13+Calcoli!$B$9*B117^2+Calcoli!$B$9*Calcoli!$B$10*B117+Calcoli!$B$9*Calcoli!$B$10*Calcoli!$B$11,IF(Calcoli!$B$13=2,B117^Calcoli!$B$13+Calcoli!$B$9*B117+Calcoli!$B$9*Calcoli!$B$10,B117^Calcoli!$B$13+Calcoli!$B$9)) -> 1.792220093e-05 | E117: =(Calcoli!$B$9*B117^(Calcoli!$B$13-1))/D117 -> 0.7973884144 | F117: =IF(Calcoli!$B$13>=2, (Calcoli!$B$9*Calcoli!$B$10*B117^(Calcoli!$B$13-2))/D117,NA()) -> 2.594547409e-05 | G117: =IF(Calcoli!$B$13>=3,(Calcoli!$B$9*Calcoli!$B$10*Calcoli!$B$11*B117^(Calcoli!$B$13-3))/D117,NA()) ->  | H117: =IF(Calcoli!$B$13=3,(E117+F117*2+G117*3),IF(Calcoli!$B$13=2,(E117+F117*2),E117)) -> 0.7974403054 | I117: =(H117-J117)/(1+K117) -> 0.7638311949 | J117: =(B117-(Calcoli!$B$8/B117))/'Acido - Base forte'!$F$1 -> 0.01905460713 | K117: =(B117-(Calcoli!$B$8/B117))/'Acido - Base forte'!$F$2 -> 0.01905460713
A118: =IF((I118*'Acido - Base forte'!$F$3*'Acido - Base forte'!$F$1)/'Acido - Base forte'!$F$2>0,IF((I118*'Acido - Base forte'!$F$3*'Acido - Base forte'!$F$1)/'Acido - Base forte'!$F$2<1.8*Calcoli!$B$13*('Acido - Base forte'!$F$1*'Acido - Base forte'!$F$3/'Acido - Base forte'!$F$2),I118*'Acido - Base forte'!$F$3*'Acido - Base forte'!$F$1/'Acido - Base forte'!$F$2,NA()),NA()) -> 19.31312448 | B118: 0.001819700859 | C118: 2.74 | D118: =IF(Calcoli!$B$13=3,B118^Calcoli!$B$13+Calcoli!$B$9*B118^2+Calcoli!$B$9*Calcoli!$B$10*B118+Calcoli!$B$9*Calcoli!$B$10*Calcoli!$B$11,IF(Calcoli!$B$13=2,B118^Calcoli!$B$13+Calcoli!$B$9*B118+Calcoli!$B$9*Calcoli!$B$10,B118^Calcoli!$B$13+Calcoli!$B$9)) -> 1.695953265e-05 | E118: =(Calcoli!$B$9*B118^(Calcoli!$B$13-1))/D118 -> 0.8047247951 | F118: =IF(Calcoli!$B$13>=2, (Calcoli!$B$9*Calcoli!$B$10*B118^(Calcoli!$B$13-2))/D118,NA()) -> 2.741820836e-05 | G118: =IF(Calcoli!$B$13>=3,(Calcoli!$B$9*Calcoli!$B$10*Calcoli!$B$11*B118^(Calcoli!$B$13-3))/D118,NA()) ->  | H118: =IF(Calcoli!$B$13=3,(E118+F118*2+G118*3),IF(Calcoli!$B$13=2,(E118+F118*2),E118)) -> 0.8047796315 | I118: 0.7725249793 | J118: =(B118-(Calcoli!$B$8/B118))/'Acido - Base forte'!$F$1 -> 0.01819700853 | K118: =(B118-(Calcoli!$B$8/B118))/'Acido - Base forte'!$F$2 -> 0.01819700853
A119: =IF((I119*'Acido - Base forte'!$F$3*'Acido - Base forte'!$F$1)/'Acido - Base forte'!$F$2>0,IF((I119*'Acido - Base forte'!$F$3*'Acido - Base forte'!$F$1)/'Acido - Base forte'!$F$2<1.8*Calcoli!$B$13*('Acido - Base forte'!$F$1*'Acido - Base forte'!$F$3/'Acido - Base forte'!$F$2),I119*'Acido - Base forte'!$F$3*'Acido - Base forte'!$F$1/'Acido - Base forte'!$F$2,NA()),NA()) -> 19.52415776 | B119: 0.001737800829 | C119: 2.76 | D119: =IF(Calcoli!$B$13=3,B119^Calcoli!$B$13+Calcoli!$B$9*B119^2+Calcoli!$B$9*Calcoli!$B$10*B119+Calcoli!$B$9*Calcoli!$B$10*Calcoli!$B$11,IF(Calcoli!$B$13=2,B119^Calcoli!$B$13+Calcoli!$B$9*B119+Calcoli!$B$9*Calcoli!$B$10,B119^Calcoli!$B$13+Calcoli!$B$9)) -> 1.605392294e-05 | E119: =(Calcoli!$B$9*B119^(Calcoli!$B$13-1))/D119 -> 0.8118580279 | F119: =IF(Calcoli!$B$13>=2, (Calcoli!$B$9*Calcoli!$B$10*B119^(Calcoli!$B$13-2))/D119,NA()) -> 2.896488303e-05 | G119: =IF(Calcoli!$B$13>=3,(Calcoli!$B$9*Calcoli!$B$10*Calcoli!$B$11*B119^(Calcoli!$B$13-3))/D119,NA()) ->  | H119: =IF(Calcoli!$B$13=3,(E119+F119*2+G119*3),IF(Calcoli!$B$13=2,(E119+F119*2),E119)) -> 0.8119159577 | I119: 0.7809663105 | J119: =(B119-(Calcoli!$B$8/B119))/'Acido - Base forte'!$F$1 -> 0.01737800823 | K119: =(B119-(Calcoli!$B$8/B119))/'Acido - Base forte'!$F$2 -> 0.01737800823
A120: =IF((I120*'Acido - Base forte'!$F$3*'Acido - Base forte'!$F$1)/'Acido - Base forte'!$F$2>0,IF((I120*'Acido - Base forte'!$F$3*'Acido - Base forte'!$F$1)/'Acido - Base forte'!$F$2<1.8*Calcoli!$B$13*('Acido - Base forte'!$F$1*'Acido - Base forte'!$F$3/'Acido - Base forte'!$F$2),I120*'Acido - Base forte'!$F$3*'Acido - Base forte'!$F$1/'Acido - Base forte'!$F$2,NA()),NA()) -> 19.72894307 | B120: 0.001659586907 | C120: 2.78 | D120: =IF(Calcoli!$B$13=3,B120^Calcoli!$B$13+Calcoli!$B$9*B120^2+Calcoli!$B$9*Calcoli!$B$10*B120+Calcoli!$B$9*Calcoli!$B$10*Calcoli!$B$11,IF(Calcoli!$B$13=2,B120^Calcoli!$B$13+Calcoli!$B$9*B120+Calcoli!$B$9*Calcoli!$B$10,B120^Calcoli!$B$13+Calcoli!$B$9)) -> 1.520159551e-05 | E120: =(Calcoli!$B$9*B120^(Calcoli!$B$13-1))/D120 -> 0.8187891724 | F120: =IF(Calcoli!$B$13>=2, (Calcoli!$B$9*Calcoli!$B$10*B120^(Calcoli!$B$13-2))/D120,NA()) -> 3.058889442e-05 | G120: =IF(Calcoli!$B$13>=3,(Calcoli!$B$9*Calcoli!$B$10*Calcoli!$B$11*B120^(Calcoli!$B$13-3))/D120,NA()) ->  | H120: =IF(Calcoli!$B$13=3,(E120+F120*2+G120*3),IF(Calcoli!$B$13=2,(E120+F120*2),E120)) -> 0.8188503502 | I120: 0.789157723 | J120: =(B120-(Calcoli!$B$8/B120))/'Acido - Base forte'!$F$1 -> 0.01659586901 | K120: =(B120-(Calcoli!$B$8/B120))/'Acido - Base forte'!$F$2 -> 0.01659586901
A121: =IF((I121*'Acido - Base forte'!$F$3*'Acido - Base forte'!$F$1)/'Acido - Base forte'!$F$2>0,IF((I121*'Acido - Base forte'!$F$3*'Acido - Base forte'!$F$1)/'Acido - Base forte'!$F$2<1.8*Calcoli!$B$13*('Acido - Base forte'!$F$1*'Acido - Base forte'!$F$3/'Acido - Base forte'!$F$2),I121*'Acido - Base forte'!$F$3*'Acido - Base forte'!$F$1/'Acido - Base forte'!$F$2,NA()),NA()) -> 19.92755209 | B121: 0.001584893192 | C121: 2.8 | D121: =IF(Calcoli!$B$13=3,B121^Calcoli!$B$13+Calcoli!$B$9*B121^2+Calcoli!$B$9*Calcoli!$B$10*B121+Calcoli!$B$9*Calcoli!$B$10*Calcoli!$B$11,IF(Calcoli!$B$13=2,B121^Calcoli!$B$13+Calcoli!$B$9*B121+Calcoli!$B$9*Calcoli!$B$10,B121^Calcoli!$B$13+Calcoli!$B$9)) -> 1.439905037e-05 | E121: =(Calcoli!$B$9*B121^(Calcoli!$B$13-1))/D121 -> 0.8255196443 | F121: =IF(Calcoli!$B$13>=2, (Calcoli!$B$9*Calcoli!$B$10*B121^(Calcoli!$B$13-2))/D121,NA()) -> 3.229379632e-05 | G121: =IF(Calcoli!$B$13>=3,(Calcoli!$B$9*Calcoli!$B$10*Calcoli!$B$11*B121^(Calcoli!$B$13-3))/D121,NA()) ->  | H121: =IF(Calcoli!$B$13=3,(E121+F121*2+G121*3),IF(Calcoli!$B$13=2,(E121+F121*2),E121)) -> 0.8255842319 | I121: 0.7971020834 | J121: =(B121-(Calcoli!$B$8/B121))/'Acido - Base forte'!$F$1 -> 0.01584893186 | K121: =(B121-(Calcoli!$B$8/B121))/'Acido - Base forte'!$F$2 -> 0.01584893186
A122: =IF((I122*'Acido - Base forte'!$F$3*'Acido - Base forte'!$F$1)/'Acido - Base forte'!$F$2>0,IF((I122*'Acido - Base forte'!$F$3*'Acido - Base forte'!$F$1)/'Acido - Base forte'!$F$2<1.8*Calcoli!$B$13*('Acido - Base forte'!$F$1*'Acido - Base forte'!$F$3/'Acido - Base forte'!$F$2),I122*'Acido - Base forte'!$F$3*'Acido - Base forte'!$F$1/'Acido - Base forte'!$F$2,NA()),NA()) -> 20.12006415 | B122: 0.001513561248 | C122: 2.82 | D122: =IF(Calcoli!$B$13=3,B122^Calcoli!$B$13+Calcoli!$B$9*B122^2+Calcoli!$B$9*Calcoli!$B$10*B122+Calcoli!$B$9*Calcoli!$B$10*Calcoli!$B$11,IF(Calcoli!$B$13=2,B122^Calcoli!$B$13+Calcoli!$B$9*B122+Calcoli!$B$9*Calcoli!$B$10,B122^Calcoli!$B$13+Calcoli!$B$9)) -> 1.364304202e-05 | E122: =(Calcoli!$B$9*B122^(Calcoli!$B$13-1))/D122 -> 0.8320511914 | F122: =IF(Calcoli!$B$13>=2, (Calcoli!$B$9*Calcoli!$B$10*B122^(Calcoli!$B$13-2))/D122,NA()) -> 3.408330777e-05 | G122: =IF(Calcoli!$B$13>=3,(Calcoli!$B$9*Calcoli!$B$10*Calcoli!$B$11*B122^(Calcoli!$B$13-3))/D122,NA()) ->  | H122: =IF(Calcoli!$B$13=3,(E122+F122*2+G122*3),IF(Calcoli!$B$13=2,(E122+F122*2),E122)) -> 0.832119358 | I122: 0.8048025659 | J122: =(B122-(Calcoli!$B$8/B122))/'Acido - Base forte'!$F$1 -> 0.01513561242 | K122: =(B122-(Calcoli!$B$8/B122))/'Acido - Base forte'!$F$2 -> 0.01513561242
A123: =IF((I123*'Acido - Base forte'!$F$3*'Acido - Base forte'!$F$1)/'Acido - Base forte'!$F$2>0,IF((I123*'Acido - Base forte'!$F$3*'Acido - Base forte'!$F$1)/'Acido - Base forte'!$F$2<1.8*Calcoli!$B$13*('Acido - Base forte'!$F$1*'Acido - Base forte'!$F$3/'Acido - Base forte'!$F$2),I123*'Acido - Base forte'!$F$3*'Acido - Base forte'!$F$1/'Acido - Base forte'!$F$2,NA()),NA()) -> 20.30656566 | B123: 0.001445439771 | C123: 2.84 | D123: =IF(Calcoli!$B$13=3,B123^Calcoli!$B$13+Calcoli!$B$9*B123^2+Calcoli!$B$9*Calcoli!$B$10*B123+Calcoli!$B$9*Calcoli!$B$10*Calcoli!$B$11,IF(Calcoli!$B$13=2,B123^Calcoli!$B$13+Calcoli!$B$9*B123+Calcoli!$B$9*Calcoli!$B$10,B123^Calcoli!$B$13+Calcoli!$B$9)) -> 1.293055941e-05 | E123: =(Calcoli!$B$9*B123^(Calcoli!$B$13-1))/D123 -> 0.8383858684 | F123: =IF(Calcoli!$B$13>=2, (Calcoli!$B$9*Calcoli!$B$10*B123^(Calcoli!$B$13-2))/D123,NA()) -> 3.596132118e-05 | G123: =IF(Calcoli!$B$13>=3,(Calcoli!$B$9*Calcoli!$B$10*Calcoli!$B$11*B123^(Calcoli!$B$13-3))/D123,NA()) ->  | H123: =IF(Calcoli!$B$13=3,(E123+F123*2+G123*3),IF(Calcoli!$B$13=2,(E123+F123*2),E123)) -> 0.838457791 | I123: 0.8122626264 | J123: =(B123-(Calcoli!$B$8/B123))/'Acido - Base forte'!$F$1 -> 0.01445439764 | K123: =(B123-(Calcoli!$B$8/B123))/'Acido - Base forte'!$F$2 -> 0.01445439764
A124: =IF((I124*'Acido - Base forte'!$F$3*'Acido - Base forte'!$F$1)/'Acido - Base forte'!$F$2>0,IF((I124*'Acido - Base forte'!$F$3*'Acido - Base forte'!$F$1)/'Acido - Base forte'!$F$2<1.8*Calcoli!$B$13*('Acido - Base forte'!$F$1*'Acido - Base forte'!$F$3/'Acido - Base forte'!$F$2),I124*'Acido - Base forte'!$F$3*'Acido - Base forte'!$F$1/'Acido - Base forte'!$F$2,NA()),NA()) -> 20.48714945 | B124: 0.001380384265 | C124: 2.86 | D124: =IF(Calcoli!$B$13=3,B124^Calcoli!$B$13+Calcoli!$B$9*B124^2+Calcoli!$B$9*Calcoli!$B$10*B124+Calcoli!$B$9*Calcoli!$B$10*Calcoli!$B$11,IF(Calcoli!$B$13=2,B124^Calcoli!$B$13+Calcoli!$B$9*B124+Calcoli!$B$9*Calcoli!$B$10,B124^Calcoli!$B$13+Calcoli!$B$9)) -> 1.22588077e-05 | E124: =(Calcoli!$B$9*B124^(Calcoli!$B$13-1))/D124 -> 0.8445260123 | F124: =IF(Calcoli!$B$13>=2, (Calcoli!$B$9*Calcoli!$B$10*B124^(Calcoli!$B$13-2))/D124,NA()) -> 3.793191078e-05 | G124: =IF(Calcoli!$B$13>=3,(Calcoli!$B$9*Calcoli!$B$10*Calcoli!$B$11*B124^(Calcoli!$B$13-3))/D124,NA()) ->  | H124: =IF(Calcoli!$B$13=3,(E124+F124*2+G124*3),IF(Calcoli!$B$13=2,(E124+F124*2),E124)) -> 0.8446018761 | I124: 0.8194859781 | J124: =(B124-(Calcoli!$B$8/B124))/'Acido - Base forte'!$F$1 -> 0.01380384257 | K124: =(B124-(Calcoli!$B$8/B124))/'Acido - Base forte'!$F$2 -> 0.01380384257
A125: =IF((I125*'Acido - Base forte'!$F$3*'Acido - Base forte'!$F$1)/'Acido - Base forte'!$F$2>0,IF((I125*'Acido - Base forte'!$F$3*'Acido - Base forte'!$F$1)/'Acido - Base forte'!$F$2<1.8*Calcoli!$B$13*('Acido - Base forte'!$F$1*'Acido - Base forte'!$F$3/'Acido - Base forte'!$F$2),I125*'Acido - Base forte'!$F$3*'Acido - Base forte'!$F$1/'Acido - Base forte'!$F$2,NA()),NA()) -> 20.66191416 | B125: 0.001318256739 | C125: 2.88 | D125: =IF(Calcoli!$B$13=3,B125^Calcoli!$B$13+Calcoli!$B$9*B125^2+Calcoli!$B$9*Calcoli!$B$10*B125+Calcoli!$B$9*Calcoli!$B$10*Calcoli!$B$11,IF(Calcoli!$B$13=2,B125^Calcoli!$B$13+Calcoli!$B$9*B125+Calcoli!$B$9*Calcoli!$B$10,B125^Calcoli!$B$13+Calcoli!$B$9)) -> 1.162519137e-05 | E125: =(Calcoli!$B$9*B125^(Calcoli!$B$13-1))/D125 -> 0.8504742181 | F125: =IF(Calcoli!$B$13>=2, (Calcoli!$B$9*Calcoli!$B$10*B125^(Calcoli!$B$13-2))/D125,NA()) -> 3.999934154e-05 | G125: =IF(Calcoli!$B$13>=3,(Calcoli!$B$9*Calcoli!$B$10*Calcoli!$B$11*B125^(Calcoli!$B$13-3))/D125,NA()) ->  | H125: =IF(Calcoli!$B$13=3,(E125+F125*2+G125*3),IF(Calcoli!$B$13=2,(E125+F125*2),E125)) -> 0.8505542168 | I125: 0.8264765665 | J125: =(B125-(Calcoli!$B$8/B125))/'Acido - Base forte'!$F$1 -> 0.01318256731 | K125: =(B125-(Calcoli!$B$8/B125))/'Acido - Base forte'!$F$2 -> 0.01318256731
A126: =IF((I126*'Acido - Base forte'!$F$3*'Acido - Base forte'!$F$1)/'Acido - Base forte'!$F$2>0,IF((I126*'Acido - Base forte'!$F$3*'Acido - Base forte'!$F$1)/'Acido - Base forte'!$F$2<1.8*Calcoli!$B$13*('Acido - Base forte'!$F$1*'Acido - Base forte'!$F$3/'Acido - Base forte'!$F$2),I126*'Acido - Base forte'!$F$3*'Acido - Base forte'!$F$1/'Acido - Base forte'!$F$2,NA()),NA()) -> 20.83096363 | B126: 0.001258925412 | C126: 2.9 | D126: =IF(Calcoli!$B$13=3,B126^Calcoli!$B$13+Calcoli!$B$9*B126^2+Calcoli!$B$9*Calcoli!$B$10*B126+Calcoli!$B$9*Calcoli!$B$10*Calcoli!$B$11,IF(Calcoli!$B$13=2,B126^Calcoli!$B$13+Calcoli!$B$9*B126+Calcoli!$B$9*Calcoli!$B$10,B126^Calcoli!$B$13+Calcoli!$B$9)) -> 1.102729878e-05 | E126: =(Calcoli!$B$9*B126^(Calcoli!$B$13-1))/D126 -> 0.8562333148 | F126: =IF(Calcoli!$B$13>=2, (Calcoli!$B$9*Calcoli!$B$10*B126^(Calcoli!$B$13-2))/D126,NA()) -> 4.216807844e-05 | G126: =IF(Calcoli!$B$13>=3,(Calcoli!$B$9*Calcoli!$B$10*Calcoli!$B$11*B126^(Calcoli!$B$13-3))/D126,NA()) ->  | H126: =IF(Calcoli!$B$13=3,(E126+F126*2+G126*3),IF(Calcoli!$B$13=2,(E126+F126*2),E126)) -> 0.856317651 | I126: 0.8332385452 | J126: =(B126-(Calcoli!$B$8/B126))/'Acido - Base forte'!$F$1 -> 0.01258925404 | K126: =(B126-(Calcoli!$B$8/B126))/'Acido - Base forte'!$F$2 -> 0.01258925404
A127: =IF((I127*'Acido - Base forte'!$F$3*'Acido - Base forte'!$F$1)/'Acido - Base forte'!$F$2>0,IF((I127*'Acido - Base forte'!$F$3*'Acido - Base forte'!$F$1)/'Acido - Base forte'!$F$2<1.8*Calcoli!$B$13*('Acido - Base forte'!$F$1*'Acido - Base forte'!$F$3/'Acido - Base forte'!$F$2),I127*'Acido - Base forte'!$F$3*'Acido - Base forte'!$F$1/'Acido - Base forte'!$F$2,NA()),NA()) -> 20.9944063 | B127: 0.001202264435 | C127: 2.92 | D127: =IF(Calcoli!$B$13=3,B127^Calcoli!$B$13+Calcoli!$B$9*B127^2+Calcoli!$B$9*Calcoli!$B$10*B127+Calcoli!$B$9*Calcoli!$B$10*Calcoli!$B$11,IF(Calcoli!$B$13=2,B127^Calcoli!$B$13+Calcoli!$B$9*B127+Calcoli!$B$9*Calcoli!$B$10,B127^Calcoli!$B$13+Calcoli!$B$9)) -> 1.046288803e-05 | E127: =(Calcoli!$B$9*B127^(Calcoli!$B$13-1))/D127 -> 0.8618063419 | F127: =IF(Calcoli!$B$13>=2, (Calcoli!$B$9*Calcoli!$B$10*B127^(Calcoli!$B$13-2))/D127,NA()) -> 4.444279616e-05 | G127: =IF(Calcoli!$B$13>=3,(Calcoli!$B$9*Calcoli!$B$10*Calcoli!$B$11*B127^(Calcoli!$B$13-3))/D127,NA()) ->  | H127: =IF(Calcoli!$B$13=3,(E127+F127*2+G127*3),IF(Calcoli!$B$13=2,(E127+F127*2),E127)) -> 0.8618952275 | I127: 0.8397762521 | J127: =(B127-(Calcoli!$B$8/B127))/'Acido - Base forte'!$F$1 -> 0.01202264426 | K127: =(B127-(Calcoli!$B$8/B127))/'Acido - Base forte'!$F$2 -> 0.01202264426
A128: =IF((I128*'Acido - Base forte'!$F$3*'Acido - Base forte'!$F$1)/'Acido - Base forte'!$F$2>0,IF((I128*'Acido - Base forte'!$F$3*'Acido - Base forte'!$F$1)/'Acido - Base forte'!$F$2<1.8*Calcoli!$B$13*('Acido - Base forte'!$F$1*'Acido - Base forte'!$F$3/'Acido - Base forte'!$F$2),I128*'Acido - Base forte'!$F$3*'Acido - Base forte'!$F$1/'Acido - Base forte'!$F$2,NA()),NA()) -> 21.15235467 | B128: 0.001148153621 | C128: 2.94 | D128: =IF(Calcoli!$B$13=3,B128^Calcoli!$B$13+Calcoli!$B$9*B128^2+Calcoli!$B$9*Calcoli!$B$10*B128+Calcoli!$B$9*Calcoli!$B$10*Calcoli!$B$11,IF(Calcoli!$B$13=2,B128^Calcoli!$B$13+Calcoli!$B$9*B128+Calcoli!$B$9*Calcoli!$B$10,B128^Calcoli!$B$13+Calcoli!$B$9)) -> 9.9298739e-06 | E128: =(Calcoli!$B$9*B128^(Calcoli!$B$13-1))/D128 -> 0.8671965272 | F128: =IF(Calcoli!$B$13>=2, (Calcoli!$B$9*Calcoli!$B$10*B128^(Calcoli!$B$13-2))/D128,NA()) -> 4.682838923e-05 | G128: =IF(Calcoli!$B$13>=3,(Calcoli!$B$9*Calcoli!$B$10*Calcoli!$B$11*B128^(Calcoli!$B$13-3))/D128,NA()) ->  | H128: =IF(Calcoli!$B$13=3,(E128+F128*2+G128*3),IF(Calcoli!$B$13=2,(E128+F128*2),E128)) -> 0.867290184 | I128: 0.8460941869 | J128: =(B128-(Calcoli!$B$8/B128))/'Acido - Base forte'!$F$1 -> 0.01148153613 | K128: =(B128-(Calcoli!$B$8/B128))/'Acido - Base forte'!$F$2 -> 0.01148153613
A129: =IF((I129*'Acido - Base forte'!$F$3*'Acido - Base forte'!$F$1)/'Acido - Base forte'!$F$2>0,IF((I129*'Acido - Base forte'!$F$3*'Acido - Base forte'!$F$1)/'Acido - Base forte'!$F$2<1.8*Calcoli!$B$13*('Acido - Base forte'!$F$1*'Acido - Base forte'!$F$3/'Acido - Base forte'!$F$2),I129*'Acido - Base forte'!$F$3*'Acido - Base forte'!$F$1/'Acido - Base forte'!$F$2,NA()),NA()) -> 21.30492471 | B129: 0.001096478196 | C129: 2.96 | D129: =IF(Calcoli!$B$13=3,B129^Calcoli!$B$13+Calcoli!$B$9*B129^2+Calcoli!$B$9*Calcoli!$B$10*B129+Calcoli!$B$9*Calcoli!$B$10*Calcoli!$B$11,IF(Calcoli!$B$13=2,B129^Calcoli!$B$13+Calcoli!$B$9*B129+Calcoli!$B$9*Calcoli!$B$10,B129^Calcoli!$B$13+Calcoli!$B$9)) -> 9.426315906e-06 | E129: =(Calcoli!$B$9*B129^(Calcoli!$B$13-1))/D129 -> 0.8724072642 | F129: =IF(Calcoli!$B$13>=2, (Calcoli!$B$9*Calcoli!$B$10*B129^(Calcoli!$B$13-2))/D129,NA()) -> 4.932998264e-05 | G129: =IF(Calcoli!$B$13>=3,(Calcoli!$B$9*Calcoli!$B$10*Calcoli!$B$11*B129^(Calcoli!$B$13-3))/D129,NA()) ->  | H129: =IF(Calcoli!$B$13=3,(E129+F129*2+G129*3),IF(Calcoli!$B$13=2,(E129+F129*2),E129)) -> 0.8725059242 | I129: 0.8521969882 | J129: =(B129-(Calcoli!$B$8/B129))/'Acido - Base forte'!$F$1 -> 0.01096478187 | K129: =(B129-(Calcoli!$B$8/B129))/'Acido - Base forte'!$F$2 -> 0.01096478187
A130: =IF((I130*'Acido - Base forte'!$F$3*'Acido - Base forte'!$F$1)/'Acido - Base forte'!$F$2>0,IF((I130*'Acido - Base forte'!$F$3*'Acido - Base forte'!$F$1)/'Acido - Base forte'!$F$2<1.8*Calcoli!$B$13*('Acido - Base forte'!$F$1*'Acido - Base forte'!$F$3/'Acido - Base forte'!$F$2),I130*'Acido - Base forte'!$F$3*'Acido - Base forte'!$F$1/'Acido - Base forte'!$F$2,NA()),NA()) -> 21.45223533 | B130: 0.001047128548 | C130: 2.98 | D130: =IF(Calcoli!$B$13=3,B130^Calcoli!$B$13+Calcoli!$B$9*B130^2+Calcoli!$B$9*Calcoli!$B$10*B130+Calcoli!$B$9*Calcoli!$B$10*Calcoli!$B$11,IF(Calcoli!$B$13=2,B130^Calcoli!$B$13+Calcoli!$B$9*B130+Calcoli!$B$9*Calcoli!$B$10,B130^Calcoli!$B$13+Calcoli!$B$9)) -> 8.950407307e-06 | E130: =(Calcoli!$B$9*B130^(Calcoli!$B$13-1))/D130 -> 0.8774420919 | F130: =IF(Calcoli!$B$13>=2, (Calcoli!$B$9*Calcoli!$B$10*B130^(Calcoli!$B$13-2))/D130,NA()) -> 5.195294293e-05 | G130: =IF(Calcoli!$B$13>=3,(Calcoli!$B$9*Calcoli!$B$10*Calcoli!$B$11*B130^(Calcoli!$B$13-3))/D130,NA()) ->  | H130: =IF(Calcoli!$B$13=3,(E130+F130*2+G130*3),IF(Calcoli!$B$13=2,(E130+F130*2),E130)) -> 0.8775459978 | I130: 0.8580894133 | J130: =(B130-(Calcoli!$B$8/B130))/'Acido - Base forte'!$F$1 -> 0.01047128539 | K130: =(B130-(Calcoli!$B$8/B130))/'Acido - Base forte'!$F$2 -> 0.01047128539
A131: =IF((I131*'Acido - Base forte'!$F$3*'Acido - Base forte'!$F$1)/'Acido - Base forte'!$F$2>0,IF((I131*'Acido - Base forte'!$F$3*'Acido - Base forte'!$F$1)/'Acido - Base forte'!$F$2<1.8*Calcoli!$B$13*('Acido - Base forte'!$F$1*'Acido - Base forte'!$F$3/'Acido - Base forte'!$F$2),I131*'Acido - Base forte'!$F$3*'Acido - Base forte'!$F$1/'Acido - Base forte'!$F$2,NA()),NA()) -> 21.59440792 | B131: 0.001 | C131: 3 | D131: =IF(Calcoli!$B$13=3,B131^Calcoli!$B$13+Calcoli!$B$9*B131^2+Calcoli!$B$9*Calcoli!$B$10*B131+Calcoli!$B$9*Calcoli!$B$10*Calcoli!$B$11,IF(Calcoli!$B$13=2,B131^Calcoli!$B$13+Calcoli!$B$9*B131+Calcoli!$B$9*Calcoli!$B$10,B131^Calcoli!$B$13+Calcoli!$B$9)) -> 8.500465e-06 | E131: =(Calcoli!$B$9*B131^(Calcoli!$B$13-1))/D131 -> 0.8823046739 | F131: =IF(Calcoli!$B$13>=2, (Calcoli!$B$9*Calcoli!$B$10*B131^(Calcoli!$B$13-2))/D131,NA()) -> 5.470288978e-05 | G131: =IF(Calcoli!$B$13>=3,(Calcoli!$B$9*Calcoli!$B$10*Calcoli!$B$11*B131^(Calcoli!$B$13-3))/D131,NA()) ->  | H131: =IF(Calcoli!$B$13=3,(E131+F131*2+G131*3),IF(Calcoli!$B$13=2,(E131+F131*2),E131)) -> 0.8824140797 | I131: 0.8637763167 | J131: =(B131-(Calcoli!$B$8/B131))/'Acido - Base forte'!$F$1 -> 0.0099999999 | K131: =(B131-(Calcoli!$B$8/B131))/'Acido - Base forte'!$F$2 -> 0.0099999999
A132: =IF((I132*'Acido - Base forte'!$F$3*'Acido - Base forte'!$F$1)/'Acido - Base forte'!$F$2>0,IF((I132*'Acido - Base forte'!$F$3*'Acido - Base forte'!$F$1)/'Acido - Base forte'!$F$2<1.8*Calcoli!$B$13*('Acido - Base forte'!$F$1*'Acido - Base forte'!$F$3/'Acido - Base forte'!$F$2),I132*'Acido - Base forte'!$F$3*'Acido - Base forte'!$F$1/'Acido - Base forte'!$F$2,NA()),NA()) -> 21.7315658 | B132: 0.000954992586 | C132: 3.02 | D132: =IF(Calcoli!$B$13=3,B132^Calcoli!$B$13+Calcoli!$B$9*B132^2+Calcoli!$B$9*Calcoli!$B$10*B132+Calcoli!$B$9*Calcoli!$B$10*Calcoli!$B$11,IF(Calcoli!$B$13=2,B132^Calcoli!$B$13+Calcoli!$B$9*B132+Calcoli!$B$9*Calcoli!$B$10,B132^Calcoli!$B$13+Calcoli!$B$9)) -> 8.074920235e-06 | E132: =(Calcoli!$B$9*B132^(Calcoli!$B$13-1))/D132 -> 0.8869987798 | F132: =IF(Calcoli!$B$13>=2, (Calcoli!$B$9*Calcoli!$B$10*B132^(Calcoli!$B$13-2))/D132,NA()) -> 5.758570816e-05 | G132: =IF(Calcoli!$B$13>=3,(Calcoli!$B$9*Calcoli!$B$10*Calcoli!$B$11*B132^(Calcoli!$B$13-3))/D132,NA()) ->  | H132: =IF(Calcoli!$B$13=3,(E132+F132*2+G132*3),IF(Calcoli!$B$13=2,(E132+F132*2),E132)) -> 0.8871139512 | I132: 0.8692626319 | J132: =(B132-(Calcoli!$B$8/B132))/'Acido - Base forte'!$F$1 -> 0.009549925756 | K132: =(B132-(Calcoli!$B$8/B132))/'Acido - Base forte'!$F$2 -> 0.009549925756
A133: =IF((I133*'Acido - Base forte'!$F$3*'Acido - Base forte'!$F$1)/'Acido - Base forte'!$F$2>0,IF((I133*'Acido - Base forte'!$F$3*'Acido - Base forte'!$F$1)/'Acido - Base forte'!$F$2<1.8*Calcoli!$B$13*('Acido - Base forte'!$F$1*'Acido - Base forte'!$F$3/'Acido - Base forte'!$F$2),I133*'Acido - Base forte'!$F$3*'Acido - Base forte'!$F$1/'Acido - Base forte'!$F$2,NA()),NA()) -> 21.86383381 | B133: 0.0009120108394 | C133: 3.04 | D133: =IF(Calcoli!$B$13=3,B133^Calcoli!$B$13+Calcoli!$B$9*B133^2+Calcoli!$B$9*Calcoli!$B$10*B133+Calcoli!$B$9*Calcoli!$B$10*Calcoli!$B$11,IF(Calcoli!$B$13=2,B133^Calcoli!$B$13+Calcoli!$B$9*B133+Calcoli!$B$9*Calcoli!$B$10,B133^Calcoli!$B$13+Calcoli!$B$9)) -> 7.672310066e-06 | E133: =(Calcoli!$B$9*B133^(Calcoli!$B$13-1))/D133 -> 0.8915282667 | F133: =IF(Calcoli!$B$13>=2, (Calcoli!$B$9*Calcoli!$B$10*B133^(Calcoli!$B$13-2))/D133,NA()) -> 6.060756095e-05 | G133: =IF(Calcoli!$B$13>=3,(Calcoli!$B$9*Calcoli!$B$10*Calcoli!$B$11*B133^(Calcoli!$B$13-3))/D133,NA()) ->  | H133: =IF(Calcoli!$B$13=3,(E133+F133*2+G133*3),IF(Calcoli!$B$13=2,(E133+F133*2),E133)) -> 0.8916494818 | I133: 0.8745533523 | J133: =(B133-(Calcoli!$B$8/B133))/'Acido - Base forte'!$F$1 -> 0.009120108284 | K133: =(B133-(Calcoli!$B$8/B133))/'Acido - Base forte'!$F$2 -> 0.009120108284
A134: =IF((I134*'Acido - Base forte'!$F$3*'Acido - Base forte'!$F$1)/'Acido - Base forte'!$F$2>0,IF((I134*'Acido - Base forte'!$F$3*'Acido - Base forte'!$F$1)/'Acido - Base forte'!$F$2<1.8*Calcoli!$B$13*('Acido - Base forte'!$F$1*'Acido - Base forte'!$F$3/'Acido - Base forte'!$F$2),I134*'Acido - Base forte'!$F$3*'Acido - Base forte'!$F$1/'Acido - Base forte'!$F$2,NA()),NA()) -> 21.99133786 | B134: 0.00087096359 | C134: 3.06 | D134: =IF(Calcoli!$B$13=3,B134^Calcoli!$B$13+Calcoli!$B$9*B134^2+Calcoli!$B$9*Calcoli!$B$10*B134+Calcoli!$B$9*Calcoli!$B$10*Calcoli!$B$11,IF(Calcoli!$B$13=2,B134^Calcoli!$B$13+Calcoli!$B$9*B134+Calcoli!$B$9*Calcoli!$B$10,B134^Calcoli!$B$13+Calcoli!$B$9)) -> 7.2912695e-06 | E134: =(Calcoli!$B$9*B134^(Calcoli!$B$13-1))/D134 -> 0.8958970622 | F134: =IF(Calcoli!$B$13>=2, (Calcoli!$B$9*Calcoli!$B$10*B134^(Calcoli!$B$13-2))/D134,NA()) -> 6.37749023e-05 | G134: =IF(Calcoli!$B$13>=3,(Calcoli!$B$9*Calcoli!$B$10*Calcoli!$B$11*B134^(Calcoli!$B$13-3))/D134,NA()) ->  | H134: =IF(Calcoli!$B$13=3,(E134+F134*2+G134*3),IF(Calcoli!$B$13=2,(E134+F134*2),E134)) -> 0.896024612 | I134: 0.8796535145 | J134: =(B134-(Calcoli!$B$8/B134))/'Acido - Base forte'!$F$1 -> 0.008709635785 | K134: =(B134-(Calcoli!$B$8/B134))/'Acido - Base forte'!$F$2 -> 0.008709635785
A135: =IF((I135*'Acido - Base forte'!$F$3*'Acido - Base forte'!$F$1)/'Acido - Base forte'!$F$2>0,IF((I135*'Acido - Base forte'!$F$3*'Acido - Base forte'!$F$1)/'Acido - Base forte'!$F$2<1.8*Calcoli!$B$13*('Acido - Base forte'!$F$1*'Acido - Base forte'!$F$3/'Acido - Base forte'!$F$2),I135*'Acido - Base forte'!$F$3*'Acido - Base forte'!$F$1/'Acido - Base forte'!$F$2,NA()),NA()) -> 22.11420455 | B135: 0.0008317637711 | C135: 3.08 | D135: =IF(Calcoli!$B$13=3,B135^Calcoli!$B$13+Calcoli!$B$9*B135^2+Calcoli!$B$9*Calcoli!$B$10*B135+Calcoli!$B$9*Calcoli!$B$10*Calcoli!$B$11,IF(Calcoli!$B$13=2,B135^Calcoli!$B$13+Calcoli!$B$9*B135+Calcoli!$B$9*Calcoli!$B$10,B135^Calcoli!$B$13+Calcoli!$B$9)) -> 6.930524254e-06 | E135: =(Calcoli!$B$9*B135^(Calcoli!$B$13-1))/D135 -> 0.9001091482 | F135: =IF(Calcoli!$B$13>=2, (Calcoli!$B$9*Calcoli!$B$10*B135^(Calcoli!$B$13-2))/D135,NA()) -> 6.70944914e-05 | G135: =IF(Calcoli!$B$13>=3,(Calcoli!$B$9*Calcoli!$B$10*Calcoli!$B$11*B135^(Calcoli!$B$13-3))/D135,NA()) ->  | H135: =IF(Calcoli!$B$13=3,(E135+F135*2+G135*3),IF(Calcoli!$B$13=2,(E135+F135*2),E135)) -> 0.9002433372 | I135: 0.8845681821 | J135: =(B135-(Calcoli!$B$8/B135))/'Acido - Base forte'!$F$1 -> 0.008317637591 | K135: =(B135-(Calcoli!$B$8/B135))/'Acido - Base forte'!$F$2 -> 0.008317637591
A136: =IF((I136*'Acido - Base forte'!$F$3*'Acido - Base forte'!$F$1)/'Acido - Base forte'!$F$2>0,IF((I136*'Acido - Base forte'!$F$3*'Acido - Base forte'!$F$1)/'Acido - Base forte'!$F$2<1.8*Calcoli!$B$13*('Acido - Base forte'!$F$1*'Acido - Base forte'!$F$3/'Acido - Base forte'!$F$2),I136*'Acido - Base forte'!$F$3*'Acido - Base forte'!$F$1/'Acido - Base forte'!$F$2,NA()),NA()) -> 22.23256076 | B136: 0.0007943282347 | C136: 3.1 | D136: =IF(Calcoli!$B$13=3,B136^Calcoli!$B$13+Calcoli!$B$9*B136^2+Calcoli!$B$9*Calcoli!$B$10*B136+Calcoli!$B$9*Calcoli!$B$10*Calcoli!$B$11,IF(Calcoli!$B$13=2,B136^Calcoli!$B$13+Calcoli!$B$9*B136+Calcoli!$B$9*Calcoli!$B$10,B136^Calcoli!$B$13+Calcoli!$B$9)) -> 6.588884105e-06 | E136: =(Calcoli!$B$9*B136^(Calcoli!$B$13-1))/D136 -> 0.9041685459 | F136: =IF(Calcoli!$B$13>=2, (Calcoli!$B$9*Calcoli!$B$10*B136^(Calcoli!$B$13-2))/D136,NA()) -> 7.057340706e-05 | G136: =IF(Calcoli!$B$13>=3,(Calcoli!$B$9*Calcoli!$B$10*Calcoli!$B$11*B136^(Calcoli!$B$13-3))/D136,NA()) ->  | H136: =IF(Calcoli!$B$13=3,(E136+F136*2+G136*3),IF(Calcoli!$B$13=2,(E136+F136*2),E136)) -> 0.9043096927 | I136: 0.8893024303 | J136: =(B136-(Calcoli!$B$8/B136))/'Acido - Base forte'!$F$1 -> 0.007943282221 | K136: =(B136-(Calcoli!$B$8/B136))/'Acido - Base forte'!$F$2 -> 0.007943282221
A137: =IF((I137*'Acido - Base forte'!$F$3*'Acido - Base forte'!$F$1)/'Acido - Base forte'!$F$2>0,IF((I137*'Acido - Base forte'!$F$3*'Acido - Base forte'!$F$1)/'Acido - Base forte'!$F$2<1.8*Calcoli!$B$13*('Acido - Base forte'!$F$1*'Acido - Base forte'!$F$3/'Acido - Base forte'!$F$2),I137*'Acido - Base forte'!$F$3*'Acido - Base forte'!$F$1/'Acido - Base forte'!$F$2,NA()),NA()) -> 22.34653332 | B137: 0.000758577575 | C137: 3.12 | D137: =IF(Calcoli!$B$13=3,B137^Calcoli!$B$13+Calcoli!$B$9*B137^2+Calcoli!$B$9*Calcoli!$B$10*B137+Calcoli!$B$9*Calcoli!$B$10*Calcoli!$B$11,IF(Calcoli!$B$13=2,B137^Calcoli!$B$13+Calcoli!$B$9*B137+Calcoli!$B$9*Calcoli!$B$10,B137^Calcoli!$B$13+Calcoli!$B$9)) -> 6.26523675e-06 | E137: =(Calcoli!$B$9*B137^(Calcoli!$B$13-1))/D137 -> 0.9080793017 | F137: =IF(Calcoli!$B$13>=2, (Calcoli!$B$9*Calcoli!$B$10*B137^(Calcoli!$B$13-2))/D137,NA()) -> 7.421906283e-05 | G137: =IF(Calcoli!$B$13>=3,(Calcoli!$B$9*Calcoli!$B$10*Calcoli!$B$11*B137^(Calcoli!$B$13-3))/D137,NA()) ->  | H137: =IF(Calcoli!$B$13=3,(E137+F137*2+G137*3),IF(Calcoli!$B$13=2,(E137+F137*2),E137)) -> 0.9082277398 | I137: 0.8938613327 | J137: =(B137-(Calcoli!$B$8/B137))/'Acido - Base forte'!$F$1 -> 0.007585775618 | K137: =(B137-(Calcoli!$B$8/B137))/'Acido - Base forte'!$F$2 -> 0.007585775618
A138: =IF((I138*'Acido - Base forte'!$F$3*'Acido - Base forte'!$F$1)/'Acido - Base forte'!$F$2>0,IF((I138*'Acido - Base forte'!$F$3*'Acido - Base forte'!$F$1)/'Acido - Base forte'!$F$2<1.8*Calcoli!$B$13*('Acido - Base forte'!$F$1*'Acido - Base forte'!$F$3/'Acido - Base forte'!$F$2),I138*'Acido - Base forte'!$F$3*'Acido - Base forte'!$F$1/'Acido - Base forte'!$F$2,NA()),NA()) -> 22.45624869 | B138: 0.0007244359601 | C138: 3.14 | D138: =IF(Calcoli!$B$13=3,B138^Calcoli!$B$13+Calcoli!$B$9*B138^2+Calcoli!$B$9*Calcoli!$B$10*B138+Calcoli!$B$9*Calcoli!$B$10*Calcoli!$B$11,IF(Calcoli!$B$13=2,B138^Calcoli!$B$13+Calcoli!$B$9*B138+Calcoli!$B$9*Calcoli!$B$10,B138^Calcoli!$B$13+Calcoli!$B$9)) -> 5.958542161e-06 | E138: =(Calcoli!$B$9*B138^(Calcoli!$B$13-1))/D138 -> 0.9118454739 | F138: =IF(Calcoli!$B$13>=2, (Calcoli!$B$9*Calcoli!$B$10*B138^(Calcoli!$B$13-2))/D138,NA()) -> 7.803922293e-05 | G138: =IF(Calcoli!$B$13>=3,(Calcoli!$B$9*Calcoli!$B$10*Calcoli!$B$11*B138^(Calcoli!$B$13-3))/D138,NA()) ->  | H138: =IF(Calcoli!$B$13=3,(E138+F138*2+G138*3),IF(Calcoli!$B$13=2,(E138+F138*2),E138)) -> 0.9120015524 | I138: 0.8982499474 | J138: =(B138-(Calcoli!$B$8/B138))/'Acido - Base forte'!$F$1 -> 0.007244359463 | K138: =(B138-(Calcoli!$B$8/B138))/'Acido - Base forte'!$F$2 -> 0.007244359463
A139: =IF((I139*'Acido - Base forte'!$F$3*'Acido - Base forte'!$F$1)/'Acido - Base forte'!$F$2>0,IF((I139*'Acido - Base forte'!$F$3*'Acido - Base forte'!$F$1)/'Acido - Base forte'!$F$2<1.8*Calcoli!$B$13*('Acido - Base forte'!$F$1*'Acido - Base forte'!$F$3/'Acido - Base forte'!$F$2),I139*'Acido - Base forte'!$F$3*'Acido - Base forte'!$F$1/'Acido - Base forte'!$F$2,NA()),NA()) -> 22.56183265 | B139: 0.0006918309709 | C139: 3.16 | D139: =IF(Calcoli!$B$13=3,B139^Calcoli!$B$13+Calcoli!$B$9*B139^2+Calcoli!$B$9*Calcoli!$B$10*B139+Calcoli!$B$9*Calcoli!$B$10*Calcoli!$B$11,IF(Calcoli!$B$13=2,B139^Calcoli!$B$13+Calcoli!$B$9*B139+Calcoli!$B$9*Calcoli!$B$10,B139^Calcoli!$B$13+Calcoli!$B$9)) -> 5.667827374e-06 | E139: =(Calcoli!$B$9*B139^(Calcoli!$B$13-1))/D139 -> 0.9154711214 | F139: =IF(Calcoli!$B$13>=2, (Calcoli!$B$9*Calcoli!$B$10*B139^(Calcoli!$B$13-2))/D139,NA()) -> 8.20420188e-05 | G139: =IF(Calcoli!$B$13>=3,(Calcoli!$B$9*Calcoli!$B$10*Calcoli!$B$11*B139^(Calcoli!$B$13-3))/D139,NA()) ->  | H139: =IF(Calcoli!$B$13=3,(E139+F139*2+G139*3),IF(Calcoli!$B$13=2,(E139+F139*2),E139)) -> 0.9156352054 | I139: 0.9024733061 | J139: =(B139-(Calcoli!$B$8/B139))/'Acido - Base forte'!$F$1 -> 0.006918309565 | K139: =(B139-(Calcoli!$B$8/B139))/'Acido - Base forte'!$F$2 -> 0.006918309565
A140: =IF((I140*'Acido - Base forte'!$F$3*'Acido - Base forte'!$F$1)/'Acido - Base forte'!$F$2>0,IF((I140*'Acido - Base forte'!$F$3*'Acido - Base forte'!$F$1)/'Acido - Base forte'!$F$2<1.8*Calcoli!$B$13*('Acido - Base forte'!$F$1*'Acido - Base forte'!$F$3/'Acido - Base forte'!$F$2),I140*'Acido - Base forte'!$F$3*'Acido - Base forte'!$F$1/'Acido - Base forte'!$F$2,NA()),NA()) -> 22.66341007 | B140: 0.000660693448 | C140: 3.18 | D140: =IF(Calcoli!$B$13=3,B140^Calcoli!$B$13+Calcoli!$B$9*B140^2+Calcoli!$B$9*Calcoli!$B$10*B140+Calcoli!$B$9*Calcoli!$B$10*Calcoli!$B$11,IF(Calcoli!$B$13=2,B140^Calcoli!$B$13+Calcoli!$B$9*B140+Calcoli!$B$9*Calcoli!$B$10,B140^Calcoli!$B$13+Calcoli!$B$9)) -> 5.392181692e-06 | E140: =(Calcoli!$B$9*B140^(Calcoli!$B$13-1))/D140 -> 0.9189602916 | F140: =IF(Calcoli!$B$13>=2, (Calcoli!$B$9*Calcoli!$B$10*B140^(Calcoli!$B$13-2))/D140,NA()) -> 8.623596654e-05 | G140: =IF(Calcoli!$B$13>=3,(Calcoli!$B$9*Calcoli!$B$10*Calcoli!$B$11*B140^(Calcoli!$B$13-3))/D140,NA()) ->  | H140: =IF(Calcoli!$B$13=3,(E140+F140*2+G140*3),IF(Calcoli!$B$13=2,(E140+F140*2),E140)) -> 0.9191327635 | I140: 0.9065364027 | J140: =(B140-(Calcoli!$B$8/B140))/'Acido - Base forte'!$F$1 -> 0.006606934329 | K140: =(B140-(Calcoli!$B$8/B140))/'Acido - Base forte'!$F$2 -> 0.006606934329
A141: =IF((I141*'Acido - Base forte'!$F$3*'Acido - Base forte'!$F$1)/'Acido - Base forte'!$F$2>0,IF((I141*'Acido - Base forte'!$F$3*'Acido - Base forte'!$F$1)/'Acido - Base forte'!$F$2<1.8*Calcoli!$B$13*('Acido - Base forte'!$F$1*'Acido - Base forte'!$F$3/'Acido - Base forte'!$F$2),I141*'Acido - Base forte'!$F$3*'Acido - Base forte'!$F$1/'Acido - Base forte'!$F$2,NA()),NA()) -> 22.76110459 | B141: 0.0006309573445 | C141: 3.2 | D141: =IF(Calcoli!$B$13=3,B141^Calcoli!$B$13+Calcoli!$B$9*B141^2+Calcoli!$B$9*Calcoli!$B$10*B141+Calcoli!$B$9*Calcoli!$B$10*Calcoli!$B$11,IF(Calcoli!$B$13=2,B141^Calcoli!$B$13+Calcoli!$B$9*B141+Calcoli!$B$9*Calcoli!$B$10,B141^Calcoli!$B$13+Calcoli!$B$9)) -> 5.130752254e-06 | E141: =(Calcoli!$B$9*B141^(Calcoli!$B$13-1))/D141 -> 0.9223170111 | F141: =IF(Calcoli!$B$13>=2, (Calcoli!$B$9*Calcoli!$B$10*B141^(Calcoli!$B$13-2))/D141,NA()) -> 9.062998503e-05 | G141: =IF(Calcoli!$B$13>=3,(Calcoli!$B$9*Calcoli!$B$10*Calcoli!$B$11*B141^(Calcoli!$B$13-3))/D141,NA()) ->  | H141: =IF(Calcoli!$B$13=3,(E141+F141*2+G141*3),IF(Calcoli!$B$13=2,(E141+F141*2),E141)) -> 0.922498271 | I141: 0.9104441835 | J141: =(B141-(Calcoli!$B$8/B141))/'Acido - Base forte'!$F$1 -> 0.006309573286 | K141: =(B141-(Calcoli!$B$8/B141))/'Acido - Base forte'!$F$2 -> 0.006309573286
A142: =IF((I142*'Acido - Base forte'!$F$3*'Acido - Base forte'!$F$1)/'Acido - Base forte'!$F$2>0,IF((I142*'Acido - Base forte'!$F$3*'Acido - Base forte'!$F$1)/'Acido - Base forte'!$F$2<1.8*Calcoli!$B$13*('Acido - Base forte'!$F$1*'Acido - Base forte'!$F$3/'Acido - Base forte'!$F$2),I142*'Acido - Base forte'!$F$3*'Acido - Base forte'!$F$1/'Acido - Base forte'!$F$2,NA()),NA()) -> 22.85503846 | B142: 0.0006025595861 | C142: 3.22 | D142: =IF(Calcoli!$B$13=3,B142^Calcoli!$B$13+Calcoli!$B$9*B142^2+Calcoli!$B$9*Calcoli!$B$10*B142+Calcoli!$B$9*Calcoli!$B$10*Calcoli!$B$11,IF(Calcoli!$B$13=2,B142^Calcoli!$B$13+Calcoli!$B$9*B142+Calcoli!$B$9*Calcoli!$B$10,B142^Calcoli!$B$13+Calcoli!$B$9)) -> 4.88273995e-06 | E142: =(Calcoli!$B$9*B142^(Calcoli!$B$13-1))/D142 -> 0.9255452761 | F142: =IF(Calcoli!$B$13>=2, (Calcoli!$B$9*Calcoli!$B$10*B142^(Calcoli!$B$13-2))/D142,NA()) -> 9.523341499e-05 | G142: =IF(Calcoli!$B$13>=3,(Calcoli!$B$9*Calcoli!$B$10*Calcoli!$B$11*B142^(Calcoli!$B$13-3))/D142,NA()) ->  | H142: =IF(Calcoli!$B$13=3,(E142+F142*2+G142*3),IF(Calcoli!$B$13=2,(E142+F142*2),E142)) -> 0.925735743 | I142: 0.9142015384 | J142: =(B142-(Calcoli!$B$8/B142))/'Acido - Base forte'!$F$1 -> 0.006025595695 | K142: =(B142-(Calcoli!$B$8/B142))/'Acido - Base forte'!$F$2 -> 0.006025595695
A143: =IF((I143*'Acido - Base forte'!$F$3*'Acido - Base forte'!$F$1)/'Acido - Base forte'!$F$2>0,IF((I143*'Acido - Base forte'!$F$3*'Acido - Base forte'!$F$1)/'Acido - Base forte'!$F$2<1.8*Calcoli!$B$13*('Acido - Base forte'!$F$1*'Acido - Base forte'!$F$3/'Acido - Base forte'!$F$2),I143*'Acido - Base forte'!$F$3*'Acido - Base forte'!$F$1/'Acido - Base forte'!$F$2,NA()),NA()) -> 22.94533233 | B143: 0.0005754399373 | C143: 3.24 | D143: =IF(Calcoli!$B$13=3,B143^Calcoli!$B$13+Calcoli!$B$9*B143^2+Calcoli!$B$9*Calcoli!$B$10*B143+Calcoli!$B$9*Calcoli!$B$10*Calcoli!$B$11,IF(Calcoli!$B$13=2,B143^Calcoli!$B$13+Calcoli!$B$9*B143+Calcoli!$B$9*Calcoli!$B$10,B143^Calcoli!$B$13+Calcoli!$B$9)) -> 4.647395652e-06 | E143: =(Calcoli!$B$9*B143^(Calcoli!$B$13-1))/D143 -> 0.9286490443 | F143: =IF(Calcoli!$B$13>=2, (Calcoli!$B$9*Calcoli!$B$10*B143^(Calcoli!$B$13-2))/D143,NA()) -> 0.0001000560389 | G143: =IF(Calcoli!$B$13>=3,(Calcoli!$B$9*Calcoli!$B$10*Calcoli!$B$11*B143^(Calcoli!$B$13-3))/D143,NA()) ->  | H143: =IF(Calcoli!$B$13=3,(E143+F143*2+G143*3),IF(Calcoli!$B$13=2,(E143+F143*2),E143)) -> 0.9288491563 | I143: 0.917813293 | J143: =(B143-(Calcoli!$B$8/B143))/'Acido - Base forte'!$F$1 -> 0.0057543992 | K143: =(B143-(Calcoli!$B$8/B143))/'Acido - Base forte'!$F$2 -> 0.0057543992
A144: =IF((I144*'Acido - Base forte'!$F$3*'Acido - Base forte'!$F$1)/'Acido - Base forte'!$F$2>0,IF((I144*'Acido - Base forte'!$F$3*'Acido - Base forte'!$F$1)/'Acido - Base forte'!$F$2<1.8*Calcoli!$B$13*('Acido - Base forte'!$F$1*'Acido - Base forte'!$F$3/'Acido - Base forte'!$F$2),I144*'Acido - Base forte'!$F$3*'Acido - Base forte'!$F$1/'Acido - Base forte'!$F$2,NA()),NA()) -> 23.03210503 | B144: 0.0005495408739 | C144: 3.26 | D144: =IF(Calcoli!$B$13=3,B144^Calcoli!$B$13+Calcoli!$B$9*B144^2+Calcoli!$B$9*Calcoli!$B$10*B144+Calcoli!$B$9*Calcoli!$B$10*Calcoli!$B$11,IF(Calcoli!$B$13=2,B144^Calcoli!$B$13+Calcoli!$B$9*B144+Calcoli!$B$9*Calcoli!$B$10,B144^Calcoli!$B$13+Calcoli!$B$9)) -> 4.424016726e-06 | E144: =(Calcoli!$B$9*B144^(Calcoli!$B$13-1))/D144 -> 0.9316322268 | F144: =IF(Calcoli!$B$13>=2, (Calcoli!$B$9*Calcoli!$B$10*B144^(Calcoli!$B$13-2))/D144,NA()) -> 0.0001051081017 | G144: =IF(Calcoli!$B$13>=3,(Calcoli!$B$9*Calcoli!$B$10*Calcoli!$B$11*B144^(Calcoli!$B$13-3))/D144,NA()) ->  | H144: =IF(Calcoli!$B$13=3,(E144+F144*2+G144*3),IF(Calcoli!$B$13=2,(E144+F144*2),E144)) -> 0.931842443 | I144: 0.9212842014 | J144: =(B144-(Calcoli!$B$8/B144))/'Acido - Base forte'!$F$1 -> 0.005495408557 | K144: =(B144-(Calcoli!$B$8/B144))/'Acido - Base forte'!$F$2 -> 0.005495408557
A145: =IF((I145*'Acido - Base forte'!$F$3*'Acido - Base forte'!$F$1)/'Acido - Base forte'!$F$2>0,IF((I145*'Acido - Base forte'!$F$3*'Acido - Base forte'!$F$1)/'Acido - Base forte'!$F$2<1.8*Calcoli!$B$13*('Acido - Base forte'!$F$1*'Acido - Base forte'!$F$3/'Acido - Base forte'!$F$2),I145*'Acido - Base forte'!$F$3*'Acido - Base forte'!$F$1/'Acido - Base forte'!$F$2,NA()),NA()) -> 23.11547349 | B145: 0.0005248074602 | C145: 3.28 | D145: =IF(Calcoli!$B$13=3,B145^Calcoli!$B$13+Calcoli!$B$9*B145^2+Calcoli!$B$9*Calcoli!$B$10*B145+Calcoli!$B$9*Calcoli!$B$10*Calcoli!$B$11,IF(Calcoli!$B$13=2,B145^Calcoli!$B$13+Calcoli!$B$9*B145+Calcoli!$B$9*Calcoli!$B$10,B145^Calcoli!$B$13+Calcoli!$B$9)) -> 4.211943822e-06 | E145: =(Calcoli!$B$9*B145^(Calcoli!$B$13-1))/D145 -> 0.9344986823 | F145: =IF(Calcoli!$B$13>=2, (Calcoli!$B$9*Calcoli!$B$10*B145^(Calcoli!$B$13-2))/D145,NA()) -> 0.0001104003329 | G145: =IF(Calcoli!$B$13>=3,(Calcoli!$B$9*Calcoli!$B$10*Calcoli!$B$11*B145^(Calcoli!$B$13-3))/D145,NA()) ->  | H145: =IF(Calcoli!$B$13=3,(E145+F145*2+G145*3),IF(Calcoli!$B$13=2,(E145+F145*2),E145)) -> 0.934719483 | I145: 0.9246189396 | J145: =(B145-(Calcoli!$B$8/B145))/'Acido - Base forte'!$F$1 -> 0.005248074412 | K145: =(B145-(Calcoli!$B$8/B145))/'Acido - Base forte'!$F$2 -> 0.005248074412
A146: =IF((I146*'Acido - Base forte'!$F$3*'Acido - Base forte'!$F$1)/'Acido - Base forte'!$F$2>0,IF((I146*'Acido - Base forte'!$F$3*'Acido - Base forte'!$F$1)/'Acido - Base forte'!$F$2<1.8*Calcoli!$B$13*('Acido - Base forte'!$F$1*'Acido - Base forte'!$F$3/'Acido - Base forte'!$F$2),I146*'Acido - Base forte'!$F$3*'Acido - Base forte'!$F$1/'Acido - Base forte'!$F$2,NA()),NA()) -> 23.19555251 | B146: 0.0005011872336 | C146: 3.3 | D146: =IF(Calcoli!$B$13=3,B146^Calcoli!$B$13+Calcoli!$B$9*B146^2+Calcoli!$B$9*Calcoli!$B$10*B146+Calcoli!$B$9*Calcoli!$B$10*Calcoli!$B$11,IF(Calcoli!$B$13=2,B146^Calcoli!$B$13+Calcoli!$B$9*B146+Calcoli!$B$9*Calcoli!$B$10,B146^Calcoli!$B$13+Calcoli!$B$9)) -> 4.010557895e-06 | E146: =(Calcoli!$B$9*B146^(Calcoli!$B$13-1))/D146 -> 0.9372522104 | F146: =IF(Calcoli!$B$13>=2, (Calcoli!$B$9*Calcoli!$B$10*B146^(Calcoli!$B$13-2))/D146,NA()) -> 0.0001159439689 | G146: =IF(Calcoli!$B$13>=3,(Calcoli!$B$9*Calcoli!$B$10*Calcoli!$B$11*B146^(Calcoli!$B$13-3))/D146,NA()) ->  | H146: =IF(Calcoli!$B$13=3,(E146+F146*2+G146*3),IF(Calcoli!$B$13=2,(E146+F146*2),E146)) -> 0.9374840983 | I146: 0.9278221004 | J146: =(B146-(Calcoli!$B$8/B146))/'Acido - Base forte'!$F$1 -> 0.005011872137 | K146: =(B146-(Calcoli!$B$8/B146))/'Acido - Base forte'!$F$2 -> 0.005011872137
A147: =IF((I147*'Acido - Base forte'!$F$3*'Acido - Base forte'!$F$1)/'Acido - Base forte'!$F$2>0,IF((I147*'Acido - Base forte'!$F$3*'Acido - Base forte'!$F$1)/'Acido - Base forte'!$F$2<1.8*Calcoli!$B$13*('Acido - Base forte'!$F$1*'Acido - Base forte'!$F$3/'Acido - Base forte'!$F$2),I147*'Acido - Base forte'!$F$3*'Acido - Base forte'!$F$1/'Acido - Base forte'!$F$2,NA()),NA()) -> 23.27245472 | B147: 0.0004786300923 | C147: 3.32 | D147: =IF(Calcoli!$B$13=3,B147^Calcoli!$B$13+Calcoli!$B$9*B147^2+Calcoli!$B$9*Calcoli!$B$10*B147+Calcoli!$B$9*Calcoli!$B$10*Calcoli!$B$11,IF(Calcoli!$B$13=2,B147^Calcoli!$B$13+Calcoli!$B$9*B147+Calcoli!$B$9*Calcoli!$B$10,B147^Calcoli!$B$13+Calcoli!$B$9)) -> 3.819277458e-06 | E147: =(Calcoli!$B$9*B147^(Calcoli!$B$13-1))/D147 -> 0.9398965464 | F147: =IF(Calcoli!$B$13>=2, (Calcoli!$B$9*Calcoli!$B$10*B147^(Calcoli!$B$13-2))/D147,NA()) -> 0.0001217507775 | G147: =IF(Calcoli!$B$13>=3,(Calcoli!$B$9*Calcoli!$B$10*Calcoli!$B$11*B147^(Calcoli!$B$13-3))/D147,NA()) ->  | H147: =IF(Calcoli!$B$13=3,(E147+F147*2+G147*3),IF(Calcoli!$B$13=2,(E147+F147*2),E147)) -> 0.940140048 | I147: 0.9308981886 | J147: =(B147-(Calcoli!$B$8/B147))/'Acido - Base forte'!$F$1 -> 0.004786300714 | K147: =(B147-(Calcoli!$B$8/B147))/'Acido - Base forte'!$F$2 -> 0.004786300714
A148: =IF((I148*'Acido - Base forte'!$F$3*'Acido - Base forte'!$F$1)/'Acido - Base forte'!$F$2>0,IF((I148*'Acido - Base forte'!$F$3*'Acido - Base forte'!$F$1)/'Acido - Base forte'!$F$2<1.8*Calcoli!$B$13*('Acido - Base forte'!$F$1*'Acido - Base forte'!$F$3/'Acido - Base forte'!$F$2),I148*'Acido - Base forte'!$F$3*'Acido - Base forte'!$F$1/'Acido - Base forte'!$F$2,NA()),NA()) -> 23.34629042 | B148: 0.0004570881896 | C148: 3.34 | D148: =IF(Calcoli!$B$13=3,B148^Calcoli!$B$13+Calcoli!$B$9*B148^2+Calcoli!$B$9*Calcoli!$B$10*B148+Calcoli!$B$9*Calcoli!$B$10*Calcoli!$B$11,IF(Calcoli!$B$13=2,B148^Calcoli!$B$13+Calcoli!$B$9*B148+Calcoli!$B$9*Calcoli!$B$10,B148^Calcoli!$B$13+Calcoli!$B$9)) -> 3.637556035e-06 | E148: =(Calcoli!$B$9*B148^(Calcoli!$B$13-1))/D148 -> 0.9424353574 | F148: =IF(Calcoli!$B$13>=2, (Calcoli!$B$9*Calcoli!$B$10*B148^(Calcoli!$B$13-2))/D148,NA()) -> 0.0001278330823 | G148: =IF(Calcoli!$B$13>=3,(Calcoli!$B$9*Calcoli!$B$10*Calcoli!$B$11*B148^(Calcoli!$B$13-3))/D148,NA()) ->  | H148: =IF(Calcoli!$B$13=3,(E148+F148*2+G148*3),IF(Calcoli!$B$13=2,(E148+F148*2),E148)) -> 0.9426910236 | I148: 0.9338516166 | J148: =(B148-(Calcoli!$B$8/B148))/'Acido - Base forte'!$F$1 -> 0.004570881677 | K148: =(B148-(Calcoli!$B$8/B148))/'Acido - Base forte'!$F$2 -> 0.004570881677
A149: =IF((I149*'Acido - Base forte'!$F$3*'Acido - Base forte'!$F$1)/'Acido - Base forte'!$F$2>0,IF((I149*'Acido - Base forte'!$F$3*'Acido - Base forte'!$F$1)/'Acido - Base forte'!$F$2<1.8*Calcoli!$B$13*('Acido - Base forte'!$F$1*'Acido - Base forte'!$F$3/'Acido - Base forte'!$F$2),I149*'Acido - Base forte'!$F$3*'Acido - Base forte'!$F$1/'Acido - Base forte'!$F$2,NA()),NA()) -> 23.41716753 | B149: =10^-C149 -> 0.0004365158322 | C149: 3.36 | D149: =IF(Calcoli!$B$13=3,B149^Calcoli!$B$13+Calcoli!$B$9*B149^2+Calcoli!$B$9*Calcoli!$B$10*B149+Calcoli!$B$9*Calcoli!$B$10*Calcoli!$B$11,IF(Calcoli!$B$13=2,B149^Calcoli!$B$13+Calcoli!$B$9*B149+Calcoli!$B$9*Calcoli!$B$10,B149^Calcoli!$B$13+Calcoli!$B$9)) -> 3.464879814e-06 | E149: =(Calcoli!$B$9*B149^(Calcoli!$B$13-1))/D149 -> 0.9448722374 | F149: =IF(Calcoli!$B$13>=2, (Calcoli!$B$9*Calcoli!$B$10*B149^(Calcoli!$B$13-2))/D149,NA()) -> 0.0001342037892 | G149: =IF(Calcoli!$B$13>=3,(Calcoli!$B$9*Calcoli!$B$10*Calcoli!$B$11*B149^(Calcoli!$B$13-3))/D149,NA()) ->  | H149: =IF(Calcoli!$B$13=3,(E149+F149*2+G149*3),IF(Calcoli!$B$13=2,(E149+F149*2),E149)) -> 0.945140645 | I149: =(H149-J149)/(1+K149) -> 0.9366867014 | J149: =(B149-(Calcoli!$B$8/B149))/'Acido - Base forte'!$F$1 -> 0.004365158093 | K149: =(B149-(Calcoli!$B$8/B149))/'Acido - Base forte'!$F$2 -> 0.004365158093
A150: =IF((I150*'Acido - Base forte'!$F$3*'Acido - Base forte'!$F$1)/'Acido - Base forte'!$F$2>0,IF((I150*'Acido - Base forte'!$F$3*'Acido - Base forte'!$F$1)/'Acido - Base forte'!$F$2<1.8*Calcoli!$B$13*('Acido - Base forte'!$F$1*'Acido - Base forte'!$F$3/'Acido - Base forte'!$F$2),I150*'Acido - Base forte'!$F$3*'Acido - Base forte'!$F$1/'Acido - Base forte'!$F$2,NA()),NA()) -> 23.48519153 | B150: 0.0004168693835 | C150: 3.38 | D150: =IF(Calcoli!$B$13=3,B150^Calcoli!$B$13+Calcoli!$B$9*B150^2+Calcoli!$B$9*Calcoli!$B$10*B150+Calcoli!$B$9*Calcoli!$B$10*Calcoli!$B$11,IF(Calcoli!$B$13=2,B150^Calcoli!$B$13+Calcoli!$B$9*B150+Calcoli!$B$9*Calcoli!$B$10,B150^Calcoli!$B$13+Calcoli!$B$9)) -> 3.300765459e-06 | E150: =(Calcoli!$B$9*B150^(Calcoli!$B$13-1))/D150 -> 0.9472107046 | F150: =IF(Calcoli!$B$13>=2, (Calcoli!$B$9*Calcoli!$B$10*B150^(Calcoli!$B$13-2))/D150,NA()) -> 0.0001408764136 | G150: =IF(Calcoli!$B$13>=3,(Calcoli!$B$9*Calcoli!$B$10*Calcoli!$B$11*B150^(Calcoli!$B$13-3))/D150,NA()) ->  | H150: =IF(Calcoli!$B$13=3,(E150+F150*2+G150*3),IF(Calcoli!$B$13=2,(E150+F150*2),E150)) -> 0.9474924574 | I150: 0.9394076611 | J150: =(B150-(Calcoli!$B$8/B150))/'Acido - Base forte'!$F$1 -> 0.004168693595 | K150: =(B150-(Calcoli!$B$8/B150))/'Acido - Base forte'!$F$2 -> 0.004168693595
A151: =IF((I151*'Acido - Base forte'!$F$3*'Acido - Base forte'!$F$1)/'Acido - Base forte'!$F$2>0,IF((I151*'Acido - Base forte'!$F$3*'Acido - Base forte'!$F$1)/'Acido - Base forte'!$F$2<1.8*Calcoli!$B$13*('Acido - Base forte'!$F$1*'Acido - Base forte'!$F$3/'Acido - Base forte'!$F$2),I151*'Acido - Base forte'!$F$3*'Acido - Base forte'!$F$1/'Acido - Base forte'!$F$2,NA()),NA()) -> 23.55046534 | B151: 0.0003981071706 | C151: =C150+0.02 -> 3.4 | D151: =IF(Calcoli!$B$13=3,B151^Calcoli!$B$13+Calcoli!$B$9*B151^2+Calcoli!$B$9*Calcoli!$B$10*B151+Calcoli!$B$9*Calcoli!$B$10*Calcoli!$B$11,IF(Calcoli!$B$13=2,B151^Calcoli!$B$13+Calcoli!$B$9*B151+Calcoli!$B$9*Calcoli!$B$10,B151^Calcoli!$B$13+Calcoli!$B$9)) -> 3.144758098e-06 | E151: =(Calcoli!$B$9*B151^(Calcoli!$B$13-1))/D151 -> 0.9494541983 | F151: =IF(Calcoli!$B$13>=2, (Calcoli!$B$9*Calcoli!$B$10*B151^(Calcoli!$B$13-2))/D151,NA()) -> 0.0001478651093 | G151: =IF(Calcoli!$B$13>=3,(Calcoli!$B$9*Calcoli!$B$10*Calcoli!$B$11*B151^(Calcoli!$B$13-3))/D151,NA()) ->  | H151: =IF(Calcoli!$B$13=3,(E151+F151*2+G151*3),IF(Calcoli!$B$13=2,(E151+F151*2),E151)) -> 0.9497499285 | I151: 0.9420186136 | J151: =(B151-(Calcoli!$B$8/B151))/'Acido - Base forte'!$F$1 -> 0.003981071454 | K151: =(B151-(Calcoli!$B$8/B151))/'Acido - Base forte'!$F$2 -> 0.003981071454
A152: =IF((I152*'Acido - Base forte'!$F$3*'Acido - Base forte'!$F$1)/'Acido - Base forte'!$F$2>0,IF((I152*'Acido - Base forte'!$F$3*'Acido - Base forte'!$F$1)/'Acido - Base forte'!$F$2<1.8*Calcoli!$B$13*('Acido - Base forte'!$F$1*'Acido - Base forte'!$F$3/'Acido - Base forte'!$F$2),I152*'Acido - Base forte'!$F$3*'Acido - Base forte'!$F$1/'Acido - Base forte'!$F$2,NA()),NA()) -> 23.61308935 | B152: 0.0003801893963 | C152: 3.42 | D152: =IF(Calcoli!$B$13=3,B152^Calcoli!$B$13+Calcoli!$B$9*B152^2+Calcoli!$B$9*Calcoli!$B$10*B152+Calcoli!$B$9*Calcoli!$B$10*Calcoli!$B$11,IF(Calcoli!$B$13=2,B152^Calcoli!$B$13+Calcoli!$B$9*B152+Calcoli!$B$9*Calcoli!$B$10,B152^Calcoli!$B$13+Calcoli!$B$9)) -> 2.996429449e-06 | E152: =(Calcoli!$B$9*B152^(Calcoli!$B$13-1))/D152 -> 0.9516060767 | F152: =IF(Calcoli!$B$13>=2, (Calcoli!$B$9*Calcoli!$B$10*B152^(Calcoli!$B$13-2))/D152,NA()) -> 0.0001551846983 | G152: =IF(Calcoli!$B$13>=3,(Calcoli!$B$9*Calcoli!$B$10*Calcoli!$B$11*B152^(Calcoli!$B$13-3))/D152,NA()) ->  | H152: =IF(Calcoli!$B$13=3,(E152+F152*2+G152*3),IF(Calcoli!$B$13=2,(E152+F152*2),E152)) -> 0.9519164461 | I152: 0.9445235741 | J152: =(B152-(Calcoli!$B$8/B152))/'Acido - Base forte'!$F$1 -> 0.0038018937 | K152: =(B152-(Calcoli!$B$8/B152))/'Acido - Base forte'!$F$2 -> 0.0038018937
A153: =IF((I153*'Acido - Base forte'!$F$3*'Acido - Base forte'!$F$1)/'Acido - Base forte'!$F$2>0,IF((I153*'Acido - Base forte'!$F$3*'Acido - Base forte'!$F$1)/'Acido - Base forte'!$F$2<1.8*Calcoli!$B$13*('Acido - Base forte'!$F$1*'Acido - Base forte'!$F$3/'Acido - Base forte'!$F$2),I153*'Acido - Base forte'!$F$3*'Acido - Base forte'!$F$1/'Acido - Base forte'!$F$2,NA()),NA()) -> 23.67316135 | B153: 0.0003630780548 | C153: 3.44 | D153: =IF(Calcoli!$B$13=3,B153^Calcoli!$B$13+Calcoli!$B$9*B153^2+Calcoli!$B$9*Calcoli!$B$10*B153+Calcoli!$B$9*Calcoli!$B$10*Calcoli!$B$11,IF(Calcoli!$B$13=2,B153^Calcoli!$B$13+Calcoli!$B$9*B153+Calcoli!$B$9*Calcoli!$B$10,B153^Calcoli!$B$13+Calcoli!$B$9)) -> 2.855376085e-06 | E153: =(Calcoli!$B$9*B153^(Calcoli!$B$13-1))/D153 -> 0.9536696148 | F153: =IF(Calcoli!$B$13>=2, (Calcoli!$B$9*Calcoli!$B$10*B153^(Calcoli!$B$13-2))/D153,NA()) -> 0.0001628507021 | G153: =IF(Calcoli!$B$13>=3,(Calcoli!$B$9*Calcoli!$B$10*Calcoli!$B$11*B153^(Calcoli!$B$13-3))/D153,NA()) ->  | H153: =IF(Calcoli!$B$13=3,(E153+F153*2+G153*3),IF(Calcoli!$B$13=2,(E153+F153*2),E153)) -> 0.9539953162 | I153: 0.9469264541 | J153: =(B153-(Calcoli!$B$8/B153))/'Acido - Base forte'!$F$1 -> 0.003630780272 | K153: =(B153-(Calcoli!$B$8/B153))/'Acido - Base forte'!$F$2 -> 0.003630780272
A154: =IF((I154*'Acido - Base forte'!$F$3*'Acido - Base forte'!$F$1)/'Acido - Base forte'!$F$2>0,IF((I154*'Acido - Base forte'!$F$3*'Acido - Base forte'!$F$1)/'Acido - Base forte'!$F$2<1.8*Calcoli!$B$13*('Acido - Base forte'!$F$1*'Acido - Base forte'!$F$3/'Acido - Base forte'!$F$2),I154*'Acido - Base forte'!$F$3*'Acido - Base forte'!$F$1/'Acido - Base forte'!$F$2,NA()),NA()) -> 23.73077651 | B154: 0.0003467368505 | C154: 3.46 | D154: =IF(Calcoli!$B$13=3,B154^Calcoli!$B$13+Calcoli!$B$9*B154^2+Calcoli!$B$9*Calcoli!$B$10*B154+Calcoli!$B$9*Calcoli!$B$10*Calcoli!$B$11,IF(Calcoli!$B$13=2,B154^Calcoli!$B$13+Calcoli!$B$9*B154+Calcoli!$B$9*Calcoli!$B$10,B154^Calcoli!$B$13+Calcoli!$B$9)) -> 2.721217822e-06 | E154: =(Calcoli!$B$9*B154^(Calcoli!$B$13-1))/D154 -> 0.9556480034 | F154: =IF(Calcoli!$B$13>=2, (Calcoli!$B$9*Calcoli!$B$10*B154^(Calcoli!$B$13-2))/D154,NA()) -> 0.0001708793748 | G154: =IF(Calcoli!$B$13>=3,(Calcoli!$B$9*Calcoli!$B$10*Calcoli!$B$11*B154^(Calcoli!$B$13-3))/D154,NA()) ->  | H154: =IF(Calcoli!$B$13=3,(E154+F154*2+G154*3),IF(Calcoli!$B$13=2,(E154+F154*2),E154)) -> 0.9559897622 | I154: 0.9492310604 | J154: =(B154-(Calcoli!$B$8/B154))/'Acido - Base forte'!$F$1 -> 0.003467368216 | K154: =(B154-(Calcoli!$B$8/B154))/'Acido - Base forte'!$F$2 -> 0.003467368216
A155: =IF((I155*'Acido - Base forte'!$F$3*'Acido - Base forte'!$F$1)/'Acido - Base forte'!$F$2>0,IF((I155*'Acido - Base forte'!$F$3*'Acido - Base forte'!$F$1)/'Acido - Base forte'!$F$2<1.8*Calcoli!$B$13*('Acido - Base forte'!$F$1*'Acido - Base forte'!$F$3/'Acido - Base forte'!$F$2),I155*'Acido - Base forte'!$F$3*'Acido - Base forte'!$F$1/'Acido - Base forte'!$F$2,NA()),NA()) -> 23.78602738 | B155: 0.0003311311215 | C155: 3.48 | D155: =IF(Calcoli!$B$13=3,B155^Calcoli!$B$13+Calcoli!$B$9*B155^2+Calcoli!$B$9*Calcoli!$B$10*B155+Calcoli!$B$9*Calcoli!$B$10*Calcoli!$B$11,IF(Calcoli!$B$13=2,B155^Calcoli!$B$13+Calcoli!$B$9*B155+Calcoli!$B$9*Calcoli!$B$10,B155^Calcoli!$B$13+Calcoli!$B$9)) -> 2.593596231e-06 | E155: =(Calcoli!$B$9*B155^(Calcoli!$B$13-1))/D155 -> 0.9575443478 | F155: =IF(Calcoli!$B$13>=2, (Calcoli!$B$9*Calcoli!$B$10*B155^(Calcoli!$B$13-2))/D155,NA()) -> 0.0001792877374 | G155: =IF(Calcoli!$B$13>=3,(Calcoli!$B$9*Calcoli!$B$10*Calcoli!$B$11*B155^(Calcoli!$B$13-3))/D155,NA()) ->  | H155: =IF(Calcoli!$B$13=3,(E155+F155*2+G155*3),IF(Calcoli!$B$13=2,(E155+F155*2),E155)) -> 0.9579029232 | I155: 0.951441095 | J155: =(B155-(Calcoli!$B$8/B155))/'Acido - Base forte'!$F$1 -> 0.003311310913 | K155: =(B155-(Calcoli!$B$8/B155))/'Acido - Base forte'!$F$2 -> 0.003311310913
A156: =IF((I156*'Acido - Base forte'!$F$3*'Acido - Base forte'!$F$1)/'Acido - Base forte'!$F$2>0,IF((I156*'Acido - Base forte'!$F$3*'Acido - Base forte'!$F$1)/'Acido - Base forte'!$F$2<1.8*Calcoli!$B$13*('Acido - Base forte'!$F$1*'Acido - Base forte'!$F$3/'Acido - Base forte'!$F$2),I156*'Acido - Base forte'!$F$3*'Acido - Base forte'!$F$1/'Acido - Base forte'!$F$2,NA()),NA()) -> 23.83900388 | B156: 0.000316227766 | C156: 3.5 | D156: =IF(Calcoli!$B$13=3,B156^Calcoli!$B$13+Calcoli!$B$9*B156^2+Calcoli!$B$9*Calcoli!$B$10*B156+Calcoli!$B$9*Calcoli!$B$10*Calcoli!$B$11,IF(Calcoli!$B$13=2,B156^Calcoli!$B$13+Calcoli!$B$9*B156+Calcoli!$B$9*Calcoli!$B$10,B156^Calcoli!$B$13+Calcoli!$B$9)) -> 2.472173245e-06 | E156: =(Calcoli!$B$9*B156^(Calcoli!$B$13-1))/D156 -> 0.9593616668 | F156: =IF(Calcoli!$B$13>=2, (Calcoli!$B$9*Calcoli!$B$10*B156^(Calcoli!$B$13-2))/D156,NA()) -> 0.000188093614 | G156: =IF(Calcoli!$B$13>=3,(Calcoli!$B$9*Calcoli!$B$10*Calcoli!$B$11*B156^(Calcoli!$B$13-3))/D156,NA()) ->  | H156: =IF(Calcoli!$B$13=3,(E156+F156*2+G156*3),IF(Calcoli!$B$13=2,(E156+F156*2),E156)) -> 0.9597378541 | I156: 0.953560155 | J156: =(B156-(Calcoli!$B$8/B156))/'Acido - Base forte'!$F$1 -> 0.003162277344 | K156: =(B156-(Calcoli!$B$8/B156))/'Acido - Base forte'!$F$2 -> 0.003162277344
A157: =IF((I157*'Acido - Base forte'!$F$3*'Acido - Base forte'!$F$1)/'Acido - Base forte'!$F$2>0,IF((I157*'Acido - Base forte'!$F$3*'Acido - Base forte'!$F$1)/'Acido - Base forte'!$F$2<1.8*Calcoli!$B$13*('Acido - Base forte'!$F$1*'Acido - Base forte'!$F$3/'Acido - Base forte'!$F$2),I157*'Acido - Base forte'!$F$3*'Acido - Base forte'!$F$1/'Acido - Base forte'!$F$2,NA()),NA()) -> 23.96206131 | B157: 0.0002818382931 | C157: =C156+0.05 -> 3.55 | D157: =IF(Calcoli!$B$13=3,B157^Calcoli!$B$13+Calcoli!$B$9*B157^2+Calcoli!$B$9*Calcoli!$B$10*B157+Calcoli!$B$9*Calcoli!$B$10*Calcoli!$B$11,IF(Calcoli!$B$13=2,B157^Calcoli!$B$13+Calcoli!$B$9*B157+Calcoli!$B$9*Calcoli!$B$10,B157^Calcoli!$B$13+Calcoli!$B$9)) -> 2.193685022e-06 | E157: =(Calcoli!$B$9*B157^(Calcoli!$B$13-1))/D157 -> 0.9635782609 | F157: =IF(Calcoli!$B$13>=2, (Calcoli!$B$9*Calcoli!$B$10*B157^(Calcoli!$B$13-2))/D157,NA()) -> 0.0002119720905 | G157: =IF(Calcoli!$B$13>=3,(Calcoli!$B$9*Calcoli!$B$10*Calcoli!$B$11*B157^(Calcoli!$B$13-3))/D157,NA()) ->  | H157: =IF(Calcoli!$B$13=3,(E157+F157*2+G157*3),IF(Calcoli!$B$13=2,(E157+F157*2),E157)) -> 0.9640022051 | I157: 0.9584824523 | J157: =(B157-(Calcoli!$B$8/B157))/'Acido - Base forte'!$F$1 -> 0.002818382576 | K157: =(B157-(Calcoli!$B$8/B157))/'Acido - Base forte'!$F$2 -> 0.002818382576
A158: =IF((I158*'Acido - Base forte'!$F$3*'Acido - Base forte'!$F$1)/'Acido - Base forte'!$F$2>0,IF((I158*'Acido - Base forte'!$F$3*'Acido - Base forte'!$F$1)/'Acido - Base forte'!$F$2<1.8*Calcoli!$B$13*('Acido - Base forte'!$F$1*'Acido - Base forte'!$F$3/'Acido - Base forte'!$F$2),I158*'Acido - Base forte'!$F$3*'Acido - Base forte'!$F$1/'Acido - Base forte'!$F$2,NA()),NA()) -> 24.0727359 | B158: 0.0002511886432 | C158: =C157+0.05 -> 3.6 | D158: =IF(Calcoli!$B$13=3,B158^Calcoli!$B$13+Calcoli!$B$9*B158^2+Calcoli!$B$9*Calcoli!$B$10*B158+Calcoli!$B$9*Calcoli!$B$10*Calcoli!$B$11,IF(Calcoli!$B$13=2,B158^Calcoli!$B$13+Calcoli!$B$9*B158+Calcoli!$B$9*Calcoli!$B$10,B158^Calcoli!$B$13+Calcoli!$B$9)) -> 1.947475558e-06 | E158: =(Calcoli!$B$9*B158^(Calcoli!$B$13-1))/D158 -> 0.9673624995 | F158: =IF(Calcoli!$B$13>=2, (Calcoli!$B$9*Calcoli!$B$10*B158^(Calcoli!$B$13-2))/D158,NA()) -> 0.0002387706475 | G158: =IF(Calcoli!$B$13>=3,(Calcoli!$B$9*Calcoli!$B$10*Calcoli!$B$11*B158^(Calcoli!$B$13-3))/D158,NA()) ->  | H158: =IF(Calcoli!$B$13=3,(E158+F158*2+G158*3),IF(Calcoli!$B$13=2,(E158+F158*2),E158)) -> 0.9678400408 | I158: 0.962909436 | J158: =(B158-(Calcoli!$B$8/B158))/'Acido - Base forte'!$F$1 -> 0.002511886033 | K158: =(B158-(Calcoli!$B$8/B158))/'Acido - Base forte'!$F$2 -> 0.002511886033
A159: =IF((I159*'Acido - Base forte'!$F$3*'Acido - Base forte'!$F$1)/'Acido - Base forte'!$F$2>0,IF((I159*'Acido - Base forte'!$F$3*'Acido - Base forte'!$F$1)/'Acido - Base forte'!$F$2<1.8*Calcoli!$B$13*('Acido - Base forte'!$F$1*'Acido - Base forte'!$F$3/'Acido - Base forte'!$F$2),I159*'Acido - Base forte'!$F$3*'Acido - Base forte'!$F$1/'Acido - Base forte'!$F$2,NA()),NA()) -> 24.17222203 | B159: 0.0002238721139 | C159: 3.65 | D159: =IF(Calcoli!$B$13=3,B159^Calcoli!$B$13+Calcoli!$B$9*B159^2+Calcoli!$B$9*Calcoli!$B$10*B159+Calcoli!$B$9*Calcoli!$B$10*Calcoli!$B$11,IF(Calcoli!$B$13=2,B159^Calcoli!$B$13+Calcoli!$B$9*B159+Calcoli!$B$9*Calcoli!$B$10,B159^Calcoli!$B$13+Calcoli!$B$9)) -> 1.729624577e-06 | E159: =(Calcoli!$B$9*B159^(Calcoli!$B$13-1))/D159 -> 0.9707545071 | F159: =IF(Calcoli!$B$13>=2, (Calcoli!$B$9*Calcoli!$B$10*B159^(Calcoli!$B$13-2))/D159,NA()) -> 0.0002688444684 | G159: =IF(Calcoli!$B$13>=3,(Calcoli!$B$9*Calcoli!$B$10*Calcoli!$B$11*B159^(Calcoli!$B$13-3))/D159,NA()) ->  | H159: =IF(Calcoli!$B$13=3,(E159+F159*2+G159*3),IF(Calcoli!$B$13=2,(E159+F159*2),E159)) -> 0.971292196 | I159: 0.9668888812 | J159: =(B159-(Calcoli!$B$8/B159))/'Acido - Base forte'!$F$1 -> 0.002238720692 | K159: =(B159-(Calcoli!$B$8/B159))/'Acido - Base forte'!$F$2 -> 0.002238720692
A160: =IF((I160*'Acido - Base forte'!$F$3*'Acido - Base forte'!$F$1)/'Acido - Base forte'!$F$2>0,IF((I160*'Acido - Base forte'!$F$3*'Acido - Base forte'!$F$1)/'Acido - Base forte'!$F$2<1.8*Calcoli!$B$13*('Acido - Base forte'!$F$1*'Acido - Base forte'!$F$3/'Acido - Base forte'!$F$2),I160*'Acido - Base forte'!$F$3*'Acido - Base forte'!$F$1/'Acido - Base forte'!$F$2,NA()),NA()) -> 24.26161871 | B160: 0.0001995262315 | C160: 3.7 | D160: =IF(Calcoli!$B$13=3,B160^Calcoli!$B$13+Calcoli!$B$9*B160^2+Calcoli!$B$9*Calcoli!$B$10*B160+Calcoli!$B$9*Calcoli!$B$10*Calcoli!$B$11,IF(Calcoli!$B$13=2,B160^Calcoli!$B$13+Calcoli!$B$9*B160+Calcoli!$B$9*Calcoli!$B$10,B160^Calcoli!$B$13+Calcoli!$B$9)) -> 1.536722453e-06 | E160: =(Calcoli!$B$9*B160^(Calcoli!$B$13-1))/D160 -> 0.9737911573 | F160: =IF(Calcoli!$B$13>=2, (Calcoli!$B$9*Calcoli!$B$10*B160^(Calcoli!$B$13-2))/D160,NA()) -> 0.0003025920517 | G160: =IF(Calcoli!$B$13>=3,(Calcoli!$B$9*Calcoli!$B$10*Calcoli!$B$11*B160^(Calcoli!$B$13-3))/D160,NA()) ->  | H160: =IF(Calcoli!$B$13=3,(E160+F160*2+G160*3),IF(Calcoli!$B$13=2,(E160+F160*2),E160)) -> 0.9743963414 | I160: 0.9704647483 | J160: =(B160-(Calcoli!$B$8/B160))/'Acido - Base forte'!$F$1 -> 0.001995261814 | K160: =(B160-(Calcoli!$B$8/B160))/'Acido - Base forte'!$F$2 -> 0.001995261814
A161: =IF((I161*'Acido - Base forte'!$F$3*'Acido - Base forte'!$F$1)/'Acido - Base forte'!$F$2>0,IF((I161*'Acido - Base forte'!$F$3*'Acido - Base forte'!$F$1)/'Acido - Base forte'!$F$2<1.8*Calcoli!$B$13*('Acido - Base forte'!$F$1*'Acido - Base forte'!$F$3/'Acido - Base forte'!$F$2),I161*'Acido - Base forte'!$F$3*'Acido - Base forte'!$F$1/'Acido - Base forte'!$F$2,NA()),NA()) -> 24.34193417 | B161: 0.000177827941 | C161: 3.75 | D161: =IF(Calcoli!$B$13=3,B161^Calcoli!$B$13+Calcoli!$B$9*B161^2+Calcoli!$B$9*Calcoli!$B$10*B161+Calcoli!$B$9*Calcoli!$B$10*Calcoli!$B$11,IF(Calcoli!$B$13=2,B161^Calcoli!$B$13+Calcoli!$B$9*B161+Calcoli!$B$9*Calcoli!$B$10,B161^Calcoli!$B$13+Calcoli!$B$9)) -> 1.365797334e-06 | E161: =(Calcoli!$B$9*B161^(Calcoli!$B$13-1))/D161 -> 0.9765061947 | F161: =IF(Calcoli!$B$13>=2, (Calcoli!$B$9*Calcoli!$B$10*B161^(Calcoli!$B$13-2))/D161,NA()) -> 0.0003404604683 | G161: =IF(Calcoli!$B$13>=3,(Calcoli!$B$9*Calcoli!$B$10*Calcoli!$B$11*B161^(Calcoli!$B$13-3))/D161,NA()) ->  | H161: =IF(Calcoli!$B$13=3,(E161+F161*2+G161*3),IF(Calcoli!$B$13=2,(E161+F161*2),E161)) -> 0.9771871157 | I161: 0.973677367 | J161: =(B161-(Calcoli!$B$8/B161))/'Acido - Base forte'!$F$1 -> 0.001778278848 | K161: =(B161-(Calcoli!$B$8/B161))/'Acido - Base forte'!$F$2 -> 0.001778278848
A162: =IF((I162*'Acido - Base forte'!$F$3*'Acido - Base forte'!$F$1)/'Acido - Base forte'!$F$2>0,IF((I162*'Acido - Base forte'!$F$3*'Acido - Base forte'!$F$1)/'Acido - Base forte'!$F$2<1.8*Calcoli!$B$13*('Acido - Base forte'!$F$1*'Acido - Base forte'!$F$3/'Acido - Base forte'!$F$2),I162*'Acido - Base forte'!$F$3*'Acido - Base forte'!$F$1/'Acido - Base forte'!$F$2,NA()),NA()) -> 24.41409106 | B162: =10^-C162 -> 0.0001584893192 | C162: 3.8 | D162: =IF(Calcoli!$B$13=3,B162^Calcoli!$B$13+Calcoli!$B$9*B162^2+Calcoli!$B$9*Calcoli!$B$10*B162+Calcoli!$B$9*Calcoli!$B$10*Calcoli!$B$11,IF(Calcoli!$B$13=2,B162^Calcoli!$B$13+Calcoli!$B$9*B162+Calcoli!$B$9*Calcoli!$B$10,B162^Calcoli!$B$13+Calcoli!$B$9)) -> 1.214253759e-06 | E162: =(Calcoli!$B$9*B162^(Calcoli!$B$13-1))/D162 -> 0.9789303808 | F162: =IF(Calcoli!$B$13>=2, (Calcoli!$B$9*Calcoli!$B$10*B162^(Calcoli!$B$13-2))/D162,NA()) -> 0.0003829512544 | G162: =IF(Calcoli!$B$13>=3,(Calcoli!$B$9*Calcoli!$B$10*Calcoli!$B$11*B162^(Calcoli!$B$13-3))/D162,NA()) ->  | H162: =IF(Calcoli!$B$13=3,(E162+F162*2+G162*3),IF(Calcoli!$B$13=2,(E162+F162*2),E162)) -> 0.9796962833 | I162: =(H162-J162)/(1+K162) -> 0.9765636423 | J162: =(B162-(Calcoli!$B$8/B162))/'Acido - Base forte'!$F$1 -> 0.001584892562 | K162: =(B162-(Calcoli!$B$8/B162))/'Acido - Base forte'!$F$2 -> 0.001584892562
A163: =IF((I163*'Acido - Base forte'!$F$3*'Acido - Base forte'!$F$1)/'Acido - Base forte'!$F$2>0,IF((I163*'Acido - Base forte'!$F$3*'Acido - Base forte'!$F$1)/'Acido - Base forte'!$F$2<1.8*Calcoli!$B$13*('Acido - Base forte'!$F$1*'Acido - Base forte'!$F$3/'Acido - Base forte'!$F$2),I163*'Acido - Base forte'!$F$3*'Acido - Base forte'!$F$1/'Acido - Base forte'!$F$2,NA()),NA()) -> 24.47893193 | B163: 0.0001412537545 | C163: 3.85 | D163: =IF(Calcoli!$B$13=3,B163^Calcoli!$B$13+Calcoli!$B$9*B163^2+Calcoli!$B$9*Calcoli!$B$10*B163+Calcoli!$B$9*Calcoli!$B$10*Calcoli!$B$11,IF(Calcoli!$B$13=2,B163^Calcoli!$B$13+Calcoli!$B$9*B163+Calcoli!$B$9*Calcoli!$B$10,B163^Calcoli!$B$13+Calcoli!$B$9)) -> 1.079820782e-06 | E163: =(Calcoli!$B$9*B163^(Calcoli!$B$13-1))/D163 -> 0.9810916557 | F163: =IF(Calcoli!$B$13>=2, (Calcoli!$B$9*Calcoli!$B$10*B163^(Calcoli!$B$13-2))/D163,NA()) -> 0.0004306270151 | G163: =IF(Calcoli!$B$13>=3,(Calcoli!$B$9*Calcoli!$B$10*Calcoli!$B$11*B163^(Calcoli!$B$13-3))/D163,NA()) ->  | H163: =IF(Calcoli!$B$13=3,(E163+F163*2+G163*3),IF(Calcoli!$B$13=2,(E163+F163*2),E163)) -> 0.9819529097 | I163: 0.9791572771 | J163: =(B163-(Calcoli!$B$8/B163))/'Acido - Base forte'!$F$1 -> 0.001412536837 | K163: =(B163-(Calcoli!$B$8/B163))/'Acido - Base forte'!$F$2 -> 0.001412536837
A164: =IF((I164*'Acido - Base forte'!$F$3*'Acido - Base forte'!$F$1)/'Acido - Base forte'!$F$2>0,IF((I164*'Acido - Base forte'!$F$3*'Acido - Base forte'!$F$1)/'Acido - Base forte'!$F$2<1.8*Calcoli!$B$13*('Acido - Base forte'!$F$1*'Acido - Base forte'!$F$3/'Acido - Base forte'!$F$2),I164*'Acido - Base forte'!$F$3*'Acido - Base forte'!$F$1/'Acido - Base forte'!$F$2,NA()),NA()) -> 24.53722502 | B164: 0.0001258925412 | C164: 3.9 | D164: =IF(Calcoli!$B$13=3,B164^Calcoli!$B$13+Calcoli!$B$9*B164^2+Calcoli!$B$9*Calcoli!$B$10*B164+Calcoli!$B$9*Calcoli!$B$10*Calcoli!$B$11,IF(Calcoli!$B$13=2,B164^Calcoli!$B$13+Calcoli!$B$9*B164+Calcoli!$B$9*Calcoli!$B$10,B164^Calcoli!$B$13+Calcoli!$B$9)) -> 9.605079908e-07 | E164: =(Calcoli!$B$9*B164^(Calcoli!$B$13-1))/D164 -> 0.9830153085 | F164: =IF(Calcoli!$B$13>=2, (Calcoli!$B$9*Calcoli!$B$10*B164^(Calcoli!$B$13-2))/D164,NA()) -> 0.0004841188251 | G164: =IF(Calcoli!$B$13>=3,(Calcoli!$B$9*Calcoli!$B$10*Calcoli!$B$11*B164^(Calcoli!$B$13-3))/D164,NA()) ->  | H164: =IF(Calcoli!$B$13=3,(E164+F164*2+G164*3),IF(Calcoli!$B$13=2,(E164+F164*2),E164)) -> 0.9839835461 | I164: 0.9814890008 | J164: =(B164-(Calcoli!$B$8/B164))/'Acido - Base forte'!$F$1 -> 0.001258924617 | K164: =(B164-(Calcoli!$B$8/B164))/'Acido - Base forte'!$F$2 -> 0.001258924617
A165: =IF((I165*'Acido - Base forte'!$F$3*'Acido - Base forte'!$F$1)/'Acido - Base forte'!$F$2>0,IF((I165*'Acido - Base forte'!$F$3*'Acido - Base forte'!$F$1)/'Acido - Base forte'!$F$2<1.8*Calcoli!$B$13*('Acido - Base forte'!$F$1*'Acido - Base forte'!$F$3/'Acido - Base forte'!$F$2),I165*'Acido - Base forte'!$F$3*'Acido - Base forte'!$F$1/'Acido - Base forte'!$F$2,NA()),NA()) -> 24.58966999 | B165: 0.0001122018454 | C165: 3.95 | D165: =IF(Calcoli!$B$13=3,B165^Calcoli!$B$13+Calcoli!$B$9*B165^2+Calcoli!$B$9*Calcoli!$B$10*B165+Calcoli!$B$9*Calcoli!$B$10*Calcoli!$B$11,IF(Calcoli!$B$13=2,B165^Calcoli!$B$13+Calcoli!$B$9*B165+Calcoli!$B$9*Calcoli!$B$10,B165^Calcoli!$B$13+Calcoli!$B$9)) -> 8.545680948e-07 | E165: =(Calcoli!$B$9*B165^(Calcoli!$B$13-1))/D165 -> 0.9847241499 | F165: =IF(Calcoli!$B$13>=2, (Calcoli!$B$9*Calcoli!$B$10*B165^(Calcoli!$B$13-2))/D165,NA()) -> 0.0005441345199 | G165: =IF(Calcoli!$B$13>=3,(Calcoli!$B$9*Calcoli!$B$10*Calcoli!$B$11*B165^(Calcoli!$B$13-3))/D165,NA()) ->  | H165: =IF(Calcoli!$B$13=3,(E165+F165*2+G165*3),IF(Calcoli!$B$13=2,(E165+F165*2),E165)) -> 0.9858124189 | I165: 0.9835867997 | J165: =(B165-(Calcoli!$B$8/B165))/'Acido - Base forte'!$F$1 -> 0.001122017563 | K165: =(B165-(Calcoli!$B$8/B165))/'Acido - Base forte'!$F$2 -> 0.001122017563
A166: =IF((I166*'Acido - Base forte'!$F$3*'Acido - Base forte'!$F$1)/'Acido - Base forte'!$F$2>0,IF((I166*'Acido - Base forte'!$F$3*'Acido - Base forte'!$F$1)/'Acido - Base forte'!$F$2<1.8*Calcoli!$B$13*('Acido - Base forte'!$F$1*'Acido - Base forte'!$F$3/'Acido - Base forte'!$F$2),I166*'Acido - Base forte'!$F$3*'Acido - Base forte'!$F$1/'Acido - Base forte'!$F$2,NA()),NA()) -> 24.63690362 | B166: 0.0001 | C166: 4 | D166: =IF(Calcoli!$B$13=3,B166^Calcoli!$B$13+Calcoli!$B$9*B166^2+Calcoli!$B$9*Calcoli!$B$10*B166+Calcoli!$B$9*Calcoli!$B$10*Calcoli!$B$11,IF(Calcoli!$B$13=2,B166^Calcoli!$B$13+Calcoli!$B$9*B166+Calcoli!$B$9*Calcoli!$B$10,B166^Calcoli!$B$13+Calcoli!$B$9)) -> 7.60465e-07 | E166: =(Calcoli!$B$9*B166^(Calcoli!$B$13-1))/D166 -> 0.9862386829 | F166: =IF(Calcoli!$B$13>=2, (Calcoli!$B$9*Calcoli!$B$10*B166^(Calcoli!$B$13-2))/D166,NA()) -> 0.0006114679834 | G166: =IF(Calcoli!$B$13>=3,(Calcoli!$B$9*Calcoli!$B$10*Calcoli!$B$11*B166^(Calcoli!$B$13-3))/D166,NA()) ->  | H166: =IF(Calcoli!$B$13=3,(E166+F166*2+G166*3),IF(Calcoli!$B$13=2,(E166+F166*2),E166)) -> 0.9874616189 | I166: 0.9854761447 | J166: =(B166-(Calcoli!$B$8/B166))/'Acido - Base forte'!$F$1 -> 0.000999999 | K166: =(B166-(Calcoli!$B$8/B166))/'Acido - Base forte'!$F$2 -> 0.000999999
A167: =IF((I167*'Acido - Base forte'!$F$3*'Acido - Base forte'!$F$1)/'Acido - Base forte'!$F$2>0,IF((I167*'Acido - Base forte'!$F$3*'Acido - Base forte'!$F$1)/'Acido - Base forte'!$F$2<1.8*Calcoli!$B$13*('Acido - Base forte'!$F$1*'Acido - Base forte'!$F$3/'Acido - Base forte'!$F$2),I167*'Acido - Base forte'!$F$3*'Acido - Base forte'!$F$1/'Acido - Base forte'!$F$2,NA()),NA()) -> 24.67950533 | B167: 8.912509381e-05 | C167: 4.05 | D167: =IF(Calcoli!$B$13=3,B167^Calcoli!$B$13+Calcoli!$B$9*B167^2+Calcoli!$B$9*Calcoli!$B$10*B167+Calcoli!$B$9*Calcoli!$B$10*Calcoli!$B$11,IF(Calcoli!$B$13=2,B167^Calcoli!$B$13+Calcoli!$B$9*B167+Calcoli!$B$9*Calcoli!$B$10,B167^Calcoli!$B$13+Calcoli!$B$9)) -> 6.768464859e-07 | E167: =(Calcoli!$B$9*B167^(Calcoli!$B$13-1))/D167 -> 0.9875772682 | F167: =IF(Calcoli!$B$13>=2, (Calcoli!$B$9*Calcoli!$B$10*B167^(Calcoli!$B$13-2))/D167,NA()) -> 0.0006870095504 | G167: =IF(Calcoli!$B$13>=3,(Calcoli!$B$9*Calcoli!$B$10*Calcoli!$B$11*B167^(Calcoli!$B$13-3))/D167,NA()) ->  | H167: =IF(Calcoli!$B$13=3,(E167+F167*2+G167*3),IF(Calcoli!$B$13=2,(E167+F167*2),E167)) -> 0.9889512873 | I167: 0.9871802133 | J167: =(B167-(Calcoli!$B$8/B167))/'Acido - Base forte'!$F$1 -> 0.0008912498161 | K167: =(B167-(Calcoli!$B$8/B167))/'Acido - Base forte'!$F$2 -> 0.0008912498161
A168: =IF((I168*'Acido - Base forte'!$F$3*'Acido - Base forte'!$F$1)/'Acido - Base forte'!$F$2>0,IF((I168*'Acido - Base forte'!$F$3*'Acido - Base forte'!$F$1)/'Acido - Base forte'!$F$2<1.8*Calcoli!$B$13*('Acido - Base forte'!$F$1*'Acido - Base forte'!$F$3/'Acido - Base forte'!$F$2),I168*'Acido - Base forte'!$F$3*'Acido - Base forte'!$F$1/'Acido - Base forte'!$F$2,NA()),NA()) -> 24.71800258 | B168: 7.943282347e-05 | C168: 4.1 | D168: =IF(Calcoli!$B$13=3,B168^Calcoli!$B$13+Calcoli!$B$9*B168^2+Calcoli!$B$9*Calcoli!$B$10*B168+Calcoli!$B$9*Calcoli!$B$10*Calcoli!$B$11,IF(Calcoli!$B$13=2,B168^Calcoli!$B$13+Calcoli!$B$9*B168+Calcoli!$B$9*Calcoli!$B$10,B168^Calcoli!$B$13+Calcoli!$B$9)) -> 6.025207495e-07 | E168: =(Calcoli!$B$9*B168^(Calcoli!$B$13-1))/D168 -> 0.9887562819 | F168: =IF(Calcoli!$B$13>=2, (Calcoli!$B$9*Calcoli!$B$10*B168^(Calcoli!$B$13-2))/D168,NA()) -> 0.0007717576538 | G168: =IF(Calcoli!$B$13>=3,(Calcoli!$B$9*Calcoli!$B$10*Calcoli!$B$11*B168^(Calcoli!$B$13-3))/D168,NA()) ->  | H168: =IF(Calcoli!$B$13=3,(E168+F168*2+G168*3),IF(Calcoli!$B$13=2,(E168+F168*2),E168)) -> 0.9902997972 | I168: 0.9887201032 | J168: =(B168-(Calcoli!$B$8/B168))/'Acido - Base forte'!$F$1 -> 0.0007943269758 | K168: =(B168-(Calcoli!$B$8/B168))/'Acido - Base forte'!$F$2 -> 0.0007943269758
A169: =IF((I169*'Acido - Base forte'!$F$3*'Acido - Base forte'!$F$1)/'Acido - Base forte'!$F$2>0,IF((I169*'Acido - Base forte'!$F$3*'Acido - Base forte'!$F$1)/'Acido - Base forte'!$F$2<1.8*Calcoli!$B$13*('Acido - Base forte'!$F$1*'Acido - Base forte'!$F$3/'Acido - Base forte'!$F$2),I169*'Acido - Base forte'!$F$3*'Acido - Base forte'!$F$1/'Acido - Base forte'!$F$2,NA()),NA()) -> 24.75287591 | B169: 7.079457844e-05 | C169: 4.15 | D169: =IF(Calcoli!$B$13=3,B169^Calcoli!$B$13+Calcoli!$B$9*B169^2+Calcoli!$B$9*Calcoli!$B$10*B169+Calcoli!$B$9*Calcoli!$B$10*Calcoli!$B$11,IF(Calcoli!$B$13=2,B169^Calcoli!$B$13+Calcoli!$B$9*B169+Calcoli!$B$9*Calcoli!$B$10,B169^Calcoli!$B$13+Calcoli!$B$9)) -> 5.364362106e-07 | E169: =(Calcoli!$B$9*B169^(Calcoli!$B$13-1))/D169 -> 0.9897902635 | F169: =IF(Calcoli!$B$13>=2, (Calcoli!$B$9*Calcoli!$B$10*B169^(Calcoli!$B$13-2))/D169,NA()) -> 0.0008668318633 | G169: =IF(Calcoli!$B$13>=3,(Calcoli!$B$9*Calcoli!$B$10*Calcoli!$B$11*B169^(Calcoli!$B$13-3))/D169,NA()) ->  | H169: =IF(Calcoli!$B$13=3,(E169+F169*2+G169*3),IF(Calcoli!$B$13=2,(E169+F169*2),E169)) -> 0.9915239273 | I169: 0.9901150365 | J169: =(B169-(Calcoli!$B$8/B169))/'Acido - Base forte'!$F$1 -> 0.0007079443718 | K169: =(B169-(Calcoli!$B$8/B169))/'Acido - Base forte'!$F$2 -> 0.0007079443718
A170: =IF((I170*'Acido - Base forte'!$F$3*'Acido - Base forte'!$F$1)/'Acido - Base forte'!$F$2>0,IF((I170*'Acido - Base forte'!$F$3*'Acido - Base forte'!$F$1)/'Acido - Base forte'!$F$2<1.8*Calcoli!$B$13*('Acido - Base forte'!$F$1*'Acido - Base forte'!$F$3/'Acido - Base forte'!$F$2),I170*'Acido - Base forte'!$F$3*'Acido - Base forte'!$F$1/'Acido - Base forte'!$F$2,NA()),NA()) -> 24.78456385 | B170: 6.309573445e-05 | C170: 4.2 | D170: =IF(Calcoli!$B$13=3,B170^Calcoli!$B$13+Calcoli!$B$9*B170^2+Calcoli!$B$9*Calcoli!$B$10*B170+Calcoli!$B$9*Calcoli!$B$10*Calcoli!$B$11,IF(Calcoli!$B$13=2,B170^Calcoli!$B$13+Calcoli!$B$9*B170+Calcoli!$B$9*Calcoli!$B$10,B170^Calcoli!$B$13+Calcoli!$B$9)) -> 4.776640801e-07 | E170: =(Calcoli!$B$9*B170^(Calcoli!$B$13-1))/D170 -> 0.9906920535 | F170: =IF(Calcoli!$B$13>=2, (Calcoli!$B$9*Calcoli!$B$10*B170^(Calcoli!$B$13-2))/D170,NA()) -> 0.0009734874767 | G170: =IF(Calcoli!$B$13>=3,(Calcoli!$B$9*Calcoli!$B$10*Calcoli!$B$11*B170^(Calcoli!$B$13-3))/D170,NA()) ->  | H170: =IF(Calcoli!$B$13=3,(E170+F170*2+G170*3),IF(Calcoli!$B$13=2,(E170+F170*2),E170)) -> 0.9926390284 | I170: 0.9913825542 | J170: =(B170-(Calcoli!$B$8/B170))/'Acido - Base forte'!$F$1 -> 0.0006309557596 | K170: =(B170-(Calcoli!$B$8/B170))/'Acido - Base forte'!$F$2 -> 0.0006309557596
A171: =IF((I171*'Acido - Base forte'!$F$3*'Acido - Base forte'!$F$1)/'Acido - Base forte'!$F$2>0,IF((I171*'Acido - Base forte'!$F$3*'Acido - Base forte'!$F$1)/'Acido - Base forte'!$F$2<1.8*Calcoli!$B$13*('Acido - Base forte'!$F$1*'Acido - Base forte'!$F$3/'Acido - Base forte'!$F$2),I171*'Acido - Base forte'!$F$3*'Acido - Base forte'!$F$1/'Acido - Base forte'!$F$2,NA()),NA()) -> 24.81346748 | B171: 5.623413252e-05 | C171: 4.25 | D171: =IF(Calcoli!$B$13=3,B171^Calcoli!$B$13+Calcoli!$B$9*B171^2+Calcoli!$B$9*Calcoli!$B$10*B171+Calcoli!$B$9*Calcoli!$B$10*Calcoli!$B$11,IF(Calcoli!$B$13=2,B171^Calcoli!$B$13+Calcoli!$B$9*B171+Calcoli!$B$9*Calcoli!$B$10,B171^Calcoli!$B$13+Calcoli!$B$9)) -> 4.253832716e-07 | E171: =(Calcoli!$B$9*B171^(Calcoli!$B$13-1))/D171 -> 0.9914729189 | F171: =IF(Calcoli!$B$13>=2, (Calcoli!$B$9*Calcoli!$B$10*B171^(Calcoli!$B$13-2))/D171,NA()) -> 0.001093131844 | G171: =IF(Calcoli!$B$13>=3,(Calcoli!$B$9*Calcoli!$B$10*Calcoli!$B$11*B171^(Calcoli!$B$13-3))/D171,NA()) ->  | H171: =IF(Calcoli!$B$13=3,(E171+F171*2+G171*3),IF(Calcoli!$B$13=2,(E171+F171*2),E171)) -> 0.9936591826 | I171: 0.9925386993 | J171: =(B171-(Calcoli!$B$8/B171))/'Acido - Base forte'!$F$1 -> 0.0005623395469 | K171: =(B171-(Calcoli!$B$8/B171))/'Acido - Base forte'!$F$2 -> 0.0005623395469
A172: =IF((I172*'Acido - Base forte'!$F$3*'Acido - Base forte'!$F$1)/'Acido - Base forte'!$F$2>0,IF((I172*'Acido - Base forte'!$F$3*'Acido - Base forte'!$F$1)/'Acido - Base forte'!$F$2<1.8*Calcoli!$B$13*('Acido - Base forte'!$F$1*'Acido - Base forte'!$F$3/'Acido - Base forte'!$F$2),I172*'Acido - Base forte'!$F$3*'Acido - Base forte'!$F$1/'Acido - Base forte'!$F$2,NA()),NA()) -> 24.83995477 | B172: 5.011872336e-05 | C172: 4.3 | D172: =IF(Calcoli!$B$13=3,B172^Calcoli!$B$13+Calcoli!$B$9*B172^2+Calcoli!$B$9*Calcoli!$B$10*B172+Calcoli!$B$9*Calcoli!$B$10*Calcoli!$B$11,IF(Calcoli!$B$13=2,B172^Calcoli!$B$13+Calcoli!$B$9*B172+Calcoli!$B$9*Calcoli!$B$10,B172^Calcoli!$B$13+Calcoli!$B$9)) -> 3.788673117e-07 | E172: =(Calcoli!$B$9*B172^(Calcoli!$B$13-1))/D172 -> 0.9921426675 | F172: =IF(Calcoli!$B$13>=2, (Calcoli!$B$9*Calcoli!$B$10*B172^(Calcoli!$B$13-2))/D172,NA()) -> 0.001227342623 | G172: =IF(Calcoli!$B$13>=3,(Calcoli!$B$9*Calcoli!$B$10*Calcoli!$B$11*B172^(Calcoli!$B$13-3))/D172,NA()) ->  | H172: =IF(Calcoli!$B$13=3,(E172+F172*2+G172*3),IF(Calcoli!$B$13=2,(E172+F172*2),E172)) -> 0.9945973528 | I172: 0.9935981908 | J172: =(B172-(Calcoli!$B$8/B172))/'Acido - Base forte'!$F$1 -> 0.0005011852384 | K172: =(B172-(Calcoli!$B$8/B172))/'Acido - Base forte'!$F$2 -> 0.0005011852384
A173: =IF((I173*'Acido - Base forte'!$F$3*'Acido - Base forte'!$F$1)/'Acido - Base forte'!$F$2>0,IF((I173*'Acido - Base forte'!$F$3*'Acido - Base forte'!$F$1)/'Acido - Base forte'!$F$2<1.8*Calcoli!$B$13*('Acido - Base forte'!$F$1*'Acido - Base forte'!$F$3/'Acido - Base forte'!$F$2),I173*'Acido - Base forte'!$F$3*'Acido - Base forte'!$F$1/'Acido - Base forte'!$F$2,NA()),NA()) -> 24.86436467 | B173: 4.466835922e-05 | C173: 4.35 | D173: =IF(Calcoli!$B$13=3,B173^Calcoli!$B$13+Calcoli!$B$9*B173^2+Calcoli!$B$9*Calcoli!$B$10*B173+Calcoli!$B$9*Calcoli!$B$10*Calcoli!$B$11,IF(Calcoli!$B$13=2,B173^Calcoli!$B$13+Calcoli!$B$9*B173+Calcoli!$B$9*Calcoli!$B$10,B173^Calcoli!$B$13+Calcoli!$B$9)) -> 3.374729564e-07 | E173: =(Calcoli!$B$9*B173^(Calcoli!$B$13-1))/D173 -> 0.9927097497 | F173: =IF(Calcoli!$B$13>=2, (Calcoli!$B$9*Calcoli!$B$10*B173^(Calcoli!$B$13-2))/D173,NA()) -> 0.001377888187 | G173: =IF(Calcoli!$B$13>=3,(Calcoli!$B$9*Calcoli!$B$10*Calcoli!$B$11*B173^(Calcoli!$B$13-3))/D173,NA()) ->  | H173: =IF(Calcoli!$B$13=3,(E173+F173*2+G173*3),IF(Calcoli!$B$13=2,(E173+F173*2),E173)) -> 0.9954655261 | I173: 0.9945745868 | J173: =(B173-(Calcoli!$B$8/B173))/'Acido - Base forte'!$F$1 -> 0.0004466813534 | K173: =(B173-(Calcoli!$B$8/B173))/'Acido - Base forte'!$F$2 -> 0.0004466813534
A174: =IF((I174*'Acido - Base forte'!$F$3*'Acido - Base forte'!$F$1)/'Acido - Base forte'!$F$2>0,IF((I174*'Acido - Base forte'!$F$3*'Acido - Base forte'!$F$1)/'Acido - Base forte'!$F$2<1.8*Calcoli!$B$13*('Acido - Base forte'!$F$1*'Acido - Base forte'!$F$3/'Acido - Base forte'!$F$2),I174*'Acido - Base forte'!$F$3*'Acido - Base forte'!$F$1/'Acido - Base forte'!$F$2,NA()),NA()) -> 24.88701097 | B174: 3.981071706e-05 | C174: 4.4 | D174: =IF(Calcoli!$B$13=3,B174^Calcoli!$B$13+Calcoli!$B$9*B174^2+Calcoli!$B$9*Calcoli!$B$10*B174+Calcoli!$B$9*Calcoli!$B$10*Calcoli!$B$11,IF(Calcoli!$B$13=2,B174^Calcoli!$B$13+Calcoli!$B$9*B174+Calcoli!$B$9*Calcoli!$B$10,B174^Calcoli!$B$13+Calcoli!$B$9)) -> 3.006302711e-07 | E174: =(Calcoli!$B$9*B174^(Calcoli!$B$13-1))/D174 -> 0.993181348 | F174: =IF(Calcoli!$B$13>=2, (Calcoli!$B$9*Calcoli!$B$10*B174^(Calcoli!$B$13-2))/D174,NA()) -> 0.001546750426 | G174: =IF(Calcoli!$B$13>=3,(Calcoli!$B$9*Calcoli!$B$10*Calcoli!$B$11*B174^(Calcoli!$B$13-3))/D174,NA()) ->  | H174: =IF(Calcoli!$B$13=3,(E174+F174*2+G174*3),IF(Calcoli!$B$13=2,(E174+F174*2),E174)) -> 0.9962748489 | I174: 0.9954804388 | J174: =(B174-(Calcoli!$B$8/B174))/'Acido - Base forte'!$F$1 -> 0.0003981046587 | K174: =(B174-(Calcoli!$B$8/B174))/'Acido - Base forte'!$F$2 -> 0.0003981046587
A175: =IF((I175*'Acido - Base forte'!$F$3*'Acido - Base forte'!$F$1)/'Acido - Base forte'!$F$2>0,IF((I175*'Acido - Base forte'!$F$3*'Acido - Base forte'!$F$1)/'Acido - Base forte'!$F$2<1.8*Calcoli!$B$13*('Acido - Base forte'!$F$1*'Acido - Base forte'!$F$3/'Acido - Base forte'!$F$2),I175*'Acido - Base forte'!$F$3*'Acido - Base forte'!$F$1/'Acido - Base forte'!$F$2,NA()),NA()) -> 24.90818593 | B175: 3.548133892e-05 | C175: 4.45 | D175: =IF(Calcoli!$B$13=3,B175^Calcoli!$B$13+Calcoli!$B$9*B175^2+Calcoli!$B$9*Calcoli!$B$10*B175+Calcoli!$B$9*Calcoli!$B$10*Calcoli!$B$11,IF(Calcoli!$B$13=2,B175^Calcoli!$B$13+Calcoli!$B$9*B175+Calcoli!$B$9*Calcoli!$B$10,B175^Calcoli!$B$13+Calcoli!$B$9)) -> 2.678339673e-07 | E175: =(Calcoli!$B$9*B175^(Calcoli!$B$13-1))/D175 -> 0.9935634549 | F175: =IF(Calcoli!$B$13>=2, (Calcoli!$B$9*Calcoli!$B$10*B175^(Calcoli!$B$13-2))/D175,NA()) -> 0.001736150215 | G175: =IF(Calcoli!$B$13>=3,(Calcoli!$B$9*Calcoli!$B$10*Calcoli!$B$11*B175^(Calcoli!$B$13-3))/D175,NA()) ->  | H175: =IF(Calcoli!$B$13=3,(E175+F175*2+G175*3),IF(Calcoli!$B$13=2,(E175+F175*2),E175)) -> 0.9970357553 | I175: 0.9963274372 | J175: =(B175-(Calcoli!$B$8/B175))/'Acido - Base forte'!$F$1 -> 0.0003548105709 | K175: =(B175-(Calcoli!$B$8/B175))/'Acido - Base forte'!$F$2 -> 0.0003548105709
A176: =IF((I176*'Acido - Base forte'!$F$3*'Acido - Base forte'!$F$1)/'Acido - Base forte'!$F$2>0,IF((I176*'Acido - Base forte'!$F$3*'Acido - Base forte'!$F$1)/'Acido - Base forte'!$F$2<1.8*Calcoli!$B$13*('Acido - Base forte'!$F$1*'Acido - Base forte'!$F$3/'Acido - Base forte'!$F$2),I176*'Acido - Base forte'!$F$3*'Acido - Base forte'!$F$1/'Acido - Base forte'!$F$2,NA()),NA()) -> 24.92816374 | B176: 3.16227766e-05 | C176: 4.5 | D176: =IF(Calcoli!$B$13=3,B176^Calcoli!$B$13+Calcoli!$B$9*B176^2+Calcoli!$B$9*Calcoli!$B$10*B176+Calcoli!$B$9*Calcoli!$B$10*Calcoli!$B$11,IF(Calcoli!$B$13=2,B176^Calcoli!$B$13+Calcoli!$B$9*B176+Calcoli!$B$9*Calcoli!$B$10,B176^Calcoli!$B$13+Calcoli!$B$9)) -> 2.386358245e-07 | E176: =(Calcoli!$B$9*B176^(Calcoli!$B$13-1))/D176 -> 0.9938609385 | F176: =IF(Calcoli!$B$13>=2, (Calcoli!$B$9*Calcoli!$B$10*B176^(Calcoli!$B$13-2))/D176,NA()) -> 0.001948575831 | G176: =IF(Calcoli!$B$13>=3,(Calcoli!$B$9*Calcoli!$B$10*Calcoli!$B$11*B176^(Calcoli!$B$13-3))/D176,NA()) ->  | H176: =IF(Calcoli!$B$13=3,(E176+F176*2+G176*3),IF(Calcoli!$B$13=2,(E176+F176*2),E176)) -> 0.9977580902 | I176: 0.9971265496 | J176: =(B176-(Calcoli!$B$8/B176))/'Acido - Base forte'!$F$1 -> 0.0003162246037 | K176: =(B176-(Calcoli!$B$8/B176))/'Acido - Base forte'!$F$2 -> 0.0003162246037
A177: =IF((I177*'Acido - Base forte'!$F$3*'Acido - Base forte'!$F$1)/'Acido - Base forte'!$F$2>0,IF((I177*'Acido - Base forte'!$F$3*'Acido - Base forte'!$F$1)/'Acido - Base forte'!$F$2<1.8*Calcoli!$B$13*('Acido - Base forte'!$F$1*'Acido - Base forte'!$F$3/'Acido - Base forte'!$F$2),I177*'Acido - Base forte'!$F$3*'Acido - Base forte'!$F$1/'Acido - Base forte'!$F$2,NA()),NA()) -> 24.9472038 | B177: 2.818382931e-05 | C177: 4.55 | D177: =IF(Calcoli!$B$13=3,B177^Calcoli!$B$13+Calcoli!$B$9*B177^2+Calcoli!$B$9*Calcoli!$B$10*B177+Calcoli!$B$9*Calcoli!$B$10*Calcoli!$B$11,IF(Calcoli!$B$13=2,B177^Calcoli!$B$13+Calcoli!$B$9*B177+Calcoli!$B$9*Calcoli!$B$10,B177^Calcoli!$B$13+Calcoli!$B$9)) -> 2.126380481e-07 | E177: =(Calcoli!$B$9*B177^(Calcoli!$B$13-1))/D177 -> 0.9940775969 | F177: =IF(Calcoli!$B$13>=2, (Calcoli!$B$9*Calcoli!$B$10*B177^(Calcoli!$B$13-2))/D177,NA()) -> 0.002186814656 | G177: =IF(Calcoli!$B$13>=3,(Calcoli!$B$9*Calcoli!$B$10*Calcoli!$B$11*B177^(Calcoli!$B$13-3))/D177,NA()) ->  | H177: =IF(Calcoli!$B$13=3,(E177+F177*2+G177*3),IF(Calcoli!$B$13=2,(E177+F177*2),E177)) -> 0.9984512262 | I177: 0.9978881519 | J177: =(B177-(Calcoli!$B$8/B177))/'Acido - Base forte'!$F$1 -> 0.000281834745 | K177: =(B177-(Calcoli!$B$8/B177))/'Acido - Base forte'!$F$2 -> 0.000281834745
A178: =IF((I178*'Acido - Base forte'!$F$3*'Acido - Base forte'!$F$1)/'Acido - Base forte'!$F$2>0,IF((I178*'Acido - Base forte'!$F$3*'Acido - Base forte'!$F$1)/'Acido - Base forte'!$F$2<1.8*Calcoli!$B$13*('Acido - Base forte'!$F$1*'Acido - Base forte'!$F$3/'Acido - Base forte'!$F$2),I178*'Acido - Base forte'!$F$3*'Acido - Base forte'!$F$1/'Acido - Base forte'!$F$2,NA()),NA()) -> 24.96555386 | B178: 2.511886432e-05 | C178: 4.6 | D178: =IF(Calcoli!$B$13=3,B178^Calcoli!$B$13+Calcoli!$B$9*B178^2+Calcoli!$B$9*Calcoli!$B$10*B178+Calcoli!$B$9*Calcoli!$B$10*Calcoli!$B$11,IF(Calcoli!$B$13=2,B178^Calcoli!$B$13+Calcoli!$B$9*B178+Calcoli!$B$9*Calcoli!$B$10,B178^Calcoli!$B$13+Calcoli!$B$9)) -> 1.894874397e-07 | E178: =(Calcoli!$B$9*B178^(Calcoli!$B$13-1))/D178 -> 0.9942162006 | F178: =IF(Calcoli!$B$13>=2, (Calcoli!$B$9*Calcoli!$B$10*B178^(Calcoli!$B$13-2))/D178,NA()) -> 0.002453988511 | G178: =IF(Calcoli!$B$13>=3,(Calcoli!$B$9*Calcoli!$B$10*Calcoli!$B$11*B178^(Calcoli!$B$13-3))/D178,NA()) ->  | H178: =IF(Calcoli!$B$13=3,(E178+F178*2+G178*3),IF(Calcoli!$B$13=2,(E178+F178*2),E178)) -> 0.9991241776 | I178: 0.9986221544 | J178: =(B178-(Calcoli!$B$8/B178))/'Acido - Base forte'!$F$1 -> 0.0002511846621 | K178: =(B178-(Calcoli!$B$8/B178))/'Acido - Base forte'!$F$2 -> 0.0002511846621
A179: =IF((I179*'Acido - Base forte'!$F$3*'Acido - Base forte'!$F$1)/'Acido - Base forte'!$F$2>0,IF((I179*'Acido - Base forte'!$F$3*'Acido - Base forte'!$F$1)/'Acido - Base forte'!$F$2<1.8*Calcoli!$B$13*('Acido - Base forte'!$F$1*'Acido - Base forte'!$F$3/'Acido - Base forte'!$F$2),I179*'Acido - Base forte'!$F$3*'Acido - Base forte'!$F$1/'Acido - Base forte'!$F$2,NA()),NA()) -> 24.98345307 | B179: 2.238721139e-05 | C179: 4.65 | D179: =IF(Calcoli!$B$13=3,B179^Calcoli!$B$13+Calcoli!$B$9*B179^2+Calcoli!$B$9*Calcoli!$B$10*B179+Calcoli!$B$9*Calcoli!$B$10*Calcoli!$B$11,IF(Calcoli!$B$13=2,B179^Calcoli!$B$13+Calcoli!$B$9*B179+Calcoli!$B$9*Calcoli!$B$10,B179^Calcoli!$B$13+Calcoli!$B$9)) -> 1.688702726e-07 | E179: =(Calcoli!$B$9*B179^(Calcoli!$B$13-1))/D179 -> 0.9942785239 | F179: =IF(Calcoli!$B$13>=2, (Calcoli!$B$9*Calcoli!$B$10*B179^(Calcoli!$B$13-2))/D179,NA()) -> 0.002753592996 | G179: =IF(Calcoli!$B$13>=3,(Calcoli!$B$9*Calcoli!$B$10*Calcoli!$B$11*B179^(Calcoli!$B$13-3))/D179,NA()) ->  | H179: =IF(Calcoli!$B$13=3,(E179+F179*2+G179*3),IF(Calcoli!$B$13=2,(E179+F179*2),E179)) -> 0.9997857099 | I179: 0.9993381227 | J179: =(B179-(Calcoli!$B$8/B179))/'Acido - Base forte'!$F$1 -> 0.000223867647 | K179: =(B179-(Calcoli!$B$8/B179))/'Acido - Base forte'!$F$2 -> 0.000223867647
A180: =IF((I180*'Acido - Base forte'!$F$3*'Acido - Base forte'!$F$1)/'Acido - Base forte'!$F$2>0,IF((I180*'Acido - Base forte'!$F$3*'Acido - Base forte'!$F$1)/'Acido - Base forte'!$F$2<1.8*Calcoli!$B$13*('Acido - Base forte'!$F$1*'Acido - Base forte'!$F$3/'Acido - Base forte'!$F$2),I180*'Acido - Base forte'!$F$3*'Acido - Base forte'!$F$1/'Acido - Base forte'!$F$2,NA()),NA()) -> 25.0011349 | B180: 1.995262315e-05 | C180: 4.7 | D180: =IF(Calcoli!$B$13=3,B180^Calcoli!$B$13+Calcoli!$B$9*B180^2+Calcoli!$B$9*Calcoli!$B$10*B180+Calcoli!$B$9*Calcoli!$B$10*Calcoli!$B$11,IF(Calcoli!$B$13=2,B180^Calcoli!$B$13+Calcoli!$B$9*B180+Calcoli!$B$9*Calcoli!$B$10,B180^Calcoli!$B$13+Calcoli!$B$9)) -> 1.505077808e-07 | E180: =(Calcoli!$B$9*B180^(Calcoli!$B$13-1))/D180 -> 0.9942653651 | F180: =IF(Calcoli!$B$13>=2, (Calcoli!$B$9*Calcoli!$B$10*B180^(Calcoli!$B$13-2))/D180,NA()) -> 0.003089541269 | G180: =IF(Calcoli!$B$13>=3,(Calcoli!$B$9*Calcoli!$B$10*Calcoli!$B$11*B180^(Calcoli!$B$13-3))/D180,NA()) ->  | H180: =IF(Calcoli!$B$13=3,(E180+F180*2+G180*3),IF(Calcoli!$B$13=2,(E180+F180*2),E180)) -> 1.000444448 | I180: 1.000045396 | J180: =(B180-(Calcoli!$B$8/B180))/'Acido - Base forte'!$F$1 -> 0.0001995212196 | K180: =(B180-(Calcoli!$B$8/B180))/'Acido - Base forte'!$F$2 -> 0.0001995212196
A181: =IF((I181*'Acido - Base forte'!$F$3*'Acido - Base forte'!$F$1)/'Acido - Base forte'!$F$2>0,IF((I181*'Acido - Base forte'!$F$3*'Acido - Base forte'!$F$1)/'Acido - Base forte'!$F$2<1.8*Calcoli!$B$13*('Acido - Base forte'!$F$1*'Acido - Base forte'!$F$3/'Acido - Base forte'!$F$2),I181*'Acido - Base forte'!$F$3*'Acido - Base forte'!$F$1/'Acido - Base forte'!$F$2,NA()),NA()) -> 25.01883006 | B181: 1.77827941e-05 | C181: 4.75 | D181: =IF(Calcoli!$B$13=3,B181^Calcoli!$B$13+Calcoli!$B$9*B181^2+Calcoli!$B$9*Calcoli!$B$10*B181+Calcoli!$B$9*Calcoli!$B$10*Calcoli!$B$11,IF(Calcoli!$B$13=2,B181^Calcoli!$B$13+Calcoli!$B$9*B181+Calcoli!$B$9*Calcoli!$B$10,B181^Calcoli!$B$13+Calcoli!$B$9)) -> 1.341521835e-07 | E181: =(Calcoli!$B$9*B181^(Calcoli!$B$13-1))/D181 -> 0.9941765557 | F181: =IF(Calcoli!$B$13>=2, (Calcoli!$B$9*Calcoli!$B$10*B181^(Calcoli!$B$13-2))/D181,NA()) -> 0.003466212683 | G181: =IF(Calcoli!$B$13>=3,(Calcoli!$B$9*Calcoli!$B$10*Calcoli!$B$11*B181^(Calcoli!$B$13-3))/D181,NA()) ->  | H181: =IF(Calcoli!$B$13=3,(E181+F181*2+G181*3),IF(Calcoli!$B$13=2,(E181+F181*2),E181)) -> 1.001108981 | I181: 1.000753203 | J181: =(B181-(Calcoli!$B$8/B181))/'Acido - Base forte'!$F$1 -> 0.0001778223176 | K181: =(B181-(Calcoli!$B$8/B181))/'Acido - Base forte'!$F$2 -> 0.0001778223176
A182: =IF((I182*'Acido - Base forte'!$F$3*'Acido - Base forte'!$F$1)/'Acido - Base forte'!$F$2>0,IF((I182*'Acido - Base forte'!$F$3*'Acido - Base forte'!$F$1)/'Acido - Base forte'!$F$2<1.8*Calcoli!$B$13*('Acido - Base forte'!$F$1*'Acido - Base forte'!$F$3/'Acido - Base forte'!$F$2),I182*'Acido - Base forte'!$F$3*'Acido - Base forte'!$F$1/'Acido - Base forte'!$F$2,NA()),NA()) -> 25.03676932 | B182: 1.584893192e-05 | C182: 4.8 | D182: =IF(Calcoli!$B$13=3,B182^Calcoli!$B$13+Calcoli!$B$9*B182^2+Calcoli!$B$9*Calcoli!$B$10*B182+Calcoli!$B$9*Calcoli!$B$10*Calcoli!$B$11,IF(Calcoli!$B$13=2,B182^Calcoli!$B$13+Calcoli!$B$9*B182+Calcoli!$B$9*Calcoli!$B$10,B182^Calcoli!$B$13+Calcoli!$B$9)) -> 1.195831781e-07 | E182: =(Calcoli!$B$9*B182^(Calcoli!$B$13-1))/D182 -> 0.9940109583 | F182: =IF(Calcoli!$B$13>=2, (Calcoli!$B$9*Calcoli!$B$10*B182^(Calcoli!$B$13-2))/D182,NA()) -> 0.003888506791 | G182: =IF(Calcoli!$B$13>=3,(Calcoli!$B$9*Calcoli!$B$10*Calcoli!$B$11*B182^(Calcoli!$B$13-3))/D182,NA()) ->  | H182: =IF(Calcoli!$B$13=3,(E182+F182*2+G182*3),IF(Calcoli!$B$13=2,(E182+F182*2),E182)) -> 1.001787972 | I182: 1.001470773 | J182: =(B182-(Calcoli!$B$8/B182))/'Acido - Base forte'!$F$1 -> 0.0001584830097 | K182: =(B182-(Calcoli!$B$8/B182))/'Acido - Base forte'!$F$2 -> 0.0001584830097
A183: =IF((I183*'Acido - Base forte'!$F$3*'Acido - Base forte'!$F$1)/'Acido - Base forte'!$F$2>0,IF((I183*'Acido - Base forte'!$F$3*'Acido - Base forte'!$F$1)/'Acido - Base forte'!$F$2<1.8*Calcoli!$B$13*('Acido - Base forte'!$F$1*'Acido - Base forte'!$F$3/'Acido - Base forte'!$F$2),I183*'Acido - Base forte'!$F$3*'Acido - Base forte'!$F$1/'Acido - Base forte'!$F$2,NA()),NA()) -> 25.05518637 | B183: 1.412537545e-05 | C183: 4.85 | D183: =IF(Calcoli!$B$13=3,B183^Calcoli!$B$13+Calcoli!$B$9*B183^2+Calcoli!$B$9*Calcoli!$B$10*B183+Calcoli!$B$9*Calcoli!$B$10*Calcoli!$B$11,IF(Calcoli!$B$13=2,B183^Calcoli!$B$13+Calcoli!$B$9*B183+Calcoli!$B$9*Calcoli!$B$10,B183^Calcoli!$B$13+Calcoli!$B$9)) -> 1.066048421e-07 | E183: =(Calcoli!$B$9*B183^(Calcoli!$B$13-1))/D183 -> 0.9937664536 | F183: =IF(Calcoli!$B$13>=2, (Calcoli!$B$9*Calcoli!$B$10*B183^(Calcoli!$B$13-2))/D183,NA()) -> 0.004361903183 | G183: =IF(Calcoli!$B$13>=3,(Calcoli!$B$9*Calcoli!$B$10*Calcoli!$B$11*B183^(Calcoli!$B$13-3))/D183,NA()) ->  | H183: =IF(Calcoli!$B$13=3,(E183+F183*2+G183*3),IF(Calcoli!$B$13=2,(E183+F183*2),E183)) -> 1.00249026 | I183: 1.002207455 | J183: =(B183-(Calcoli!$B$8/B183))/'Acido - Base forte'!$F$1 -> 0.000141246675 | K183: =(B183-(Calcoli!$B$8/B183))/'Acido - Base forte'!$F$2 -> 0.000141246675
A184: =IF((I184*'Acido - Base forte'!$F$3*'Acido - Base forte'!$F$1)/'Acido - Base forte'!$F$2>0,IF((I184*'Acido - Base forte'!$F$3*'Acido - Base forte'!$F$1)/'Acido - Base forte'!$F$2<1.8*Calcoli!$B$13*('Acido - Base forte'!$F$1*'Acido - Base forte'!$F$3/'Acido - Base forte'!$F$2),I184*'Acido - Base forte'!$F$3*'Acido - Base forte'!$F$1/'Acido - Base forte'!$F$2,NA()),NA()) -> 25.07432072 | B184: 1.258925412e-05 | C184: 4.9 | D184: =IF(Calcoli!$B$13=3,B184^Calcoli!$B$13+Calcoli!$B$9*B184^2+Calcoli!$B$9*Calcoli!$B$10*B184+Calcoli!$B$9*Calcoli!$B$10*Calcoli!$B$11,IF(Calcoli!$B$13=2,B184^Calcoli!$B$13+Calcoli!$B$9*B184+Calcoli!$B$9*Calcoli!$B$10,B184^Calcoli!$B$13+Calcoli!$B$9)) -> 9.50428952e-08 | E184: =(Calcoli!$B$9*B184^(Calcoli!$B$13-1))/D184 -> 0.9934399166 | F184: =IF(Calcoli!$B$13>=2, (Calcoli!$B$9*Calcoli!$B$10*B184^(Calcoli!$B$13-2))/D184,NA()) -> 0.004892527727 | G184: =IF(Calcoli!$B$13>=3,(Calcoli!$B$9*Calcoli!$B$10*Calcoli!$B$11*B184^(Calcoli!$B$13-3))/D184,NA()) ->  | H184: =IF(Calcoli!$B$13=3,(E184+F184*2+G184*3),IF(Calcoli!$B$13=2,(E184+F184*2),E184)) -> 1.003224972 | I184: 1.002972829 | J184: =(B184-(Calcoli!$B$8/B184))/'Acido - Base forte'!$F$1 -> 0.0001258845979 | K184: =(B184-(Calcoli!$B$8/B184))/'Acido - Base forte'!$F$2 -> 0.0001258845979
A185: =IF((I185*'Acido - Base forte'!$F$3*'Acido - Base forte'!$F$1)/'Acido - Base forte'!$F$2>0,IF((I185*'Acido - Base forte'!$F$3*'Acido - Base forte'!$F$1)/'Acido - Base forte'!$F$2<1.8*Calcoli!$B$13*('Acido - Base forte'!$F$1*'Acido - Base forte'!$F$3/'Acido - Base forte'!$F$2),I185*'Acido - Base forte'!$F$3*'Acido - Base forte'!$F$1/'Acido - Base forte'!$F$2,NA()),NA()) -> 25.09442058 | B185: 1.122018454e-05 | C185: 4.95 | D185: =IF(Calcoli!$B$13=3,B185^Calcoli!$B$13+Calcoli!$B$9*B185^2+Calcoli!$B$9*Calcoli!$B$10*B185+Calcoli!$B$9*Calcoli!$B$10*Calcoli!$B$11,IF(Calcoli!$B$13=2,B185^Calcoli!$B$13+Calcoli!$B$9*B185+Calcoli!$B$9*Calcoli!$B$10,B185^Calcoli!$B$13+Calcoli!$B$9)) -> 8.474227661e-08 | E185: =(Calcoli!$B$9*B185^(Calcoli!$B$13-1))/D185 -> 0.9930271812 | F185: =IF(Calcoli!$B$13>=2, (Calcoli!$B$9*Calcoli!$B$10*B185^(Calcoli!$B$13-2))/D185,NA()) -> 0.005487225722 | G185: =IF(Calcoli!$B$13>=3,(Calcoli!$B$9*Calcoli!$B$10*Calcoli!$B$11*B185^(Calcoli!$B$13-3))/D185,NA()) ->  | H185: =IF(Calcoli!$B$13=3,(E185+F185*2+G185*3),IF(Calcoli!$B$13=2,(E185+F185*2),E185)) -> 1.004001633 | I185: 1.003776823 | J185: =(B185-(Calcoli!$B$8/B185))/'Acido - Base forte'!$F$1 -> 0.0001121929329 | K185: =(B185-(Calcoli!$B$8/B185))/'Acido - Base forte'!$F$2 -> 0.0001121929329
A186: =IF((I186*'Acido - Base forte'!$F$3*'Acido - Base forte'!$F$1)/'Acido - Base forte'!$F$2>0,IF((I186*'Acido - Base forte'!$F$3*'Acido - Base forte'!$F$1)/'Acido - Base forte'!$F$2<1.8*Calcoli!$B$13*('Acido - Base forte'!$F$1*'Acido - Base forte'!$F$3/'Acido - Base forte'!$F$2),I186*'Acido - Base forte'!$F$3*'Acido - Base forte'!$F$1/'Acido - Base forte'!$F$2,NA()),NA()) -> 25.11574589 | B186: 1e-05 | C186: 5 | D186: =IF(Calcoli!$B$13=3,B186^Calcoli!$B$13+Calcoli!$B$9*B186^2+Calcoli!$B$9*Calcoli!$B$10*B186+Calcoli!$B$9*Calcoli!$B$10*Calcoli!$B$11,IF(Calcoli!$B$13=2,B186^Calcoli!$B$13+Calcoli!$B$9*B186+Calcoli!$B$9*Calcoli!$B$10,B186^Calcoli!$B$13+Calcoli!$B$9)) -> 7.5565e-08 | E186: =(Calcoli!$B$9*B186^(Calcoli!$B$13-1))/D186 -> 0.9925229934 | F186: =IF(Calcoli!$B$13>=2, (Calcoli!$B$9*Calcoli!$B$10*B186^(Calcoli!$B$13-2))/D186,NA()) -> 0.006153642559 | G186: =IF(Calcoli!$B$13>=3,(Calcoli!$B$9*Calcoli!$B$10*Calcoli!$B$11*B186^(Calcoli!$B$13-3))/D186,NA()) ->  | H186: =IF(Calcoli!$B$13=3,(E186+F186*2+G186*3),IF(Calcoli!$B$13=2,(E186+F186*2),E186)) -> 1.004830279 | I186: 1.004629836 | J186: =(B186-(Calcoli!$B$8/B186))/'Acido - Base forte'!$F$1 -> 9.999e-05 | K186: =(B186-(Calcoli!$B$8/B186))/'Acido - Base forte'!$F$2 -> 9.999e-05
A187: =IF((I187*'Acido - Base forte'!$F$3*'Acido - Base forte'!$F$1)/'Acido - Base forte'!$F$2>0,IF((I187*'Acido - Base forte'!$F$3*'Acido - Base forte'!$F$1)/'Acido - Base forte'!$F$2<1.8*Calcoli!$B$13*('Acido - Base forte'!$F$1*'Acido - Base forte'!$F$3/'Acido - Base forte'!$F$2),I187*'Acido - Base forte'!$F$3*'Acido - Base forte'!$F$1/'Acido - Base forte'!$F$2,NA()),NA()) -> 25.13857142 | B187: 8.912509381e-06 | C187: 5.05 | D187: =IF(Calcoli!$B$13=3,B187^Calcoli!$B$13+Calcoli!$B$9*B187^2+Calcoli!$B$9*Calcoli!$B$10*B187+Calcoli!$B$9*Calcoli!$B$10*Calcoli!$B$11,IF(Calcoli!$B$13=2,B187^Calcoli!$B$13+Calcoli!$B$9*B187+Calcoli!$B$9*Calcoli!$B$10,B187^Calcoli!$B$13+Calcoli!$B$9)) -> 6.738825318e-08 | E187: =(Calcoli!$B$9*B187^(Calcoli!$B$13-1))/D187 -> 0.9919209536 | F187: =IF(Calcoli!$B$13>=2, (Calcoli!$B$9*Calcoli!$B$10*B187^(Calcoli!$B$13-2))/D187,NA()) -> 0.006900312414 | G187: =IF(Calcoli!$B$13>=3,(Calcoli!$B$9*Calcoli!$B$10*Calcoli!$B$11*B187^(Calcoli!$B$13-3))/D187,NA()) ->  | H187: =IF(Calcoli!$B$13=3,(E187+F187*2+G187*3),IF(Calcoli!$B$13=2,(E187+F187*2),E187)) -> 1.005721578 | I187: 1.005542857 | J187: =(B187-(Calcoli!$B$8/B187))/'Acido - Base forte'!$F$1 -> 8.911387363e-05 | K187: =(B187-(Calcoli!$B$8/B187))/'Acido - Base forte'!$F$2 -> 8.911387363e-05
A188: =IF((I188*'Acido - Base forte'!$F$3*'Acido - Base forte'!$F$1)/'Acido - Base forte'!$F$2>0,IF((I188*'Acido - Base forte'!$F$3*'Acido - Base forte'!$F$1)/'Acido - Base forte'!$F$2<1.8*Calcoli!$B$13*('Acido - Base forte'!$F$1*'Acido - Base forte'!$F$3/'Acido - Base forte'!$F$2),I188*'Acido - Base forte'!$F$3*'Acido - Base forte'!$F$1/'Acido - Base forte'!$F$2,NA()),NA()) -> 25.16318996 | B188: 7.943282347e-06 | C188: 5.1 | D188: =IF(Calcoli!$B$13=3,B188^Calcoli!$B$13+Calcoli!$B$9*B188^2+Calcoli!$B$9*Calcoli!$B$10*B188+Calcoli!$B$9*Calcoli!$B$10*Calcoli!$B$11,IF(Calcoli!$B$13=2,B188^Calcoli!$B$13+Calcoli!$B$9*B188+Calcoli!$B$9*Calcoli!$B$10,B188^Calcoli!$B$13+Calcoli!$B$9)) -> 6.010271334e-08 | E188: =(Calcoli!$B$9*B188^(Calcoli!$B$13-1))/D188 -> 0.991213446 | F188: =IF(Calcoli!$B$13>=2, (Calcoli!$B$9*Calcoli!$B$10*B188^(Calcoli!$B$13-2))/D188,NA()) -> 0.007736755533 | G188: =IF(Calcoli!$B$13>=3,(Calcoli!$B$9*Calcoli!$B$10*Calcoli!$B$11*B188^(Calcoli!$B$13-3))/D188,NA()) ->  | H188: =IF(Calcoli!$B$13=3,(E188+F188*2+G188*3),IF(Calcoli!$B$13=2,(E188+F188*2),E188)) -> 1.006686957 | I188: 1.006527598 | J188: =(B188-(Calcoli!$B$8/B188))/'Acido - Base forte'!$F$1 -> 7.942023422e-05 | K188: =(B188-(Calcoli!$B$8/B188))/'Acido - Base forte'!$F$2 -> 7.942023422e-05
A189: =IF((I189*'Acido - Base forte'!$F$3*'Acido - Base forte'!$F$1)/'Acido - Base forte'!$F$2>0,IF((I189*'Acido - Base forte'!$F$3*'Acido - Base forte'!$F$1)/'Acido - Base forte'!$F$2<1.8*Calcoli!$B$13*('Acido - Base forte'!$F$1*'Acido - Base forte'!$F$3/'Acido - Base forte'!$F$2),I189*'Acido - Base forte'!$F$3*'Acido - Base forte'!$F$1/'Acido - Base forte'!$F$2,NA()),NA()) -> 25.1899157 | B189: 7.079457844e-06 | C189: 5.15 | D189: =IF(Calcoli!$B$13=3,B189^Calcoli!$B$13+Calcoli!$B$9*B189^2+Calcoli!$B$9*Calcoli!$B$10*B189+Calcoli!$B$9*Calcoli!$B$10*Calcoli!$B$11,IF(Calcoli!$B$13=2,B189^Calcoli!$B$13+Calcoli!$B$9*B189+Calcoli!$B$9*Calcoli!$B$10,B189^Calcoli!$B$13+Calcoli!$B$9)) -> 5.361105255e-08 | E189: =(Calcoli!$B$9*B189^(Calcoli!$B$13-1))/D189 -> 0.9903915574 | F189: =IF(Calcoli!$B$13>=2, (Calcoli!$B$9*Calcoli!$B$10*B189^(Calcoli!$B$13-2))/D189,NA()) -> 0.008673584604 | G189: =IF(Calcoli!$B$13>=3,(Calcoli!$B$9*Calcoli!$B$10*Calcoli!$B$11*B189^(Calcoli!$B$13-3))/D189,NA()) ->  | H189: =IF(Calcoli!$B$13=3,(E189+F189*2+G189*3),IF(Calcoli!$B$13=2,(E189+F189*2),E189)) -> 1.007738727 | I189: 1.007596628 | J189: =(B189-(Calcoli!$B$8/B189))/'Acido - Base forte'!$F$1 -> 7.078045306e-05 | K189: =(B189-(Calcoli!$B$8/B189))/'Acido - Base forte'!$F$2 -> 7.078045306e-05
A190: =IF((I190*'Acido - Base forte'!$F$3*'Acido - Base forte'!$F$1)/'Acido - Base forte'!$F$2>0,IF((I190*'Acido - Base forte'!$F$3*'Acido - Base forte'!$F$1)/'Acido - Base forte'!$F$2<1.8*Calcoli!$B$13*('Acido - Base forte'!$F$1*'Acido - Base forte'!$F$3/'Acido - Base forte'!$F$2),I190*'Acido - Base forte'!$F$3*'Acido - Base forte'!$F$1/'Acido - Base forte'!$F$2,NA()),NA()) -> 25.21908778 | B190: 6.309573445e-06 | C190: 5.2 | D190: =IF(Calcoli!$B$13=3,B190^Calcoli!$B$13+Calcoli!$B$9*B190^2+Calcoli!$B$9*Calcoli!$B$10*B190+Calcoli!$B$9*Calcoli!$B$10*Calcoli!$B$11,IF(Calcoli!$B$13=2,B190^Calcoli!$B$13+Calcoli!$B$9*B190+Calcoli!$B$9*Calcoli!$B$10,B190^Calcoli!$B$13+Calcoli!$B$9)) -> 4.782661155e-08 | E190: =(Calcoli!$B$9*B190^(Calcoli!$B$13-1))/D190 -> 0.9894449826 | F190: =IF(Calcoli!$B$13>=2, (Calcoli!$B$9*Calcoli!$B$10*B190^(Calcoli!$B$13-2))/D190,NA()) -> 0.009722620627 | G190: =IF(Calcoli!$B$13>=3,(Calcoli!$B$9*Calcoli!$B$10*Calcoli!$B$11*B190^(Calcoli!$B$13-3))/D190,NA()) ->  | H190: =IF(Calcoli!$B$13=3,(E190+F190*2+G190*3),IF(Calcoli!$B$13=2,(E190+F190*2),E190)) -> 1.008890224 | I190: 1.008763511 | J190: =(B190-(Calcoli!$B$8/B190))/'Acido - Base forte'!$F$1 -> 6.307988552e-05 | K190: =(B190-(Calcoli!$B$8/B190))/'Acido - Base forte'!$F$2 -> 6.307988552e-05
A191: =IF((I191*'Acido - Base forte'!$F$3*'Acido - Base forte'!$F$1)/'Acido - Base forte'!$F$2>0,IF((I191*'Acido - Base forte'!$F$3*'Acido - Base forte'!$F$1)/'Acido - Base forte'!$F$2<1.8*Calcoli!$B$13*('Acido - Base forte'!$F$1*'Acido - Base forte'!$F$3/'Acido - Base forte'!$F$2),I191*'Acido - Base forte'!$F$3*'Acido - Base forte'!$F$1/'Acido - Base forte'!$F$2,NA()),NA()) -> 25.25107398 | B191: 5.623413252e-06 | C191: 5.25 | D191: =IF(Calcoli!$B$13=3,B191^Calcoli!$B$13+Calcoli!$B$9*B191^2+Calcoli!$B$9*Calcoli!$B$10*B191+Calcoli!$B$9*Calcoli!$B$10*Calcoli!$B$11,IF(Calcoli!$B$13=2,B191^Calcoli!$B$13+Calcoli!$B$9*B191+Calcoli!$B$9*Calcoli!$B$10,B191^Calcoli!$B$13+Calcoli!$B$9)) -> 4.267222217e-08 | E191: =(Calcoli!$B$9*B191^(Calcoli!$B$13-1))/D191 -> 0.988361919 | F191: =IF(Calcoli!$B$13>=2, (Calcoli!$B$9*Calcoli!$B$10*B191^(Calcoli!$B$13-2))/D191,NA()) -> 0.01089701863 | G191: =IF(Calcoli!$B$13>=3,(Calcoli!$B$9*Calcoli!$B$10*Calcoli!$B$11*B191^(Calcoli!$B$13-3))/D191,NA()) ->  | H191: =IF(Calcoli!$B$13=3,(E191+F191*2+G191*3),IF(Calcoli!$B$13=2,(E191+F191*2),E191)) -> 1.010155956 | I191: 1.010042959 | J191: =(B191-(Calcoli!$B$8/B191))/'Acido - Base forte'!$F$1 -> 5.621634972e-05 | K191: =(B191-(Calcoli!$B$8/B191))/'Acido - Base forte'!$F$2 -> 5.621634972e-05
A192: =IF((I192*'Acido - Base forte'!$F$3*'Acido - Base forte'!$F$1)/'Acido - Base forte'!$F$2>0,IF((I192*'Acido - Base forte'!$F$3*'Acido - Base forte'!$F$1)/'Acido - Base forte'!$F$2<1.8*Calcoli!$B$13*('Acido - Base forte'!$F$1*'Acido - Base forte'!$F$3/'Acido - Base forte'!$F$2),I192*'Acido - Base forte'!$F$3*'Acido - Base forte'!$F$1/'Acido - Base forte'!$F$2,NA()),NA()) -> 25.28627459 | B192: 5.011872336e-06 | C192: 5.3 | D192: =IF(Calcoli!$B$13=3,B192^Calcoli!$B$13+Calcoli!$B$9*B192^2+Calcoli!$B$9*Calcoli!$B$10*B192+Calcoli!$B$9*Calcoli!$B$10*Calcoli!$B$11,IF(Calcoli!$B$13=2,B192^Calcoli!$B$13+Calcoli!$B$9*B192+Calcoli!$B$9*Calcoli!$B$10,B192^Calcoli!$B$13+Calcoli!$B$9)) -> 3.807916139e-08 | E192: =(Calcoli!$B$9*B192^(Calcoli!$B$13-1))/D192 -> 0.9871289481 | F192: =IF(Calcoli!$B$13>=2, (Calcoli!$B$9*Calcoli!$B$10*B192^(Calcoli!$B$13-2))/D192,NA()) -> 0.01221140338 | G192: =IF(Calcoli!$B$13>=3,(Calcoli!$B$9*Calcoli!$B$10*Calcoli!$B$11*B192^(Calcoli!$B$13-3))/D192,NA()) ->  | H192: =IF(Calcoli!$B$13=3,(E192+F192*2+G192*3),IF(Calcoli!$B$13=2,(E192+F192*2),E192)) -> 1.011551755 | I192: 1.011450984 | J192: =(B192-(Calcoli!$B$8/B192))/'Acido - Base forte'!$F$1 -> 5.009877074e-05 | K192: =(B192-(Calcoli!$B$8/B192))/'Acido - Base forte'!$F$2 -> 5.009877074e-05
A193: =IF((I193*'Acido - Base forte'!$F$3*'Acido - Base forte'!$F$1)/'Acido - Base forte'!$F$2>0,IF((I193*'Acido - Base forte'!$F$3*'Acido - Base forte'!$F$1)/'Acido - Base forte'!$F$2<1.8*Calcoli!$B$13*('Acido - Base forte'!$F$1*'Acido - Base forte'!$F$3/'Acido - Base forte'!$F$2),I193*'Acido - Base forte'!$F$3*'Acido - Base forte'!$F$1/'Acido - Base forte'!$F$2,NA()),NA()) -> 25.32512657 | B193: 4.466835922e-06 | C193: 5.35 | D193: =IF(Calcoli!$B$13=3,B193^Calcoli!$B$13+Calcoli!$B$9*B193^2+Calcoli!$B$9*Calcoli!$B$10*B193+Calcoli!$B$9*Calcoli!$B$10*Calcoli!$B$11,IF(Calcoli!$B$13=2,B193^Calcoli!$B$13+Calcoli!$B$9*B193+Calcoli!$B$9*Calcoli!$B$10,B193^Calcoli!$B$13+Calcoli!$B$9)) -> 3.398622203e-08 | E193: =(Calcoli!$B$9*B193^(Calcoli!$B$13-1))/D193 -> 0.9857309052 | F193: =IF(Calcoli!$B$13>=2, (Calcoli!$B$9*Calcoli!$B$10*B193^(Calcoli!$B$13-2))/D193,NA()) -> 0.01368201501 | G193: =IF(Calcoli!$B$13>=3,(Calcoli!$B$9*Calcoli!$B$10*Calcoli!$B$11*B193^(Calcoli!$B$13-3))/D193,NA()) ->  | H193: =IF(Calcoli!$B$13=3,(E193+F193*2+G193*3),IF(Calcoli!$B$13=2,(E193+F193*2),E193)) -> 1.013094935 | I193: 1.013005063 | J193: =(B193-(Calcoli!$B$8/B193))/'Acido - Base forte'!$F$1 -> 4.4645972e-05 | K193: =(B193-(Calcoli!$B$8/B193))/'Acido - Base forte'!$F$2 -> 4.4645972e-05
A194: =IF((I194*'Acido - Base forte'!$F$3*'Acido - Base forte'!$F$1)/'Acido - Base forte'!$F$2>0,IF((I194*'Acido - Base forte'!$F$3*'Acido - Base forte'!$F$1)/'Acido - Base forte'!$F$2<1.8*Calcoli!$B$13*('Acido - Base forte'!$F$1*'Acido - Base forte'!$F$3/'Acido - Base forte'!$F$2),I194*'Acido - Base forte'!$F$3*'Acido - Base forte'!$F$1/'Acido - Base forte'!$F$2,NA()),NA()) -> 25.36810777 | B194: 3.981071706e-06 | C194: 5.4 | D194: =IF(Calcoli!$B$13=3,B194^Calcoli!$B$13+Calcoli!$B$9*B194^2+Calcoli!$B$9*Calcoli!$B$10*B194+Calcoli!$B$9*Calcoli!$B$10*Calcoli!$B$11,IF(Calcoli!$B$13=2,B194^Calcoli!$B$13+Calcoli!$B$9*B194+Calcoli!$B$9*Calcoli!$B$10,B194^Calcoli!$B$13+Calcoli!$B$9)) -> 3.033888672e-08 | E194: =(Calcoli!$B$9*B194^(Calcoli!$B$13-1))/D194 -> 0.9841507391 | F194: =IF(Calcoli!$B$13>=2, (Calcoli!$B$9*Calcoli!$B$10*B194^(Calcoli!$B$13-2))/D194,NA()) -> 0.01532686431 | G194: =IF(Calcoli!$B$13>=3,(Calcoli!$B$9*Calcoli!$B$10*Calcoli!$B$11*B194^(Calcoli!$B$13-3))/D194,NA()) ->  | H194: =IF(Calcoli!$B$13=3,(E194+F194*2+G194*3),IF(Calcoli!$B$13=2,(E194+F194*2),E194)) -> 1.014804468 | I194: 1.014724311 | J194: =(B194-(Calcoli!$B$8/B194))/'Acido - Base forte'!$F$1 -> 3.978559819e-05 | K194: =(B194-(Calcoli!$B$8/B194))/'Acido - Base forte'!$F$2 -> 3.978559819e-05
A195: =IF((I195*'Acido - Base forte'!$F$3*'Acido - Base forte'!$F$1)/'Acido - Base forte'!$F$2>0,IF((I195*'Acido - Base forte'!$F$3*'Acido - Base forte'!$F$1)/'Acido - Base forte'!$F$2<1.8*Calcoli!$B$13*('Acido - Base forte'!$F$1*'Acido - Base forte'!$F$3/'Acido - Base forte'!$F$2),I195*'Acido - Base forte'!$F$3*'Acido - Base forte'!$F$1/'Acido - Base forte'!$F$2,NA()),NA()) -> 25.41574143 | B195: 3.548133892e-06 | C195: 5.45 | D195: =IF(Calcoli!$B$13=3,B195^Calcoli!$B$13+Calcoli!$B$9*B195^2+Calcoli!$B$9*Calcoli!$B$10*B195+Calcoli!$B$9*Calcoli!$B$10*Calcoli!$B$11,IF(Calcoli!$B$13=2,B195^Calcoli!$B$13+Calcoli!$B$9*B195+Calcoli!$B$9*Calcoli!$B$10,B195^Calcoli!$B$13+Calcoli!$B$9)) -> 2.708859345e-08 | E195: =(Calcoli!$B$9*B195^(Calcoli!$B$13-1))/D195 -> 0.9823693594 | F195: =IF(Calcoli!$B$13>=2, (Calcoli!$B$9*Calcoli!$B$10*B195^(Calcoli!$B$13-2))/D195,NA()) -> 0.01716589682 | G195: =IF(Calcoli!$B$13>=3,(Calcoli!$B$9*Calcoli!$B$10*Calcoli!$B$11*B195^(Calcoli!$B$13-3))/D195,NA()) ->  | H195: =IF(Calcoli!$B$13=3,(E195+F195*2+G195*3),IF(Calcoli!$B$13=2,(E195+F195*2),E195)) -> 1.016701153 | I195: 1.016629657 | J195: =(B195-(Calcoli!$B$8/B195))/'Acido - Base forte'!$F$1 -> 3.545315509e-05 | K195: =(B195-(Calcoli!$B$8/B195))/'Acido - Base forte'!$F$2 -> 3.545315509e-05
A196: =IF((I196*'Acido - Base forte'!$F$3*'Acido - Base forte'!$F$1)/'Acido - Base forte'!$F$2>0,IF((I196*'Acido - Base forte'!$F$3*'Acido - Base forte'!$F$1)/'Acido - Base forte'!$F$2<1.8*Calcoli!$B$13*('Acido - Base forte'!$F$1*'Acido - Base forte'!$F$3/'Acido - Base forte'!$F$2),I196*'Acido - Base forte'!$F$3*'Acido - Base forte'!$F$1/'Acido - Base forte'!$F$2,NA()),NA()) -> 25.4686008 | B196: 3.16227766e-06 | C196: 5.5 | D196: =IF(Calcoli!$B$13=3,B196^Calcoli!$B$13+Calcoli!$B$9*B196^2+Calcoli!$B$9*Calcoli!$B$10*B196+Calcoli!$B$9*Calcoli!$B$10*Calcoli!$B$11,IF(Calcoli!$B$13=2,B196^Calcoli!$B$13+Calcoli!$B$9*B196+Calcoli!$B$9*Calcoli!$B$10,B196^Calcoli!$B$13+Calcoli!$B$9)) -> 2.419208245e-08 | E196: =(Calcoli!$B$9*B196^(Calcoli!$B$13-1))/D196 -> 0.980365477 | F196: =IF(Calcoli!$B$13>=2, (Calcoli!$B$9*Calcoli!$B$10*B196^(Calcoli!$B$13-2))/D196,NA()) -> 0.01922116465 | G196: =IF(Calcoli!$B$13>=3,(Calcoli!$B$9*Calcoli!$B$10*Calcoli!$B$11*B196^(Calcoli!$B$13-3))/D196,NA()) ->  | H196: =IF(Calcoli!$B$13=3,(E196+F196*2+G196*3),IF(Calcoli!$B$13=2,(E196+F196*2),E196)) -> 1.018807806 | I196: 1.018744032 | J196: =(B196-(Calcoli!$B$8/B196))/'Acido - Base forte'!$F$1 -> 3.159115383e-05 | K196: =(B196-(Calcoli!$B$8/B196))/'Acido - Base forte'!$F$2 -> 3.159115383e-05
A197: =IF((I197*'Acido - Base forte'!$F$3*'Acido - Base forte'!$F$1)/'Acido - Base forte'!$F$2>0,IF((I197*'Acido - Base forte'!$F$3*'Acido - Base forte'!$F$1)/'Acido - Base forte'!$F$2<1.8*Calcoli!$B$13*('Acido - Base forte'!$F$1*'Acido - Base forte'!$F$3/'Acido - Base forte'!$F$2),I197*'Acido - Base forte'!$F$3*'Acido - Base forte'!$F$1/'Acido - Base forte'!$F$2,NA()),NA()) -> 25.52731383 | B197: 2.818382931e-06 | C197: 5.55 | D197: =IF(Calcoli!$B$13=3,B197^Calcoli!$B$13+Calcoli!$B$9*B197^2+Calcoli!$B$9*Calcoli!$B$10*B197+Calcoli!$B$9*Calcoli!$B$10*Calcoli!$B$11,IF(Calcoli!$B$13=2,B197^Calcoli!$B$13+Calcoli!$B$9*B197+Calcoli!$B$9*Calcoli!$B$10,B197^Calcoli!$B$13+Calcoli!$B$9)) -> 2.161081527e-08 | E197: =(Calcoli!$B$9*B197^(Calcoli!$B$13-1))/D197 -> 0.9781154354 | F197: =IF(Calcoli!$B$13>=2, (Calcoli!$B$9*Calcoli!$B$10*B197^(Calcoli!$B$13-2))/D197,NA()) -> 0.02151700407 | G197: =IF(Calcoli!$B$13>=3,(Calcoli!$B$9*Calcoli!$B$10*Calcoli!$B$11*B197^(Calcoli!$B$13-3))/D197,NA()) ->  | H197: =IF(Calcoli!$B$13=3,(E197+F197*2+G197*3),IF(Calcoli!$B$13=2,(E197+F197*2),E197)) -> 1.021149444 | I197: 1.021092553 | J197: =(B197-(Calcoli!$B$8/B197))/'Acido - Base forte'!$F$1 -> 2.814834797e-05 | K197: =(B197-(Calcoli!$B$8/B197))/'Acido - Base forte'!$F$2 -> 2.814834797e-05
A198: =IF((I198*'Acido - Base forte'!$F$3*'Acido - Base forte'!$F$1)/'Acido - Base forte'!$F$2>0,IF((I198*'Acido - Base forte'!$F$3*'Acido - Base forte'!$F$1)/'Acido - Base forte'!$F$2<1.8*Calcoli!$B$13*('Acido - Base forte'!$F$1*'Acido - Base forte'!$F$3/'Acido - Base forte'!$F$2),I198*'Acido - Base forte'!$F$3*'Acido - Base forte'!$F$1/'Acido - Base forte'!$F$2,NA()),NA()) -> 25.592568 | B198: 2.511886432e-06 | C198: 5.6 | D198: =IF(Calcoli!$B$13=3,B198^Calcoli!$B$13+Calcoli!$B$9*B198^2+Calcoli!$B$9*Calcoli!$B$10*B198+Calcoli!$B$9*Calcoli!$B$10*Calcoli!$B$11,IF(Calcoli!$B$13=2,B198^Calcoli!$B$13+Calcoli!$B$9*B198+Calcoli!$B$9*Calcoli!$B$10,B198^Calcoli!$B$13+Calcoli!$B$9)) -> 1.931045781e-08 | E198: =(Calcoli!$B$9*B198^(Calcoli!$B$13-1))/D198 -> 0.9755930399 | F198: =IF(Calcoli!$B$13>=2, (Calcoli!$B$9*Calcoli!$B$10*B198^(Calcoli!$B$13-2))/D198,NA()) -> 0.02408021625 | G198: =IF(Calcoli!$B$13>=3,(Calcoli!$B$9*Calcoli!$B$10*Calcoli!$B$11*B198^(Calcoli!$B$13-3))/D198,NA()) ->  | H198: =IF(Calcoli!$B$13=3,(E198+F198*2+G198*3),IF(Calcoli!$B$13=2,(E198+F198*2),E198)) -> 1.023753472 | I198: 1.02370272 | J198: =(B198-(Calcoli!$B$8/B198))/'Acido - Base forte'!$F$1 -> 2.50790536e-05 | K198: =(B198-(Calcoli!$B$8/B198))/'Acido - Base forte'!$F$2 -> 2.50790536e-05
A199: =IF((I199*'Acido - Base forte'!$F$3*'Acido - Base forte'!$F$1)/'Acido - Base forte'!$F$2>0,IF((I199*'Acido - Base forte'!$F$3*'Acido - Base forte'!$F$1)/'Acido - Base forte'!$F$2<1.8*Calcoli!$B$13*('Acido - Base forte'!$F$1*'Acido - Base forte'!$F$3/'Acido - Base forte'!$F$2),I199*'Acido - Base forte'!$F$3*'Acido - Base forte'!$F$1/'Acido - Base forte'!$F$2,NA()),NA()) -> 25.66511501 | B199: 2.238721139e-06 | C199: 5.65 | D199: =IF(Calcoli!$B$13=3,B199^Calcoli!$B$13+Calcoli!$B$9*B199^2+Calcoli!$B$9*Calcoli!$B$10*B199+Calcoli!$B$9*Calcoli!$B$10*Calcoli!$B$11,IF(Calcoli!$B$13=2,B199^Calcoli!$B$13+Calcoli!$B$9*B199+Calcoli!$B$9*Calcoli!$B$10,B199^Calcoli!$B$13+Calcoli!$B$9)) -> 1.726042041e-08 | E199: =(Calcoli!$B$9*B199^(Calcoli!$B$13-1))/D199 -> 0.9727693845 | F199: =IF(Calcoli!$B$13>=2, (Calcoli!$B$9*Calcoli!$B$10*B199^(Calcoli!$B$13-2))/D199,NA()) -> 0.02694024762 | G199: =IF(Calcoli!$B$13>=3,(Calcoli!$B$9*Calcoli!$B$10*Calcoli!$B$11*B199^(Calcoli!$B$13-3))/D199,NA()) ->  | H199: =IF(Calcoli!$B$13=3,(E199+F199*2+G199*3),IF(Calcoli!$B$13=2,(E199+F199*2),E199)) -> 1.02664988 | I199: 1.0266046 | J199: =(B199-(Calcoli!$B$8/B199))/'Acido - Base forte'!$F$1 -> 2.234254303e-05 | K199: =(B199-(Calcoli!$B$8/B199))/'Acido - Base forte'!$F$2 -> 2.234254303e-05
A200: =IF((I200*'Acido - Base forte'!$F$3*'Acido - Base forte'!$F$1)/'Acido - Base forte'!$F$2>0,IF((I200*'Acido - Base forte'!$F$3*'Acido - Base forte'!$F$1)/'Acido - Base forte'!$F$2<1.8*Calcoli!$B$13*('Acido - Base forte'!$F$1*'Acido - Base forte'!$F$3/'Acido - Base forte'!$F$2),I200*'Acido - Base forte'!$F$3*'Acido - Base forte'!$F$1/'Acido - Base forte'!$F$2,NA()),NA()) -> 25.74577538 | B200: 1.995262315e-06 | C200: 5.7 | D200: =IF(Calcoli!$B$13=3,B200^Calcoli!$B$13+Calcoli!$B$9*B200^2+Calcoli!$B$9*Calcoli!$B$10*B200+Calcoli!$B$9*Calcoli!$B$10*Calcoli!$B$11,IF(Calcoli!$B$13=2,B200^Calcoli!$B$13+Calcoli!$B$9*B200+Calcoli!$B$9*Calcoli!$B$10,B200^Calcoli!$B$13+Calcoli!$B$9)) -> 1.543344843e-08 | E200: =(Calcoli!$B$9*B200^(Calcoli!$B$13-1))/D200 -> 0.9696126842 | F200: =IF(Calcoli!$B$13>=2, (Calcoli!$B$9*Calcoli!$B$10*B200^(Calcoli!$B$13-2))/D200,NA()) -> 0.03012936493 | G200: =IF(Calcoli!$B$13>=3,(Calcoli!$B$9*Calcoli!$B$10*Calcoli!$B$11*B200^(Calcoli!$B$13-3))/D200,NA()) ->  | H200: =IF(Calcoli!$B$13=3,(E200+F200*2+G200*3),IF(Calcoli!$B$13=2,(E200+F200*2),E200)) -> 1.029871414 | I200: 1.029831015 | J200: =(B200-(Calcoli!$B$8/B200))/'Acido - Base forte'!$F$1 -> 1.990250443e-05 | K200: =(B200-(Calcoli!$B$8/B200))/'Acido - Base forte'!$F$2 -> 1.990250443e-05
A201: =IF((I201*'Acido - Base forte'!$F$3*'Acido - Base forte'!$F$1)/'Acido - Base forte'!$F$2>0,IF((I201*'Acido - Base forte'!$F$3*'Acido - Base forte'!$F$1)/'Acido - Base forte'!$F$2<1.8*Calcoli!$B$13*('Acido - Base forte'!$F$1*'Acido - Base forte'!$F$3/'Acido - Base forte'!$F$2),I201*'Acido - Base forte'!$F$3*'Acido - Base forte'!$F$1/'Acido - Base forte'!$F$2,NA()),NA()) -> 25.83544275 | B201: 1.77827941e-06 | C201: 5.75 | D201: =IF(Calcoli!$B$13=3,B201^Calcoli!$B$13+Calcoli!$B$9*B201^2+Calcoli!$B$9*Calcoli!$B$10*B201+Calcoli!$B$9*Calcoli!$B$10*Calcoli!$B$11,IF(Calcoli!$B$13=2,B201^Calcoli!$B$13+Calcoli!$B$9*B201+Calcoli!$B$9*Calcoli!$B$10,B201^Calcoli!$B$13+Calcoli!$B$9)) -> 1.380525785e-08 | E201: =(Calcoli!$B$9*B201^(Calcoli!$B$13-1))/D201 -> 0.9660881178 | F201: =IF(Calcoli!$B$13>=2, (Calcoli!$B$9*Calcoli!$B$10*B201^(Calcoli!$B$13-2))/D201,NA()) -> 0.03368281889 | G201: =IF(Calcoli!$B$13>=3,(Calcoli!$B$9*Calcoli!$B$10*Calcoli!$B$11*B201^(Calcoli!$B$13-3))/D201,NA()) ->  | H201: =IF(Calcoli!$B$13=3,(E201+F201*2+G201*3),IF(Calcoli!$B$13=2,(E201+F201*2),E201)) -> 1.033453756 | I201: 1.03341771 | J201: =(B201-(Calcoli!$B$8/B201))/'Acido - Base forte'!$F$1 -> 1.772655997e-05 | K201: =(B201-(Calcoli!$B$8/B201))/'Acido - Base forte'!$F$2 -> 1.772655997e-05
A202: =IF((I202*'Acido - Base forte'!$F$3*'Acido - Base forte'!$F$1)/'Acido - Base forte'!$F$2>0,IF((I202*'Acido - Base forte'!$F$3*'Acido - Base forte'!$F$1)/'Acido - Base forte'!$F$2<1.8*Calcoli!$B$13*('Acido - Base forte'!$F$1*'Acido - Base forte'!$F$3/'Acido - Base forte'!$F$2),I202*'Acido - Base forte'!$F$3*'Acido - Base forte'!$F$1/'Acido - Base forte'!$F$2,NA()),NA()) -> 25.9350876 | B202: 1.584893192e-06 | C202: 5.8 | D202: =IF(Calcoli!$B$13=3,B202^Calcoli!$B$13+Calcoli!$B$9*B202^2+Calcoli!$B$9*Calcoli!$B$10*B202+Calcoli!$B$9*Calcoli!$B$10*Calcoli!$B$11,IF(Calcoli!$B$13=2,B202^Calcoli!$B$13+Calcoli!$B$9*B202+Calcoli!$B$9*Calcoli!$B$10,B202^Calcoli!$B$13+Calcoli!$B$9)) -> 1.235421083e-08 | E202: =(Calcoli!$B$9*B202^(Calcoli!$B$13-1))/D202 -> 0.9621576892 | F202: =IF(Calcoli!$B$13>=2, (Calcoli!$B$9*Calcoli!$B$10*B202^(Calcoli!$B$13-2))/D202,NA()) -> 0.03763898855 | G202: =IF(Calcoli!$B$13>=3,(Calcoli!$B$9*Calcoli!$B$10*Calcoli!$B$11*B202^(Calcoli!$B$13-3))/D202,NA()) ->  | H202: =IF(Calcoli!$B$13=3,(E202+F202*2+G202*3),IF(Calcoli!$B$13=2,(E202+F202*2),E202)) -> 1.037435666 | I202: 1.037403504 | J202: =(B202-(Calcoli!$B$8/B202))/'Acido - Base forte'!$F$1 -> 1.578583619e-05 | K202: =(B202-(Calcoli!$B$8/B202))/'Acido - Base forte'!$F$2 -> 1.578583619e-05
A203: =IF((I203*'Acido - Base forte'!$F$3*'Acido - Base forte'!$F$1)/'Acido - Base forte'!$F$2>0,IF((I203*'Acido - Base forte'!$F$3*'Acido - Base forte'!$F$1)/'Acido - Base forte'!$F$2<1.8*Calcoli!$B$13*('Acido - Base forte'!$F$1*'Acido - Base forte'!$F$3/'Acido - Base forte'!$F$2),I203*'Acido - Base forte'!$F$3*'Acido - Base forte'!$F$1/'Acido - Base forte'!$F$2,NA()),NA()) -> 26.04576032 | B203: 1.412537545e-06 | C203: 5.85 | D203: =IF(Calcoli!$B$13=3,B203^Calcoli!$B$13+Calcoli!$B$9*B203^2+Calcoli!$B$9*Calcoli!$B$10*B203+Calcoli!$B$9*Calcoli!$B$10*Calcoli!$B$11,IF(Calcoli!$B$13=2,B203^Calcoli!$B$13+Calcoli!$B$9*B203+Calcoli!$B$9*Calcoli!$B$10,B203^Calcoli!$B$13+Calcoli!$B$9)) -> 1.106102685e-08 | E203: =(Calcoli!$B$9*B203^(Calcoli!$B$13-1))/D203 -> 0.9577801167 | F203: =IF(Calcoli!$B$13>=2, (Calcoli!$B$9*Calcoli!$B$10*B203^(Calcoli!$B$13-2))/D203,NA()) -> 0.04203949655 | G203: =IF(Calcoli!$B$13>=3,(Calcoli!$B$9*Calcoli!$B$10*Calcoli!$B$11*B203^(Calcoli!$B$13-3))/D203,NA()) ->  | H203: =IF(Calcoli!$B$13=3,(E203+F203*2+G203*3),IF(Calcoli!$B$13=2,(E203+F203*2),E203)) -> 1.04185911 | I203: 1.041830413 | J203: =(B203-(Calcoli!$B$8/B203))/'Acido - Base forte'!$F$1 -> 1.405458087e-05 | K203: =(B203-(Calcoli!$B$8/B203))/'Acido - Base forte'!$F$2 -> 1.405458087e-05
A204: =IF((I204*'Acido - Base forte'!$F$3*'Acido - Base forte'!$F$1)/'Acido - Base forte'!$F$2>0,IF((I204*'Acido - Base forte'!$F$3*'Acido - Base forte'!$F$1)/'Acido - Base forte'!$F$2<1.8*Calcoli!$B$13*('Acido - Base forte'!$F$1*'Acido - Base forte'!$F$3/'Acido - Base forte'!$F$2),I204*'Acido - Base forte'!$F$3*'Acido - Base forte'!$F$1/'Acido - Base forte'!$F$2,NA()),NA()) -> 26.16859316 | B204: 1.258925412e-06 | C204: 5.9 | D204: =IF(Calcoli!$B$13=3,B204^Calcoli!$B$13+Calcoli!$B$9*B204^2+Calcoli!$B$9*Calcoli!$B$10*B204+Calcoli!$B$9*Calcoli!$B$10*Calcoli!$B$11,IF(Calcoli!$B$13=2,B204^Calcoli!$B$13+Calcoli!$B$9*B204+Calcoli!$B$9*Calcoli!$B$10,B204^Calcoli!$B$13+Calcoli!$B$9)) -> 9.908525482e-09 | E204: =(Calcoli!$B$9*B204^(Calcoli!$B$13-1))/D204 -> 0.9529107642 | F204: =IF(Calcoli!$B$13>=2, (Calcoli!$B$9*Calcoli!$B$10*B204^(Calcoli!$B$13-2))/D204,NA()) -> 0.04692928336 | G204: =IF(Calcoli!$B$13>=3,(Calcoli!$B$9*Calcoli!$B$10*Calcoli!$B$11*B204^(Calcoli!$B$13-3))/D204,NA()) ->  | H204: =IF(Calcoli!$B$13=3,(E204+F204*2+G204*3),IF(Calcoli!$B$13=2,(E204+F204*2),E204)) -> 1.046769331 | I204: 1.046743726 | J204: =(B204-(Calcoli!$B$8/B204))/'Acido - Base forte'!$F$1 -> 1.250982129e-05 | K204: =(B204-(Calcoli!$B$8/B204))/'Acido - Base forte'!$F$2 -> 1.250982129e-05
A205: =IF((I205*'Acido - Base forte'!$F$3*'Acido - Base forte'!$F$1)/'Acido - Base forte'!$F$2>0,IF((I205*'Acido - Base forte'!$F$3*'Acido - Base forte'!$F$1)/'Acido - Base forte'!$F$2<1.8*Calcoli!$B$13*('Acido - Base forte'!$F$1*'Acido - Base forte'!$F$3/'Acido - Base forte'!$F$2),I205*'Acido - Base forte'!$F$3*'Acido - Base forte'!$F$1/'Acido - Base forte'!$F$2,NA()),NA()) -> 26.30480086 | B205: 1.122018454e-06 | C205: 5.95 | D205: =IF(Calcoli!$B$13=3,B205^Calcoli!$B$13+Calcoli!$B$9*B205^2+Calcoli!$B$9*Calcoli!$B$10*B205+Calcoli!$B$9*Calcoli!$B$10*Calcoli!$B$11,IF(Calcoli!$B$13=2,B205^Calcoli!$B$13+Calcoli!$B$9*B205+Calcoli!$B$9*Calcoli!$B$10,B205^Calcoli!$B$13+Calcoli!$B$9)) -> 8.881397333e-09 | E205: =(Calcoli!$B$9*B205^(Calcoli!$B$13-1))/D205 -> 0.9475016253 | F205: =IF(Calcoli!$B$13>=2, (Calcoli!$B$9*Calcoli!$B$10*B205^(Calcoli!$B$13-2))/D205,NA()) -> 0.05235662617 | G205: =IF(Calcoli!$B$13>=3,(Calcoli!$B$9*Calcoli!$B$10*Calcoli!$B$11*B205^(Calcoli!$B$13-3))/D205,NA()) ->  | H205: =IF(Calcoli!$B$13=3,(E205+F205*2+G205*3),IF(Calcoli!$B$13=2,(E205+F205*2),E205)) -> 1.052214878 | I205: 1.052192035 | J205: =(B205-(Calcoli!$B$8/B205))/'Acido - Base forte'!$F$1 -> 1.113105945e-05 | K205: =(B205-(Calcoli!$B$8/B205))/'Acido - Base forte'!$F$2 -> 1.113105945e-05
A206: =IF((I206*'Acido - Base forte'!$F$3*'Acido - Base forte'!$F$1)/'Acido - Base forte'!$F$2>0,IF((I206*'Acido - Base forte'!$F$3*'Acido - Base forte'!$F$1)/'Acido - Base forte'!$F$2<1.8*Calcoli!$B$13*('Acido - Base forte'!$F$1*'Acido - Base forte'!$F$3/'Acido - Base forte'!$F$2),I206*'Acido - Base forte'!$F$3*'Acido - Base forte'!$F$1/'Acido - Base forte'!$F$2,NA()),NA()) -> 26.45567939 | B206: 1e-06 | C206: 6 | D206: =IF(Calcoli!$B$13=3,B206^Calcoli!$B$13+Calcoli!$B$9*B206^2+Calcoli!$B$9*Calcoli!$B$10*B206+Calcoli!$B$9*Calcoli!$B$10*Calcoli!$B$11,IF(Calcoli!$B$13=2,B206^Calcoli!$B$13+Calcoli!$B$9*B206+Calcoli!$B$9*Calcoli!$B$10,B206^Calcoli!$B$13+Calcoli!$B$9)) -> 7.966e-09 | E206: =(Calcoli!$B$9*B206^(Calcoli!$B$13-1))/D206 -> 0.9415013809 | F206: =IF(Calcoli!$B$13>=2, (Calcoli!$B$9*Calcoli!$B$10*B206^(Calcoli!$B$13-2))/D206,NA()) -> 0.05837308561 | G206: =IF(Calcoli!$B$13>=3,(Calcoli!$B$9*Calcoli!$B$10*Calcoli!$B$11*B206^(Calcoli!$B$13-3))/D206,NA()) ->  | H206: =IF(Calcoli!$B$13=3,(E206+F206*2+G206*3),IF(Calcoli!$B$13=2,(E206+F206*2),E206)) -> 1.058247552 | I206: 1.058227176 | J206: =(B206-(Calcoli!$B$8/B206))/'Acido - Base forte'!$F$1 -> 9.9e-06 | K206: =(B206-(Calcoli!$B$8/B206))/'Acido - Base forte'!$F$2 -> 9.9e-06
A207: =IF((I207*'Acido - Base forte'!$F$3*'Acido - Base forte'!$F$1)/'Acido - Base forte'!$F$2>0,IF((I207*'Acido - Base forte'!$F$3*'Acido - Base forte'!$F$1)/'Acido - Base forte'!$F$2<1.8*Calcoli!$B$13*('Acido - Base forte'!$F$1*'Acido - Base forte'!$F$3/'Acido - Base forte'!$F$2),I207*'Acido - Base forte'!$F$3*'Acido - Base forte'!$F$1/'Acido - Base forte'!$F$2,NA()),NA()) -> 26.62260242 | B207: 8.912509381e-07 | C207: 6.05 | D207: =IF(Calcoli!$B$13=3,B207^Calcoli!$B$13+Calcoli!$B$9*B207^2+Calcoli!$B$9*Calcoli!$B$10*B207+Calcoli!$B$9*Calcoli!$B$10*Calcoli!$B$11,IF(Calcoli!$B$13=2,B207^Calcoli!$B$13+Calcoli!$B$9*B207+Calcoli!$B$9*Calcoli!$B$10,B207^Calcoli!$B$13+Calcoli!$B$9)) -> 7.150176364e-09 | E207: =(Calcoli!$B$9*B207^(Calcoli!$B$13-1))/D207 -> 0.934855547 | F207: =IF(Calcoli!$B$13>=2, (Calcoli!$B$9*Calcoli!$B$10*B207^(Calcoli!$B$13-2))/D207,NA()) -> 0.0650333609 | G207: =IF(Calcoli!$B$13>=3,(Calcoli!$B$9*Calcoli!$B$10*Calcoli!$B$11*B207^(Calcoli!$B$13-3))/D207,NA()) ->  | H207: =IF(Calcoli!$B$13=3,(E207+F207*2+G207*3),IF(Calcoli!$B$13=2,(E207+F207*2),E207)) -> 1.064922269 | I207: 1.064904097 | J207: =(B207-(Calcoli!$B$8/B207))/'Acido - Base forte'!$F$1 -> 8.800307536e-06 | K207: =(B207-(Calcoli!$B$8/B207))/'Acido - Base forte'!$F$2 -> 8.800307536e-06
A208: =IF((I208*'Acido - Base forte'!$F$3*'Acido - Base forte'!$F$1)/'Acido - Base forte'!$F$2>0,IF((I208*'Acido - Base forte'!$F$3*'Acido - Base forte'!$F$1)/'Acido - Base forte'!$F$2<1.8*Calcoli!$B$13*('Acido - Base forte'!$F$1*'Acido - Base forte'!$F$3/'Acido - Base forte'!$F$2),I208*'Acido - Base forte'!$F$3*'Acido - Base forte'!$F$1/'Acido - Base forte'!$F$2,NA()),NA()) -> 26.80701498 | B208: 7.943282347e-07 | C208: 6.1 | D208: =IF(Calcoli!$B$13=3,B208^Calcoli!$B$13+Calcoli!$B$9*B208^2+Calcoli!$B$9*Calcoli!$B$10*B208+Calcoli!$B$9*Calcoli!$B$10*Calcoli!$B$11,IF(Calcoli!$B$13=2,B208^Calcoli!$B$13+Calcoli!$B$9*B208+Calcoli!$B$9*Calcoli!$B$10,B208^Calcoli!$B$13+Calcoli!$B$9)) -> 6.423092718e-09 | E208: =(Calcoli!$B$9*B208^(Calcoli!$B$13-1))/D208 -> 0.9275067358 | F208: =IF(Calcoli!$B$13>=2, (Calcoli!$B$9*Calcoli!$B$10*B208^(Calcoli!$B$13-2))/D208,NA()) -> 0.07239503156 | G208: =IF(Calcoli!$B$13>=3,(Calcoli!$B$9*Calcoli!$B$10*Calcoli!$B$11*B208^(Calcoli!$B$13-3))/D208,NA()) ->  | H208: =IF(Calcoli!$B$13=3,(E208+F208*2+G208*3),IF(Calcoli!$B$13=2,(E208+F208*2),E208)) -> 1.072296799 | I208: 1.072280599 | J208: =(B208-(Calcoli!$B$8/B208))/'Acido - Base forte'!$F$1 -> 7.817389806e-06 | K208: =(B208-(Calcoli!$B$8/B208))/'Acido - Base forte'!$F$2 -> 7.817389806e-06
A209: =IF((I209*'Acido - Base forte'!$F$3*'Acido - Base forte'!$F$1)/'Acido - Base forte'!$F$2>0,IF((I209*'Acido - Base forte'!$F$3*'Acido - Base forte'!$F$1)/'Acido - Base forte'!$F$2<1.8*Calcoli!$B$13*('Acido - Base forte'!$F$1*'Acido - Base forte'!$F$3/'Acido - Base forte'!$F$2),I209*'Acido - Base forte'!$F$3*'Acido - Base forte'!$F$1/'Acido - Base forte'!$F$2,NA()),NA()) -> 27.01042358 | B209: 7.079457844e-07 | C209: 6.15 | D209: =IF(Calcoli!$B$13=3,B209^Calcoli!$B$13+Calcoli!$B$9*B209^2+Calcoli!$B$9*Calcoli!$B$10*B209+Calcoli!$B$9*Calcoli!$B$10*Calcoli!$B$11,IF(Calcoli!$B$13=2,B209^Calcoli!$B$13+Calcoli!$B$9*B209+Calcoli!$B$9*Calcoli!$B$10,B209^Calcoli!$B$13+Calcoli!$B$9)) -> 5.77509457e-09 | E209: =(Calcoli!$B$9*B209^(Calcoli!$B$13-1))/D209 -> 0.9193950538 | F209: =IF(Calcoli!$B$13>=2, (Calcoli!$B$9*Calcoli!$B$10*B209^(Calcoli!$B$13-2))/D209,NA()) -> 0.08051816197 | G209: =IF(Calcoli!$B$13>=3,(Calcoli!$B$9*Calcoli!$B$10*Calcoli!$B$11*B209^(Calcoli!$B$13-3))/D209,NA()) ->  | H209: =IF(Calcoli!$B$13=3,(E209+F209*2+G209*3),IF(Calcoli!$B$13=2,(E209+F209*2),E209)) -> 1.080431378 | I209: 1.080416943 | J209: =(B209-(Calcoli!$B$8/B209))/'Acido - Base forte'!$F$1 -> 6.938204089e-06 | K209: =(B209-(Calcoli!$B$8/B209))/'Acido - Base forte'!$F$2 -> 6.938204089e-06
A210: =IF((I210*'Acido - Base forte'!$F$3*'Acido - Base forte'!$F$1)/'Acido - Base forte'!$F$2>0,IF((I210*'Acido - Base forte'!$F$3*'Acido - Base forte'!$F$1)/'Acido - Base forte'!$F$2<1.8*Calcoli!$B$13*('Acido - Base forte'!$F$1*'Acido - Base forte'!$F$3/'Acido - Base forte'!$F$2),I210*'Acido - Base forte'!$F$3*'Acido - Base forte'!$F$1/'Acido - Base forte'!$F$2,NA()),NA()) -> 27.23438242 | B210: 6.309573445e-07 | C210: 6.2 | D210: =IF(Calcoli!$B$13=3,B210^Calcoli!$B$13+Calcoli!$B$9*B210^2+Calcoli!$B$9*Calcoli!$B$10*B210+Calcoli!$B$9*Calcoli!$B$10*Calcoli!$B$11,IF(Calcoli!$B$13=2,B210^Calcoli!$B$13+Calcoli!$B$9*B210+Calcoli!$B$9*Calcoli!$B$10,B210^Calcoli!$B$13+Calcoli!$B$9)) -> 5.197578191e-09 | E210: =(Calcoli!$B$9*B210^(Calcoli!$B$13-1))/D210 -> 0.9104586617 | F210: =IF(Calcoli!$B$13>=2, (Calcoli!$B$9*Calcoli!$B$10*B210^(Calcoli!$B$13-2))/D210,NA()) -> 0.08946474357 | G210: =IF(Calcoli!$B$13>=3,(Calcoli!$B$9*Calcoli!$B$10*Calcoli!$B$11*B210^(Calcoli!$B$13-3))/D210,NA()) ->  | H210: =IF(Calcoli!$B$13=3,(E210+F210*2+G210*3),IF(Calcoli!$B$13=2,(E210+F210*2),E210)) -> 1.089388149 | I210: 1.089375297 | J210: =(B210-(Calcoli!$B$8/B210))/'Acido - Base forte'!$F$1 -> 6.151084126e-06 | K210: =(B210-(Calcoli!$B$8/B210))/'Acido - Base forte'!$F$2 -> 6.151084126e-06
A211: =IF((I211*'Acido - Base forte'!$F$3*'Acido - Base forte'!$F$1)/'Acido - Base forte'!$F$2>0,IF((I211*'Acido - Base forte'!$F$3*'Acido - Base forte'!$F$1)/'Acido - Base forte'!$F$2<1.8*Calcoli!$B$13*('Acido - Base forte'!$F$1*'Acido - Base forte'!$F$3/'Acido - Base forte'!$F$2),I211*'Acido - Base forte'!$F$3*'Acido - Base forte'!$F$1/'Acido - Base forte'!$F$2,NA()),NA()) -> 27.48047473 | B211: 5.623413252e-07 | C211: 6.25 | D211: =IF(Calcoli!$B$13=3,B211^Calcoli!$B$13+Calcoli!$B$9*B211^2+Calcoli!$B$9*Calcoli!$B$10*B211+Calcoli!$B$9*Calcoli!$B$10*Calcoli!$B$11,IF(Calcoli!$B$13=2,B211^Calcoli!$B$13+Calcoli!$B$9*B211+Calcoli!$B$9*Calcoli!$B$10,B211^Calcoli!$B$13+Calcoli!$B$9)) -> 4.682876167e-09 | E211: =(Calcoli!$B$9*B211^(Calcoli!$B$13-1))/D211 -> 0.9006345222 | F211: =IF(Calcoli!$B$13>=2, (Calcoli!$B$9*Calcoli!$B$10*B211^(Calcoli!$B$13-2))/D211,NA()) -> 0.09929794926 | G211: =IF(Calcoli!$B$13>=3,(Calcoli!$B$9*Calcoli!$B$10*Calcoli!$B$11*B211^(Calcoli!$B$13-3))/D211,NA()) ->  | H211: =IF(Calcoli!$B$13=3,(E211+F211*2+G211*3),IF(Calcoli!$B$13=2,(E211+F211*2),E211)) -> 1.099230421 | I211: 1.099218989 | J211: =(B211-(Calcoli!$B$8/B211))/'Acido - Base forte'!$F$1 -> 5.445585311e-06 | K211: =(B211-(Calcoli!$B$8/B211))/'Acido - Base forte'!$F$2 -> 5.445585311e-06
A212: =IF((I212*'Acido - Base forte'!$F$3*'Acido - Base forte'!$F$1)/'Acido - Base forte'!$F$2>0,IF((I212*'Acido - Base forte'!$F$3*'Acido - Base forte'!$F$1)/'Acido - Base forte'!$F$2<1.8*Calcoli!$B$13*('Acido - Base forte'!$F$1*'Acido - Base forte'!$F$3/'Acido - Base forte'!$F$2),I212*'Acido - Base forte'!$F$3*'Acido - Base forte'!$F$1/'Acido - Base forte'!$F$2,NA()),NA()) -> 27.75028894 | B212: 5.011872336e-07 | C212: 6.3 | D212: =IF(Calcoli!$B$13=3,B212^Calcoli!$B$13+Calcoli!$B$9*B212^2+Calcoli!$B$9*Calcoli!$B$10*B212+Calcoli!$B$9*Calcoli!$B$10*Calcoli!$B$11,IF(Calcoli!$B$13=2,B212^Calcoli!$B$13+Calcoli!$B$9*B212+Calcoli!$B$9*Calcoli!$B$10,B212^Calcoli!$B$13+Calcoli!$B$9)) -> 4.224155441e-09 | E212: =(Calcoli!$B$9*B212^(Calcoli!$B$13-1))/D212 -> 0.8898593588 | F212: =IF(Calcoli!$B$13>=2, (Calcoli!$B$9*Calcoli!$B$10*B212^(Calcoli!$B$13-2))/D212,NA()) -> 0.1100811763 | G212: =IF(Calcoli!$B$13>=3,(Calcoli!$B$9*Calcoli!$B$10*Calcoli!$B$11*B212^(Calcoli!$B$13-3))/D212,NA()) ->  | H212: =IF(Calcoli!$B$13=3,(E212+F212*2+G212*3),IF(Calcoli!$B$13=2,(E212+F212*2),E212)) -> 1.110021712 | I212: 1.110011557 | J212: =(B212-(Calcoli!$B$8/B212))/'Acido - Base forte'!$F$1 -> 4.812346105e-06 | K212: =(B212-(Calcoli!$B$8/B212))/'Acido - Base forte'!$F$2 -> 4.812346105e-06
A213: =IF((I213*'Acido - Base forte'!$F$3*'Acido - Base forte'!$F$1)/'Acido - Base forte'!$F$2>0,IF((I213*'Acido - Base forte'!$F$3*'Acido - Base forte'!$F$1)/'Acido - Base forte'!$F$2<1.8*Calcoli!$B$13*('Acido - Base forte'!$F$1*'Acido - Base forte'!$F$3/'Acido - Base forte'!$F$2),I213*'Acido - Base forte'!$F$3*'Acido - Base forte'!$F$1/'Acido - Base forte'!$F$2,NA()),NA()) -> 28.04538897 | B213: 4.466835922e-07 | C213: 6.35 | D213: =IF(Calcoli!$B$13=3,B213^Calcoli!$B$13+Calcoli!$B$9*B213^2+Calcoli!$B$9*Calcoli!$B$10*B213+Calcoli!$B$9*Calcoli!$B$10*Calcoli!$B$11,IF(Calcoli!$B$13=2,B213^Calcoli!$B$13+Calcoli!$B$9*B213+Calcoli!$B$9*Calcoli!$B$10,B213^Calcoli!$B$13+Calcoli!$B$9)) -> 3.815326467e-09 | E213: =(Calcoli!$B$9*B213^(Calcoli!$B$13-1))/D213 -> 0.8780708466 | F213: =IF(Calcoli!$B$13>=2, (Calcoli!$B$9*Calcoli!$B$10*B213^(Calcoli!$B$13-2))/D213,NA()) -> 0.1218768575 | G213: =IF(Calcoli!$B$13>=3,(Calcoli!$B$9*Calcoli!$B$10*Calcoli!$B$11*B213^(Calcoli!$B$13-3))/D213,NA()) ->  | H213: =IF(Calcoli!$B$13=3,(E213+F213*2+G213*3),IF(Calcoli!$B$13=2,(E213+F213*2),E213)) -> 1.121824561 | I213: 1.121815559 | J213: =(B213-(Calcoli!$B$8/B213))/'Acido - Base forte'!$F$1 -> 4.242963808e-06 | K213: =(B213-(Calcoli!$B$8/B213))/'Acido - Base forte'!$F$2 -> 4.242963808e-06
A214: =IF((I214*'Acido - Base forte'!$F$3*'Acido - Base forte'!$F$1)/'Acido - Base forte'!$F$2>0,IF((I214*'Acido - Base forte'!$F$3*'Acido - Base forte'!$F$1)/'Acido - Base forte'!$F$2<1.8*Calcoli!$B$13*('Acido - Base forte'!$F$1*'Acido - Base forte'!$F$3/'Acido - Base forte'!$F$2),I214*'Acido - Base forte'!$F$3*'Acido - Base forte'!$F$1/'Acido - Base forte'!$F$2,NA()),NA()) -> 28.36727844 | B214: 3.981071706e-07 | C214: 6.4 | D214: =IF(Calcoli!$B$13=3,B214^Calcoli!$B$13+Calcoli!$B$9*B214^2+Calcoli!$B$9*Calcoli!$B$10*B214+Calcoli!$B$9*Calcoli!$B$10*Calcoli!$B$11,IF(Calcoli!$B$13=2,B214^Calcoli!$B$13+Calcoli!$B$9*B214+Calcoli!$B$9*Calcoli!$B$10,B214^Calcoli!$B$13+Calcoli!$B$9)) -> 3.450962268e-09 | E214: =(Calcoli!$B$9*B214^(Calcoli!$B$13-1))/D214 -> 0.865209048 | F214: =IF(Calcoli!$B$13>=2, (Calcoli!$B$9*Calcoli!$B$10*B214^(Calcoli!$B$13-2))/D214,NA()) -> 0.1347450258 | G214: =IF(Calcoli!$B$13>=3,(Calcoli!$B$9*Calcoli!$B$10*Calcoli!$B$11*B214^(Calcoli!$B$13-3))/D214,NA()) ->  | H214: =IF(Calcoli!$B$13=3,(E214+F214*2+G214*3),IF(Calcoli!$B$13=2,(E214+F214*2),E214)) -> 1.1346991 | I214: 1.134691138 | J214: =(B214-(Calcoli!$B$8/B214))/'Acido - Base forte'!$F$1 -> 3.729883062e-06 | K214: =(B214-(Calcoli!$B$8/B214))/'Acido - Base forte'!$F$2 -> 3.729883062e-06
... 152 more rows
